Workbook

Sheet Toel. wijziging (aug 2016)
A1: =RIGHT(CELL("filename", A1), LEN(CELL("filename", A1)) - SEARCH("]", CELL("filename", A1))) -> Toel. wijziging (aug 2016)
E3: Toelichting bij model: GAW sheet Gas
E5: Dit Excel-bestand bevat het model waarmee de Gestandaardiseerde Activa Waarde (GAW) voor regionale netbeheerders gas voor de periode 2004 - 2016 worden berekend. Dit dient als invoer voor de kapitaalkosten in het x-factor model.
E6: In het model worden voor de netbeheerders alle investeringen, desinvesteringen, opgegeven afschrijvingen, etc. invoerd per jaar waarna het model de jaarlijkse boekwaardes en totalen berekend.
E7: Op de dashboards zijn de resultaten te vinden die als invoer dienen voor het x-factor model.
E8: Deze berekening maakt onderdeel uit van de gewijzigde x-factorberekening voor de vijfde periode (NG5R) d.d. 25 augustus 2016. Deze wijziging volgt op een eerdere wijziging van de besluiten van datum 11 september 2014. Hieronder zijn de nieuwe zaaknummers en kenmerken genoemd die van toepassing zijn op de besluiten van datum 25 augustus 2016.
E9: Overzicht herstel X-factorbesluiten
G11: X-factorbesluiten Gas | K11: Zaaknummer | O11: Kenmerk
G12: Cogas Infra & Beheer B.V. | K12: 16.0787.52 | O12: ACM/DE/2016/204810
G13: DELTA Netwerkbedrijf B.V. | K13: 16.0789.52 | O13: ACM/DE/2016/204812
G14: Enexis B.V. | K14: 16.0792.52 | O14: ACM/DE/2016/204814
G15: Liander N.V. | K15: 16.0794.52 | O15: ACM/DE/2016/204816
G16: Endinet B.V. | K16: 16.0796.52 | O16: ACM/DE/2016/204818
G17: RENDO Netbeheer B.V. | K17: 16.0799.52 | O17: ACM/DE/2016/204820
G18: Stedin Netbeheer B.V. | K18: 16.0801.52 | O18: ACM/DE/2016/204822
G19: Westland Infra Netbeheer B.V. | K19: 16.0803.52 | O19: ACM/DE/2016/204824
G20: Zebra Gasnetwerk B.V. | K20: 16.0804.52 | O20: ACM/DE/2016/204825
E22: Databronnen
B24: Bronnen
E25: t/m 2006: Kapitaalkostensheet RNB’s zoals gehanteerd voor het x-factorbesluit NG4R en gepubliceerd op 14 september 2010.
E26: 2007 en 2008: Kapitaalkostensheet RNB’s zoals gehanteerd voor het x-factorbesluit NG4R en gepubliceerd op 14 september 2010. In aanvulling daarop zijn wijzigingen aangebracht op de gegevens van Enexis in verband met het opnemen van investeringen in software voor de meetdienst.
E27: 2009 t/m 2011: Gevalideerde en gecontroleerde data conform PRD-uitvraag over de betreffende jaren met eventuele aanpassingen daarop als gevolg van uitvraag CORR2009-2011 in het voorjaar van 2013.
E28: 2012: Gevalideerde en gecontroleerde data conform PRD-uitvraag over 2012
E29: Aanpassingen: correspondentie met netbeheerders
E31: Toelichting bij aannames en parameters in het model
E33: Het model rekent door na de toetsencombinatie: ctrl+alt+F9 of met de updateknoppen op de dashboards.
B35: Werking model
E37: BOVEN DE MOTORKAP
G40: Inputs | O40: Dashboards
E45: ONDER DE MOTORKAP
G50: Input verwerking | K50: Berekeningen | O50: Resultaten
B57: Model flow (indeling werkbladen)
G59: Inputs | K59: Berekeningen | O59: Resultaten
G62: InpC | K62: Tijd | O62: Check
G64: InpNetbeheerder1 | K64: CPI
G66: ... | K66: ActieveNetbeheerder
G68: InpNetbeheerderN
K71: GAW
K76: Indexatie
O78: Dashboard Netbeheerder
O80: Dashboard Boekjaar
K81: UI & Overgenomen Netten
B86: Belangrijkste modelaannames en keuzes
E87: Ten behoeve van transparantie en flexibiliteit zijn in het model de inputs, berekeningen en resultaten uit elkaar gehaald.
E88: Het wijzigen van een input werkt door in het hele model (na het updaten!).
E89: Per netbeheerder zijn de inputs, berekeningen en outputs voor de Netten en Gasaansluitingen van elkaar gescheiden
E90: Vanwege de extra benodigde flexibiliteit m.b.t. Uitzonderlijke Investeringen en Overgenomen Netten staan die berekeningen op zichzelf en hebben zij alleen input nodig bij de eigen berekeningen.
E91: Vanaf 2010 worden in de berekeningen van de boekwaardes geen desinvesteringen en bijzondere waardeverminderingen meer meegenomen, met uitzondering van opbrengsten bij desinvesteringen en overdracht van activa tussen netbeheerders. Het ontbreken van de correctie maakt de berekeningen vanaf dat moment eenvoudiger. Dat betekent eveneens dat de data met betrekking tot desinvesteringen vanaf het jaar 2010 niet meer geheel volledig is. Soms zijn nog bedragen opgenomen (die dan geen impact meer hebben op de berekeningen, soms ontbreken de bedragen.
E92: Bij de gasaansluitingsdienst is onderscheid gemaakt tussen aanschafwaarde investeringen >40m3 en <40m3. In de GAW berekeningen wordt voor >40m3 t/m 2010 gewerkt met 38,5% van de totale waarde zoals aangegeven in de PRD. Vanaf 2011 zijn de waardes in de PRD correct ingevoerd en is de correctie van 38,5% niet meer nodig. De 38,5% correctie t/m 2010 is in de invoer al meergenomen.
B94: In te stellen variabelen / vlaggen in het model
E95: Het model werkt met één regionale netbeheerder tegelijk. Dit houdt in dat op het Dashboard Netbeheerder de juiste netbeheerder geselecteerd dient te zijn alvorens het model door te rekenen. Het werkblad ActieveNebeheerder haalt de gegevens op uit het werkblad van de relevante netbeheerder die daarna gebruikt worden voor de berekeningen op het werkblad GAW. Vervolgens haalt het werkblad Indexatie de gegevens op uit het werkblad GAW.
E96: Alle berekeningen bestaan uit blokken. In ieder blok worden eerst alle relevante inputs voor de berekening onder elkaar gezet waarna de berekening volgt. Berekeningen zijn dan te doorgronden zonder door verschillende werkbladen heen te moeten zoeken naar de verwijzingen.
E97: Dit model maakt gebruik van een tijdslijn en doorgetrokken formules. Alle formules in een rij zijn daarom over de tijd gelijk aan de eerste formule in kolom K.
E98: In het werkblad InpC zijn alle overige inputvariabelen gedefinieerd die nodig zijn voor een juiste werking van het model. Waaronder de CPI, investeringsjaren en mogelijke afschrijvingstermijnen. Daarnaast zijn hier de netbeheerders opgegeven die corresponderen met de verschillende input werkbladen InpNetbeheerder.
E100: Er wordt veelvuldig gebruik gemaakt van vlaggen in de vorm van 0/1. Deze geven in een berekening aan of iets wel of niet voorkomt. Bijvoorbeeld, in de jaren t/m 2006 is gebruik gemaakt van handmatige afschrijvingen. In dit model zal de vlag voor handmatige afschrijvingen dus t/m 2006 op 1 staan en vanaf 2007 op 0. Als in de inputs de looptijd voor handmatige afschrijvingen aangepast wordt, dan zal de vlag zich ook aanpassen.
E103: Legenda
B105: Tabbladen
E106: Toelichting en templates
E107: Output (dashboards)
E108: Invoer van data algemeen en per netbeheerder
E109: Berekeningen
E110: Checks en waarschuwingen
B112: Cellen
E113: Inputdata
E114: Inputdata overgenomen van het dashboard
E115: Waarde opgehaald uit een andere cel ten behoeve van een berekening
E116: Berekening
E117: Waarde of berekening die speciale aandacht vraagt
E118: Invoerlijn die op een later moment ingevoerd dient te worden. (Ten behoeve van flexibiliteit bij UI's)
E119: Losse invoer voor berekeningen
E120: Checkwaarde correct
E121: Checkwaarde incorrect
B123: Tekst
E124: Opgehaalde data van hetzelfde werkblad
E125: Opgehaalde data van een ander werkblad
E126: Berekening die geëxporteerd wordt naar een ander werkblad
B128: Celnamen
E129: ActBeheerder | I129: ='Dashboard Netbeheerder'!$N$4
E130: ActJaar | I130: ='Dashboard Boekjaar'!$N$5
E131: Beheerder1 | I131: ='Dashboard Boekjaar'!$K$11
E132: Chk_Tol | I132: =InpC!$G$98
E133: ColumnKey | I133: =InpC!$G$10
E134: Jaartallen | I134: =InpC!$G$17:$G$35
E135: Netbeheerders | I135: =InpC!$G$56:$G$71
E136: PrintBeheerder | I136: ='Dashboard Netbeheerder'!$E$11
E137: PrintBeheerder2 | I137: ='Dashboard Netbeheerder'!$E$42
E138: PrintJaar | I138: ='Dashboard Boekjaar'!$E$11
E139: PrintJaar2 | I139: ='Dashboard Boekjaar'!$E$42
E140: Tijdslijn | I140: ='Dashboard Netbeheerder'!$K$11:$CL$11
B142: Macros()
E143: LanguageKey() | I143: Voor Excelversies voor 2007. Bepaald de gebruikte taal bij het opstarten van dit workbook en past op basis daarvan in de inputs de kolomsleutel aan. Deze input wordt gebruikt door de indirectfunctie in het werkblad "Actieve Netbeheerder"
E144: Optimise() | I144: Rekent voor de geselecteerde netbeheerder de activawaardes uit en toont die op het dashboard.
E145: OpBeheerders() | I145: Gaat op basis van het geselecteerde jaar op het Dashboard Boekjaar alle netbeheerders af en geeft op het dashboard een overzicht van de boekwaardes in dat jaar. De boekwaardes van iedere netbeheerder worden naast elkaar geprint ter vergelijking.

Sheet Aanpassing gegevens (aug 2016)
B2: Toelichting bij gewijzigde berekening GAW en afschrijvingen voor x-factoren en rekenvolumina NG5R
B4: Dit Excel-bestand bevat het model waarmee de GAW en afschrijvingen voor de regionale netbeheerders gas worden berekend.
B5: Dit bestand maakt onderdeel uit van de (gewijzigde) x/rv-besluiten voor de vijfde periode voor de regionale netbeheerders gas (besluiten van 25 augustus 2016).
B6: Dit bestand zoals dat nu tot stand is gekomen is volledig gebaseerd op de eerdere wijziging op deze berekening voor de vaststelling van de x-factoren en rekenvolumina NG5R van besluiten van 11 september 2014,
B7: behoudens de aanpassingen die onderstaand worden toegelicht.
B9: In onderstaande overzichten geldt steeds:
B10: Oorspronkelijke gegevens: gegevens zoals opgenomen in het model dat gepubliceerd is bij de gewijzigde x-factoren en rekenvolumina NG5R van besluiten van 11 september 2014.
B11: Aanpassing: aanpassing van de gegevens op basis van een specifieke bron (wordt steeds genoemd).
B12: Nieuw: nieuwe gegevens zoals deze zijn opgenomen in de bladen. Op dit blad wordt steeds verwezen naar deze gegevens.
B14: In alle gevallen betreft het gegevens in euro's, weergegeven in het prijspeil van het investeringsjaar.
B18: Aanpassing gegevens start-GAW Gasaansluitingen Stedin
B20: Netbeheerder: | D20: Stedin
B21: Bron nieuwe gegevens: | D21: Gewijzigde berekening start-GAW voor gasaansluitingen van Stedin (bestand: RNB's Gas-2011-2013-rekenmodule-start-GAW GAD wijziging zomer 2016)
D22: De wijziging is tot stand gekomen op basis van een e-mail van Stedin aan ACM van 18 maart 2016.
B24: Investeringsjaar | C24: Aanpassing gegevens | D24: Celverwijzing | F24: Oorspronkelijk | J24: Nieuw
B25: 2008 (start-GAW) | C25: Startwaarde GAW | D25: Blad: InpStedin, cel: G746 | F25: 310803729 | J25: 260952396.8

Sheet Toelichting wijziging sept.2014
A1: =RIGHT(CELL("filename", A1), LEN(CELL("filename", A1)) - SEARCH("]", CELL("filename", A1))) -> Toelichting wijziging sept.2014
E3: Toelichting bij model: GAW sheet Gas
E5: Dit Excel-bestand bevat het model waarmee de Gestandaardiseerde Activa Waarde (GAW) voor regionale netbeheerders gas voor de periode 2004 - 2016 worden berekend. Dit dient als invoer voor de kapitaalkosten in het x-factor model.
E6: In het model worden voor de netbeheerders alle investeringen, desinvesteringen, opgegeven afschrijvingen, etc. invoerd per jaar waarna het model de jaarlijkse boekwaardes en totalen berekend.
E7: Op de dashboards zijn de resultaten te vinden die als invoer dienen voor het x-factor model.
E8: Deze berekening maakt onderdeel uit van de herstel x-factorberekening voor de vijfde periode (NG5R) d.d. 11 september 2014
E9: Overzicht herstel X-factorbesluiten
G11: X-factorbesluiten Gas | K11: Zaaknummer | O11: Kenmerk
G12: Cogas Infra & Beheer B.V. | K12: 14.0731.52 | O12: ACM/DE/2014/205162
G13: DELTA Netwerkbedrijf B.V. | K13: 14.0733.52 | O13: ACM/DE/2014/205164
G14: Enexis B.V. | K14: 14.0735.52 | O14: ACM/DE/2014/205166
G15: Liander N.V. | K15: 14.0737.52 | O15: ACM/DE/2014/205168
G16: Endinet B.V. | K16: 14.0739.52 | O16: ACM/DE/2014/205170
G17: RENDO Netbeheer B.V. | K17: 14.0741.52 | O17: ACM/DE/2014/205172
G18: Stedin Netbeheer B.V. | K18: 14.0743.52 | O18: ACM/DE/2014/205174
G19: Westland Infra Netbeheer B.V. | K19: 14.0745.52 | O19: ACM/DE/2014/205176
G20: Zebra Gasnetwerk B.V. | K20: 14.0746.52 | O20: ACM/DE/2014/205177
E22: Databronnen
B24: Bronnen
E25: t/m 2006: Kapitaalkostensheet RNB’s zoals gehanteerd voor het x-factorbesluit NG4R en gepubliceerd op 14 september 2010.
E26: 2007 en 2008: Kapitaalkostensheet RNB’s zoals gehanteerd voor het x-factorbesluit NG4R en gepubliceerd op 14 september 2010. In aanvulling daarop zijn wijzigingen aangebracht op de gegevens van Enexis in verband met het opnemen van investeringen in software voor de meetdienst.
E27: 2009 t/m 2011: Gevalideerde en gecontroleerde data conform PRD-uitvraag over de betreffende jaren met eventuele aanpassingen daarop als gevolg van uitvraag CORR2009-2011 in het voorjaar van 2013.
E28: 2012: Gevalideerde en gecontroleerde data conform PRD-uitvraag over 2012
E29: Aanpassingen: correspondentie met netbeheerders
E31: Toelichting bij aannames en parameters in het model
E33: Het model rekent door na de toetsencombinatie: ctrl+alt+F9 of met de updateknoppen op de dashboards.
B35: Werking model
E37: BOVEN DE MOTORKAP
G40: Inputs | O40: Dashboards
E45: ONDER DE MOTORKAP
G50: Input verwerking | K50: Berekeningen | O50: Resultaten
B57: Model flow (indeling werkbladen)
G59: Inputs | K59: Berekeningen | O59: Resultaten
G62: InpC | K62: Tijd | O62: Check
G64: InpNetbeheerder1 | K64: CPI
G66: ... | K66: ActieveNetbeheerder
G68: InpNetbeheerderN
K71: GAW
K76: Indexatie
O78: Dashboard Netbeheerder
O80: Dashboard Boekjaar
K81: UI & Overgenomen Netten
B86: Belangrijkste modelaannames en keuzes
E87: Ten behoeve van transparantie en flexibiliteit zijn in het model de inputs, berekeningen en resultaten uit elkaar gehaald.
E88: Het wijzigen van een input werkt door in het hele model (na het updaten!).
E89: Per netbeheerder zijn de inputs, berekeningen en outputs voor de Netten en Gasaansluitingen van elkaar gescheiden
E90: Vanwege de extra benodigde flexibiliteit m.b.t. Uitzonderlijke Investeringen en Overgenomen Netten staan die berekeningen op zichzelf en hebben zij alleen input nodig bij de eigen berekeningen.
E91: Vanaf 2010 worden in de berekeningen van de boekwaardes geen desinvesteringen en bijzondere waardeverminderingen meer meegenomen, met uitzondering van opbrengsten bij desinvesteringen en overdracht van activa tussen netbeheerders. Het ontbreken van de correctie maakt de berekeningen vanaf dat moment eenvoudiger. Dat betekent eveneens dat de data met betrekking tot desinvesteringen vanaf het jaar 2010 niet meer geheel volledig is. Soms zijn nog bedragen opgenomen (die dan geen impact meer hebben op de berekeningen, soms ontbreken de bedragen.
E92: Bij de gasaansluitingsdienst is onderscheid gemaakt tussen aanschafwaarde investeringen >40m3 en <40m3. In de GAW berekeningen wordt voor >40m3 t/m 2010 gewerkt met 38,5% van de totale waarde zoals aangegeven in de PRD. Vanaf 2011 zijn de waardes in de PRD correct ingevoerd en is de correctie van 38,5% niet meer nodig. De 38,5% correctie t/m 2010 is in de invoer al meergenomen.
B94: In te stellen variabelen / vlaggen in het model
E95: Het model werkt met één regionale netbeheerder tegelijk. Dit houdt in dat op het Dashboard Netbeheerder de juiste netbeheerder geselecteerd dient te zijn alvorens het model door te rekenen. Het werkblad ActieveNebeheerder haalt de gegevens op uit het werkblad van de relevante netbeheerder die daarna gebruikt worden voor de berekeningen op het werkblad GAW. Vervolgens haalt het werkblad Indexatie de gegevens op uit het werkblad GAW.
E96: Alle berekeningen bestaan uit blokken. In ieder blok worden eerst alle relevante inputs voor de berekening onder elkaar gezet waarna de berekening volgt. Berekeningen zijn dan te doorgronden zonder door verschillende werkbladen heen te moeten zoeken naar de verwijzingen.
E97: Dit model maakt gebruik van een tijdslijn en doorgetrokken formules. Alle formules in een rij zijn daarom over de tijd gelijk aan de eerste formule in kolom K.
E98: In het werkblad InpC zijn alle overige inputvariabelen gedefinieerd die nodig zijn voor een juiste werking van het model. Waaronder de CPI, investeringsjaren en mogelijke afschrijvingstermijnen. Daarnaast zijn hier de netbeheerders opgegeven die corresponderen met de verschillende input werkbladen InpNetbeheerder.
E100: Er wordt veelvuldig gebruik gemaakt van vlaggen in de vorm van 0/1. Deze geven in een berekening aan of iets wel of niet voorkomt. Bijvoorbeeld, in de jaren t/m 2006 is gebruik gemaakt van handmatige afschrijvingen. In dit model zal de vlag voor handmatige afschrijvingen dus t/m 2006 op 1 staan en vanaf 2007 op 0. Als in de inputs de looptijd voor handmatige afschrijvingen aangepast wordt, dan zal de vlag zich ook aanpassen.
E103: Legenda
B105: Tabbladen
E106: Toelichting en templates
E107: Output (dashboards)
E108: Invoer van data algemeen en per netbeheerder
E109: Berekeningen
E110: Checks en waarschuwingen
B112: Cellen
E113: Inputdata
E114: Inputdata overgenomen van het dashboard
E115: Waarde opgehaald uit een andere cel ten behoeve van een berekening
E116: Berekening
E117: Waarde of berekening die speciale aandacht vraagt
E118: Invoerlijn die op een later moment ingevoerd dient te worden. (Ten behoeve van flexibiliteit bij UI's)
E119: Losse invoer voor berekeningen
E120: Checkwaarde correct
E121: Checkwaarde incorrect
B123: Tekst
E124: Opgehaalde data van hetzelfde werkblad
E125: Opgehaalde data van een ander werkblad
E126: Berekening die geëxporteerd wordt naar een ander werkblad
B128: Celnamen
E129: ActBeheerder | I129: ='Dashboard Netbeheerder'!$N$4
E130: ActJaar | I130: ='Dashboard Boekjaar'!$N$5
E131: Beheerder1 | I131: ='Dashboard Boekjaar'!$K$11
E132: Chk_Tol | I132: =InpC!$G$98
E133: ColumnKey | I133: =InpC!$G$10
E134: Jaartallen | I134: =InpC!$G$17:$G$35
E135: Netbeheerders | I135: =InpC!$G$56:$G$71
E136: PrintBeheerder | I136: ='Dashboard Netbeheerder'!$E$11
E137: PrintBeheerder2 | I137: ='Dashboard Netbeheerder'!$E$42
E138: PrintJaar | I138: ='Dashboard Boekjaar'!$E$11
E139: PrintJaar2 | I139: ='Dashboard Boekjaar'!$E$42
E140: Tijdslijn | I140: ='Dashboard Netbeheerder'!$K$11:$CL$11
B142: Macros()
E143: LanguageKey() | I143: Voor Excelversies voor 2007. Bepaald de gebruikte taal bij het opstarten van dit workbook en past op basis daarvan in de inputs de kolomsleutel aan. Deze input wordt gebruikt door de indirectfunctie in het werkblad "Actieve Netbeheerder"
E144: Optimise() | I144: Rekent voor de geselecteerde netbeheerder de activawaardes uit en toont die op het dashboard.
E145: OpBeheerders() | I145: Gaat op basis van het geselecteerde jaar op het Dashboard Boekjaar alle netbeheerders af en geeft op het dashboard een overzicht van de boekwaardes in dat jaar. De boekwaardes van iedere netbeheerder worden naast elkaar geprint ter vergelijking.

Sheet Aanpassing gegevens (sep 2014)
B2: Toelichting bij berekening Gewijzigde x-factoren en rekenvolumina NG5R
B4: Dit Excel-bestand bevat het model waarmee de GAW en afschrijvingen voor de regionale netbeheerders gas worden berekend.
B5: Dit bestand maakt onderdeel uit van de (gewijzigde) x/rv-besluiten voor de vijfde periode voor de regionale netbeheerders gas (besluiten van 11 september 2014).
B6: Dit bestand zoals dat nu tot stand is gekomen is volledig gebaseerd op de berekening voor de vaststelling van de x-factoren en rekenvolumina NG5R van besluiten van 26 september 2013 met kenmerk 103998/549,
B7: behoudens de aanpassingen die onderstaand worden toegelicht.
B9: In onderstaande overzichten geldt steeds:
B10: Oorspronkelijke gegevens: gegevens zoals opgenomen in het model dat gepubliceerd is bij de gewijzigde x-factoren en rekenvolumina NG5R van besluiten van 26 september 2013 met kenmerk 103998/549.
B11: Aanpassing: aanpassing van de gegevens op basis van een specifieke bron (wordt steeds genoemd).
B12: Nieuw: nieuwe gegevens zoals deze zijn opgenomen in de bladen. Op dit blad wordt steeds verwezen naar deze gegevens.
B14: In alle gevallen betreft het gegevens in euro's, weergegeven in het prijspeil van het investeringsjaar.
B18: Aanpassing investeringsgegevens Liander o.b.v.foutief geboekte investeringen (onterecht als investeringsbijdragen gepassiveerd)
B20: Netbeheerder: | D20: Liander
B21: Bron nieuwe gegevens: | D21: E-mail Liander aan ACM op 18 september 2013 en 25 juli 2014
B23: Investeringsjaar | C23: Aanpassing gegevens | D23: Celverwijzing blad 'InpLiander Excl HS' | F23: Oorspronkelijk | H23: Aanpassing | J23: Nieuw
B24: 2008 | C24: Aanschafwaarde investeringen met afschrijvingstermijn 55 | D24: G224 | F24: 5851390 | H24: 46748 | J24: =F24+H24 -> 5898138
B25: 2008 | C25: Aanschafwaarde investeringen met afschrijvingstermijn 45 | D25: G225 | F25: 17405850 | H25: 77718 | J25: 17483568
B26: 2008 | C26: Aanschafwaarde investeringen met afschrijvingstermijn 30 | D26: G226 | F26: 1521726 | H26: 21461 | J26: 1543187
B27: 2009 | C27: Aanschafwaarde investeringen met afschrijvingstermijn 55 | D27: G274 | F27: 5829917 | H27: 5194 | J27: 5835111
B28: 2009 | C28: Aanschafwaarde investeringen met afschrijvingstermijn 45 | D28: G275 | F28: 22860637 | H28: 38313 | J28: 22898950
B29: 2010 | C29: Aanschafwaarde investeringen met afschrijvingstermijn 45 | D29: G335 | F29: 33200460 | H29: 15883 | J29: 33216343
B30: 2010 | C30: Aanschafwaarde investeringen met afschrijvingstermijn 30 | D30: G336 | F30: 2843013 | H30: 2385 | J30: =F30+H30 -> 2845398

Sheet Toelichting
A1: =RIGHT(CELL("filename", A1), LEN(CELL("filename", A1)) - SEARCH("]", CELL("filename", A1))) -> Toelichting
E3: Toelichting bij model: GAW sheet Gas
E5: Dit Excel-bestand bevat het model waarmee de Gestandaardiseerde Activa Waarde (GAW) voor regionale netbeheerders gas voor de periode 2004 - 2016 worden berekend. Dit dient als invoer voor de kapitaalkosten in het x-factor model.
E6: In het model worden voor de netbeheerders alle investeringen, desinvesteringen, opgegeven afschrijvingen, etc. invoerd per jaar waarna het model de jaarlijkse boekwaardes en totalen berekend.
E7: Op de dashboards zijn de resultaten te vinden die als invoer dienen voor het x-factor model.
E8: Databronnen
B10: Bronnen
E11: t/m 2006: Kapitaalkostensheet RNB’s zoals gehanteerd voor het x-factorbesluit NG4R en gepubliceerd op 14 september 2010.
E12: 2007 en 2008: Kapitaalkostensheet RNB’s zoals gehanteerd voor het x-factorbesluit NG4R en gepubliceerd op 14 september 2010. In aanvulling daarop zijn wijzigingen aangebracht op de gegevens van Enexis in verband met het opnemen van investeringen in software voor de meetdienst.
E13: 2009 t/m 2011: Gevalideerde en gecontroleerde data conform PRD-uitvraag over de betreffende jaren met eventuele aanpassingen daarop als gevolg van uitvraag CORR2009-2011 in het voorjaar van 2013.
E14: 2012: Gevalideerde en gecontroleerde data conform PRD-uitvraag over 2012
E15: Aanpassingen: correspondentie met netbeheerders
E17: Toelichting bij aannames en parameters in het model
E19: Het model rekent door na de toetsencombinatie: ctrl+alt+F9 of met de updateknoppen op de dashboards.
B21: Werking model
E23: BOVEN DE MOTORKAP
G26: Inputs | O26: Dashboards
E31: ONDER DE MOTORKAP
G36: Input verwerking | K36: Berekeningen | O36: Resultaten
B43: Model flow (indeling werkbladen)
G45: Inputs | K45: Berekeningen | O45: Resultaten
G48: InpC | K48: Tijd | O48: Check
G50: InpNetbeheerder1 | K50: CPI
G52: ... | K52: ActieveNetbeheerder
G54: InpNetbeheerderN
K57: GAW
K62: Indexatie
O64: Dashboard Netbeheerder
O66: Dashboard Boekjaar
K67: UI & Overgenomen Netten
B72: Belangrijkste modelaannames en keuzes
E73: Ten behoeve van transparantie en flexibiliteit zijn in het model de inputs, berekeningen en resultaten uit elkaar gehaald.
E74: Het wijzigen van een input werkt door in het hele model (na het updaten!).
E75: Per netbeheerder zijn de inputs, berekeningen en outputs voor de Netten en Gasaansluitingen van elkaar gescheiden
E76: Vanwege de extra benodigde flexibiliteit m.b.t. Uitzonderlijke Investeringen en Overgenomen Netten staan die berekeningen op zichzelf en hebben zij alleen input nodig bij de eigen berekeningen.
E77: Vanaf 2010 worden in de berekeningen van de boekwaardes geen desinvesteringen en bijzondere waardeverminderingen meer meegenomen, met uitzondering van opbrengsten bij desinvesteringen en overdracht van activa tussen netbeheerders. Het ontbreken van de correctie maakt de berekeningen vanaf dat moment eenvoudiger. Dat betekent eveneens dat de data met betrekking tot desinvesteringen vanaf het jaar 2010 niet meer geheel volledig is. Soms zijn nog bedragen opgenomen (die dan geen impact meer hebben op de berekeningen, soms ontbreken de bedragen.
E78: Bij de gasaansluitingsdienst is onderscheid gemaakt tussen aanschafwaarde investeringen >40m3 en <40m3. In de GAW berekeningen wordt voor >40m3 t/m 2010 gewerkt met 38,5% van de totale waarde zoals aangegeven in de PRD. Vanaf 2011 zijn de waardes in de PRD correct ingevoerd en is de correctie van 38,5% niet meer nodig. De 38,5% correctie t/m 2010 is in de invoer al meergenomen.
B80: In te stellen variabelen / vlaggen in het model
E81: Het model werkt met één regionale netbeheerder tegelijk. Dit houdt in dat op het Dashboard Netbeheerder de juiste netbeheerder geselecteerd dient te zijn alvorens het model door te rekenen. Het werkblad ActieveNebeheerder haalt de gegevens op uit het werkblad van de relevante netbeheerder die daarna gebruikt worden voor de berekeningen op het werkblad GAW. Vervolgens haalt het werkblad Indexatie de gegevens op uit het werkblad GAW.
E82: Alle berekeningen bestaan uit blokken. In ieder blok worden eerst alle relevante inputs voor de berekening onder elkaar gezet waarna de berekening volgt. Berekeningen zijn dan te doorgronden zonder door verschillende werkbladen heen te moeten zoeken naar de verwijzingen.
E83: Dit model maakt gebruik van een tijdslijn en doorgetrokken formules. Alle formules in een rij zijn daarom over de tijd gelijk aan de eerste formule in kolom K.
E84: In het werkblad InpC zijn alle overige inputvariabelen gedefinieerd die nodig zijn voor een juiste werking van het model. Waaronder de CPI, investeringsjaren en mogelijke afschrijvingstermijnen. Daarnaast zijn hier de netbeheerders opgegeven die corresponderen met de verschillende input werkbladen InpNetbeheerder.
E86: Er wordt veelvuldig gebruik gemaakt van vlaggen in de vorm van 0/1. Deze geven in een berekening aan of iets wel of niet voorkomt. Bijvoorbeeld, in de jaren t/m 2006 is gebruik gemaakt van handmatige afschrijvingen. In dit model zal de vlag voor handmatige afschrijvingen dus t/m 2006 op 1 staan en vanaf 2007 op 0. Als in de inputs de looptijd voor handmatige afschrijvingen aangepast wordt, dan zal de vlag zich ook aanpassen.
E89: Legenda
B91: Tabbladen
E92: Toelichting en templates
E93: Output (dashboards)
E94: Invoer van data algemeen en per netbeheerder
E95: Berekeningen
E96: Checks en waarschuwingen
B98: Cellen
E99: Inputdata
E100: Inputdata overgenomen van het dashboard
E101: Waarde opgehaald uit een andere cel ten behoeve van een berekening
E102: Berekening
E103: Waarde of berekening die speciale aandacht vraagt
E104: Invoerlijn die op een later moment ingevoerd dient te worden. (Ten behoeve van flexibiliteit bij UI's)
E105: Losse invoer voor berekeningen
E106: Checkwaarde correct
E107: Checkwaarde incorrect
B109: Tekst
E110: Opgehaalde data van hetzelfde werkblad
E111: Opgehaalde data van een ander werkblad
E112: Berekening die geëxporteerd wordt naar een ander werkblad
B114: Celnamen
E115: ActBeheerder | I115: ='Dashboard Netbeheerder'!$N$4
E116: ActJaar | I116: ='Dashboard Boekjaar'!$N$5
E117: Beheerder1 | I117: ='Dashboard Boekjaar'!$K$11
E118: Chk_Tol | I118: =InpC!$G$98
E119: ColumnKey | I119: =InpC!$G$10
E120: Jaartallen | I120: =InpC!$G$17:$G$35
E121: Netbeheerders | I121: =InpC!$G$56:$G$71
E122: PrintBeheerder | I122: ='Dashboard Netbeheerder'!$E$11
E123: PrintBeheerder2 | I123: ='Dashboard Netbeheerder'!$E$42
E124: PrintJaar | I124: ='Dashboard Boekjaar'!$E$11
E125: PrintJaar2 | I125: ='Dashboard Boekjaar'!$E$42
E126: Tijdslijn | I126: ='Dashboard Netbeheerder'!$K$11:$CL$11
B128: Macros()
E129: LanguageKey() | I129: Voor Excelversies voor 2007. Bepaald de gebruikte taal bij het opstarten van dit workbook en past op basis daarvan in de inputs de kolomsleutel aan. Deze input wordt gebruikt door de indirectfunctie in het werkblad "Actieve Netbeheerder"
E130: Optimise() | I130: Rekent voor de geselecteerde netbeheerder de activawaardes uit en toont die op het dashboard.
E131: OpBeheerders() | I131: Gaat op basis van het geselecteerde jaar op het Dashboard Boekjaar alle netbeheerders af en geeft op het dashboard een overzicht van de boekwaardes in dat jaar. De boekwaardes van iedere netbeheerder worden naast elkaar geprint ter vergelijking.

Sheet Dashboard Netbeheerder
L2: Kapitaalkosten Regionale Netwerkbeheerders Gas
L4: Actieve Netbeheerder: | N4: Zebra EHD
L5: Gemarkeerd jaar: | N5: 2004
B9: Overzicht Geïndexeerde Activa Waarde Actieve Netbeheerder*
E11: TRANSPORTDIENST: Liander | K11: =Tijd!K$4 -> 2004 | L11: =Tijd!L$4 -> 2005 | M11: =Tijd!M$4 -> 2006 | N11: =Tijd!N$4 -> 2007 | O11: =Tijd!O$4 -> 2008 | P11: =Tijd!P$4 -> 2009 | Q11: =Tijd!Q$4 -> 2010 | R11: =Tijd!R$4 -> 2011 | S11: =Tijd!S$4 -> 2012 | T11: =Tijd!T$4 -> 2013 | U11: =Tijd!U$4 -> 2014 | V11: =Tijd!V$4 -> 2015 | W11: =Tijd!W$4 -> 2016 | X11: =Tijd!X$4 -> 2017 | Y11: =Tijd!Y$4 -> 2018 | Z11: =Tijd!Z$4 -> 2019 | AA11: =Tijd!AA$4 -> 2020 | AB11: =Tijd!AB$4 -> 2021 | AC11: =Tijd!AC$4 -> 2022 | AD11: =Tijd!AD$4 -> 2023 | AE11: =Tijd!AE$4 -> 2024 | AF11: =Tijd!AF$4 -> 2025 | AG11: =Tijd!AG$4 -> 2026 | AH11: =Tijd!AH$4 -> 2027 | AI11: =Tijd!AI$4 -> 2028 | AJ11: =Tijd!AJ$4 -> 2029 | AK11: =Tijd!AK$4 -> 2030 | AL11: =Tijd!AL$4 -> 2031 | AM11: =Tijd!AM$4 -> 2032 | AN11: =Tijd!AN$4 -> 2033 | AO11: =Tijd!AO$4 -> 2034 | AP11: =Tijd!AP$4 -> 2035 | AQ11: =Tijd!AQ$4 -> 2036 | AR11: =Tijd!AR$4 -> 2037 | AS11: =Tijd!AS$4 -> 2038 | AT11: =Tijd!AT$4 -> 2039 | AU11: =Tijd!AU$4 -> 2040 | AV11: =Tijd!AV$4 -> 2041 | AW11: =Tijd!AW$4 -> 2042 | AX11: =Tijd!AX$4 -> 2043 | AY11: =Tijd!AY$4 -> 2044 | AZ11: =Tijd!AZ$4 -> 2045 | BA11: =Tijd!BA$4 -> 2046 | BB11: =Tijd!BB$4 -> 2047 | BC11: =Tijd!BC$4 -> 2048 | BD11: =Tijd!BD$4 -> 2049 | BE11: =Tijd!BE$4 -> 2050 | BF11: =Tijd!BF$4 -> 2051 | BG11: =Tijd!BG$4 -> 2052 | BH11: =Tijd!BH$4 -> 2053 | BI11: =Tijd!BI$4 -> 2054 | BJ11: =Tijd!BJ$4 -> 2055 | BK11: =Tijd!BK$4 -> 2056 | BL11: =Tijd!BL$4 -> 2057 | BM11: =Tijd!BM$4 -> 2058 | BN11: =Tijd!BN$4 -> 2059 | BO11: =Tijd!BO$4 -> 2060 | BP11: =Tijd!BP$4 -> 2061 | BQ11: =Tijd!BQ$4 -> 2062 | BR11: =Tijd!BR$4 -> 2063 | BS11: =Tijd!BS$4 -> 2064 | BT11: =Tijd!BT$4 -> 2065 | BU11: =Tijd!BU$4 -> 2066 | BV11: =Tijd!BV$4 -> 2067 | BW11: =Tijd!BW$4 -> 2068 | BX11: =Tijd!BX$4 -> 2069 | BY11: =Tijd!BY$4 -> 2070 | BZ11: =Tijd!BZ$4 -> 2071 | CA11: =Tijd!CA$4 -> 2072 | CB11: =Tijd!CB$4 -> 2073 | CC11: =Tijd!CC$4 -> 2074 | CD11: =Tijd!CD$4 -> 2075 | CE11: =Tijd!CE$4 -> 2076 | CF11: =Tijd!CF$4 -> 2077 | CG11: =Tijd!CG$4 -> 2078 | CH11: =Tijd!CH$4 -> 2079 | CI11: =Tijd!CI$4 -> 2080 | CJ11: =Tijd!CJ$4 -> 2081 | CK11: =Tijd!CK$4 -> 2082 | CL11: =Tijd!CL$4 -> 2083
E12: Start-GAW (excl. bijzonderheden)
E13: =Indexatie!E$347 -> Investeringsbedrag boekjaar Start-GAW | F13: =Indexatie!F$347 -> 0 | G13: =Indexatie!G$347 -> 0 | H13: =Indexatie!H$347 -> € | I13: =Indexatie!I$347 -> 44840596.49 | J13: =Indexatie!J$347 -> 0 | K13: =Indexatie!K$347 -> 0 | L13: =Indexatie!L$347 -> 0 | M13: =Indexatie!M$347 -> 44840596.49 | N13: =Indexatie!N$347 -> 0 | O13: =Indexatie!O$347 -> 0 | P13: =Indexatie!P$347 -> 0 | Q13: =Indexatie!Q$347 -> 0 | R13: =Indexatie!R$347 -> 0 | S13: =Indexatie!S$347 -> 0 | T13: =Indexatie!T$347 -> 0 | U13: =Indexatie!U$347 -> 0 | V13: =Indexatie!V$347 -> 0 | W13: =Indexatie!W$347 -> 0 | X13: =Indexatie!X$347 -> 0 | Y13: =Indexatie!Y$347 -> 0 | Z13: =Indexatie!Z$347 -> 0 | AA13: =Indexatie!AA$347 -> 0 | AB13: =Indexatie!AB$347 -> 0 | AC13: =Indexatie!AC$347 -> 0 | AD13: =Indexatie!AD$347 -> 0 | AE13: =Indexatie!AE$347 -> 0 | AF13: =Indexatie!AF$347 -> 0 | AG13: =Indexatie!AG$347 -> 0 | AH13: =Indexatie!AH$347 -> 0 | AI13: =Indexatie!AI$347 -> 0 | AJ13: =Indexatie!AJ$347 -> 0 | AK13: =Indexatie!AK$347 -> 0 | AL13: =Indexatie!AL$347 -> 0 | AM13: =Indexatie!AM$347 -> 0 | AN13: =Indexatie!AN$347 -> 0 | AO13: =Indexatie!AO$347 -> 0 | AP13: =Indexatie!AP$347 -> 0 | AQ13: =Indexatie!AQ$347 -> 0 | AR13: =Indexatie!AR$347 -> 0 | AS13: =Indexatie!AS$347 -> 0 | AT13: =Indexatie!AT$347 -> 0 | AU13: =Indexatie!AU$347 -> 0 | AV13: =Indexatie!AV$347 -> 0 | AW13: =Indexatie!AW$347 -> 0 | AX13: =Indexatie!AX$347 -> 0 | AY13: =Indexatie!AY$347 -> 0 | AZ13: =Indexatie!AZ$347 -> 0 | BA13: =Indexatie!BA$347 -> 0 | BB13: =Indexatie!BB$347 -> 0 | BC13: =Indexatie!BC$347 -> 0 | BD13: =Indexatie!BD$347 -> 0 | BE13: =Indexatie!BE$347 -> 0 | BF13: =Indexatie!BF$347 -> 0 | BG13: =Indexatie!BG$347 -> 0 | BH13: =Indexatie!BH$347 -> 0 | BI13: =Indexatie!BI$347 -> 0 | BJ13: =Indexatie!BJ$347 -> 0 | BK13: =Indexatie!BK$347 -> 0 | BL13: =Indexatie!BL$347 -> 0 | BM13: =Indexatie!BM$347 -> 0 | BN13: =Indexatie!BN$347 -> 0 | BO13: =Indexatie!BO$347 -> 0 | BP13: =Indexatie!BP$347 -> 0 | BQ13: =Indexatie!BQ$347 -> 0 | BR13: =Indexatie!BR$347 -> 0 | BS13: =Indexatie!BS$347 -> 0 | BT13: =Indexatie!BT$347 -> 0 | BU13: =Indexatie!BU$347 -> 0 | BV13: =Indexatie!BV$347 -> 0 | BW13: =Indexatie!BW$347 -> 0 | BX13: =Indexatie!BX$347 -> 0 | BY13: =Indexatie!BY$347 -> 0 | BZ13: =Indexatie!BZ$347 -> 0 | CA13: =Indexatie!CA$347 -> 0 | CB13: =Indexatie!CB$347 -> 0 | CC13: =Indexatie!CC$347 -> 0 | CD13: =Indexatie!CD$347 -> 0 | CE13: =Indexatie!CE$347 -> 0 | CF13: =Indexatie!CF$347 -> 0 | CG13: =Indexatie!CG$347 -> 0 | CH13: =Indexatie!CH$347 -> 0 | CI13: =Indexatie!CI$347 -> 0 | CJ13: =Indexatie!CJ$347 -> 0 | CK13: =Indexatie!CK$347 -> 0 | CL13: =Indexatie!CL$347 -> 0
E14: =Indexatie!E$283 -> Afschrijvingen Start-GAW | F14: =Indexatie!F$283 -> 0 | G14: =Indexatie!G$283 -> 0 | H14: =Indexatie!H$283 -> € | I14: =Indexatie!I$283 -> 50111537.35 | J14: =Indexatie!J$283 -> 0 | K14: =Indexatie!K$283 -> 0 | L14: =Indexatie!L$283 -> 0 | M14: =Indexatie!M$283 -> 994858.3037 | N14: =Indexatie!N$283 -> 1008786.32 | O14: =Indexatie!O$283 -> 1019882.969 | P14: =Indexatie!P$283 -> 1052519.224 | Q14: =Indexatie!Q$283 -> 1055676.782 | R14: =Indexatie!R$283 -> 1071511.934 | S14: =Indexatie!S$283 -> 1099371.244 | T14: =Indexatie!T$283 -> 1124656.783 | U14: =Indexatie!U$283 -> 1124656.783 | V14: =Indexatie!V$283 -> 1124656.783 | W14: =Indexatie!W$283 -> 1124656.783 | X14: =Indexatie!X$283 -> 1124656.783 | Y14: =Indexatie!Y$283 -> 1124656.783 | Z14: =Indexatie!Z$283 -> 1124656.783 | AA14: =Indexatie!AA$283 -> 1124656.783 | AB14: =Indexatie!AB$283 -> 1124656.783 | AC14: =Indexatie!AC$283 -> 1124656.783 | AD14: =Indexatie!AD$283 -> 1124656.783 | AE14: =Indexatie!AE$283 -> 1124656.783 | AF14: =Indexatie!AF$283 -> 1124656.783 | AG14: =Indexatie!AG$283 -> 1124656.783 | AH14: =Indexatie!AH$283 -> 1124656.783 | AI14: =Indexatie!AI$283 -> 1124656.783 | AJ14: =Indexatie!AJ$283 -> 1124656.783 | AK14: =Indexatie!AK$283 -> 1124656.783 | AL14: =Indexatie!AL$283 -> 1124656.783 | AM14: =Indexatie!AM$283 -> 1124656.783 | AN14: =Indexatie!AN$283 -> 1124656.783 | AO14: =Indexatie!AO$283 -> 1124656.783 | AP14: =Indexatie!AP$283 -> 1124656.783 | AQ14: =Indexatie!AQ$283 -> 1124656.783 | AR14: =Indexatie!AR$283 -> 1124656.783 | AS14: =Indexatie!AS$283 -> 1124656.783 | AT14: =Indexatie!AT$283 -> 1124656.783 | AU14: =Indexatie!AU$283 -> 1124656.783 | AV14: =Indexatie!AV$283 -> 1124656.783 | AW14: =Indexatie!AW$283 -> 1124656.783 | AX14: =Indexatie!AX$283 -> 1124656.783 | AY14: =Indexatie!AY$283 -> 1124656.783 | AZ14: =Indexatie!AZ$283 -> 1124656.783 | BA14: =Indexatie!BA$283 -> 1124656.783 | BB14: =Indexatie!BB$283 -> 1124656.783 | BC14: =Indexatie!BC$283 -> 1124656.783 | BD14: =Indexatie!BD$283 -> 1124656.783 | BE14: =Indexatie!BE$283 -> 1124656.783 | BF14: =Indexatie!BF$283 -> 71972.82181 | BG14: =Indexatie!BG$283 -> 0 | BH14: =Indexatie!BH$283 -> 0 | BI14: =Indexatie!BI$283 -> 0 | BJ14: =Indexatie!BJ$283 -> 0 | BK14: =Indexatie!BK$283 -> 0 | BL14: =Indexatie!BL$283 -> 0 | BM14: =Indexatie!BM$283 -> 0 | BN14: =Indexatie!BN$283 -> 0 | BO14: =Indexatie!BO$283 -> 0 | BP14: =Indexatie!BP$283 -> 0 | BQ14: =Indexatie!BQ$283 -> 0 | BR14: =Indexatie!BR$283 -> 0 | BS14: =Indexatie!BS$283 -> 0 | BT14: =Indexatie!BT$283 -> 0 | BU14: =Indexatie!BU$283 -> 0 | BV14: =Indexatie!BV$283 -> 0 | BW14: =Indexatie!BW$283 -> 0 | BX14: =Indexatie!BX$283 -> 0 | BY14: =Indexatie!BY$283 -> 0 | BZ14: =Indexatie!BZ$283 -> 0 | CA14: =Indexatie!CA$283 -> 0 | CB14: =Indexatie!CB$283 -> 0 | CC14: =Indexatie!CC$283 -> 0 | CD14: =Indexatie!CD$283 -> 0 | CE14: =Indexatie!CE$283 -> 0 | CF14: =Indexatie!CF$283 -> 0 | CG14: =Indexatie!CG$283 -> 0 | CH14: =Indexatie!CH$283 -> 0 | CI14: =Indexatie!CI$283 -> 0 | CJ14: =Indexatie!CJ$283 -> 0 | CK14: =Indexatie!CK$283 -> 0 | CL14: =Indexatie!CL$283 -> 0
E15: =Indexatie!E$243 -> Boekwaarde Start-GAW | F15: =Indexatie!F$243 -> 0 | G15: =Indexatie!G$243 -> 0 | H15: =Indexatie!H$243 -> € | I15: =Indexatie!I$243 -> 1093185914 | J15: =Indexatie!J$243 -> 0 | K15: =Indexatie!K$243 -> 0 | L15: =Indexatie!L$243 -> 0 | M15: =Indexatie!M$243 -> 43845738.18 | N15: =Indexatie!N$243 -> 43450792.2 | O15: =Indexatie!O$243 -> 42908867.94 | P15: =Indexatie!P$243 -> 43229432.49 | Q15: =Indexatie!Q$243 -> 42303444.01 | R15: =Indexatie!R$243 -> 41866483.73 | S15: =Indexatie!S$243 -> 41855641.07 | T15: =Indexatie!T$243 -> 41693664.03 | U15: =Indexatie!U$243 -> 40569007.25 | V15: =Indexatie!V$243 -> 39444350.46 | W15: =Indexatie!W$243 -> 38319693.68 | X15: =Indexatie!X$243 -> 37195036.9 | Y15: =Indexatie!Y$243 -> 36070380.12 | Z15: =Indexatie!Z$243 -> 34945723.33 | AA15: =Indexatie!AA$243 -> 33821066.55 | AB15: =Indexatie!AB$243 -> 32696409.77 | AC15: =Indexatie!AC$243 -> 31571752.98 | AD15: =Indexatie!AD$243 -> 30447096.2 | AE15: =Indexatie!AE$243 -> 29322439.42 | AF15: =Indexatie!AF$243 -> 28197782.64 | AG15: =Indexatie!AG$243 -> 27073125.85 | AH15: =Indexatie!AH$243 -> 25948469.07 | AI15: =Indexatie!AI$243 -> 24823812.29 | AJ15: =Indexatie!AJ$243 -> 23699155.5 | AK15: =Indexatie!AK$243 -> 22574498.72 | AL15: =Indexatie!AL$243 -> 21449841.94 | AM15: =Indexatie!AM$243 -> 20325185.16 | AN15: =Indexatie!AN$243 -> 19200528.37 | AO15: =Indexatie!AO$243 -> 18075871.59 | AP15: =Indexatie!AP$243 -> 16951214.81 | AQ15: =Indexatie!AQ$243 -> 15826558.03 | AR15: =Indexatie!AR$243 -> 14701901.24 | AS15: =Indexatie!AS$243 -> 13577244.46 | AT15: =Indexatie!AT$243 -> 12452587.68 | AU15: =Indexatie!AU$243 -> 11327930.89 | AV15: =Indexatie!AV$243 -> 10203274.11 | AW15: =Indexatie!AW$243 -> 9078617.329 | AX15: =Indexatie!AX$243 -> 7953960.546 | AY15: =Indexatie!AY$243 -> 6829303.763 | AZ15: =Indexatie!AZ$243 -> 5704646.98 | BA15: =Indexatie!BA$243 -> 4579990.198 | BB15: =Indexatie!BB$243 -> 3455333.415 | BC15: =Indexatie!BC$243 -> 2330676.632 | BD15: =Indexatie!BD$243 -> 1206019.849 | BE15: =Indexatie!BE$243 -> 81363.0664 | BF15: =Indexatie!BF$243 -> -1.717125997e-09 | BG15: =Indexatie!BG$243 -> -1.717125997e-09 | BH15: =Indexatie!BH$243 -> -1.717125997e-09 | BI15: =Indexatie!BI$243 -> -1.717125997e-09 | BJ15: =Indexatie!BJ$243 -> -1.717125997e-09 | BK15: =Indexatie!BK$243 -> -1.717125997e-09 | BL15: =Indexatie!BL$243 -> -1.717125997e-09 | BM15: =Indexatie!BM$243 -> -1.717125997e-09 | BN15: =Indexatie!BN$243 -> -1.717125997e-09 | BO15: =Indexatie!BO$243 -> -1.717125997e-09 | BP15: =Indexatie!BP$243 -> -1.717125997e-09 | BQ15: =Indexatie!BQ$243 -> -1.717125997e-09 | BR15: =Indexatie!BR$243 -> -1.717125997e-09 | BS15: =Indexatie!BS$243 -> -1.717125997e-09 | BT15: =Indexatie!BT$243 -> -1.717125997e-09 | BU15: =Indexatie!BU$243 -> -1.717125997e-09 | BV15: =Indexatie!BV$243 -> -1.717125997e-09 | BW15: =Indexatie!BW$243 -> -1.717125997e-09 | BX15: =Indexatie!BX$243 -> -1.717125997e-09 | BY15: =Indexatie!BY$243 -> -1.717125997e-09 | BZ15: =Indexatie!BZ$243 -> -1.717125997e-09 | CA15: =Indexatie!CA$243 -> -1.717125997e-09 | CB15: =Indexatie!CB$243 -> -1.717125997e-09 | CC15: =Indexatie!CC$243 -> -1.717125997e-09 | CD15: =Indexatie!CD$243 -> -1.717125997e-09 | CE15: =Indexatie!CE$243 -> -1.717125997e-09 | CF15: =Indexatie!CF$243 -> -1.717125997e-09 | CG15: =Indexatie!CG$243 -> -1.717125997e-09 | CH15: =Indexatie!CH$243 -> -1.717125997e-09 | CI15: =Indexatie!CI$243 -> -1.717125997e-09 | CJ15: =Indexatie!CJ$243 -> -1.717125997e-09 | CK15: =Indexatie!CK$243 -> -1.717125997e-09 | CL15: =Indexatie!CL$243 -> -1.717125997e-09
E17: Nieuwe investeringen (excl. bijzonderheden)
E18: =Indexatie!E$336 -> Investeringsbedrag boekjaar | F18: =Indexatie!F$336 -> 0 | G18: =Indexatie!G$336 -> 0 | H18: =Indexatie!H$336 -> € | I18: =Indexatie!I$336 -> 943968.77 | J18: =Indexatie!J$336 -> 0 | K18: =Indexatie!K$336 -> 0 | L18: =Indexatie!L$336 -> 0 | M18: =Indexatie!M$336 -> 41211.77 | N18: =Indexatie!N$336 -> 34500 | O18: =Indexatie!O$336 -> 134200 | P18: =Indexatie!P$336 -> 529000 | Q18: =Indexatie!Q$336 -> 50000 | R18: =Indexatie!R$336 -> 101597 | S18: =Indexatie!S$336 -> 53460 | T18: =Indexatie!T$336 -> 0 | U18: =Indexatie!U$336 -> 0 | V18: =Indexatie!V$336 -> 0 | W18: =Indexatie!W$336 -> 0 | X18: =Indexatie!X$336 -> 0 | Y18: =Indexatie!Y$336 -> 0 | Z18: =Indexatie!Z$336 -> 0 | AA18: =Indexatie!AA$336 -> 0 | AB18: =Indexatie!AB$336 -> 0 | AC18: =Indexatie!AC$336 -> 0 | AD18: =Indexatie!AD$336 -> 0 | AE18: =Indexatie!AE$336 -> 0 | AF18: =Indexatie!AF$336 -> 0 | AG18: =Indexatie!AG$336 -> 0 | AH18: =Indexatie!AH$336 -> 0 | AI18: =Indexatie!AI$336 -> 0 | AJ18: =Indexatie!AJ$336 -> 0 | AK18: =Indexatie!AK$336 -> 0 | AL18: =Indexatie!AL$336 -> 0 | AM18: =Indexatie!AM$336 -> 0 | AN18: =Indexatie!AN$336 -> 0 | AO18: =Indexatie!AO$336 -> 0 | AP18: =Indexatie!AP$336 -> 0 | AQ18: =Indexatie!AQ$336 -> 0 | AR18: =Indexatie!AR$336 -> 0 | AS18: =Indexatie!AS$336 -> 0 | AT18: =Indexatie!AT$336 -> 0 | AU18: =Indexatie!AU$336 -> 0 | AV18: =Indexatie!AV$336 -> 0 | AW18: =Indexatie!AW$336 -> 0 | AX18: =Indexatie!AX$336 -> 0 | AY18: =Indexatie!AY$336 -> 0 | AZ18: =Indexatie!AZ$336 -> 0 | BA18: =Indexatie!BA$336 -> 0 | BB18: =Indexatie!BB$336 -> 0 | BC18: =Indexatie!BC$336 -> 0 | BD18: =Indexatie!BD$336 -> 0 | BE18: =Indexatie!BE$336 -> 0 | BF18: =Indexatie!BF$336 -> 0 | BG18: =Indexatie!BG$336 -> 0 | BH18: =Indexatie!BH$336 -> 0 | BI18: =Indexatie!BI$336 -> 0 | BJ18: =Indexatie!BJ$336 -> 0 | BK18: =Indexatie!BK$336 -> 0 | BL18: =Indexatie!BL$336 -> 0 | BM18: =Indexatie!BM$336 -> 0 | BN18: =Indexatie!BN$336 -> 0 | BO18: =Indexatie!BO$336 -> 0 | BP18: =Indexatie!BP$336 -> 0 | BQ18: =Indexatie!BQ$336 -> 0 | BR18: =Indexatie!BR$336 -> 0 | BS18: =Indexatie!BS$336 -> 0 | BT18: =Indexatie!BT$336 -> 0 | BU18: =Indexatie!BU$336 -> 0 | BV18: =Indexatie!BV$336 -> 0 | BW18: =Indexatie!BW$336 -> 0 | BX18: =Indexatie!BX$336 -> 0 | BY18: =Indexatie!BY$336 -> 0 | BZ18: =Indexatie!BZ$336 -> 0 | CA18: =Indexatie!CA$336 -> 0 | CB18: =Indexatie!CB$336 -> 0 | CC18: =Indexatie!CC$336 -> 0 | CD18: =Indexatie!CD$336 -> 0 | CE18: =Indexatie!CE$336 -> 0 | CF18: =Indexatie!CF$336 -> 0 | CG18: =Indexatie!CG$336 -> 0 | CH18: =Indexatie!CH$336 -> 0 | CI18: =Indexatie!CI$336 -> 0 | CJ18: =Indexatie!CJ$336 -> 0 | CK18: =Indexatie!CK$336 -> 0 | CL18: =Indexatie!CL$336 -> 0
E19: =Indexatie!E$299 -> Afschrijvingen | F19: =Indexatie!F$299 -> 0 | G19: =Indexatie!G$299 -> 0 | H19: =Indexatie!H$299 -> € | I19: =Indexatie!I$299 -> 984761.2154 | J19: =Indexatie!J$299 -> 0 | K19: =Indexatie!K$299 -> 0 | L19: =Indexatie!L$299 -> 0 | M19: =Indexatie!M$299 -> 4121.177 | N19: =Indexatie!N$299 -> 11807.74696 | O19: =Indexatie!O$299 -> 28178.30945 | P19: =Indexatie!P$299 -> 72236.28444 | Q19: =Indexatie!Q$299 -> 105665.7069 | R19: =Indexatie!R$299 -> 115446.8115 | S19: =Indexatie!S$299 -> 124516.7401 | T19: =Indexatie!T$299 -> 114367.9428 | U19: =Indexatie!U$299 -> 79902.4634 | V19: =Indexatie!V$299 -> 56829.71316 | W19: =Indexatie!W$299 -> 45076.73459 | X19: =Indexatie!X$299 -> 31783.25715 | Y19: =Indexatie!Y$299 -> 27641.82831 | Z19: =Indexatie!Z$299 -> 17500.035 | AA19: =Indexatie!AA$299 -> 6763.145752 | AB19: =Indexatie!AB$299 -> 5390.219088 | AC19: =Indexatie!AC$299 -> 3970.678406 | AD19: =Indexatie!AD$299 -> 3284.859206 | AE19: =Indexatie!AE$299 -> 3284.859206 | AF19: =Indexatie!AF$299 -> 3284.859206 | AG19: =Indexatie!AG$299 -> 3284.859206 | AH19: =Indexatie!AH$299 -> 3284.859206 | AI19: =Indexatie!AI$299 -> 3284.859206 | AJ19: =Indexatie!AJ$299 -> 3284.859206 | AK19: =Indexatie!AK$299 -> 3284.859206 | AL19: =Indexatie!AL$299 -> 3284.859206 | AM19: =Indexatie!AM$299 -> 3284.859206 | AN19: =Indexatie!AN$299 -> 3284.859206 | AO19: =Indexatie!AO$299 -> 3284.859206 | AP19: =Indexatie!AP$299 -> 3284.859206 | AQ19: =Indexatie!AQ$299 -> 3284.859206 | AR19: =Indexatie!AR$299 -> 3284.859206 | AS19: =Indexatie!AS$299 -> 3284.859206 | AT19: =Indexatie!AT$299 -> 3284.859206 | AU19: =Indexatie!AU$299 -> 3284.859206 | AV19: =Indexatie!AV$299 -> 3284.859206 | AW19: =Indexatie!AW$299 -> 3284.859206 | AX19: =Indexatie!AX$299 -> 3284.859206 | AY19: =Indexatie!AY$299 -> 3284.859206 | AZ19: =Indexatie!AZ$299 -> 3284.859206 | BA19: =Indexatie!BA$299 -> 3284.859206 | BB19: =Indexatie!BB$299 -> 3284.859206 | BC19: =Indexatie!BC$299 -> 3284.859206 | BD19: =Indexatie!BD$299 -> 3284.859206 | BE19: =Indexatie!BE$299 -> 3284.859206 | BF19: =Indexatie!BF$299 -> 3070.909091 | BG19: =Indexatie!BG$299 -> 3070.909091 | BH19: =Indexatie!BH$299 -> 3070.909091 | BI19: =Indexatie!BI$299 -> 3070.909091 | BJ19: =Indexatie!BJ$299 -> 3070.909091 | BK19: =Indexatie!BK$299 -> 3070.909091 | BL19: =Indexatie!BL$299 -> 3070.909091 | BM19: =Indexatie!BM$299 -> 3070.909091 | BN19: =Indexatie!BN$299 -> 3070.909091 | BO19: =Indexatie!BO$299 -> 3070.909091 | BP19: =Indexatie!BP$299 -> 3070.909091 | BQ19: =Indexatie!BQ$299 -> 3070.909091 | BR19: =Indexatie!BR$299 -> 3008.181818 | BS19: =Indexatie!BS$299 -> 1600 | BT19: =Indexatie!BT$299 -> 127.2727273 | BU19: =Indexatie!BU$299 -> 0 | BV19: =Indexatie!BV$299 -> 0 | BW19: =Indexatie!BW$299 -> 0 | BX19: =Indexatie!BX$299 -> 0 | BY19: =Indexatie!BY$299 -> 0 | BZ19: =Indexatie!BZ$299 -> 0 | CA19: =Indexatie!CA$299 -> 0 | CB19: =Indexatie!CB$299 -> 0 | CC19: =Indexatie!CC$299 -> 0 | CD19: =Indexatie!CD$299 -> 0 | CE19: =Indexatie!CE$299 -> 0 | CF19: =Indexatie!CF$299 -> 0 | CG19: =Indexatie!CG$299 -> 0 | CH19: =Indexatie!CH$299 -> 0 | CI19: =Indexatie!CI$299 -> 0 | CJ19: =Indexatie!CJ$299 -> 0 | CK19: =Indexatie!CK$299 -> 0 | CL19: =Indexatie!CL$299 -> 0
E20: =Indexatie!E$259 -> Boekwaarde | F20: =Indexatie!F$259 -> 0 | G20: =Indexatie!G$259 -> 0 | H20: =Indexatie!H$259 -> € | I20: =Indexatie!I$259 -> 7491060.128 | J20: =Indexatie!J$259 -> 0 | K20: =Indexatie!K$259 -> 0 | L20: =Indexatie!L$259 -> 0 | M20: =Indexatie!M$259 -> 37090.593 | N20: =Indexatie!N$259 -> 60302.11435 | O20: =Indexatie!O$259 -> 166987.1282 | P20: =Indexatie!P$259 -> 629094.4318 | Q20: =Indexatie!Q$259 -> 575316.0082 | R20: =Indexatie!R$259 -> 570095.9368 | S20: =Indexatie!S$259 -> 513861.6911 | T20: =Indexatie!T$259 -> 411312.5672 | U20: =Indexatie!U$259 -> 331410.1038 | V20: =Indexatie!V$259 -> 274580.3907 | W20: =Indexatie!W$259 -> 229503.6561 | X20: =Indexatie!X$259 -> 197720.3989 | Y20: =Indexatie!Y$259 -> 170078.5706 | Z20: =Indexatie!Z$259 -> 152578.5356 | AA20: =Indexatie!AA$259 -> 145815.3899 | AB20: =Indexatie!AB$259 -> 140425.1708 | AC20: =Indexatie!AC$259 -> 136454.4924 | AD20: =Indexatie!AD$259 -> 133169.6332 | AE20: =Indexatie!AE$259 -> 129884.774 | AF20: =Indexatie!AF$259 -> 126599.9147 | AG20: =Indexatie!AG$259 -> 123315.0555 | AH20: =Indexatie!AH$259 -> 120030.1963 | AI20: =Indexatie!AI$259 -> 116745.3371 | AJ20: =Indexatie!AJ$259 -> 113460.4779 | AK20: =Indexatie!AK$259 -> 110175.6187 | AL20: =Indexatie!AL$259 -> 106890.7595 | AM20: =Indexatie!AM$259 -> 103605.9003 | AN20: =Indexatie!AN$259 -> 100321.0411 | AO20: =Indexatie!AO$259 -> 97036.18189 | AP20: =Indexatie!AP$259 -> 93751.32269 | AQ20: =Indexatie!AQ$259 -> 90466.46348 | AR20: =Indexatie!AR$259 -> 87181.60427 | AS20: =Indexatie!AS$259 -> 83896.74507 | AT20: =Indexatie!AT$259 -> 80611.88586 | AU20: =Indexatie!AU$259 -> 77327.02666 | AV20: =Indexatie!AV$259 -> 74042.16745 | AW20: =Indexatie!AW$259 -> 70757.30824 | AX20: =Indexatie!AX$259 -> 67472.44904 | AY20: =Indexatie!AY$259 -> 64187.58983 | AZ20: =Indexatie!AZ$259 -> 60902.73063 | BA20: =Indexatie!BA$259 -> 57617.87142 | BB20: =Indexatie!BB$259 -> 54333.01221 | BC20: =Indexatie!BC$259 -> 51048.15301 | BD20: =Indexatie!BD$259 -> 47763.2938 | BE20: =Indexatie!BE$259 -> 44478.4346 | BF20: =Indexatie!BF$259 -> 38515.45455 | BG20: =Indexatie!BG$259 -> 35444.54545 | BH20: =Indexatie!BH$259 -> 32373.63636 | BI20: =Indexatie!BI$259 -> 29302.72727 | BJ20: =Indexatie!BJ$259 -> 26231.81818 | BK20: =Indexatie!BK$259 -> 23160.90909 | BL20: =Indexatie!BL$259 -> 20090 | BM20: =Indexatie!BM$259 -> 17019.09091 | BN20: =Indexatie!BN$259 -> 13948.18182 | BO20: =Indexatie!BO$259 -> 10877.27273 | BP20: =Indexatie!BP$259 -> 7806.363636 | BQ20: =Indexatie!BQ$259 -> 4735.454545 | BR20: =Indexatie!BR$259 -> 1727.272727 | BS20: =Indexatie!BS$259 -> 127.2727273 | BT20: =Indexatie!BT$259 -> 0 | BU20: =Indexatie!BU$259 -> 0 | BV20: =Indexatie!BV$259 -> 0 | BW20: =Indexatie!BW$259 -> 0 | BX20: =Indexatie!BX$259 -> 0 | BY20: =Indexatie!BY$259 -> 0 | BZ20: =Indexatie!BZ$259 -> 0 | CA20: =Indexatie!CA$259 -> 0 | CB20: =Indexatie!CB$259 -> 0 | CC20: =Indexatie!CC$259 -> 0 | CD20: =Indexatie!CD$259 -> 0 | CE20: =Indexatie!CE$259 -> 0 | CF20: =Indexatie!CF$259 -> 0 | CG20: =Indexatie!CG$259 -> 0 | CH20: =Indexatie!CH$259 -> 0 | CI20: =Indexatie!CI$259 -> 0 | CJ20: =Indexatie!CJ$259 -> 0 | CK20: =Indexatie!CK$259 -> 0 | CL20: =Indexatie!CL$259 -> 0
E22: Bijzonderheid: precario
E23: =GAW!E$95 -> Investeringsbedrag boekjaar precario | F23: =GAW!F$95 -> 0 | G23: =GAW!G$95 -> 0 | H23: =GAW!H$95 -> € | I23: =GAW!I$95 -> 0 | J23: =GAW!J$95 -> 0 | K23: =GAW!K$95 -> 0 | L23: =GAW!L$95 -> 0 | M23: =GAW!M$95 -> 0 | N23: =GAW!N$95 -> 0 | O23: =GAW!O$95 -> 0 | P23: =GAW!P$95 -> 0 | Q23: =GAW!Q$95 -> 0 | R23: =GAW!R$95 -> 0 | S23: =GAW!S$95 -> 0 | T23: =GAW!T$95 -> 0 | U23: =GAW!U$95 -> 0 | V23: =GAW!V$95 -> 0 | W23: =GAW!W$95 -> 0 | X23: =GAW!X$95 -> 0 | Y23: =GAW!Y$95 -> 0 | Z23: =GAW!Z$95 -> 0 | AA23: =GAW!AA$95 -> 0 | AB23: =GAW!AB$95 -> 0 | AC23: =GAW!AC$95 -> 0 | AD23: =GAW!AD$95 -> 0 | AE23: =GAW!AE$95 -> 0 | AF23: =GAW!AF$95 -> 0 | AG23: =GAW!AG$95 -> 0 | AH23: =GAW!AH$95 -> 0 | AI23: =GAW!AI$95 -> 0 | AJ23: =GAW!AJ$95 -> 0 | AK23: =GAW!AK$95 -> 0 | AL23: =GAW!AL$95 -> 0 | AM23: =GAW!AM$95 -> 0 | AN23: =GAW!AN$95 -> 0 | AO23: =GAW!AO$95 -> 0 | AP23: =GAW!AP$95 -> 0 | AQ23: =GAW!AQ$95 -> 0 | AR23: =GAW!AR$95 -> 0 | AS23: =GAW!AS$95 -> 0 | AT23: =GAW!AT$95 -> 0 | AU23: =GAW!AU$95 -> 0 | AV23: =GAW!AV$95 -> 0 | AW23: =GAW!AW$95 -> 0 | AX23: =GAW!AX$95 -> 0 | AY23: =GAW!AY$95 -> 0 | AZ23: =GAW!AZ$95 -> 0 | BA23: =GAW!BA$95 -> 0 | BB23: =GAW!BB$95 -> 0 | BC23: =GAW!BC$95 -> 0 | BD23: =GAW!BD$95 -> 0 | BE23: =GAW!BE$95 -> 0 | BF23: =GAW!BF$95 -> 0 | BG23: =GAW!BG$95 -> 0 | BH23: =GAW!BH$95 -> 0 | BI23: =GAW!BI$95 -> 0 | BJ23: =GAW!BJ$95 -> 0 | BK23: =GAW!BK$95 -> 0 | BL23: =GAW!BL$95 -> 0 | BM23: =GAW!BM$95 -> 0 | BN23: =GAW!BN$95 -> 0 | BO23: =GAW!BO$95 -> 0 | BP23: =GAW!BP$95 -> 0 | BQ23: =GAW!BQ$95 -> 0 | BR23: =GAW!BR$95 -> 0 | BS23: =GAW!BS$95 -> 0 | BT23: =GAW!BT$95 -> 0 | BU23: =GAW!BU$95 -> 0 | BV23: =GAW!BV$95 -> 0 | BW23: =GAW!BW$95 -> 0 | BX23: =GAW!BX$95 -> 0 | BY23: =GAW!BY$95 -> 0 | BZ23: =GAW!BZ$95 -> 0 | CA23: =GAW!CA$95 -> 0 | CB23: =GAW!CB$95 -> 0 | CC23: =GAW!CC$95 -> 0 | CD23: =GAW!CD$95 -> 0 | CE23: =GAW!CE$95 -> 0 | CF23: =GAW!CF$95 -> 0 | CG23: =GAW!CG$95 -> 0 | CH23: =GAW!CH$95 -> 0 | CI23: =GAW!CI$95 -> 0 | CJ23: =GAW!CJ$95 -> 0 | CK23: =GAW!CK$95 -> 0 | CL23: =GAW!CL$95 -> 0
E24: =Indexatie!E$27 -> Afschrijvingen precario | F24: =Indexatie!F$27 -> 0 | G24: =Indexatie!G$27 -> 0 | H24: =Indexatie!H$27 -> € | I24: =Indexatie!I$27 -> 0 | J24: =Indexatie!J$27 -> 0 | K24: =Indexatie!K$27 -> 0 | L24: =Indexatie!L$27 -> 0 | M24: =Indexatie!M$27 -> 0 | N24: =Indexatie!N$27 -> 0 | O24: =Indexatie!O$27 -> 0 | P24: =Indexatie!P$27 -> 0 | Q24: =Indexatie!Q$27 -> 0 | R24: =Indexatie!R$27 -> 0 | S24: =Indexatie!S$27 -> 0 | T24: =Indexatie!T$27 -> 0 | U24: =Indexatie!U$27 -> 0 | V24: =Indexatie!V$27 -> 0 | W24: =Indexatie!W$27 -> 0 | X24: =Indexatie!X$27 -> 0 | Y24: =Indexatie!Y$27 -> 0 | Z24: =Indexatie!Z$27 -> 0 | AA24: =Indexatie!AA$27 -> 0 | AB24: =Indexatie!AB$27 -> 0 | AC24: =Indexatie!AC$27 -> 0 | AD24: =Indexatie!AD$27 -> 0 | AE24: =Indexatie!AE$27 -> 0 | AF24: =Indexatie!AF$27 -> 0 | AG24: =Indexatie!AG$27 -> 0 | AH24: =Indexatie!AH$27 -> 0 | AI24: =Indexatie!AI$27 -> 0 | AJ24: =Indexatie!AJ$27 -> 0 | AK24: =Indexatie!AK$27 -> 0 | AL24: =Indexatie!AL$27 -> 0 | AM24: =Indexatie!AM$27 -> 0 | AN24: =Indexatie!AN$27 -> 0 | AO24: =Indexatie!AO$27 -> 0 | AP24: =Indexatie!AP$27 -> 0 | AQ24: =Indexatie!AQ$27 -> 0 | AR24: =Indexatie!AR$27 -> 0 | AS24: =Indexatie!AS$27 -> 0 | AT24: =Indexatie!AT$27 -> 0 | AU24: =Indexatie!AU$27 -> 0 | AV24: =Indexatie!AV$27 -> 0 | AW24: =Indexatie!AW$27 -> 0 | AX24: =Indexatie!AX$27 -> 0 | AY24: =Indexatie!AY$27 -> 0 | AZ24: =Indexatie!AZ$27 -> 0 | BA24: =Indexatie!BA$27 -> 0 | BB24: =Indexatie!BB$27 -> 0 | BC24: =Indexatie!BC$27 -> 0 | BD24: =Indexatie!BD$27 -> 0 | BE24: =Indexatie!BE$27 -> 0 | BF24: =Indexatie!BF$27 -> 0 | BG24: =Indexatie!BG$27 -> 0 | BH24: =Indexatie!BH$27 -> 0 | BI24: =Indexatie!BI$27 -> 0 | BJ24: =Indexatie!BJ$27 -> 0 | BK24: =Indexatie!BK$27 -> 0 | BL24: =Indexatie!BL$27 -> 0 | BM24: =Indexatie!BM$27 -> 0 | BN24: =Indexatie!BN$27 -> 0 | BO24: =Indexatie!BO$27 -> 0 | BP24: =Indexatie!BP$27 -> 0 | BQ24: =Indexatie!BQ$27 -> 0 | BR24: =Indexatie!BR$27 -> 0 | BS24: =Indexatie!BS$27 -> 0 | BT24: =Indexatie!BT$27 -> 0 | BU24: =Indexatie!BU$27 -> 0 | BV24: =Indexatie!BV$27 -> 0 | BW24: =Indexatie!BW$27 -> 0 | BX24: =Indexatie!BX$27 -> 0 | BY24: =Indexatie!BY$27 -> 0 | BZ24: =Indexatie!BZ$27 -> 0 | CA24: =Indexatie!CA$27 -> 0 | CB24: =Indexatie!CB$27 -> 0 | CC24: =Indexatie!CC$27 -> 0 | CD24: =Indexatie!CD$27 -> 0 | CE24: =Indexatie!CE$27 -> 0 | CF24: =Indexatie!CF$27 -> 0 | CG24: =Indexatie!CG$27 -> 0 | CH24: =Indexatie!CH$27 -> 0 | CI24: =Indexatie!CI$27 -> 0 | CJ24: =Indexatie!CJ$27 -> 0 | CK24: =Indexatie!CK$27 -> 0 | CL24: =Indexatie!CL$27 -> 0
E25: =Indexatie!E$23 -> Boekwaarde precario | F25: =Indexatie!F$23 -> 0 | G25: =Indexatie!G$23 -> 0 | H25: =Indexatie!H$23 -> € | I25: =Indexatie!I$23 -> 0 | J25: =Indexatie!J$23 -> 0 | K25: =Indexatie!K$23 -> 0 | L25: =Indexatie!L$23 -> 0 | M25: =Indexatie!M$23 -> 0 | N25: =Indexatie!N$23 -> 0 | O25: =Indexatie!O$23 -> 0 | P25: =Indexatie!P$23 -> 0 | Q25: =Indexatie!Q$23 -> 0 | R25: =Indexatie!R$23 -> 0 | S25: =Indexatie!S$23 -> 0 | T25: =Indexatie!T$23 -> 0 | U25: =Indexatie!U$23 -> 0 | V25: =Indexatie!V$23 -> 0 | W25: =Indexatie!W$23 -> 0 | X25: =Indexatie!X$23 -> 0 | Y25: =Indexatie!Y$23 -> 0 | Z25: =Indexatie!Z$23 -> 0 | AA25: =Indexatie!AA$23 -> 0 | AB25: =Indexatie!AB$23 -> 0 | AC25: =Indexatie!AC$23 -> 0 | AD25: =Indexatie!AD$23 -> 0 | AE25: =Indexatie!AE$23 -> 0 | AF25: =Indexatie!AF$23 -> 0 | AG25: =Indexatie!AG$23 -> 0 | AH25: =Indexatie!AH$23 -> 0 | AI25: =Indexatie!AI$23 -> 0 | AJ25: =Indexatie!AJ$23 -> 0 | AK25: =Indexatie!AK$23 -> 0 | AL25: =Indexatie!AL$23 -> 0 | AM25: =Indexatie!AM$23 -> 0 | AN25: =Indexatie!AN$23 -> 0 | AO25: =Indexatie!AO$23 -> 0 | AP25: =Indexatie!AP$23 -> 0 | AQ25: =Indexatie!AQ$23 -> 0 | AR25: =Indexatie!AR$23 -> 0 | AS25: =Indexatie!AS$23 -> 0 | AT25: =Indexatie!AT$23 -> 0 | AU25: =Indexatie!AU$23 -> 0 | AV25: =Indexatie!AV$23 -> 0 | AW25: =Indexatie!AW$23 -> 0 | AX25: =Indexatie!AX$23 -> 0 | AY25: =Indexatie!AY$23 -> 0 | AZ25: =Indexatie!AZ$23 -> 0 | BA25: =Indexatie!BA$23 -> 0 | BB25: =Indexatie!BB$23 -> 0 | BC25: =Indexatie!BC$23 -> 0 | BD25: =Indexatie!BD$23 -> 0 | BE25: =Indexatie!BE$23 -> 0 | BF25: =Indexatie!BF$23 -> 0 | BG25: =Indexatie!BG$23 -> 0 | BH25: =Indexatie!BH$23 -> 0 | BI25: =Indexatie!BI$23 -> 0 | BJ25: =Indexatie!BJ$23 -> 0 | BK25: =Indexatie!BK$23 -> 0 | BL25: =Indexatie!BL$23 -> 0 | BM25: =Indexatie!BM$23 -> 0 | BN25: =Indexatie!BN$23 -> 0 | BO25: =Indexatie!BO$23 -> 0 | BP25: =Indexatie!BP$23 -> 0 | BQ25: =Indexatie!BQ$23 -> 0 | BR25: =Indexatie!BR$23 -> 0 | BS25: =Indexatie!BS$23 -> 0 | BT25: =Indexatie!BT$23 -> 0 | BU25: =Indexatie!BU$23 -> 0 | BV25: =Indexatie!BV$23 -> 0 | BW25: =Indexatie!BW$23 -> 0 | BX25: =Indexatie!BX$23 -> 0 | BY25: =Indexatie!BY$23 -> 0 | BZ25: =Indexatie!BZ$23 -> 0 | CA25: =Indexatie!CA$23 -> 0 | CB25: =Indexatie!CB$23 -> 0 | CC25: =Indexatie!CC$23 -> 0 | CD25: =Indexatie!CD$23 -> 0 | CE25: =Indexatie!CE$23 -> 0 | CF25: =Indexatie!CF$23 -> 0 | CG25: =Indexatie!CG$23 -> 0 | CH25: =Indexatie!CH$23 -> 0 | CI25: =Indexatie!CI$23 -> 0 | CJ25: =Indexatie!CJ$23 -> 0 | CK25: =Indexatie!CK$23 -> 0 | CL25: =Indexatie!CL$23 -> 0
E27: Bijzonderheid: UI's
E28: ='UI & Overgenomen Netten'!E$40 -> Investeringsbedrag UI's | F28: ='UI & Overgenomen Netten'!F$40 -> 0 | G28: ='UI & Overgenomen Netten'!G$40 -> 0 | H28: ='UI & Overgenomen Netten'!H$40 -> € | I28: ='UI & Overgenomen Netten'!I$40 -> 0 | J28: ='UI & Overgenomen Netten'!J$40 -> 0 | K28: ='UI & Overgenomen Netten'!K$40 -> 0 | L28: ='UI & Overgenomen Netten'!L$40 -> 0 | M28: ='UI & Overgenomen Netten'!M$40 -> 0 | N28: ='UI & Overgenomen Netten'!N$40 -> 0 | O28: ='UI & Overgenomen Netten'!O$40 -> 0 | P28: ='UI & Overgenomen Netten'!P$40 -> 0 | Q28: ='UI & Overgenomen Netten'!Q$40 -> 0 | R28: ='UI & Overgenomen Netten'!R$40 -> 0 | S28: ='UI & Overgenomen Netten'!S$40 -> 0 | T28: ='UI & Overgenomen Netten'!T$40 -> 0 | U28: ='UI & Overgenomen Netten'!U$40 -> 0 | V28: ='UI & Overgenomen Netten'!V$40 -> 0 | W28: ='UI & Overgenomen Netten'!W$40 -> 0 | X28: ='UI & Overgenomen Netten'!X$40 -> 0 | Y28: ='UI & Overgenomen Netten'!Y$40 -> 0 | Z28: ='UI & Overgenomen Netten'!Z$40 -> 0 | AA28: ='UI & Overgenomen Netten'!AA$40 -> 0 | AB28: ='UI & Overgenomen Netten'!AB$40 -> 0 | AC28: ='UI & Overgenomen Netten'!AC$40 -> 0 | AD28: ='UI & Overgenomen Netten'!AD$40 -> 0 | AE28: ='UI & Overgenomen Netten'!AE$40 -> 0 | AF28: ='UI & Overgenomen Netten'!AF$40 -> 0 | AG28: ='UI & Overgenomen Netten'!AG$40 -> 0 | AH28: ='UI & Overgenomen Netten'!AH$40 -> 0 | AI28: ='UI & Overgenomen Netten'!AI$40 -> 0 | AJ28: ='UI & Overgenomen Netten'!AJ$40 -> 0 | AK28: ='UI & Overgenomen Netten'!AK$40 -> 0 | AL28: ='UI & Overgenomen Netten'!AL$40 -> 0 | AM28: ='UI & Overgenomen Netten'!AM$40 -> 0 | AN28: ='UI & Overgenomen Netten'!AN$40 -> 0 | AO28: ='UI & Overgenomen Netten'!AO$40 -> 0 | AP28: ='UI & Overgenomen Netten'!AP$40 -> 0 | AQ28: ='UI & Overgenomen Netten'!AQ$40 -> 0 | AR28: ='UI & Overgenomen Netten'!AR$40 -> 0 | AS28: ='UI & Overgenomen Netten'!AS$40 -> 0 | AT28: ='UI & Overgenomen Netten'!AT$40 -> 0 | AU28: ='UI & Overgenomen Netten'!AU$40 -> 0 | AV28: ='UI & Overgenomen Netten'!AV$40 -> 0 | AW28: ='UI & Overgenomen Netten'!AW$40 -> 0 | AX28: ='UI & Overgenomen Netten'!AX$40 -> 0 | AY28: ='UI & Overgenomen Netten'!AY$40 -> 0 | AZ28: ='UI & Overgenomen Netten'!AZ$40 -> 0 | BA28: ='UI & Overgenomen Netten'!BA$40 -> 0 | BB28: ='UI & Overgenomen Netten'!BB$40 -> 0 | BC28: ='UI & Overgenomen Netten'!BC$40 -> 0 | BD28: ='UI & Overgenomen Netten'!BD$40 -> 0 | BE28: ='UI & Overgenomen Netten'!BE$40 -> 0 | BF28: ='UI & Overgenomen Netten'!BF$40 -> 0 | BG28: ='UI & Overgenomen Netten'!BG$40 -> 0 | BH28: ='UI & Overgenomen Netten'!BH$40 -> 0 | BI28: ='UI & Overgenomen Netten'!BI$40 -> 0 | BJ28: ='UI & Overgenomen Netten'!BJ$40 -> 0 | BK28: ='UI & Overgenomen Netten'!BK$40 -> 0 | BL28: ='UI & Overgenomen Netten'!BL$40 -> 0 | BM28: ='UI & Overgenomen Netten'!BM$40 -> 0 | BN28: ='UI & Overgenomen Netten'!BN$40 -> 0 | BO28: ='UI & Overgenomen Netten'!BO$40 -> 0 | BP28: ='UI & Overgenomen Netten'!BP$40 -> 0 | BQ28: ='UI & Overgenomen Netten'!BQ$40 -> 0 | BR28: ='UI & Overgenomen Netten'!BR$40 -> 0 | BS28: ='UI & Overgenomen Netten'!BS$40 -> 0 | BT28: ='UI & Overgenomen Netten'!BT$40 -> 0 | BU28: ='UI & Overgenomen Netten'!BU$40 -> 0 | BV28: ='UI & Overgenomen Netten'!BV$40 -> 0 | BW28: ='UI & Overgenomen Netten'!BW$40 -> 0 | BX28: ='UI & Overgenomen Netten'!BX$40 -> 0 | BY28: ='UI & Overgenomen Netten'!BY$40 -> 0 | BZ28: ='UI & Overgenomen Netten'!BZ$40 -> 0 | CA28: ='UI & Overgenomen Netten'!CA$40 -> 0 | CB28: ='UI & Overgenomen Netten'!CB$40 -> 0 | CC28: ='UI & Overgenomen Netten'!CC$40 -> 0 | CD28: ='UI & Overgenomen Netten'!CD$40 -> 0 | CE28: ='UI & Overgenomen Netten'!CE$40 -> 0 | CF28: ='UI & Overgenomen Netten'!CF$40 -> 0 | CG28: ='UI & Overgenomen Netten'!CG$40 -> 0 | CH28: ='UI & Overgenomen Netten'!CH$40 -> 0 | CI28: ='UI & Overgenomen Netten'!CI$40 -> 0 | CJ28: ='UI & Overgenomen Netten'!CJ$40 -> 0 | CK28: ='UI & Overgenomen Netten'!CK$40 -> 0 | CL28: ='UI & Overgenomen Netten'!CL$40 -> 0
E29: ='UI & Overgenomen Netten'!E$30 -> Afschrijvingen UI's | F29: ='UI & Overgenomen Netten'!F$30 -> 0 | G29: ='UI & Overgenomen Netten'!G$30 -> 0 | H29: ='UI & Overgenomen Netten'!H$30 -> € | I29: ='UI & Overgenomen Netten'!I$30 -> 0 | J29: ='UI & Overgenomen Netten'!J$30 -> 0 | K29: ='UI & Overgenomen Netten'!K$30 -> 0 | L29: ='UI & Overgenomen Netten'!L$30 -> 0 | M29: ='UI & Overgenomen Netten'!M$30 -> 0 | N29: ='UI & Overgenomen Netten'!N$30 -> 0 | O29: ='UI & Overgenomen Netten'!O$30 -> 0 | P29: ='UI & Overgenomen Netten'!P$30 -> 0 | Q29: ='UI & Overgenomen Netten'!Q$30 -> 0 | R29: ='UI & Overgenomen Netten'!R$30 -> 0 | S29: ='UI & Overgenomen Netten'!S$30 -> 0 | T29: ='UI & Overgenomen Netten'!T$30 -> 0 | U29: ='UI & Overgenomen Netten'!U$30 -> 0 | V29: ='UI & Overgenomen Netten'!V$30 -> 0 | W29: ='UI & Overgenomen Netten'!W$30 -> 0 | X29: ='UI & Overgenomen Netten'!X$30 -> 0 | Y29: ='UI & Overgenomen Netten'!Y$30 -> 0 | Z29: ='UI & Overgenomen Netten'!Z$30 -> 0 | AA29: ='UI & Overgenomen Netten'!AA$30 -> 0 | AB29: ='UI & Overgenomen Netten'!AB$30 -> 0 | AC29: ='UI & Overgenomen Netten'!AC$30 -> 0 | AD29: ='UI & Overgenomen Netten'!AD$30 -> 0 | AE29: ='UI & Overgenomen Netten'!AE$30 -> 0 | AF29: ='UI & Overgenomen Netten'!AF$30 -> 0 | AG29: ='UI & Overgenomen Netten'!AG$30 -> 0 | AH29: ='UI & Overgenomen Netten'!AH$30 -> 0 | AI29: ='UI & Overgenomen Netten'!AI$30 -> 0 | AJ29: ='UI & Overgenomen Netten'!AJ$30 -> 0 | AK29: ='UI & Overgenomen Netten'!AK$30 -> 0 | AL29: ='UI & Overgenomen Netten'!AL$30 -> 0 | AM29: ='UI & Overgenomen Netten'!AM$30 -> 0 | AN29: ='UI & Overgenomen Netten'!AN$30 -> 0 | AO29: ='UI & Overgenomen Netten'!AO$30 -> 0 | AP29: ='UI & Overgenomen Netten'!AP$30 -> 0 | AQ29: ='UI & Overgenomen Netten'!AQ$30 -> 0 | AR29: ='UI & Overgenomen Netten'!AR$30 -> 0 | AS29: ='UI & Overgenomen Netten'!AS$30 -> 0 | AT29: ='UI & Overgenomen Netten'!AT$30 -> 0 | AU29: ='UI & Overgenomen Netten'!AU$30 -> 0 | AV29: ='UI & Overgenomen Netten'!AV$30 -> 0 | AW29: ='UI & Overgenomen Netten'!AW$30 -> 0 | AX29: ='UI & Overgenomen Netten'!AX$30 -> 0 | AY29: ='UI & Overgenomen Netten'!AY$30 -> 0 | AZ29: ='UI & Overgenomen Netten'!AZ$30 -> 0 | BA29: ='UI & Overgenomen Netten'!BA$30 -> 0 | BB29: ='UI & Overgenomen Netten'!BB$30 -> 0 | BC29: ='UI & Overgenomen Netten'!BC$30 -> 0 | BD29: ='UI & Overgenomen Netten'!BD$30 -> 0 | BE29: ='UI & Overgenomen Netten'!BE$30 -> 0 | BF29: ='UI & Overgenomen Netten'!BF$30 -> 0 | BG29: ='UI & Overgenomen Netten'!BG$30 -> 0 | BH29: ='UI & Overgenomen Netten'!BH$30 -> 0 | BI29: ='UI & Overgenomen Netten'!BI$30 -> 0 | BJ29: ='UI & Overgenomen Netten'!BJ$30 -> 0 | BK29: ='UI & Overgenomen Netten'!BK$30 -> 0 | BL29: ='UI & Overgenomen Netten'!BL$30 -> 0 | BM29: ='UI & Overgenomen Netten'!BM$30 -> 0 | BN29: ='UI & Overgenomen Netten'!BN$30 -> 0 | BO29: ='UI & Overgenomen Netten'!BO$30 -> 0 | BP29: ='UI & Overgenomen Netten'!BP$30 -> 0 | BQ29: ='UI & Overgenomen Netten'!BQ$30 -> 0 | BR29: ='UI & Overgenomen Netten'!BR$30 -> 0 | BS29: ='UI & Overgenomen Netten'!BS$30 -> 0 | BT29: ='UI & Overgenomen Netten'!BT$30 -> 0 | BU29: ='UI & Overgenomen Netten'!BU$30 -> 0 | BV29: ='UI & Overgenomen Netten'!BV$30 -> 0 | BW29: ='UI & Overgenomen Netten'!BW$30 -> 0 | BX29: ='UI & Overgenomen Netten'!BX$30 -> 0 | BY29: ='UI & Overgenomen Netten'!BY$30 -> 0 | BZ29: ='UI & Overgenomen Netten'!BZ$30 -> 0 | CA29: ='UI & Overgenomen Netten'!CA$30 -> 0 | CB29: ='UI & Overgenomen Netten'!CB$30 -> 0 | CC29: ='UI & Overgenomen Netten'!CC$30 -> 0 | CD29: ='UI & Overgenomen Netten'!CD$30 -> 0 | CE29: ='UI & Overgenomen Netten'!CE$30 -> 0 | CF29: ='UI & Overgenomen Netten'!CF$30 -> 0 | CG29: ='UI & Overgenomen Netten'!CG$30 -> 0 | CH29: ='UI & Overgenomen Netten'!CH$30 -> 0 | CI29: ='UI & Overgenomen Netten'!CI$30 -> 0 | CJ29: ='UI & Overgenomen Netten'!CJ$30 -> 0 | CK29: ='UI & Overgenomen Netten'!CK$30 -> 0 | CL29: ='UI & Overgenomen Netten'!CL$30 -> 0
E30: ='UI & Overgenomen Netten'!E$20 -> Boekwaarde UI's | F30: ='UI & Overgenomen Netten'!F$20 -> 0 | G30: ='UI & Overgenomen Netten'!G$20 -> 0 | H30: ='UI & Overgenomen Netten'!H$20 -> € | I30: ='UI & Overgenomen Netten'!I$20 -> 0 | J30: ='UI & Overgenomen Netten'!J$20 -> 0 | K30: ='UI & Overgenomen Netten'!K$20 -> 0 | L30: ='UI & Overgenomen Netten'!L$20 -> 0 | M30: ='UI & Overgenomen Netten'!M$20 -> 0 | N30: ='UI & Overgenomen Netten'!N$20 -> 0 | O30: ='UI & Overgenomen Netten'!O$20 -> 0 | P30: ='UI & Overgenomen Netten'!P$20 -> 0 | Q30: ='UI & Overgenomen Netten'!Q$20 -> 0 | R30: ='UI & Overgenomen Netten'!R$20 -> 0 | S30: ='UI & Overgenomen Netten'!S$20 -> 0 | T30: ='UI & Overgenomen Netten'!T$20 -> 0 | U30: ='UI & Overgenomen Netten'!U$20 -> 0 | V30: ='UI & Overgenomen Netten'!V$20 -> 0 | W30: ='UI & Overgenomen Netten'!W$20 -> 0 | X30: ='UI & Overgenomen Netten'!X$20 -> 0 | Y30: ='UI & Overgenomen Netten'!Y$20 -> 0 | Z30: ='UI & Overgenomen Netten'!Z$20 -> 0 | AA30: ='UI & Overgenomen Netten'!AA$20 -> 0 | AB30: ='UI & Overgenomen Netten'!AB$20 -> 0 | AC30: ='UI & Overgenomen Netten'!AC$20 -> 0 | AD30: ='UI & Overgenomen Netten'!AD$20 -> 0 | AE30: ='UI & Overgenomen Netten'!AE$20 -> 0 | AF30: ='UI & Overgenomen Netten'!AF$20 -> 0 | AG30: ='UI & Overgenomen Netten'!AG$20 -> 0 | AH30: ='UI & Overgenomen Netten'!AH$20 -> 0 | AI30: ='UI & Overgenomen Netten'!AI$20 -> 0 | AJ30: ='UI & Overgenomen Netten'!AJ$20 -> 0 | AK30: ='UI & Overgenomen Netten'!AK$20 -> 0 | AL30: ='UI & Overgenomen Netten'!AL$20 -> 0 | AM30: ='UI & Overgenomen Netten'!AM$20 -> 0 | AN30: ='UI & Overgenomen Netten'!AN$20 -> 0 | AO30: ='UI & Overgenomen Netten'!AO$20 -> 0 | AP30: ='UI & Overgenomen Netten'!AP$20 -> 0 | AQ30: ='UI & Overgenomen Netten'!AQ$20 -> 0 | AR30: ='UI & Overgenomen Netten'!AR$20 -> 0 | AS30: ='UI & Overgenomen Netten'!AS$20 -> 0 | AT30: ='UI & Overgenomen Netten'!AT$20 -> 0 | AU30: ='UI & Overgenomen Netten'!AU$20 -> 0 | AV30: ='UI & Overgenomen Netten'!AV$20 -> 0 | AW30: ='UI & Overgenomen Netten'!AW$20 -> 0 | AX30: ='UI & Overgenomen Netten'!AX$20 -> 0 | AY30: ='UI & Overgenomen Netten'!AY$20 -> 0 | AZ30: ='UI & Overgenomen Netten'!AZ$20 -> 0 | BA30: ='UI & Overgenomen Netten'!BA$20 -> 0 | BB30: ='UI & Overgenomen Netten'!BB$20 -> 0 | BC30: ='UI & Overgenomen Netten'!BC$20 -> 0 | BD30: ='UI & Overgenomen Netten'!BD$20 -> 0 | BE30: ='UI & Overgenomen Netten'!BE$20 -> 0 | BF30: ='UI & Overgenomen Netten'!BF$20 -> 0 | BG30: ='UI & Overgenomen Netten'!BG$20 -> 0 | BH30: ='UI & Overgenomen Netten'!BH$20 -> 0 | BI30: ='UI & Overgenomen Netten'!BI$20 -> 0 | BJ30: ='UI & Overgenomen Netten'!BJ$20 -> 0 | BK30: ='UI & Overgenomen Netten'!BK$20 -> 0 | BL30: ='UI & Overgenomen Netten'!BL$20 -> 0 | BM30: ='UI & Overgenomen Netten'!BM$20 -> 0 | BN30: ='UI & Overgenomen Netten'!BN$20 -> 0 | BO30: ='UI & Overgenomen Netten'!BO$20 -> 0 | BP30: ='UI & Overgenomen Netten'!BP$20 -> 0 | BQ30: ='UI & Overgenomen Netten'!BQ$20 -> 0 | BR30: ='UI & Overgenomen Netten'!BR$20 -> 0 | BS30: ='UI & Overgenomen Netten'!BS$20 -> 0 | BT30: ='UI & Overgenomen Netten'!BT$20 -> 0 | BU30: ='UI & Overgenomen Netten'!BU$20 -> 0 | BV30: ='UI & Overgenomen Netten'!BV$20 -> 0 | BW30: ='UI & Overgenomen Netten'!BW$20 -> 0 | BX30: ='UI & Overgenomen Netten'!BX$20 -> 0 | BY30: ='UI & Overgenomen Netten'!BY$20 -> 0 | BZ30: ='UI & Overgenomen Netten'!BZ$20 -> 0 | CA30: ='UI & Overgenomen Netten'!CA$20 -> 0 | CB30: ='UI & Overgenomen Netten'!CB$20 -> 0 | CC30: ='UI & Overgenomen Netten'!CC$20 -> 0 | CD30: ='UI & Overgenomen Netten'!CD$20 -> 0 | CE30: ='UI & Overgenomen Netten'!CE$20 -> 0 | CF30: ='UI & Overgenomen Netten'!CF$20 -> 0 | CG30: ='UI & Overgenomen Netten'!CG$20 -> 0 | CH30: ='UI & Overgenomen Netten'!CH$20 -> 0 | CI30: ='UI & Overgenomen Netten'!CI$20 -> 0 | CJ30: ='UI & Overgenomen Netten'!CJ$20 -> 0 | CK30: ='UI & Overgenomen Netten'!CK$20 -> 0 | CL30: ='UI & Overgenomen Netten'!CL$20 -> 0
E32: Bijzonderheid: overgenomen netten
E33: ='UI & Overgenomen Netten'!E$45 -> Investeringsbedrag overgenomen netten | F33: ='UI & Overgenomen Netten'!F$45 -> 0 | G33: ='UI & Overgenomen Netten'!G$45 -> 0 | H33: ='UI & Overgenomen Netten'!H$45 -> € | I33: ='UI & Overgenomen Netten'!I$45 -> 0 | J33: ='UI & Overgenomen Netten'!J$45 -> 0 | K33: ='UI & Overgenomen Netten'!K$45 -> 0 | L33: ='UI & Overgenomen Netten'!L$45 -> 0 | M33: ='UI & Overgenomen Netten'!M$45 -> 0 | N33: ='UI & Overgenomen Netten'!N$45 -> 0 | O33: ='UI & Overgenomen Netten'!O$45 -> 0 | P33: ='UI & Overgenomen Netten'!P$45 -> 0 | Q33: ='UI & Overgenomen Netten'!Q$45 -> 0 | R33: ='UI & Overgenomen Netten'!R$45 -> 0 | S33: ='UI & Overgenomen Netten'!S$45 -> 0 | T33: ='UI & Overgenomen Netten'!T$45 -> 0 | U33: ='UI & Overgenomen Netten'!U$45 -> 0 | V33: ='UI & Overgenomen Netten'!V$45 -> 0 | W33: ='UI & Overgenomen Netten'!W$45 -> 0 | X33: ='UI & Overgenomen Netten'!X$45 -> 0 | Y33: ='UI & Overgenomen Netten'!Y$45 -> 0 | Z33: ='UI & Overgenomen Netten'!Z$45 -> 0 | AA33: ='UI & Overgenomen Netten'!AA$45 -> 0 | AB33: ='UI & Overgenomen Netten'!AB$45 -> 0 | AC33: ='UI & Overgenomen Netten'!AC$45 -> 0 | AD33: ='UI & Overgenomen Netten'!AD$45 -> 0 | AE33: ='UI & Overgenomen Netten'!AE$45 -> 0 | AF33: ='UI & Overgenomen Netten'!AF$45 -> 0 | AG33: ='UI & Overgenomen Netten'!AG$45 -> 0 | AH33: ='UI & Overgenomen Netten'!AH$45 -> 0 | AI33: ='UI & Overgenomen Netten'!AI$45 -> 0 | AJ33: ='UI & Overgenomen Netten'!AJ$45 -> 0 | AK33: ='UI & Overgenomen Netten'!AK$45 -> 0 | AL33: ='UI & Overgenomen Netten'!AL$45 -> 0 | AM33: ='UI & Overgenomen Netten'!AM$45 -> 0 | AN33: ='UI & Overgenomen Netten'!AN$45 -> 0 | AO33: ='UI & Overgenomen Netten'!AO$45 -> 0 | AP33: ='UI & Overgenomen Netten'!AP$45 -> 0 | AQ33: ='UI & Overgenomen Netten'!AQ$45 -> 0 | AR33: ='UI & Overgenomen Netten'!AR$45 -> 0 | AS33: ='UI & Overgenomen Netten'!AS$45 -> 0 | AT33: ='UI & Overgenomen Netten'!AT$45 -> 0 | AU33: ='UI & Overgenomen Netten'!AU$45 -> 0 | AV33: ='UI & Overgenomen Netten'!AV$45 -> 0 | AW33: ='UI & Overgenomen Netten'!AW$45 -> 0 | AX33: ='UI & Overgenomen Netten'!AX$45 -> 0 | AY33: ='UI & Overgenomen Netten'!AY$45 -> 0 | AZ33: ='UI & Overgenomen Netten'!AZ$45 -> 0 | BA33: ='UI & Overgenomen Netten'!BA$45 -> 0 | BB33: ='UI & Overgenomen Netten'!BB$45 -> 0 | BC33: ='UI & Overgenomen Netten'!BC$45 -> 0 | BD33: ='UI & Overgenomen Netten'!BD$45 -> 0 | BE33: ='UI & Overgenomen Netten'!BE$45 -> 0 | BF33: ='UI & Overgenomen Netten'!BF$45 -> 0 | BG33: ='UI & Overgenomen Netten'!BG$45 -> 0 | BH33: ='UI & Overgenomen Netten'!BH$45 -> 0 | BI33: ='UI & Overgenomen Netten'!BI$45 -> 0 | BJ33: ='UI & Overgenomen Netten'!BJ$45 -> 0 | BK33: ='UI & Overgenomen Netten'!BK$45 -> 0 | BL33: ='UI & Overgenomen Netten'!BL$45 -> 0 | BM33: ='UI & Overgenomen Netten'!BM$45 -> 0 | BN33: ='UI & Overgenomen Netten'!BN$45 -> 0 | BO33: ='UI & Overgenomen Netten'!BO$45 -> 0 | BP33: ='UI & Overgenomen Netten'!BP$45 -> 0 | BQ33: ='UI & Overgenomen Netten'!BQ$45 -> 0 | BR33: ='UI & Overgenomen Netten'!BR$45 -> 0 | BS33: ='UI & Overgenomen Netten'!BS$45 -> 0 | BT33: ='UI & Overgenomen Netten'!BT$45 -> 0 | BU33: ='UI & Overgenomen Netten'!BU$45 -> 0 | BV33: ='UI & Overgenomen Netten'!BV$45 -> 0 | BW33: ='UI & Overgenomen Netten'!BW$45 -> 0 | BX33: ='UI & Overgenomen Netten'!BX$45 -> 0 | BY33: ='UI & Overgenomen Netten'!BY$45 -> 0 | BZ33: ='UI & Overgenomen Netten'!BZ$45 -> 0 | CA33: ='UI & Overgenomen Netten'!CA$45 -> 0 | CB33: ='UI & Overgenomen Netten'!CB$45 -> 0 | CC33: ='UI & Overgenomen Netten'!CC$45 -> 0 | CD33: ='UI & Overgenomen Netten'!CD$45 -> 0 | CE33: ='UI & Overgenomen Netten'!CE$45 -> 0 | CF33: ='UI & Overgenomen Netten'!CF$45 -> 0 | CG33: ='UI & Overgenomen Netten'!CG$45 -> 0 | CH33: ='UI & Overgenomen Netten'!CH$45 -> 0 | CI33: ='UI & Overgenomen Netten'!CI$45 -> 0 | CJ33: ='UI & Overgenomen Netten'!CJ$45 -> 0 | CK33: ='UI & Overgenomen Netten'!CK$45 -> 0 | CL33: ='UI & Overgenomen Netten'!CL$45 -> 0
E34: ='UI & Overgenomen Netten'!E$35 -> Afschrijvingen overgenomen netten | F34: ='UI & Overgenomen Netten'!F$35 -> 0 | G34: ='UI & Overgenomen Netten'!G$35 -> 0 | H34: ='UI & Overgenomen Netten'!H$35 -> € | I34: ='UI & Overgenomen Netten'!I$35 -> 0 | J34: ='UI & Overgenomen Netten'!J$35 -> 0 | K34: ='UI & Overgenomen Netten'!K$35 -> 0 | L34: ='UI & Overgenomen Netten'!L$35 -> 0 | M34: ='UI & Overgenomen Netten'!M$35 -> 0 | N34: ='UI & Overgenomen Netten'!N$35 -> 0 | O34: ='UI & Overgenomen Netten'!O$35 -> 0 | P34: ='UI & Overgenomen Netten'!P$35 -> 0 | Q34: ='UI & Overgenomen Netten'!Q$35 -> 0 | R34: ='UI & Overgenomen Netten'!R$35 -> 0 | S34: ='UI & Overgenomen Netten'!S$35 -> 0 | T34: ='UI & Overgenomen Netten'!T$35 -> 0 | U34: ='UI & Overgenomen Netten'!U$35 -> 0 | V34: ='UI & Overgenomen Netten'!V$35 -> 0 | W34: ='UI & Overgenomen Netten'!W$35 -> 0 | X34: ='UI & Overgenomen Netten'!X$35 -> 0 | Y34: ='UI & Overgenomen Netten'!Y$35 -> 0 | Z34: ='UI & Overgenomen Netten'!Z$35 -> 0 | AA34: ='UI & Overgenomen Netten'!AA$35 -> 0 | AB34: ='UI & Overgenomen Netten'!AB$35 -> 0 | AC34: ='UI & Overgenomen Netten'!AC$35 -> 0 | AD34: ='UI & Overgenomen Netten'!AD$35 -> 0 | AE34: ='UI & Overgenomen Netten'!AE$35 -> 0 | AF34: ='UI & Overgenomen Netten'!AF$35 -> 0 | AG34: ='UI & Overgenomen Netten'!AG$35 -> 0 | AH34: ='UI & Overgenomen Netten'!AH$35 -> 0 | AI34: ='UI & Overgenomen Netten'!AI$35 -> 0 | AJ34: ='UI & Overgenomen Netten'!AJ$35 -> 0 | AK34: ='UI & Overgenomen Netten'!AK$35 -> 0 | AL34: ='UI & Overgenomen Netten'!AL$35 -> 0 | AM34: ='UI & Overgenomen Netten'!AM$35 -> 0 | AN34: ='UI & Overgenomen Netten'!AN$35 -> 0 | AO34: ='UI & Overgenomen Netten'!AO$35 -> 0 | AP34: ='UI & Overgenomen Netten'!AP$35 -> 0 | AQ34: ='UI & Overgenomen Netten'!AQ$35 -> 0 | AR34: ='UI & Overgenomen Netten'!AR$35 -> 0 | AS34: ='UI & Overgenomen Netten'!AS$35 -> 0 | AT34: ='UI & Overgenomen Netten'!AT$35 -> 0 | AU34: ='UI & Overgenomen Netten'!AU$35 -> 0 | AV34: ='UI & Overgenomen Netten'!AV$35 -> 0 | AW34: ='UI & Overgenomen Netten'!AW$35 -> 0 | AX34: ='UI & Overgenomen Netten'!AX$35 -> 0 | AY34: ='UI & Overgenomen Netten'!AY$35 -> 0 | AZ34: ='UI & Overgenomen Netten'!AZ$35 -> 0 | BA34: ='UI & Overgenomen Netten'!BA$35 -> 0 | BB34: ='UI & Overgenomen Netten'!BB$35 -> 0 | BC34: ='UI & Overgenomen Netten'!BC$35 -> 0 | BD34: ='UI & Overgenomen Netten'!BD$35 -> 0 | BE34: ='UI & Overgenomen Netten'!BE$35 -> 0 | BF34: ='UI & Overgenomen Netten'!BF$35 -> 0 | BG34: ='UI & Overgenomen Netten'!BG$35 -> 0 | BH34: ='UI & Overgenomen Netten'!BH$35 -> 0 | BI34: ='UI & Overgenomen Netten'!BI$35 -> 0 | BJ34: ='UI & Overgenomen Netten'!BJ$35 -> 0 | BK34: ='UI & Overgenomen Netten'!BK$35 -> 0 | BL34: ='UI & Overgenomen Netten'!BL$35 -> 0 | BM34: ='UI & Overgenomen Netten'!BM$35 -> 0 | BN34: ='UI & Overgenomen Netten'!BN$35 -> 0 | BO34: ='UI & Overgenomen Netten'!BO$35 -> 0 | BP34: ='UI & Overgenomen Netten'!BP$35 -> 0 | BQ34: ='UI & Overgenomen Netten'!BQ$35 -> 0 | BR34: ='UI & Overgenomen Netten'!BR$35 -> 0 | BS34: ='UI & Overgenomen Netten'!BS$35 -> 0 | BT34: ='UI & Overgenomen Netten'!BT$35 -> 0 | BU34: ='UI & Overgenomen Netten'!BU$35 -> 0 | BV34: ='UI & Overgenomen Netten'!BV$35 -> 0 | BW34: ='UI & Overgenomen Netten'!BW$35 -> 0 | BX34: ='UI & Overgenomen Netten'!BX$35 -> 0 | BY34: ='UI & Overgenomen Netten'!BY$35 -> 0 | BZ34: ='UI & Overgenomen Netten'!BZ$35 -> 0 | CA34: ='UI & Overgenomen Netten'!CA$35 -> 0 | CB34: ='UI & Overgenomen Netten'!CB$35 -> 0 | CC34: ='UI & Overgenomen Netten'!CC$35 -> 0 | CD34: ='UI & Overgenomen Netten'!CD$35 -> 0 | CE34: ='UI & Overgenomen Netten'!CE$35 -> 0 | CF34: ='UI & Overgenomen Netten'!CF$35 -> 0 | CG34: ='UI & Overgenomen Netten'!CG$35 -> 0 | CH34: ='UI & Overgenomen Netten'!CH$35 -> 0 | CI34: ='UI & Overgenomen Netten'!CI$35 -> 0 | CJ34: ='UI & Overgenomen Netten'!CJ$35 -> 0 | CK34: ='UI & Overgenomen Netten'!CK$35 -> 0 | CL34: ='UI & Overgenomen Netten'!CL$35 -> 0
E35: ='UI & Overgenomen Netten'!E$25 -> Boekwaarde overgenomen netten | F35: ='UI & Overgenomen Netten'!F$25 -> 0 | G35: ='UI & Overgenomen Netten'!G$25 -> 0 | H35: ='UI & Overgenomen Netten'!H$25 -> € | I35: ='UI & Overgenomen Netten'!I$25 -> 0 | J35: ='UI & Overgenomen Netten'!J$25 -> 0 | K35: ='UI & Overgenomen Netten'!K$25 -> 0 | L35: ='UI & Overgenomen Netten'!L$25 -> 0 | M35: ='UI & Overgenomen Netten'!M$25 -> 0 | N35: ='UI & Overgenomen Netten'!N$25 -> 0 | O35: ='UI & Overgenomen Netten'!O$25 -> 0 | P35: ='UI & Overgenomen Netten'!P$25 -> 0 | Q35: ='UI & Overgenomen Netten'!Q$25 -> 0 | R35: ='UI & Overgenomen Netten'!R$25 -> 0 | S35: ='UI & Overgenomen Netten'!S$25 -> 0 | T35: ='UI & Overgenomen Netten'!T$25 -> 0 | U35: ='UI & Overgenomen Netten'!U$25 -> 0 | V35: ='UI & Overgenomen Netten'!V$25 -> 0 | W35: ='UI & Overgenomen Netten'!W$25 -> 0 | X35: ='UI & Overgenomen Netten'!X$25 -> 0 | Y35: ='UI & Overgenomen Netten'!Y$25 -> 0 | Z35: ='UI & Overgenomen Netten'!Z$25 -> 0 | AA35: ='UI & Overgenomen Netten'!AA$25 -> 0 | AB35: ='UI & Overgenomen Netten'!AB$25 -> 0 | AC35: ='UI & Overgenomen Netten'!AC$25 -> 0 | AD35: ='UI & Overgenomen Netten'!AD$25 -> 0 | AE35: ='UI & Overgenomen Netten'!AE$25 -> 0 | AF35: ='UI & Overgenomen Netten'!AF$25 -> 0 | AG35: ='UI & Overgenomen Netten'!AG$25 -> 0 | AH35: ='UI & Overgenomen Netten'!AH$25 -> 0 | AI35: ='UI & Overgenomen Netten'!AI$25 -> 0 | AJ35: ='UI & Overgenomen Netten'!AJ$25 -> 0 | AK35: ='UI & Overgenomen Netten'!AK$25 -> 0 | AL35: ='UI & Overgenomen Netten'!AL$25 -> 0 | AM35: ='UI & Overgenomen Netten'!AM$25 -> 0 | AN35: ='UI & Overgenomen Netten'!AN$25 -> 0 | AO35: ='UI & Overgenomen Netten'!AO$25 -> 0 | AP35: ='UI & Overgenomen Netten'!AP$25 -> 0 | AQ35: ='UI & Overgenomen Netten'!AQ$25 -> 0 | AR35: ='UI & Overgenomen Netten'!AR$25 -> 0 | AS35: ='UI & Overgenomen Netten'!AS$25 -> 0 | AT35: ='UI & Overgenomen Netten'!AT$25 -> 0 | AU35: ='UI & Overgenomen Netten'!AU$25 -> 0 | AV35: ='UI & Overgenomen Netten'!AV$25 -> 0 | AW35: ='UI & Overgenomen Netten'!AW$25 -> 0 | AX35: ='UI & Overgenomen Netten'!AX$25 -> 0 | AY35: ='UI & Overgenomen Netten'!AY$25 -> 0 | AZ35: ='UI & Overgenomen Netten'!AZ$25 -> 0 | BA35: ='UI & Overgenomen Netten'!BA$25 -> 0 | BB35: ='UI & Overgenomen Netten'!BB$25 -> 0 | BC35: ='UI & Overgenomen Netten'!BC$25 -> 0 | BD35: ='UI & Overgenomen Netten'!BD$25 -> 0 | BE35: ='UI & Overgenomen Netten'!BE$25 -> 0 | BF35: ='UI & Overgenomen Netten'!BF$25 -> 0 | BG35: ='UI & Overgenomen Netten'!BG$25 -> 0 | BH35: ='UI & Overgenomen Netten'!BH$25 -> 0 | BI35: ='UI & Overgenomen Netten'!BI$25 -> 0 | BJ35: ='UI & Overgenomen Netten'!BJ$25 -> 0 | BK35: ='UI & Overgenomen Netten'!BK$25 -> 0 | BL35: ='UI & Overgenomen Netten'!BL$25 -> 0 | BM35: ='UI & Overgenomen Netten'!BM$25 -> 0 | BN35: ='UI & Overgenomen Netten'!BN$25 -> 0 | BO35: ='UI & Overgenomen Netten'!BO$25 -> 0 | BP35: ='UI & Overgenomen Netten'!BP$25 -> 0 | BQ35: ='UI & Overgenomen Netten'!BQ$25 -> 0 | BR35: ='UI & Overgenomen Netten'!BR$25 -> 0 | BS35: ='UI & Overgenomen Netten'!BS$25 -> 0 | BT35: ='UI & Overgenomen Netten'!BT$25 -> 0 | BU35: ='UI & Overgenomen Netten'!BU$25 -> 0 | BV35: ='UI & Overgenomen Netten'!BV$25 -> 0 | BW35: ='UI & Overgenomen Netten'!BW$25 -> 0 | BX35: ='UI & Overgenomen Netten'!BX$25 -> 0 | BY35: ='UI & Overgenomen Netten'!BY$25 -> 0 | BZ35: ='UI & Overgenomen Netten'!BZ$25 -> 0 | CA35: ='UI & Overgenomen Netten'!CA$25 -> 0 | CB35: ='UI & Overgenomen Netten'!CB$25 -> 0 | CC35: ='UI & Overgenomen Netten'!CC$25 -> 0 | CD35: ='UI & Overgenomen Netten'!CD$25 -> 0 | CE35: ='UI & Overgenomen Netten'!CE$25 -> 0 | CF35: ='UI & Overgenomen Netten'!CF$25 -> 0 | CG35: ='UI & Overgenomen Netten'!CG$25 -> 0 | CH35: ='UI & Overgenomen Netten'!CH$25 -> 0 | CI35: ='UI & Overgenomen Netten'!CI$25 -> 0 | CJ35: ='UI & Overgenomen Netten'!CJ$25 -> 0 | CK35: ='UI & Overgenomen Netten'!CK$25 -> 0 | CL35: ='UI & Overgenomen Netten'!CL$25 -> 0
E37: Totalen
E38: Investeringsbedrag boekjaar | H38: € | K38: =SUM( K13, K18, K23, K28, K33 ) -> 0 | L38: =SUM( L13, L18, L23, L28, L33 ) -> 0 | M38: 44881808.26 | N38: 34500 | O38: 134200 | P38: 529000 | Q38: 50000 | R38: 101597 | S38: 53460 | T38: 0 | U38: 0 | V38: 0 | W38: 0 | X38: 0 | Y38: 0 | Z38: 0 | AA38: 0 | AB38: 0 | AC38: 0 | AD38: 0 | AE38: 0 | AF38: 0 | AG38: 0 | AH38: 0 | AI38: 0 | AJ38: 0 | AK38: 0 | AL38: 0 | AM38: 0 | AN38: 0 | AO38: 0 | AP38: 0 | AQ38: 0 | AR38: 0 | AS38: 0 | AT38: 0 | AU38: 0 | AV38: 0 | AW38: 0 | AX38: 0 | AY38: 0 | AZ38: 0 | BA38: 0 | BB38: 0 | BC38: 0 | BD38: 0 | BE38: 0 | BF38: 0 | BG38: 0 | BH38: 0 | BI38: 0 | BJ38: 0 | BK38: 0 | BL38: 0 | BM38: 0 | BN38: 0 | BO38: 0 | BP38: 0 | BQ38: 0 | BR38: 0 | BS38: 0 | BT38: 0 | BU38: 0 | BV38: 0 | BW38: 0 | BX38: =SUM( BX13, BX18, BX23, BX28, BX33 ) -> 0 | BY38: 0 | BZ38: 0 | CA38: 0 | CB38: 0 | CC38: 0 | CD38: 0 | CE38: 0 | CF38: 0 | CG38: 0 | CH38: 0 | CI38: 0 | CJ38: 0 | CK38: 0 | CL38: 0
E39: Afschrijvingen | H39: € | K39: =SUM( K14, K19, K24, K29, K34 ) -> 0 | L39: 0 | M39: 998979.4807 | N39: 1020594.067 | O39: 1048061.279 | P39: 1124755.509 | Q39: 1161342.489 | R39: 1186958.745 | S39: 1223887.984 | T39: 1239024.726 | U39: 1204559.246 | V39: 1181486.496 | W39: 1169733.517 | X39: 1156440.04 | Y39: 1152298.611 | Z39: 1142156.818 | AA39: 1131419.929 | AB39: 1130047.002 | AC39: 1128627.461 | AD39: 1127941.642 | AE39: 1127941.642 | AF39: 1127941.642 | AG39: 1127941.642 | AH39: 1127941.642 | AI39: 1127941.642 | AJ39: 1127941.642 | AK39: 1127941.642 | AL39: 1127941.642 | AM39: 1127941.642 | AN39: 1127941.642 | AO39: 1127941.642 | AP39: 1127941.642 | AQ39: 1127941.642 | AR39: 1127941.642 | AS39: 1127941.642 | AT39: 1127941.642 | AU39: 1127941.642 | AV39: 1127941.642 | AW39: 1127941.642 | AX39: 1127941.642 | AY39: 1127941.642 | AZ39: 1127941.642 | BA39: 1127941.642 | BB39: 1127941.642 | BC39: 1127941.642 | BD39: 1127941.642 | BE39: 1127941.642 | BF39: 75043.7309 | BG39: 3070.909091 | BH39: 3070.909091 | BI39: 3070.909091 | BJ39: 3070.909091 | BK39: 3070.909091 | BL39: 3070.909091 | BM39: 3070.909091 | BN39: 3070.909091 | BO39: 3070.909091 | BP39: 3070.909091 | BQ39: 3070.909091 | BR39: 3008.181818 | BS39: 1600 | BT39: 127.2727273 | BU39: 0 | BV39: 0 | BW39: 0 | BX39: 0 | BY39: 0 | BZ39: 0 | CA39: 0 | CB39: 0 | CC39: 0 | CD39: 0 | CE39: 0 | CF39: 0 | CG39: 0 | CH39: 0 | CI39: 0 | CJ39: 0 | CK39: 0 | CL39: 0
E40: Boekwaarde | H40: € | K40: 0 | L40: =SUM( L15, L20, L25, L30, L35 ) -> 0 | M40: 43882828.78 | N40: 43511094.31 | O40: 43075855.07 | P40: 43858526.92 | Q40: 42878760.02 | R40: 42436579.67 | S40: 42369502.76 | T40: 42104976.6 | U40: 40900417.35 | V40: 39718930.85 | W40: 38549197.34 | X40: 37392757.3 | Y40: 36240458.69 | Z40: 35098301.87 | AA40: 33966881.94 | AB40: 32836834.94 | AC40: 31708207.48 | AD40: 30580265.83 | AE40: 29452324.19 | AF40: 28324382.55 | AG40: 27196440.91 | AH40: 26068499.27 | AI40: 24940557.62 | AJ40: 23812615.98 | AK40: 22684674.34 | AL40: 21556732.7 | AM40: 20428791.06 | AN40: 19300849.41 | AO40: 18172907.77 | AP40: 17044966.13 | AQ40: 15917024.49 | AR40: 14789082.85 | AS40: 13661141.2 | AT40: 12533199.56 | AU40: 11405257.92 | AV40: 10277316.28 | AW40: 9149374.637 | AX40: 8021432.995 | AY40: 6893491.353 | AZ40: 5765549.711 | BA40: 4637608.069 | BB40: 3509666.427 | BC40: 2381724.785 | BD40: 1253783.143 | BE40: 125841.501 | BF40: 38515.45455 | BG40: 35444.54545 | BH40: 32373.63636 | BI40: 29302.72727 | BJ40: 26231.81818 | BK40: 23160.90909 | BL40: 20090 | BM40: 17019.09091 | BN40: 13948.18182 | BO40: 10877.27273 | BP40: 7806.363636 | BQ40: 4735.454545 | BR40: 1727.272727 | BS40: 127.2727273 | BT40: -1.717125997e-09 | BU40: -1.717125997e-09 | BV40: -1.717125997e-09 | BW40: -1.717125997e-09 | BX40: -1.717125997e-09 | BY40: -1.717125997e-09 | BZ40: -1.717125997e-09 | CA40: -1.717125997e-09 | CB40: -1.717125997e-09 | CC40: -1.717125997e-09 | CD40: -1.717125997e-09 | CE40: -1.717125997e-09 | CF40: -1.717125997e-09 | CG40: -1.717125997e-09 | CH40: -1.717125997e-09 | CI40: -1.717125997e-09 | CJ40: -1.717125997e-09 | CK40: -1.717125997e-09 | CL40: -1.717125997e-09
E42: AANSLUITDIENST: Liander | K42: =Tijd!K$4 -> 2004 | L42: =Tijd!L$4 -> 2005 | M42: =Tijd!M$4 -> 2006 | N42: =Tijd!N$4 -> 2007 | O42: =Tijd!O$4 -> 2008 | P42: =Tijd!P$4 -> 2009 | Q42: =Tijd!Q$4 -> 2010 | R42: =Tijd!R$4 -> 2011 | S42: =Tijd!S$4 -> 2012 | T42: =Tijd!T$4 -> 2013 | U42: =Tijd!U$4 -> 2014 | V42: =Tijd!V$4 -> 2015 | W42: =Tijd!W$4 -> 2016 | X42: =Tijd!X$4 -> 2017 | Y42: =Tijd!Y$4 -> 2018 | Z42: =Tijd!Z$4 -> 2019 | AA42: =Tijd!AA$4 -> 2020 | AB42: =Tijd!AB$4 -> 2021 | AC42: =Tijd!AC$4 -> 2022 | AD42: =Tijd!AD$4 -> 2023 | AE42: =Tijd!AE$4 -> 2024 | AF42: =Tijd!AF$4 -> 2025 | AG42: =Tijd!AG$4 -> 2026 | AH42: =Tijd!AH$4 -> 2027 | AI42: =Tijd!AI$4 -> 2028 | AJ42: =Tijd!AJ$4 -> 2029 | AK42: =Tijd!AK$4 -> 2030 | AL42: =Tijd!AL$4 -> 2031 | AM42: =Tijd!AM$4 -> 2032 | AN42: =Tijd!AN$4 -> 2033 | AO42: =Tijd!AO$4 -> 2034 | AP42: =Tijd!AP$4 -> 2035 | AQ42: =Tijd!AQ$4 -> 2036 | AR42: =Tijd!AR$4 -> 2037 | AS42: =Tijd!AS$4 -> 2038 | AT42: =Tijd!AT$4 -> 2039 | AU42: =Tijd!AU$4 -> 2040 | AV42: =Tijd!AV$4 -> 2041 | AW42: =Tijd!AW$4 -> 2042 | AX42: =Tijd!AX$4 -> 2043 | AY42: =Tijd!AY$4 -> 2044 | AZ42: =Tijd!AZ$4 -> 2045 | BA42: =Tijd!BA$4 -> 2046 | BB42: =Tijd!BB$4 -> 2047 | BC42: =Tijd!BC$4 -> 2048 | BD42: =Tijd!BD$4 -> 2049 | BE42: =Tijd!BE$4 -> 2050 | BF42: =Tijd!BF$4 -> 2051 | BG42: =Tijd!BG$4 -> 2052 | BH42: =Tijd!BH$4 -> 2053 | BI42: =Tijd!BI$4 -> 2054 | BJ42: =Tijd!BJ$4 -> 2055 | BK42: =Tijd!BK$4 -> 2056 | BL42: =Tijd!BL$4 -> 2057 | BM42: =Tijd!BM$4 -> 2058 | BN42: =Tijd!BN$4 -> 2059 | BO42: =Tijd!BO$4 -> 2060 | BP42: =Tijd!BP$4 -> 2061 | BQ42: =Tijd!BQ$4 -> 2062 | BR42: =Tijd!BR$4 -> 2063 | BS42: =Tijd!BS$4 -> 2064 | BT42: =Tijd!BT$4 -> 2065 | BU42: =Tijd!BU$4 -> 2066 | BV42: =Tijd!BV$4 -> 2067 | BW42: =Tijd!BW$4 -> 2068 | BX42: =Tijd!BX$4 -> 2069 | BY42: =Tijd!BY$4 -> 2070 | BZ42: =Tijd!BZ$4 -> 2071 | CA42: =Tijd!CA$4 -> 2072 | CB42: =Tijd!CB$4 -> 2073 | CC42: =Tijd!CC$4 -> 2074 | CD42: =Tijd!CD$4 -> 2075 | CE42: =Tijd!CE$4 -> 2076 | CF42: =Tijd!CF$4 -> 2077 | CG42: =Tijd!CG$4 -> 2078 | CH42: =Tijd!CH$4 -> 2079 | CI42: =Tijd!CI$4 -> 2080 | CJ42: =Tijd!CJ$4 -> 2081 | CK42: =Tijd!CK$4 -> 2082 | CL42: =Tijd!CL$4 -> 2083
E43: Start-GAW (excl. bijzonderheden)
E44: =GAW!E$6132 -> Investeringsbedrag boekjaar Start-GAW | F44: =GAW!F$6132 -> 0 | G44: =GAW!G$6132 -> 0 | H44: =GAW!H$6132 -> € | I44: =GAW!I$6132 -> 0 | J44: =GAW!J$6132 -> 0 | K44: =GAW!K$6132 -> 0 | L44: =GAW!L$6132 -> 0 | M44: =GAW!M$6132 -> 0 | N44: =GAW!N$6132 -> 0 | O44: =GAW!O$6132 -> 0 | P44: =GAW!P$6132 -> 0 | Q44: =GAW!Q$6132 -> 0 | R44: =GAW!R$6132 -> 0 | S44: =GAW!S$6132 -> 0 | T44: =GAW!T$6132 -> 0 | U44: =GAW!U$6132 -> 0 | V44: =GAW!V$6132 -> 0 | W44: =GAW!W$6132 -> 0 | X44: =GAW!X$6132 -> 0 | Y44: =GAW!Y$6132 -> 0 | Z44: =GAW!Z$6132 -> 0 | AA44: =GAW!AA$6132 -> 0 | AB44: =GAW!AB$6132 -> 0 | AC44: =GAW!AC$6132 -> 0 | AD44: =GAW!AD$6132 -> 0 | AE44: =GAW!AE$6132 -> 0 | AF44: =GAW!AF$6132 -> 0 | AG44: =GAW!AG$6132 -> 0 | AH44: =GAW!AH$6132 -> 0 | AI44: =GAW!AI$6132 -> 0 | AJ44: =GAW!AJ$6132 -> 0 | AK44: =GAW!AK$6132 -> 0 | AL44: =GAW!AL$6132 -> 0 | AM44: =GAW!AM$6132 -> 0 | AN44: =GAW!AN$6132 -> 0 | AO44: =GAW!AO$6132 -> 0 | AP44: =GAW!AP$6132 -> 0 | AQ44: =GAW!AQ$6132 -> 0 | AR44: =GAW!AR$6132 -> 0 | AS44: =GAW!AS$6132 -> 0 | AT44: =GAW!AT$6132 -> 0 | AU44: =GAW!AU$6132 -> 0 | AV44: =GAW!AV$6132 -> 0 | AW44: =GAW!AW$6132 -> 0 | AX44: =GAW!AX$6132 -> 0 | AY44: =GAW!AY$6132 -> 0 | AZ44: =GAW!AZ$6132 -> 0 | BA44: =GAW!BA$6132 -> 0 | BB44: =GAW!BB$6132 -> 0 | BC44: =GAW!BC$6132 -> 0 | BD44: =GAW!BD$6132 -> 0 | BE44: =GAW!BE$6132 -> 0 | BF44: =GAW!BF$6132 -> 0 | BG44: =GAW!BG$6132 -> 0 | BH44: =GAW!BH$6132 -> 0 | BI44: =GAW!BI$6132 -> 0 | BJ44: =GAW!BJ$6132 -> 0 | BK44: =GAW!BK$6132 -> 0 | BL44: =GAW!BL$6132 -> 0 | BM44: =GAW!BM$6132 -> 0 | BN44: =GAW!BN$6132 -> 0 | BO44: =GAW!BO$6132 -> 0 | BP44: =GAW!BP$6132 -> 0 | BQ44: =GAW!BQ$6132 -> 0 | BR44: =GAW!BR$6132 -> 0 | BS44: =GAW!BS$6132 -> 0 | BT44: =GAW!BT$6132 -> 0 | BU44: =GAW!BU$6132 -> 0 | BV44: =GAW!BV$6132 -> 0 | BW44: =GAW!BW$6132 -> 0 | BX44: =GAW!BX$6132 -> 0 | BY44: =GAW!BY$6132 -> 0 | BZ44: =GAW!BZ$6132 -> 0 | CA44: =GAW!CA$6132 -> 0 | CB44: =GAW!CB$6132 -> 0 | CC44: =GAW!CC$6132 -> 0 | CD44: =GAW!CD$6132 -> 0 | CE44: =GAW!CE$6132 -> 0 | CF44: =GAW!CF$6132 -> 0 | CG44: =GAW!CG$6132 -> 0 | CH44: =GAW!CH$6132 -> 0 | CI44: =GAW!CI$6132 -> 0 | CJ44: =GAW!CJ$6132 -> 0 | CK44: =GAW!CK$6132 -> 0 | CL44: =GAW!CL$6132 -> 0
E45: =Indexatie!E$376 -> Afschrijvingen Start-GAW | F45: =Indexatie!F$376 -> 0 | G45: =Indexatie!G$376 -> 0 | H45: =Indexatie!H$376 -> € | I45: =Indexatie!I$376 -> 0 | J45: =Indexatie!J$376 -> 0 | K45: =Indexatie!K$376 -> 0 | L45: =Indexatie!L$376 -> 0 | M45: =Indexatie!M$376 -> 0 | N45: =Indexatie!N$376 -> 0 | O45: =Indexatie!O$376 -> 0 | P45: =Indexatie!P$376 -> 0 | Q45: =Indexatie!Q$376 -> 0 | R45: =Indexatie!R$376 -> 0 | S45: =Indexatie!S$376 -> 0 | T45: =Indexatie!T$376 -> 0 | U45: =Indexatie!U$376 -> 0 | V45: =Indexatie!V$376 -> 0 | W45: =Indexatie!W$376 -> 0 | X45: =Indexatie!X$376 -> 0 | Y45: =Indexatie!Y$376 -> 0 | Z45: =Indexatie!Z$376 -> 0 | AA45: =Indexatie!AA$376 -> 0 | AB45: =Indexatie!AB$376 -> 0 | AC45: =Indexatie!AC$376 -> 0 | AD45: =Indexatie!AD$376 -> 0 | AE45: =Indexatie!AE$376 -> 0 | AF45: =Indexatie!AF$376 -> 0 | AG45: =Indexatie!AG$376 -> 0 | AH45: =Indexatie!AH$376 -> 0 | AI45: =Indexatie!AI$376 -> 0 | AJ45: =Indexatie!AJ$376 -> 0 | AK45: =Indexatie!AK$376 -> 0 | AL45: =Indexatie!AL$376 -> 0 | AM45: =Indexatie!AM$376 -> 0 | AN45: =Indexatie!AN$376 -> 0 | AO45: =Indexatie!AO$376 -> 0 | AP45: =Indexatie!AP$376 -> 0 | AQ45: =Indexatie!AQ$376 -> 0 | AR45: =Indexatie!AR$376 -> 0 | AS45: =Indexatie!AS$376 -> 0 | AT45: =Indexatie!AT$376 -> 0 | AU45: =Indexatie!AU$376 -> 0 | AV45: =Indexatie!AV$376 -> 0 | AW45: =Indexatie!AW$376 -> 0 | AX45: =Indexatie!AX$376 -> 0 | AY45: =Indexatie!AY$376 -> 0 | AZ45: =Indexatie!AZ$376 -> 0 | BA45: =Indexatie!BA$376 -> 0 | BB45: =Indexatie!BB$376 -> 0 | BC45: =Indexatie!BC$376 -> 0 | BD45: =Indexatie!BD$376 -> 0 | BE45: =Indexatie!BE$376 -> 0 | BF45: =Indexatie!BF$376 -> 0 | BG45: =Indexatie!BG$376 -> 0 | BH45: =Indexatie!BH$376 -> 0 | BI45: =Indexatie!BI$376 -> 0 | BJ45: =Indexatie!BJ$376 -> 0 | BK45: =Indexatie!BK$376 -> 0 | BL45: =Indexatie!BL$376 -> 0 | BM45: =Indexatie!BM$376 -> 0 | BN45: =Indexatie!BN$376 -> 0 | BO45: =Indexatie!BO$376 -> 0 | BP45: =Indexatie!BP$376 -> 0 | BQ45: =Indexatie!BQ$376 -> 0 | BR45: =Indexatie!BR$376 -> 0 | BS45: =Indexatie!BS$376 -> 0 | BT45: =Indexatie!BT$376 -> 0 | BU45: =Indexatie!BU$376 -> 0 | BV45: =Indexatie!BV$376 -> 0 | BW45: =Indexatie!BW$376 -> 0 | BX45: =Indexatie!BX$376 -> 0 | BY45: =Indexatie!BY$376 -> 0 | BZ45: =Indexatie!BZ$376 -> 0 | CA45: =Indexatie!CA$376 -> 0 | CB45: =Indexatie!CB$376 -> 0 | CC45: =Indexatie!CC$376 -> 0 | CD45: =Indexatie!CD$376 -> 0 | CE45: =Indexatie!CE$376 -> 0 | CF45: =Indexatie!CF$376 -> 0 | CG45: =Indexatie!CG$376 -> 0 | CH45: =Indexatie!CH$376 -> 0 | CI45: =Indexatie!CI$376 -> 0 | CJ45: =Indexatie!CJ$376 -> 0 | CK45: =Indexatie!CK$376 -> 0 | CL45: =Indexatie!CL$376 -> 0
E46: =Indexatie!E$372 -> Boekwaarde Start-GAW | F46: =Indexatie!F$372 -> 0 | G46: =Indexatie!G$372 -> 0 | H46: =Indexatie!H$372 -> € | I46: =Indexatie!I$372 -> 0 | J46: =Indexatie!J$372 -> 0 | K46: =Indexatie!K$372 -> 0 | L46: =Indexatie!L$372 -> 0 | M46: =Indexatie!M$372 -> 0 | N46: =Indexatie!N$372 -> 0 | O46: =Indexatie!O$372 -> 0 | P46: =Indexatie!P$372 -> 0 | Q46: =Indexatie!Q$372 -> 0 | R46: =Indexatie!R$372 -> 0 | S46: =Indexatie!S$372 -> 0 | T46: =Indexatie!T$372 -> 0 | U46: =Indexatie!U$372 -> 0 | V46: =Indexatie!V$372 -> 0 | W46: =Indexatie!W$372 -> 0 | X46: =Indexatie!X$372 -> 0 | Y46: =Indexatie!Y$372 -> 0 | Z46: =Indexatie!Z$372 -> 0 | AA46: =Indexatie!AA$372 -> 0 | AB46: =Indexatie!AB$372 -> 0 | AC46: =Indexatie!AC$372 -> 0 | AD46: =Indexatie!AD$372 -> 0 | AE46: =Indexatie!AE$372 -> 0 | AF46: =Indexatie!AF$372 -> 0 | AG46: =Indexatie!AG$372 -> 0 | AH46: =Indexatie!AH$372 -> 0 | AI46: =Indexatie!AI$372 -> 0 | AJ46: =Indexatie!AJ$372 -> 0 | AK46: =Indexatie!AK$372 -> 0 | AL46: =Indexatie!AL$372 -> 0 | AM46: =Indexatie!AM$372 -> 0 | AN46: =Indexatie!AN$372 -> 0 | AO46: =Indexatie!AO$372 -> 0 | AP46: =Indexatie!AP$372 -> 0 | AQ46: =Indexatie!AQ$372 -> 0 | AR46: =Indexatie!AR$372 -> 0 | AS46: =Indexatie!AS$372 -> 0 | AT46: =Indexatie!AT$372 -> 0 | AU46: =Indexatie!AU$372 -> 0 | AV46: =Indexatie!AV$372 -> 0 | AW46: =Indexatie!AW$372 -> 0 | AX46: =Indexatie!AX$372 -> 0 | AY46: =Indexatie!AY$372 -> 0 | AZ46: =Indexatie!AZ$372 -> 0 | BA46: =Indexatie!BA$372 -> 0 | BB46: =Indexatie!BB$372 -> 0 | BC46: =Indexatie!BC$372 -> 0 | BD46: =Indexatie!BD$372 -> 0 | BE46: =Indexatie!BE$372 -> 0 | BF46: =Indexatie!BF$372 -> 0 | BG46: =Indexatie!BG$372 -> 0 | BH46: =Indexatie!BH$372 -> 0 | BI46: =Indexatie!BI$372 -> 0 | BJ46: =Indexatie!BJ$372 -> 0 | BK46: =Indexatie!BK$372 -> 0 | BL46: =Indexatie!BL$372 -> 0 | BM46: =Indexatie!BM$372 -> 0 | BN46: =Indexatie!BN$372 -> 0 | BO46: =Indexatie!BO$372 -> 0 | BP46: =Indexatie!BP$372 -> 0 | BQ46: =Indexatie!BQ$372 -> 0 | BR46: =Indexatie!BR$372 -> 0 | BS46: =Indexatie!BS$372 -> 0 | BT46: =Indexatie!BT$372 -> 0 | BU46: =Indexatie!BU$372 -> 0 | BV46: =Indexatie!BV$372 -> 0 | BW46: =Indexatie!BW$372 -> 0 | BX46: =Indexatie!BX$372 -> 0 | BY46: =Indexatie!BY$372 -> 0 | BZ46: =Indexatie!BZ$372 -> 0 | CA46: =Indexatie!CA$372 -> 0 | CB46: =Indexatie!CB$372 -> 0 | CC46: =Indexatie!CC$372 -> 0 | CD46: =Indexatie!CD$372 -> 0 | CE46: =Indexatie!CE$372 -> 0 | CF46: =Indexatie!CF$372 -> 0 | CG46: =Indexatie!CG$372 -> 0 | CH46: =Indexatie!CH$372 -> 0 | CI46: =Indexatie!CI$372 -> 0 | CJ46: =Indexatie!CJ$372 -> 0 | CK46: =Indexatie!CK$372 -> 0 | CL46: =Indexatie!CL$372 -> 0
E48: Nieuwe investeringen (excl. bijzonderheden)
E49: =Indexatie!E$519 -> Investeringsbedrag boekjaar | F49: =Indexatie!F$519 -> 0 | G49: =Indexatie!G$519 -> 0 | H49: =Indexatie!H$519 -> € | I49: =Indexatie!I$519 -> 0 | J49: =Indexatie!J$519 -> 0 | K49: =Indexatie!K$519 -> 0 | L49: =Indexatie!L$519 -> 0 | M49: =Indexatie!M$519 -> 0 | N49: =Indexatie!N$519 -> 0 | O49: =Indexatie!O$519 -> 0 | P49: =Indexatie!P$519 -> 0 | Q49: =Indexatie!Q$519 -> 0 | R49: =Indexatie!R$519 -> 0 | S49: =Indexatie!S$519 -> 0 | T49: =Indexatie!T$519 -> 0 | U49: =Indexatie!U$519 -> 0 | V49: =Indexatie!V$519 -> 0 | W49: =Indexatie!W$519 -> 0 | X49: =Indexatie!X$519 -> 0 | Y49: =Indexatie!Y$519 -> 0 | Z49: =Indexatie!Z$519 -> 0 | AA49: =Indexatie!AA$519 -> 0 | AB49: =Indexatie!AB$519 -> 0 | AC49: =Indexatie!AC$519 -> 0 | AD49: =Indexatie!AD$519 -> 0 | AE49: =Indexatie!AE$519 -> 0 | AF49: =Indexatie!AF$519 -> 0 | AG49: =Indexatie!AG$519 -> 0 | AH49: =Indexatie!AH$519 -> 0 | AI49: =Indexatie!AI$519 -> 0 | AJ49: =Indexatie!AJ$519 -> 0 | AK49: =Indexatie!AK$519 -> 0 | AL49: =Indexatie!AL$519 -> 0 | AM49: =Indexatie!AM$519 -> 0 | AN49: =Indexatie!AN$519 -> 0 | AO49: =Indexatie!AO$519 -> 0 | AP49: =Indexatie!AP$519 -> 0 | AQ49: =Indexatie!AQ$519 -> 0 | AR49: =Indexatie!AR$519 -> 0 | AS49: =Indexatie!AS$519 -> 0 | AT49: =Indexatie!AT$519 -> 0 | AU49: =Indexatie!AU$519 -> 0 | AV49: =Indexatie!AV$519 -> 0 | AW49: =Indexatie!AW$519 -> 0 | AX49: =Indexatie!AX$519 -> 0 | AY49: =Indexatie!AY$519 -> 0 | AZ49: =Indexatie!AZ$519 -> 0 | BA49: =Indexatie!BA$519 -> 0 | BB49: =Indexatie!BB$519 -> 0 | BC49: =Indexatie!BC$519 -> 0 | BD49: =Indexatie!BD$519 -> 0 | BE49: =Indexatie!BE$519 -> 0 | BF49: =Indexatie!BF$519 -> 0 | BG49: =Indexatie!BG$519 -> 0 | BH49: =Indexatie!BH$519 -> 0 | BI49: =Indexatie!BI$519 -> 0 | BJ49: =Indexatie!BJ$519 -> 0 | BK49: =Indexatie!BK$519 -> 0 | BL49: =Indexatie!BL$519 -> 0 | BM49: =Indexatie!BM$519 -> 0 | BN49: =Indexatie!BN$519 -> 0 | BO49: =Indexatie!BO$519 -> 0 | BP49: =Indexatie!BP$519 -> 0 | BQ49: =Indexatie!BQ$519 -> 0 | BR49: =Indexatie!BR$519 -> 0 | BS49: =Indexatie!BS$519 -> 0 | BT49: =Indexatie!BT$519 -> 0 | BU49: =Indexatie!BU$519 -> 0 | BV49: =Indexatie!BV$519 -> 0 | BW49: =Indexatie!BW$519 -> 0 | BX49: =Indexatie!BX$519 -> 0 | BY49: =Indexatie!BY$519 -> 0 | BZ49: =Indexatie!BZ$519 -> 0 | CA49: =Indexatie!CA$519 -> 0 | CB49: =Indexatie!CB$519 -> 0 | CC49: =Indexatie!CC$519 -> 0 | CD49: =Indexatie!CD$519 -> 0 | CE49: =Indexatie!CE$519 -> 0 | CF49: =Indexatie!CF$519 -> 0 | CG49: =Indexatie!CG$519 -> 0 | CH49: =Indexatie!CH$519 -> 0 | CI49: =Indexatie!CI$519 -> 0 | CJ49: =Indexatie!CJ$519 -> 0 | CK49: =Indexatie!CK$519 -> 0 | CL49: =Indexatie!CL$519 -> 0
E50: =Indexatie!E$505 -> Afschrijvingen | F50: =Indexatie!F$505 -> 0 | G50: =Indexatie!G$505 -> 0 | H50: =Indexatie!H$505 -> € | I50: =Indexatie!I$505 -> 0 | J50: =Indexatie!J$505 -> 0 | K50: =Indexatie!K$505 -> 0 | L50: =Indexatie!L$505 -> 0 | M50: =Indexatie!M$505 -> 0 | N50: =Indexatie!N$505 -> 0 | O50: =Indexatie!O$505 -> 0 | P50: =Indexatie!P$505 -> 0 | Q50: =Indexatie!Q$505 -> 0 | R50: =Indexatie!R$505 -> 0 | S50: =Indexatie!S$505 -> 0 | T50: =Indexatie!T$505 -> 0 | U50: =Indexatie!U$505 -> 0 | V50: =Indexatie!V$505 -> 0 | W50: =Indexatie!W$505 -> 0 | X50: =Indexatie!X$505 -> 0 | Y50: =Indexatie!Y$505 -> 0 | Z50: =Indexatie!Z$505 -> 0 | AA50: =Indexatie!AA$505 -> 0 | AB50: =Indexatie!AB$505 -> 0 | AC50: =Indexatie!AC$505 -> 0 | AD50: =Indexatie!AD$505 -> 0 | AE50: =Indexatie!AE$505 -> 0 | AF50: =Indexatie!AF$505 -> 0 | AG50: =Indexatie!AG$505 -> 0 | AH50: =Indexatie!AH$505 -> 0 | AI50: =Indexatie!AI$505 -> 0 | AJ50: =Indexatie!AJ$505 -> 0 | AK50: =Indexatie!AK$505 -> 0 | AL50: =Indexatie!AL$505 -> 0 | AM50: =Indexatie!AM$505 -> 0 | AN50: =Indexatie!AN$505 -> 0 | AO50: =Indexatie!AO$505 -> 0 | AP50: =Indexatie!AP$505 -> 0 | AQ50: =Indexatie!AQ$505 -> 0 | AR50: =Indexatie!AR$505 -> 0 | AS50: =Indexatie!AS$505 -> 0 | AT50: =Indexatie!AT$505 -> 0 | AU50: =Indexatie!AU$505 -> 0 | AV50: =Indexatie!AV$505 -> 0 | AW50: =Indexatie!AW$505 -> 0 | AX50: =Indexatie!AX$505 -> 0 | AY50: =Indexatie!AY$505 -> 0 | AZ50: =Indexatie!AZ$505 -> 0 | BA50: =Indexatie!BA$505 -> 0 | BB50: =Indexatie!BB$505 -> 0 | BC50: =Indexatie!BC$505 -> 0 | BD50: =Indexatie!BD$505 -> 0 | BE50: =Indexatie!BE$505 -> 0 | BF50: =Indexatie!BF$505 -> 0 | BG50: =Indexatie!BG$505 -> 0 | BH50: =Indexatie!BH$505 -> 0 | BI50: =Indexatie!BI$505 -> 0 | BJ50: =Indexatie!BJ$505 -> 0 | BK50: =Indexatie!BK$505 -> 0 | BL50: =Indexatie!BL$505 -> 0 | BM50: =Indexatie!BM$505 -> 0 | BN50: =Indexatie!BN$505 -> 0 | BO50: =Indexatie!BO$505 -> 0 | BP50: =Indexatie!BP$505 -> 0 | BQ50: =Indexatie!BQ$505 -> 0 | BR50: =Indexatie!BR$505 -> 0 | BS50: =Indexatie!BS$505 -> 0 | BT50: =Indexatie!BT$505 -> 0 | BU50: =Indexatie!BU$505 -> 0 | BV50: =Indexatie!BV$505 -> 0 | BW50: =Indexatie!BW$505 -> 0 | BX50: =Indexatie!BX$505 -> 0 | BY50: =Indexatie!BY$505 -> 0 | BZ50: =Indexatie!BZ$505 -> 0 | CA50: =Indexatie!CA$505 -> 0 | CB50: =Indexatie!CB$505 -> 0 | CC50: =Indexatie!CC$505 -> 0 | CD50: =Indexatie!CD$505 -> 0 | CE50: =Indexatie!CE$505 -> 0 | CF50: =Indexatie!CF$505 -> 0 | CG50: =Indexatie!CG$505 -> 0 | CH50: =Indexatie!CH$505 -> 0 | CI50: =Indexatie!CI$505 -> 0 | CJ50: =Indexatie!CJ$505 -> 0 | CK50: =Indexatie!CK$505 -> 0 | CL50: =Indexatie!CL$505 -> 0
E51: =Indexatie!E$482 -> Boekwaarde | F51: =Indexatie!F$482 -> 0 | G51: =Indexatie!G$482 -> 0 | H51: =Indexatie!H$482 -> € | I51: =Indexatie!I$482 -> 0 | J51: =Indexatie!J$482 -> 0 | K51: =Indexatie!K$482 -> 0 | L51: =Indexatie!L$482 -> 0 | M51: =Indexatie!M$482 -> 0 | N51: =Indexatie!N$482 -> 0 | O51: =Indexatie!O$482 -> 0 | P51: =Indexatie!P$482 -> 0 | Q51: =Indexatie!Q$482 -> 0 | R51: =Indexatie!R$482 -> 0 | S51: =Indexatie!S$482 -> 0 | T51: =Indexatie!T$482 -> 0 | U51: =Indexatie!U$482 -> 0 | V51: =Indexatie!V$482 -> 0 | W51: =Indexatie!W$482 -> 0 | X51: =Indexatie!X$482 -> 0 | Y51: =Indexatie!Y$482 -> 0 | Z51: =Indexatie!Z$482 -> 0 | AA51: =Indexatie!AA$482 -> 0 | AB51: =Indexatie!AB$482 -> 0 | AC51: =Indexatie!AC$482 -> 0 | AD51: =Indexatie!AD$482 -> 0 | AE51: =Indexatie!AE$482 -> 0 | AF51: =Indexatie!AF$482 -> 0 | AG51: =Indexatie!AG$482 -> 0 | AH51: =Indexatie!AH$482 -> 0 | AI51: =Indexatie!AI$482 -> 0 | AJ51: =Indexatie!AJ$482 -> 0 | AK51: =Indexatie!AK$482 -> 0 | AL51: =Indexatie!AL$482 -> 0 | AM51: =Indexatie!AM$482 -> 0 | AN51: =Indexatie!AN$482 -> 0 | AO51: =Indexatie!AO$482 -> 0 | AP51: =Indexatie!AP$482 -> 0 | AQ51: =Indexatie!AQ$482 -> 0 | AR51: =Indexatie!AR$482 -> 0 | AS51: =Indexatie!AS$482 -> 0 | AT51: =Indexatie!AT$482 -> 0 | AU51: =Indexatie!AU$482 -> 0 | AV51: =Indexatie!AV$482 -> 0 | AW51: =Indexatie!AW$482 -> 0 | AX51: =Indexatie!AX$482 -> 0 | AY51: =Indexatie!AY$482 -> 0 | AZ51: =Indexatie!AZ$482 -> 0 | BA51: =Indexatie!BA$482 -> 0 | BB51: =Indexatie!BB$482 -> 0 | BC51: =Indexatie!BC$482 -> 0 | BD51: =Indexatie!BD$482 -> 0 | BE51: =Indexatie!BE$482 -> 0 | BF51: =Indexatie!BF$482 -> 0 | BG51: =Indexatie!BG$482 -> 0 | BH51: =Indexatie!BH$482 -> 0 | BI51: =Indexatie!BI$482 -> 0 | BJ51: =Indexatie!BJ$482 -> 0 | BK51: =Indexatie!BK$482 -> 0 | BL51: =Indexatie!BL$482 -> 0 | BM51: =Indexatie!BM$482 -> 0 | BN51: =Indexatie!BN$482 -> 0 | BO51: =Indexatie!BO$482 -> 0 | BP51: =Indexatie!BP$482 -> 0 | BQ51: =Indexatie!BQ$482 -> 0 | BR51: =Indexatie!BR$482 -> 0 | BS51: =Indexatie!BS$482 -> 0 | BT51: =Indexatie!BT$482 -> 0 | BU51: =Indexatie!BU$482 -> 0 | BV51: =Indexatie!BV$482 -> 0 | BW51: =Indexatie!BW$482 -> 0 | BX51: =Indexatie!BX$482 -> 0 | BY51: =Indexatie!BY$482 -> 0 | BZ51: =Indexatie!BZ$482 -> 0 | CA51: =Indexatie!CA$482 -> 0 | CB51: =Indexatie!CB$482 -> 0 | CC51: =Indexatie!CC$482 -> 0 | CD51: =Indexatie!CD$482 -> 0 | CE51: =Indexatie!CE$482 -> 0 | CF51: =Indexatie!CF$482 -> 0 | CG51: =Indexatie!CG$482 -> 0 | CH51: =Indexatie!CH$482 -> 0 | CI51: =Indexatie!CI$482 -> 0 | CJ51: =Indexatie!CJ$482 -> 0 | CK51: =Indexatie!CK$482 -> 0 | CL51: =Indexatie!CL$482 -> 0
E53: Bijzonderheid: overgenomen netten
E54: ='UI & Overgenomen Netten'!E$77 -> Investeringsbedrag overgenomen netten | F54: ='UI & Overgenomen Netten'!F$77 -> 0 | G54: ='UI & Overgenomen Netten'!G$77 -> 0 | H54: ='UI & Overgenomen Netten'!H$77 -> € | I54: ='UI & Overgenomen Netten'!I$77 -> 0 | J54: ='UI & Overgenomen Netten'!J$77 -> 0 | K54: ='UI & Overgenomen Netten'!K$77 -> 0 | L54: ='UI & Overgenomen Netten'!L$77 -> 0 | M54: ='UI & Overgenomen Netten'!M$77 -> 0 | N54: ='UI & Overgenomen Netten'!N$77 -> 0 | O54: ='UI & Overgenomen Netten'!O$77 -> 0 | P54: ='UI & Overgenomen Netten'!P$77 -> 0 | Q54: ='UI & Overgenomen Netten'!Q$77 -> 0 | R54: ='UI & Overgenomen Netten'!R$77 -> 0 | S54: ='UI & Overgenomen Netten'!S$77 -> 0 | T54: ='UI & Overgenomen Netten'!T$77 -> 0 | U54: ='UI & Overgenomen Netten'!U$77 -> 0 | V54: ='UI & Overgenomen Netten'!V$77 -> 0 | W54: ='UI & Overgenomen Netten'!W$77 -> 0 | X54: ='UI & Overgenomen Netten'!X$77 -> 0 | Y54: ='UI & Overgenomen Netten'!Y$77 -> 0 | Z54: ='UI & Overgenomen Netten'!Z$77 -> 0 | AA54: ='UI & Overgenomen Netten'!AA$77 -> 0 | AB54: ='UI & Overgenomen Netten'!AB$77 -> 0 | AC54: ='UI & Overgenomen Netten'!AC$77 -> 0 | AD54: ='UI & Overgenomen Netten'!AD$77 -> 0 | AE54: ='UI & Overgenomen Netten'!AE$77 -> 0 | AF54: ='UI & Overgenomen Netten'!AF$77 -> 0 | AG54: ='UI & Overgenomen Netten'!AG$77 -> 0 | AH54: ='UI & Overgenomen Netten'!AH$77 -> 0 | AI54: ='UI & Overgenomen Netten'!AI$77 -> 0 | AJ54: ='UI & Overgenomen Netten'!AJ$77 -> 0 | AK54: ='UI & Overgenomen Netten'!AK$77 -> 0 | AL54: ='UI & Overgenomen Netten'!AL$77 -> 0 | AM54: ='UI & Overgenomen Netten'!AM$77 -> 0 | AN54: ='UI & Overgenomen Netten'!AN$77 -> 0 | AO54: ='UI & Overgenomen Netten'!AO$77 -> 0 | AP54: ='UI & Overgenomen Netten'!AP$77 -> 0 | AQ54: ='UI & Overgenomen Netten'!AQ$77 -> 0 | AR54: ='UI & Overgenomen Netten'!AR$77 -> 0 | AS54: ='UI & Overgenomen Netten'!AS$77 -> 0 | AT54: ='UI & Overgenomen Netten'!AT$77 -> 0 | AU54: ='UI & Overgenomen Netten'!AU$77 -> 0 | AV54: ='UI & Overgenomen Netten'!AV$77 -> 0 | AW54: ='UI & Overgenomen Netten'!AW$77 -> 0 | AX54: ='UI & Overgenomen Netten'!AX$77 -> 0 | AY54: ='UI & Overgenomen Netten'!AY$77 -> 0 | AZ54: ='UI & Overgenomen Netten'!AZ$77 -> 0 | BA54: ='UI & Overgenomen Netten'!BA$77 -> 0 | BB54: ='UI & Overgenomen Netten'!BB$77 -> 0 | BC54: ='UI & Overgenomen Netten'!BC$77 -> 0 | BD54: ='UI & Overgenomen Netten'!BD$77 -> 0 | BE54: ='UI & Overgenomen Netten'!BE$77 -> 0 | BF54: ='UI & Overgenomen Netten'!BF$77 -> 0 | BG54: ='UI & Overgenomen Netten'!BG$77 -> 0 | BH54: ='UI & Overgenomen Netten'!BH$77 -> 0 | BI54: ='UI & Overgenomen Netten'!BI$77 -> 0 | BJ54: ='UI & Overgenomen Netten'!BJ$77 -> 0 | BK54: ='UI & Overgenomen Netten'!BK$77 -> 0 | BL54: ='UI & Overgenomen Netten'!BL$77 -> 0 | BM54: ='UI & Overgenomen Netten'!BM$77 -> 0 | BN54: ='UI & Overgenomen Netten'!BN$77 -> 0 | BO54: ='UI & Overgenomen Netten'!BO$77 -> 0 | BP54: ='UI & Overgenomen Netten'!BP$77 -> 0 | BQ54: ='UI & Overgenomen Netten'!BQ$77 -> 0 | BR54: ='UI & Overgenomen Netten'!BR$77 -> 0 | BS54: ='UI & Overgenomen Netten'!BS$77 -> 0 | BT54: ='UI & Overgenomen Netten'!BT$77 -> 0 | BU54: ='UI & Overgenomen Netten'!BU$77 -> 0 | BV54: ='UI & Overgenomen Netten'!BV$77 -> 0 | BW54: ='UI & Overgenomen Netten'!BW$77 -> 0 | BX54: ='UI & Overgenomen Netten'!BX$77 -> 0 | BY54: ='UI & Overgenomen Netten'!BY$77 -> 0 | BZ54: ='UI & Overgenomen Netten'!BZ$77 -> 0 | CA54: ='UI & Overgenomen Netten'!CA$77 -> 0 | CB54: ='UI & Overgenomen Netten'!CB$77 -> 0 | CC54: ='UI & Overgenomen Netten'!CC$77 -> 0 | CD54: ='UI & Overgenomen Netten'!CD$77 -> 0 | CE54: ='UI & Overgenomen Netten'!CE$77 -> 0 | CF54: ='UI & Overgenomen Netten'!CF$77 -> 0 | CG54: ='UI & Overgenomen Netten'!CG$77 -> 0 | CH54: ='UI & Overgenomen Netten'!CH$77 -> 0 | CI54: ='UI & Overgenomen Netten'!CI$77 -> 0 | CJ54: ='UI & Overgenomen Netten'!CJ$77 -> 0 | CK54: ='UI & Overgenomen Netten'!CK$77 -> 0 | CL54: ='UI & Overgenomen Netten'!CL$77 -> 0
E55: ='UI & Overgenomen Netten'!E$67 -> Afschrijvingen overgenomen netten | F55: ='UI & Overgenomen Netten'!F$67 -> 0 | G55: ='UI & Overgenomen Netten'!G$67 -> 0 | H55: ='UI & Overgenomen Netten'!H$67 -> € | I55: ='UI & Overgenomen Netten'!I$67 -> 0 | J55: ='UI & Overgenomen Netten'!J$67 -> 0 | K55: ='UI & Overgenomen Netten'!K$67 -> 0 | L55: ='UI & Overgenomen Netten'!L$67 -> 0 | M55: ='UI & Overgenomen Netten'!M$67 -> 0 | N55: ='UI & Overgenomen Netten'!N$67 -> 0 | O55: ='UI & Overgenomen Netten'!O$67 -> 0 | P55: ='UI & Overgenomen Netten'!P$67 -> 0 | Q55: ='UI & Overgenomen Netten'!Q$67 -> 0 | R55: ='UI & Overgenomen Netten'!R$67 -> 0 | S55: ='UI & Overgenomen Netten'!S$67 -> 0 | T55: ='UI & Overgenomen Netten'!T$67 -> 0 | U55: ='UI & Overgenomen Netten'!U$67 -> 0 | V55: ='UI & Overgenomen Netten'!V$67 -> 0 | W55: ='UI & Overgenomen Netten'!W$67 -> 0 | X55: ='UI & Overgenomen Netten'!X$67 -> 0 | Y55: ='UI & Overgenomen Netten'!Y$67 -> 0 | Z55: ='UI & Overgenomen Netten'!Z$67 -> 0 | AA55: ='UI & Overgenomen Netten'!AA$67 -> 0 | AB55: ='UI & Overgenomen Netten'!AB$67 -> 0 | AC55: ='UI & Overgenomen Netten'!AC$67 -> 0 | AD55: ='UI & Overgenomen Netten'!AD$67 -> 0 | AE55: ='UI & Overgenomen Netten'!AE$67 -> 0 | AF55: ='UI & Overgenomen Netten'!AF$67 -> 0 | AG55: ='UI & Overgenomen Netten'!AG$67 -> 0 | AH55: ='UI & Overgenomen Netten'!AH$67 -> 0 | AI55: ='UI & Overgenomen Netten'!AI$67 -> 0 | AJ55: ='UI & Overgenomen Netten'!AJ$67 -> 0 | AK55: ='UI & Overgenomen Netten'!AK$67 -> 0 | AL55: ='UI & Overgenomen Netten'!AL$67 -> 0 | AM55: ='UI & Overgenomen Netten'!AM$67 -> 0 | AN55: ='UI & Overgenomen Netten'!AN$67 -> 0 | AO55: ='UI & Overgenomen Netten'!AO$67 -> 0 | AP55: ='UI & Overgenomen Netten'!AP$67 -> 0 | AQ55: ='UI & Overgenomen Netten'!AQ$67 -> 0 | AR55: ='UI & Overgenomen Netten'!AR$67 -> 0 | AS55: ='UI & Overgenomen Netten'!AS$67 -> 0 | AT55: ='UI & Overgenomen Netten'!AT$67 -> 0 | AU55: ='UI & Overgenomen Netten'!AU$67 -> 0 | AV55: ='UI & Overgenomen Netten'!AV$67 -> 0 | AW55: ='UI & Overgenomen Netten'!AW$67 -> 0 | AX55: ='UI & Overgenomen Netten'!AX$67 -> 0 | AY55: ='UI & Overgenomen Netten'!AY$67 -> 0 | AZ55: ='UI & Overgenomen Netten'!AZ$67 -> 0 | BA55: ='UI & Overgenomen Netten'!BA$67 -> 0 | BB55: ='UI & Overgenomen Netten'!BB$67 -> 0 | BC55: ='UI & Overgenomen Netten'!BC$67 -> 0 | BD55: ='UI & Overgenomen Netten'!BD$67 -> 0 | BE55: ='UI & Overgenomen Netten'!BE$67 -> 0 | BF55: ='UI & Overgenomen Netten'!BF$67 -> 0 | BG55: ='UI & Overgenomen Netten'!BG$67 -> 0 | BH55: ='UI & Overgenomen Netten'!BH$67 -> 0 | BI55: ='UI & Overgenomen Netten'!BI$67 -> 0 | BJ55: ='UI & Overgenomen Netten'!BJ$67 -> 0 | BK55: ='UI & Overgenomen Netten'!BK$67 -> 0 | BL55: ='UI & Overgenomen Netten'!BL$67 -> 0 | BM55: ='UI & Overgenomen Netten'!BM$67 -> 0 | BN55: ='UI & Overgenomen Netten'!BN$67 -> 0 | BO55: ='UI & Overgenomen Netten'!BO$67 -> 0 | BP55: ='UI & Overgenomen Netten'!BP$67 -> 0 | BQ55: ='UI & Overgenomen Netten'!BQ$67 -> 0 | BR55: ='UI & Overgenomen Netten'!BR$67 -> 0 | BS55: ='UI & Overgenomen Netten'!BS$67 -> 0 | BT55: ='UI & Overgenomen Netten'!BT$67 -> 0 | BU55: ='UI & Overgenomen Netten'!BU$67 -> 0 | BV55: ='UI & Overgenomen Netten'!BV$67 -> 0 | BW55: ='UI & Overgenomen Netten'!BW$67 -> 0 | BX55: ='UI & Overgenomen Netten'!BX$67 -> 0 | BY55: ='UI & Overgenomen Netten'!BY$67 -> 0 | BZ55: ='UI & Overgenomen Netten'!BZ$67 -> 0 | CA55: ='UI & Overgenomen Netten'!CA$67 -> 0 | CB55: ='UI & Overgenomen Netten'!CB$67 -> 0 | CC55: ='UI & Overgenomen Netten'!CC$67 -> 0 | CD55: ='UI & Overgenomen Netten'!CD$67 -> 0 | CE55: ='UI & Overgenomen Netten'!CE$67 -> 0 | CF55: ='UI & Overgenomen Netten'!CF$67 -> 0 | CG55: ='UI & Overgenomen Netten'!CG$67 -> 0 | CH55: ='UI & Overgenomen Netten'!CH$67 -> 0 | CI55: ='UI & Overgenomen Netten'!CI$67 -> 0 | CJ55: ='UI & Overgenomen Netten'!CJ$67 -> 0 | CK55: ='UI & Overgenomen Netten'!CK$67 -> 0 | CL55: ='UI & Overgenomen Netten'!CL$67 -> 0
E56: ='UI & Overgenomen Netten'!E$57 -> Boekwaarde overgenomen netten | F56: ='UI & Overgenomen Netten'!F$57 -> 0 | G56: ='UI & Overgenomen Netten'!G$57 -> 0 | H56: ='UI & Overgenomen Netten'!H$57 -> € | I56: ='UI & Overgenomen Netten'!I$57 -> 0 | J56: ='UI & Overgenomen Netten'!J$57 -> 0 | K56: ='UI & Overgenomen Netten'!K$57 -> 0 | L56: ='UI & Overgenomen Netten'!L$57 -> 0 | M56: ='UI & Overgenomen Netten'!M$57 -> 0 | N56: ='UI & Overgenomen Netten'!N$57 -> 0 | O56: ='UI & Overgenomen Netten'!O$57 -> 0 | P56: ='UI & Overgenomen Netten'!P$57 -> 0 | Q56: ='UI & Overgenomen Netten'!Q$57 -> 0 | R56: ='UI & Overgenomen Netten'!R$57 -> 0 | S56: ='UI & Overgenomen Netten'!S$57 -> 0 | T56: ='UI & Overgenomen Netten'!T$57 -> 0 | U56: ='UI & Overgenomen Netten'!U$57 -> 0 | V56: ='UI & Overgenomen Netten'!V$57 -> 0 | W56: ='UI & Overgenomen Netten'!W$57 -> 0 | X56: ='UI & Overgenomen Netten'!X$57 -> 0 | Y56: ='UI & Overgenomen Netten'!Y$57 -> 0 | Z56: ='UI & Overgenomen Netten'!Z$57 -> 0 | AA56: ='UI & Overgenomen Netten'!AA$57 -> 0 | AB56: ='UI & Overgenomen Netten'!AB$57 -> 0 | AC56: ='UI & Overgenomen Netten'!AC$57 -> 0 | AD56: ='UI & Overgenomen Netten'!AD$57 -> 0 | AE56: ='UI & Overgenomen Netten'!AE$57 -> 0 | AF56: ='UI & Overgenomen Netten'!AF$57 -> 0 | AG56: ='UI & Overgenomen Netten'!AG$57 -> 0 | AH56: ='UI & Overgenomen Netten'!AH$57 -> 0 | AI56: ='UI & Overgenomen Netten'!AI$57 -> 0 | AJ56: ='UI & Overgenomen Netten'!AJ$57 -> 0 | AK56: ='UI & Overgenomen Netten'!AK$57 -> 0 | AL56: ='UI & Overgenomen Netten'!AL$57 -> 0 | AM56: ='UI & Overgenomen Netten'!AM$57 -> 0 | AN56: ='UI & Overgenomen Netten'!AN$57 -> 0 | AO56: ='UI & Overgenomen Netten'!AO$57 -> 0 | AP56: ='UI & Overgenomen Netten'!AP$57 -> 0 | AQ56: ='UI & Overgenomen Netten'!AQ$57 -> 0 | AR56: ='UI & Overgenomen Netten'!AR$57 -> 0 | AS56: ='UI & Overgenomen Netten'!AS$57 -> 0 | AT56: ='UI & Overgenomen Netten'!AT$57 -> 0 | AU56: ='UI & Overgenomen Netten'!AU$57 -> 0 | AV56: ='UI & Overgenomen Netten'!AV$57 -> 0 | AW56: ='UI & Overgenomen Netten'!AW$57 -> 0 | AX56: ='UI & Overgenomen Netten'!AX$57 -> 0 | AY56: ='UI & Overgenomen Netten'!AY$57 -> 0 | AZ56: ='UI & Overgenomen Netten'!AZ$57 -> 0 | BA56: ='UI & Overgenomen Netten'!BA$57 -> 0 | BB56: ='UI & Overgenomen Netten'!BB$57 -> 0 | BC56: ='UI & Overgenomen Netten'!BC$57 -> 0 | BD56: ='UI & Overgenomen Netten'!BD$57 -> 0 | BE56: ='UI & Overgenomen Netten'!BE$57 -> 0 | BF56: ='UI & Overgenomen Netten'!BF$57 -> 0 | BG56: ='UI & Overgenomen Netten'!BG$57 -> 0 | BH56: ='UI & Overgenomen Netten'!BH$57 -> 0 | BI56: ='UI & Overgenomen Netten'!BI$57 -> 0 | BJ56: ='UI & Overgenomen Netten'!BJ$57 -> 0 | BK56: ='UI & Overgenomen Netten'!BK$57 -> 0 | BL56: ='UI & Overgenomen Netten'!BL$57 -> 0 | BM56: ='UI & Overgenomen Netten'!BM$57 -> 0 | BN56: ='UI & Overgenomen Netten'!BN$57 -> 0 | BO56: ='UI & Overgenomen Netten'!BO$57 -> 0 | BP56: ='UI & Overgenomen Netten'!BP$57 -> 0 | BQ56: ='UI & Overgenomen Netten'!BQ$57 -> 0 | BR56: ='UI & Overgenomen Netten'!BR$57 -> 0 | BS56: ='UI & Overgenomen Netten'!BS$57 -> 0 | BT56: ='UI & Overgenomen Netten'!BT$57 -> 0 | BU56: ='UI & Overgenomen Netten'!BU$57 -> 0 | BV56: ='UI & Overgenomen Netten'!BV$57 -> 0 | BW56: ='UI & Overgenomen Netten'!BW$57 -> 0 | BX56: ='UI & Overgenomen Netten'!BX$57 -> 0 | BY56: ='UI & Overgenomen Netten'!BY$57 -> 0 | BZ56: ='UI & Overgenomen Netten'!BZ$57 -> 0 | CA56: ='UI & Overgenomen Netten'!CA$57 -> 0 | CB56: ='UI & Overgenomen Netten'!CB$57 -> 0 | CC56: ='UI & Overgenomen Netten'!CC$57 -> 0 | CD56: ='UI & Overgenomen Netten'!CD$57 -> 0 | CE56: ='UI & Overgenomen Netten'!CE$57 -> 0 | CF56: ='UI & Overgenomen Netten'!CF$57 -> 0 | CG56: ='UI & Overgenomen Netten'!CG$57 -> 0 | CH56: ='UI & Overgenomen Netten'!CH$57 -> 0 | CI56: ='UI & Overgenomen Netten'!CI$57 -> 0 | CJ56: ='UI & Overgenomen Netten'!CJ$57 -> 0 | CK56: ='UI & Overgenomen Netten'!CK$57 -> 0 | CL56: ='UI & Overgenomen Netten'!CL$57 -> 0
E58: Totalen
E59: Investeringsbedrag boekjaar | H59: € | K59: =SUM( K44, K49, K54 ) -> 0 | L59: =SUM( L44, L49, L54 ) -> 0 | M59: 0 | N59: 0 | O59: 0 | P59: 0 | Q59: 0 | R59: 0 | S59: 0 | T59: 0 | U59: 0 | V59: 0 | W59: 0 | X59: 0 | Y59: 0 | Z59: 0 | AA59: 0 | AB59: 0 | AC59: 0 | AD59: 0 | AE59: 0 | AF59: 0 | AG59: 0 | AH59: 0 | AI59: 0 | AJ59: 0 | AK59: 0 | AL59: 0 | AM59: 0 | AN59: 0 | AO59: 0 | AP59: 0 | AQ59: 0 | AR59: 0 | AS59: 0 | AT59: 0 | AU59: 0 | AV59: 0 | AW59: 0 | AX59: 0 | AY59: 0 | AZ59: 0 | BA59: 0 | BB59: 0 | BC59: 0 | BD59: 0 | BE59: 0 | BF59: 0 | BG59: 0 | BH59: 0 | BI59: 0 | BJ59: 0 | BK59: 0 | BL59: 0 | BM59: 0 | BN59: 0 | BO59: 0 | BP59: 0 | BQ59: 0 | BR59: 0 | BS59: 0 | BT59: 0 | BU59: 0 | BV59: 0 | BW59: 0 | BX59: =SUM( BX44, BX49, BX54 ) -> 0 | BY59: 0 | BZ59: 0 | CA59: 0 | CB59: 0 | CC59: 0 | CD59: 0 | CE59: 0 | CF59: 0 | CG59: 0 | CH59: 0 | CI59: 0 | CJ59: 0 | CK59: 0 | CL59: 0
E60: Afschrijvingen | H60: € | K60: =SUM( K45, K50, K55 ) -> 0 | L60: 0 | M60: 0 | N60: 0 | O60: 0 | P60: 0 | Q60: 0 | R60: 0 | S60: 0 | T60: 0 | U60: 0 | V60: 0 | W60: 0 | X60: 0 | Y60: 0 | Z60: 0 | AA60: 0 | AB60: 0 | AC60: 0 | AD60: 0 | AE60: 0 | AF60: 0 | AG60: 0 | AH60: 0 | AI60: 0 | AJ60: 0 | AK60: 0 | AL60: 0 | AM60: 0 | AN60: 0 | AO60: 0 | AP60: 0 | AQ60: 0 | AR60: 0 | AS60: 0 | AT60: 0 | AU60: 0 | AV60: 0 | AW60: 0 | AX60: 0 | AY60: 0 | AZ60: 0 | BA60: 0 | BB60: 0 | BC60: 0 | BD60: 0 | BE60: 0 | BF60: 0 | BG60: 0 | BH60: 0 | BI60: 0 | BJ60: 0 | BK60: 0 | BL60: 0 | BM60: 0 | BN60: 0 | BO60: 0 | BP60: 0 | BQ60: 0 | BR60: 0 | BS60: 0 | BT60: 0 | BU60: 0 | BV60: 0 | BW60: 0 | BX60: 0 | BY60: 0 | BZ60: 0 | CA60: 0 | CB60: 0 | CC60: 0 | CD60: 0 | CE60: 0 | CF60: 0 | CG60: 0 | CH60: 0 | CI60: 0 | CJ60: 0 | CK60: 0 | CL60: 0
E61: Boekwaarde | H61: € | K61: 0 | L61: =SUM( L46, L51, L56 ) -> 0 | M61: 0 | N61: 0 | O61: 0 | P61: 0 | Q61: 0 | R61: 0 | S61: 0 | T61: 0 | U61: 0 | V61: 0 | W61: 0 | X61: 0 | Y61: 0 | Z61: 0 | AA61: 0 | AB61: 0 | AC61: 0 | AD61: 0 | AE61: 0 | AF61: 0 | AG61: 0 | AH61: 0 | AI61: 0 | AJ61: 0 | AK61: 0 | AL61: 0 | AM61: 0 | AN61: 0 | AO61: 0 | AP61: 0 | AQ61: 0 | AR61: 0 | AS61: 0 | AT61: 0 | AU61: 0 | AV61: 0 | AW61: 0 | AX61: 0 | AY61: 0 | AZ61: 0 | BA61: 0 | BB61: 0 | BC61: 0 | BD61: 0 | BE61: 0 | BF61: 0 | BG61: 0 | BH61: 0 | BI61: 0 | BJ61: 0 | BK61: 0 | BL61: 0 | BM61: 0 | BN61: 0 | BO61: 0 | BP61: 0 | BQ61: 0 | BR61: 0 | BS61: 0 | BT61: 0 | BU61: 0 | BV61: 0 | BW61: 0 | BX61: 0 | BY61: 0 | BZ61: 0 | CA61: 0 | CB61: 0 | CC61: 0 | CD61: 0 | CE61: 0 | CF61: 0 | CG61: 0 | CH61: 0 | CI61: 0 | CJ61: 0 | CK61: 0 | CL61: 0
D85: * | E85: ="Waardes vanaf " & InpC!G74 & " zijn niet geïndexeerd" -> Waardes vanaf 2050 zijn niet geïndexeerd
E86: Alle bedragen in dit dashboard zijn in het prijspeil van het genoemde jaar en boekwaardes per ultimo boekjaar.
E87: ="Desinvesteringen en waardeverminderingen worden bovenstaand niet gerapporteerd, maar zijn wel meegenomen in berekeningen t/m " & InpC!G41 & "." -> Desinvesteringen en waardeverminderingen worden bovenstaand niet gerapporteerd, maar zijn wel meegenomen in berekeningen t/m 2009.

Sheet Dashboard Boekjaar
L2: Kapitaalkosten Regionale Netwerkbeheerders Gas
L5: Boekjaar: | N5: 2012
B9: Overzicht Geïndexeerde Activa Waarde Netbeheerders Voor Geselecteerd Boekjaar*
E11: TRANSPORTDIENST - Boekjaar: 2012 | K11: Sector Totaal | L11: Cogas | M11: Delta | N11: Delta EHD | O11: Endinet | P11: Obragas | Q11: Enexis | R11: Intergas | S11: Enexis EHD | T11: Liander | U11: Haarlemmer | V11: Rendo | W11: Stedin | X11: Westland | Y11: Zebra EHD
E12: Start-GAW (excl. bijzonderheden)
E13: =Indexatie!E$347 -> Investeringsbedrag boekjaar Start-GAW | J13: € | K13: =SUM( L13:BI13 ) -> 0 | L13: 0 | M13: 0 | N13: 0 | O13: 0 | P13: 0 | Q13: 0 | R13: 0 | S13: 0 | T13: 0 | U13: 0 | V13: 0 | W13: 0 | X13: 0 | Y13: 0
E14: =Indexatie!E$283 -> Afschrijvingen Start-GAW | J14: € | K14: =SUM( L14:BI14 ) -> 189029238.8 | L14: 3367575.594 | M14: 3602004.614 | N14: 269871.6674 | O14: 6443126.049 | P14: 6120198.104 | Q14: 35373240.7 | R14: 6642453.818 | S14: 7847.50363 | T14: 59830583.56 | U14: 1096998.205 | V14: 5430145.342 | W14: 54099910.96 | X14: 5645911.424 | Y14: 1099371.244
E15: =Indexatie!E$243 -> Boekwaarde Start-GAW | J15: € | K15: =SUM( L15:BI15 ) -> 4630670962 | L15: 74423420.63 | M15: 88969513.96 | N15: 10603305.53 | O15: 159789526 | P15: 149944853.5 | Q15: 880793693.4 | R15: 190638424.6 | S15: 319943.7667 | T15: 1543629056 | U15: 25560058.17 | V15: 128151430.1 | W15: 1229848960 | X15: 106143134.8 | Y15: 41855641.07
E17: Nieuwe investeringen (excl. bijzonderheden)
E18: =Indexatie!E$336 -> Investeringsbedrag boekjaar | J18: € | K18: =SUM( L18:BI18 ) -> 259290855.2 | L18: 3440115 | M18: 4727088 | N18: 0 | O18: 6234415.273 | P18: 0 | Q18: 91268887 | R18: 0 | S18: 0 | T18: 84360196.43 | U18: 0 | V18: 3723813 | W18: 61809884.57 | X18: 3672995.915 | Y18: 53460
E19: =Indexatie!E$299 -> Afschrijvingen | J19: € | K19: =SUM( L19:BI19 ) -> 39140800.73 | L19: 383916.6178 | M19: 1288005.985 | N19: 0 | O19: 884915.9416 | P19: 652188.6328 | Q19: 18105261.59 | R19: 709591.9915 | S19: 0 | T19: 6533264.695 | U19: 251853.3574 | V19: 1553592.242 | W19: 7895178.663 | X19: 758514.2761 | Y19: 124516.7401
E20: =Indexatie!E$259 -> Boekwaarde | J20: € | K20: =SUM( L20:BI20 ) -> 1168492879 | L20: 16804580.69 | M20: 25000671.3 | N20: 0 | O20: 17858886.06 | P20: 5956748.269 | Q20: 385192517.1 | R20: 9337913.34 | S20: 0 | T20: 311957798.3 | U20: 2039542.384 | V20: 25519429.87 | W20: 347926716.8 | X20: 20384213.45 | Y20: 513861.6911
E22: Bijzonderheid: precario
E23: =GAW!E$95 -> Investeringsbedrag boekjaar precario | J23: € | K23: =SUM( L23:BI23 ) -> 0 | L23: 0 | M23: 0 | N23: 0 | O23: 0 | P23: 0 | Q23: 0 | R23: 0 | S23: 0 | T23: 0 | U23: 0 | V23: 0 | W23: 0 | X23: 0 | Y23: 0
E24: =Indexatie!E$27 -> Afschrijvingen precario | J24: € | K24: =SUM( L24:BI24 ) -> 2481350.997 | L24: 0 | M24: 0 | N24: 0 | O24: 0 | P24: 0 | Q24: 0 | R24: 831738.9268 | S24: 0 | T24: 0 | U24: 0 | V24: 1649612.07 | W24: 0 | X24: 0 | Y24: 0
E25: =Indexatie!E$23 -> Boekwaarde precario | J25: € | K25: =SUM( L25:BI25 ) -> 18215061.69 | L25: -5.344803974e-11 | M25: 0 | N25: 0 | O25: 0 | P25: 0 | Q25: 0 | R25: 8317389.268 | S25: 0 | T25: 0 | U25: 0 | V25: 9897672.422 | W25: 0 | X25: 0 | Y25: 0
E27: Bijzonderheid: UI's
E28: ='UI & Overgenomen Netten'!E$40 -> Investeringsbedrag UI's | J28: € | K28: =SUM( L28:BI28 ) -> 0 | L28: 0 | M28: 0 | N28: 0 | O28: 0 | P28: 0 | Q28: 0 | R28: 0 | S28: 0 | T28: 0 | U28: 0 | V28: 0 | W28: 0 | X28: 0 | Y28: 0
E29: ='UI & Overgenomen Netten'!E$30 -> Afschrijvingen UI's | J29: € | K29: =SUM( L29:BI29 ) -> 0 | L29: 0 | M29: 0 | N29: 0 | O29: 0 | P29: 0 | Q29: 0 | R29: 0 | S29: 0 | T29: 0 | U29: 0 | V29: 0 | W29: 0 | X29: 0 | Y29: 0
E30: ='UI & Overgenomen Netten'!E$20 -> Boekwaarde UI's | J30: € | K30: =SUM( L30:BI30 ) -> 0 | L30: 0 | M30: 0 | N30: 0 | O30: 0 | P30: 0 | Q30: 0 | R30: 0 | S30: 0 | T30: 0 | U30: 0 | V30: 0 | W30: 0 | X30: 0 | Y30: 0
E32: Bijzonderheid: overgenomen netten
E33: ='UI & Overgenomen Netten'!E$45 -> Investeringsbedrag overgenomen netten | J33: € | K33: =SUM( L33:BI33 ) -> 0 | L33: 0 | M33: 0 | N33: 0 | O33: 0 | P33: 0 | Q33: 0 | R33: 0 | S33: 0 | T33: 0 | U33: 0 | V33: 0 | W33: 0 | X33: 0 | Y33: 0
E34: ='UI & Overgenomen Netten'!E$35 -> Afschrijvingen overgenomen netten | J34: € | K34: =SUM( L34:BI34 ) -> 0 | L34: 0 | M34: 0 | N34: 0 | O34: 0 | P34: 0 | Q34: 0 | R34: 0 | S34: 0 | T34: 0 | U34: 0 | V34: 0 | W34: 0 | X34: 0 | Y34: 0
E35: ='UI & Overgenomen Netten'!E$25 -> Boekwaarde overgenomen netten | J35: € | K35: =SUM( L35:BI35 ) -> 0 | L35: 0 | M35: 0 | N35: 0 | O35: 0 | P35: 0 | Q35: 0 | R35: 0 | S35: 0 | T35: 0 | U35: 0 | V35: 0 | W35: 0 | X35: 0 | Y35: 0
E37: Totalen
E38: Investeringsbedrag boekjaar | J38: € | K38: =SUM( L38:BI38 ) -> 259290855.2 | L38: 3440115 | M38: 4727088 | N38: 0 | O38: 6234415.273 | P38: 0 | Q38: 91268887 | R38: 0 | S38: 0 | T38: 84360196.43 | U38: 0 | V38: 3723813 | W38: 61809884.57 | X38: 3672995.915 | Y38: 53460
E39: Afschrijvingen | J39: € | K39: =SUM( L39:BI39 ) -> 230651390.5 | L39: 3751492.212 | M39: 4890010.599 | N39: 269871.6674 | O39: 7328041.991 | P39: 6772386.737 | Q39: 53478502.28 | R39: 8183784.736 | S39: 7847.50363 | T39: 66363848.26 | U39: 1348851.562 | V39: 8633349.655 | W39: 61995089.63 | X39: 6404425.7 | Y39: 1223887.984
E40: Boekwaarde | J40: € | K40: =SUM( L40:BI40 ) -> 5817378903 | L40: 91228001.32 | M40: 113970185.3 | N40: 10603305.53 | O40: 177648412.1 | P40: 155901601.8 | Q40: 1265986210 | R40: 208293727.2 | S40: 319943.7667 | T40: 1855586854 | U40: 27599600.55 | V40: 163568532.4 | W40: 1577775677 | X40: 126527348.2 | Y40: 42369502.76
E42: AANSLUITDIENST - Boekjaar: 2012 | K42: =K11 -> Sector Totaal | L42: Cogas | M42: Delta | N42: Delta EHD | O42: Endinet | P42: Obragas | Q42: Enexis | R42: Intergas | S42: Enexis EHD | T42: Liander | U42: Haarlemmer | V42: Rendo | W42: Stedin | X42: Westland | Y42: Zebra EHD
E43: Start-GAW (excl. bijzonderheden)
E44: =GAW!E$6132 -> Investeringsbedrag boekjaar Start-GAW | J44: € | K44: =SUM( L44:BI44 ) -> 0 | L44: 0 | M44: 0 | N44: 0 | O44: 0 | P44: 0 | Q44: 0 | R44: 0 | S44: 0 | T44: 0 | U44: 0 | V44: 0 | W44: 0 | X44: 0 | Y44: 0
E45: =Indexatie!E$376 -> Afschrijvingen Start-GAW | J45: € | K45: =SUM( L45:BI45 ) -> 21851604.48 | L45: 378113.6446 | M45: 633871.3652 | N45: 0 | O45: 450580.0386 | P45: 403309.755 | Q45: 4905302.065 | R45: 529210.0689 | S45: 0 | T45: 3848278.257 | U45: 137614.6805 | V45: 405267.0303 | W45: 10064933.94 | X45: 95123.63434 | Y45: 0
E46: =Indexatie!E$372 -> Boekwaarde Start-GAW | J46: € | K46: =SUM( L46:BI46 ) -> 466199428.1 | L46: 8318500.181 | M46: 12043555.94 | N46: 0 | O46: 8561020.733 | P46: 7259575.591 | Q46: 107916645.4 | R46: 12701041.65 | S46: 0 | T46: 65420730.37 | U46: 2477064.249 | V46: 8105340.606 | W46: 231493480.7 | X46: 1902472.687 | Y46: 0
E48: Nieuwe investeringen (excl. bijzonderheden)
E49: =Indexatie!E519 -> Investeringsbedrag boekjaar | J49: € | K49: =SUM( L49:BI49 ) -> 151258158.1 | L49: 2314237 | M49: 692301 | N49: 0 | O49: 1119274.553 | P49: 0 | Q49: 30562997 | R49: 0 | S49: 0 | T49: 66372065.72 | U49: 0 | V49: 820448.76 | W49: 49471670.14 | X49: -94836.05599 | Y49: 0
E50: =Indexatie!E505 -> Afschrijvingen | J50: € | K50: =SUM( L50:BI50 ) -> 9927658.091 | L50: 192480.1208 | M50: 138312.4027 | N50: 0 | O50: 46018.19023 | P50: 3386.640694 | Q50: 2444540.685 | R50: 132908.6379 | S50: 0 | T50: 3334754.102 | U50: 9194.802171 | V50: 112518.5499 | W50: 3522039.881 | X50: -8495.921323 | Y50: 0
E51: =Indexatie!E482 -> Boekwaarde | J51: € | K51: =SUM( L51:BI51 ) -> 442629902.6 | L51: 8217224.792 | M51: 5424734.011 | N51: 0 | O51: 2289746.944 | P51: 124522.5893 | Q51: 105433819.4 | R51: 4862549.285 | S51: 0 | T51: 156881080.1 | U51: 332516.1652 | V51: 4514340.791 | W51: 154924213.9 | X51: -374845.3091 | Y51: 0
E53: Bijzonderheid: overgenomen netten
E54: ='UI & Overgenomen Netten'!E$77 -> Investeringsbedrag overgenomen netten | J54: € | K54: =SUM( L54:BI54 ) -> 0 | L54: 0 | M54: 0 | N54: 0 | O54: 0 | P54: 0 | Q54: 0 | R54: 0 | S54: 0 | T54: 0 | U54: 0 | V54: 0 | W54: 0 | X54: 0 | Y54: 0
E55: ='UI & Overgenomen Netten'!E$67 -> Afschrijvingen overgenomen netten | J55: € | K55: =SUM( L55:BI55 ) -> 0 | L55: 0 | M55: 0 | N55: 0 | O55: 0 | P55: 0 | Q55: 0 | R55: 0 | S55: 0 | T55: 0 | U55: 0 | V55: 0 | W55: 0 | X55: 0 | Y55: 0
E56: ='UI & Overgenomen Netten'!E$57 -> Boekwaarde overgenomen netten | J56: € | K56: =SUM( L56:BI56 ) -> 0 | L56: 0 | M56: 0 | N56: 0 | O56: 0 | P56: 0 | Q56: 0 | R56: 0 | S56: 0 | T56: 0 | U56: 0 | V56: 0 | W56: 0 | X56: 0 | Y56: 0
E58: Totalen
E59: Investeringsbedrag boekjaar | J59: € | K59: =SUM( L59:BI59 ) -> 151258158.1 | L59: 2314237 | M59: 692301 | N59: 0 | O59: 1119274.553 | P59: 0 | Q59: 30562997 | R59: 0 | S59: 0 | T59: 66372065.72 | U59: 0 | V59: 820448.76 | W59: 49471670.14 | X59: -94836.05599 | Y59: 0
E60: Afschrijvingen | J60: € | K60: =SUM( L60:BI60 ) -> 31779262.57 | L60: 570593.7654 | M60: 772183.7679 | N60: 0 | O60: 496598.2288 | P60: 406696.3957 | Q60: 7349842.75 | R60: 662118.7068 | S60: 0 | T60: 7183032.36 | U60: 146809.4827 | V60: 517785.5802 | W60: 13586973.82 | X60: 86627.71302 | Y60: 0
E61: Boekwaarde | J61: € | K61: =SUM( L61:BI61 ) -> 908829330.8 | L61: 16535724.97 | M61: 17468289.95 | N61: 0 | O61: 10850767.68 | P61: 7384098.18 | Q61: 213350464.8 | R61: 17563590.94 | S61: 0 | T61: 222301810.5 | U61: 2809580.414 | V61: 12619681.4 | W61: 386417694.6 | X61: 1527627.378 | Y61: 0
D64: * | E64: ="Waardes vanaf " & InpC!G53 & " zijn niet geïndexeerd" -> Waardes vanaf zijn niet geïndexeerd
E65: Alle bedragen in dit dashboard zijn in het prijspeil van het genoemde jaar en boekwaardes per ultimo boekjaar.
E66: ="Desinvesteringen en waardeverminderingen worden bovenstaand niet gerapporteerd, maar zijn wel meegenomen in berekeningen t/m " & InpC!G20 & "." -> Desinvesteringen en waardeverminderingen worden bovenstaand niet gerapporteerd, maar zijn wel meegenomen in berekeningen t/m 2006.

Sheet InpC
A1: =RIGHT(CELL("filename", A1), LEN(CELL("filename", A1)) - SEARCH("]", CELL("filename", A1))) -> InpC
E2: =Tijd!E$2 -> Actieve netbeheerder | G2: =Tijd!G$2 -> Zebra EHD
E3: =Tijd!E$3 -> Actieve inputsheet | G3: =Tijd!G$3 -> InpZebra EHD
E4: =Tijd!E$4 -> Modelperiode | G4: =Check!G4 -> 0 | H4: =Check!H4 -> errors
E5: =Tijd!E$5 -> Looptijd vs Uitlooptijd | G5: =Check!G5 -> 0 | H5: =Check!H5 -> waarschuwingen
E6: =Tijd!E$10 -> Model kolom teller | F6: Bron | G6: Constante | H6: Eenheid | I6: Totaal
A8: ALGEMEEN
E9: Actieve netbeheerder | G9: ='Dashboard Netbeheerder'!N4 -> Zebra EHD | H9: beheerder
E10: Indirect column key (language switch) | F10: macro | G10: K | H10: letter
A12: TIMING
E13: Start datum | G13: 2004 | H13: jaartal
E14: Jaren per periode | G14: 1 | H14: jaren
E15: Looptijd | G15: 50 | H15: jaar
E17: [Rij niet verwijderen]
E18: Beginjaar investeringen 2004 | G18: 2004 | H18: jaartal
E19: Beginjaar investeringen 2005 | G19: 2005 | H19: jaartal
E20: Beginjaar investeringen 2006 | G20: 2006 | H20: jaartal
E21: Beginjaar investeringen 2007 | G21: 2007 | H21: jaartal
E22: Beginjaar investeringen 2008 | G22: 2008 | H22: jaartal
E23: Beginjaar investeringen 2009 | G23: 2009 | H23: jaartal
E24: Beginjaar investeringen 2010 | G24: 2010 | H24: jaartal
E25: Beginjaar investeringen 2011 | G25: 2011 | H25: jaartal
E26: Beginjaar investeringen 2012 | G26: 2012 | H26: jaartal
E27: Beginjaar investeringen 2013 | G27: 2013 | H27: jaartal
E28: Beginjaar investeringen 2014 | G28: 2014 | H28: jaartal
E29: Beginjaar investeringen 2015 | G29: 2015 | H29: jaartal
E30: Beginjaar investeringen 2016 | G30: 2016 | H30: jaartal
E31: Beginjaar investeringen 2017 | G31: 2017 | H31: jaartal
E32: Beginjaar investeringen 2018 | G32: 2018 | H32: jaartal
E33: Beginjaar investeringen 2019 | G33: 2019 | H33: jaartal
E34: Beginjaar investeringen 2020 | G34: 2020 | H34: jaartal
E35: [Rij niet verwijderen]
A38: AFSCHRIJVINGSTERMIJNEN
C39: Algemeen
E40: Handmatig afschrijven t/m | G40: 2006 | H40: jaartal
E41: Bijz. waardeverminderingen en desinvesteringen t/m | G41: 2009 | H41: jaartal
C43: Investeringsjaren 2001-2050
E44: Afschrijvingsduur 55 jaar | G44: 55 | H44: jaar
E45: Afschrijvingsduur 45 jaar | G45: 45 | H45: jaar
E46: Afschrijvingsduur 39 jaar | G46: 39 | H46: jaar
E47: Afschrijvingsduur 30 jaar | G47: 30 | H47: jaar
E48: Afschrijvingsduur 25 jaar | G48: 25 | H48: jaar
E49: Afschrijvingsduur 20 jaar | G49: 20 | H49: jaar
E50: Afschrijvingsduur 10 jaar | G50: 10 | H50: jaar
E51: Afschrijvingsduur 5 jaar | G51: 5 | H51: jaar
E52: Afschrijvingsduur 3 jaar | G52: 3 | H52: jaar
A55: NETWERKBEHEERDERS
E56: [Rij niet verwijderen]
E57: Netbeheerder 1 | G57: Cogas | H57: beheerder
E58: Netbeheerder 2 | G58: Delta | H58: beheerder
E59: Netbeheerder 3 | G59: Delta EHD | H59: beheerder
E60: Netbeheerder 4 | G60: Endinet | H60: beheerder
E61: Netbeheerder 5 | G61: Obragas | H61: beheerder
E62: Netbeheerder 6 | G62: Enexis | H62: beheerder
E63: Netbeheerder 7 | G63: Intergas | H63: beheerder
E64: Netbeheerder 8 | G64: Enexis EHD | H64: beheerder
E65: Netbeheerder 9 | G65: Liander | H65: beheerder
E66: Netbeheerder 10 | G66: Haarlemmer | H66: beheerder
E67: Netbeheerder 11 | G67: Rendo | H67: beheerder
E68: Netbeheerder 12 | G68: Stedin | H68: beheerder
E69: Netbeheerder 13 | G69: Westland | H69: beheerder
E70: Netbeheerder 14 | G70: Zebra EHD | H70: beheerder
E71: [Rij niet verwijderen]
A73: CPI
E74: Indexeren t/m | G74: 2050 | H74: jaartal
E76: CPI 2001 | F76: CBS | G76: 0.025 | H76: %
E77: CPI 2002 | F77: CBS | G77: 0.047 | H77: %
E78: CPI 2003 | F78: CBS | G78: 0.033 | H78: %
E79: CPI 2004 | F79: CBS | G79: 0.021 | H79: %
E80: CPI 2005 | F80: CBS | G80: 0.011 | H80: %
E81: CPI 2006 | F81: CBS | G81: 0.018 | H81: %
E82: CPI 2007 | F82: CBS | G82: 0.014 | H82: %
E83: CPI 2008 | F83: CBS | G83: 0.011 | H83: %
E84: CPI 2009 | F84: CBS | G84: 0.032 | H84: %
E85: CPI 2010 | F85: CBS | G85: 0.003 | H85: %
E86: CPI 2011 | F86: CBS | G86: 0.015 | H86: %
E87: CPI 2012 | F87: CBS | G87: 0.026 | H87: %
E88: CPI 2013 | F88: CBS | G88: 0.023 | H88: %
E89: CPI 2014 | F89: CBS | H89: %
E90: CPI 2015 | F90: CBS | H90: %
E91: CPI 2016 | F91: CBS | H91: %
E92: CPI 2017 | F92: CBS | H92: %
E93: CPI 2018 | F93: CBS | H93: %
E94: CPI 2019 | F94: CBS | H94: %
E95: CPI 2020 | F95: CBS | H95: %
A97: MODELMATIG
E98: Check Tolerance | G98: 0.0001 | H98: € | I98: Chk_Tol

Sheet InpCogas
A1: =RIGHT(CELL("filename", A1), LEN(CELL("filename", A1)) - SEARCH("]", CELL("filename", A1))) -> InpCogas
E2: =Tijd!E$2 -> Actieve netbeheerder | G2: =Tijd!G$2 -> Zebra EHD
E3: =Tijd!E$3 -> Actieve inputsheet | G3: =Tijd!G$3 -> InpZebra EHD
E4: =Tijd!E$4 -> Modelperiode | G4: =Check!G4 -> 0 | H4: =Check!H4 -> errors | K4: =Tijd!K$4 -> 2004 | L4: =Tijd!L$4 -> 2005 | M4: =Tijd!M$4 -> 2006 | N4: =Tijd!N$4 -> 2007 | O4: =Tijd!O$4 -> 2008 | P4: =Tijd!P$4 -> 2009 | Q4: =Tijd!Q$4 -> 2010 | R4: =Tijd!R$4 -> 2011 | S4: =Tijd!S$4 -> 2012 | T4: =Tijd!T$4 -> 2013 | U4: =Tijd!U$4 -> 2014 | V4: =Tijd!V$4 -> 2015 | W4: =Tijd!W$4 -> 2016 | X4: =Tijd!X$4 -> 2017 | Y4: =Tijd!Y$4 -> 2018 | Z4: =Tijd!Z$4 -> 2019 | AA4: =Tijd!AA$4 -> 2020 | AB4: =Tijd!AB$4 -> 2021 | AC4: =Tijd!AC$4 -> 2022 | AD4: =Tijd!AD$4 -> 2023 | AE4: =Tijd!AE$4 -> 2024 | AF4: =Tijd!AF$4 -> 2025 | AG4: =Tijd!AG$4 -> 2026 | AH4: =Tijd!AH$4 -> 2027 | AI4: =Tijd!AI$4 -> 2028 | AJ4: =Tijd!AJ$4 -> 2029 | AK4: =Tijd!AK$4 -> 2030 | AL4: =Tijd!AL$4 -> 2031 | AM4: =Tijd!AM$4 -> 2032 | AN4: =Tijd!AN$4 -> 2033 | AO4: =Tijd!AO$4 -> 2034 | AP4: =Tijd!AP$4 -> 2035 | AQ4: =Tijd!AQ$4 -> 2036 | AR4: =Tijd!AR$4 -> 2037 | AS4: =Tijd!AS$4 -> 2038 | AT4: =Tijd!AT$4 -> 2039 | AU4: =Tijd!AU$4 -> 2040 | AV4: =Tijd!AV$4 -> 2041 | AW4: =Tijd!AW$4 -> 2042 | AX4: =Tijd!AX$4 -> 2043 | AY4: =Tijd!AY$4 -> 2044 | AZ4: =Tijd!AZ$4 -> 2045 | BA4: =Tijd!BA$4 -> 2046 | BB4: =Tijd!BB$4 -> 2047 | BC4: =Tijd!BC$4 -> 2048 | BD4: =Tijd!BD$4 -> 2049 | BE4: =Tijd!BE$4 -> 2050 | BF4: =Tijd!BF$4 -> 2051 | BG4: =Tijd!BG$4 -> 2052 | BH4: =Tijd!BH$4 -> 2053 | BI4: =Tijd!BI$4 -> 2054 | BJ4: =Tijd!BJ$4 -> 2055 | BK4: =Tijd!BK$4 -> 2056 | BL4: =Tijd!BL$4 -> 2057 | BM4: =Tijd!BM$4 -> 2058 | BN4: =Tijd!BN$4 -> 2059 | BO4: =Tijd!BO$4 -> 2060 | BP4: =Tijd!BP$4 -> 2061 | BQ4: =Tijd!BQ$4 -> 2062 | BR4: =Tijd!BR$4 -> 2063 | BS4: =Tijd!BS$4 -> 2064 | BT4: =Tijd!BT$4 -> 2065 | BU4: =Tijd!BU$4 -> 2066 | BV4: =Tijd!BV$4 -> 2067 | BW4: =Tijd!BW$4 -> 2068 | BX4: =Tijd!BX$4 -> 2069 | BY4: =Tijd!BY$4 -> 2070 | BZ4: =Tijd!BZ$4 -> 2071 | CA4: =Tijd!CA$4 -> 2072 | CB4: =Tijd!CB$4 -> 2073 | CC4: =Tijd!CC$4 -> 2074 | CD4: =Tijd!CD$4 -> 2075 | CE4: =Tijd!CE$4 -> 2076 | CF4: =Tijd!CF$4 -> 2077 | CG4: =Tijd!CG$4 -> 2078 | CH4: =Tijd!CH$4 -> 2079 | CI4: =Tijd!CI$4 -> 2080 | CJ4: =Tijd!CJ$4 -> 2081 | CK4: =Tijd!CK$4 -> 2082 | CL4: =Tijd!CL$4 -> 2083 | CM4: =Tijd!CM$4 -> 2084 | CN4: =Tijd!CN$4 -> 2085 | CO4: =Tijd!CO$4 -> 2086 | CP4: =Tijd!CP$4 -> 2087 | CQ4: =Tijd!CQ$4 -> 2088 | CR4: =Tijd!CR$4 -> 2089 | CS4: =Tijd!CS$4 -> 2090 | CT4: =Tijd!CT$4 -> 2091 | CU4: =Tijd!CU$4 -> 2092 | CV4: =Tijd!CV$4 -> 2093 | CW4: =Tijd!CW$4 -> 2094 | CX4: =Tijd!CX$4 -> 2095 | CY4: =Tijd!CY$4 -> 2096 | CZ4: =Tijd!CZ$4 -> 2097 | DA4: =Tijd!DA$4 -> 2098 | DB4: =Tijd!DB$4 -> 2099 | DC4: =Tijd!DC$4 -> 2100 | DD4: =Tijd!DD$4 -> 2101 | DE4: =Tijd!DE$4 -> 2102 | DF4: =Tijd!DF$4 -> 2103
E5: =Tijd!E$5 -> Looptijd vs Uitlooptijd | G5: =Check!G5 -> 0 | H5: =Check!H5 -> waarschuwingen | K5: =Tijd!K$5 -> Looptijd | L5: =Tijd!L$5 -> Looptijd | M5: =Tijd!M$5 -> Looptijd | N5: =Tijd!N$5 -> Looptijd | O5: =Tijd!O$5 -> Looptijd | P5: =Tijd!P$5 -> Looptijd | Q5: =Tijd!Q$5 -> Looptijd | R5: =Tijd!R$5 -> Looptijd | S5: =Tijd!S$5 -> Looptijd | T5: =Tijd!T$5 -> Looptijd | U5: =Tijd!U$5 -> Looptijd | V5: =Tijd!V$5 -> Looptijd | W5: =Tijd!W$5 -> Looptijd | X5: =Tijd!X$5 -> Looptijd | Y5: =Tijd!Y$5 -> Looptijd | Z5: =Tijd!Z$5 -> Looptijd | AA5: =Tijd!AA$5 -> Looptijd | AB5: =Tijd!AB$5 -> Looptijd | AC5: =Tijd!AC$5 -> Looptijd | AD5: =Tijd!AD$5 -> Looptijd | AE5: =Tijd!AE$5 -> Looptijd | AF5: =Tijd!AF$5 -> Looptijd | AG5: =Tijd!AG$5 -> Looptijd | AH5: =Tijd!AH$5 -> Looptijd | AI5: =Tijd!AI$5 -> Looptijd | AJ5: =Tijd!AJ$5 -> Looptijd | AK5: =Tijd!AK$5 -> Looptijd | AL5: =Tijd!AL$5 -> Looptijd | AM5: =Tijd!AM$5 -> Looptijd | AN5: =Tijd!AN$5 -> Looptijd | AO5: =Tijd!AO$5 -> Looptijd | AP5: =Tijd!AP$5 -> Looptijd | AQ5: =Tijd!AQ$5 -> Looptijd | AR5: =Tijd!AR$5 -> Looptijd | AS5: =Tijd!AS$5 -> Looptijd | AT5: =Tijd!AT$5 -> Looptijd | AU5: =Tijd!AU$5 -> Looptijd | AV5: =Tijd!AV$5 -> Looptijd | AW5: =Tijd!AW$5 -> Looptijd | AX5: =Tijd!AX$5 -> Looptijd | AY5: =Tijd!AY$5 -> Looptijd | AZ5: =Tijd!AZ$5 -> Looptijd | BA5: =Tijd!BA$5 -> Looptijd | BB5: =Tijd!BB$5 -> Looptijd | BC5: =Tijd!BC$5 -> Looptijd | BD5: =Tijd!BD$5 -> Looptijd | BE5: =Tijd!BE$5 -> Looptijd | BF5: =Tijd!BF$5 -> Looptijd | BG5: =Tijd!BG$5 -> Looptijd | BH5: =Tijd!BH$5 -> Looptijd | BI5: =Tijd!BI$5 -> Looptijd | BJ5: =Tijd!BJ$5 -> Uitlooptijd | BK5: =Tijd!BK$5 -> Uitlooptijd | BL5: =Tijd!BL$5 -> Uitlooptijd | BM5: =Tijd!BM$5 -> Uitlooptijd | BN5: =Tijd!BN$5 -> Uitlooptijd | BO5: =Tijd!BO$5 -> Uitlooptijd | BP5: =Tijd!BP$5 -> Uitlooptijd | BQ5: =Tijd!BQ$5 -> Uitlooptijd | BR5: =Tijd!BR$5 -> Uitlooptijd | BS5: =Tijd!BS$5 -> Uitlooptijd | BT5: =Tijd!BT$5 -> Uitlooptijd | BU5: =Tijd!BU$5 -> Uitlooptijd | BV5: =Tijd!BV$5 -> Uitlooptijd | BW5: =Tijd!BW$5 -> Uitlooptijd | BX5: =Tijd!BX$5 -> Uitlooptijd | BY5: =Tijd!BY$5 -> Uitlooptijd | BZ5: =Tijd!BZ$5 -> Uitlooptijd | CA5: =Tijd!CA$5 -> Uitlooptijd | CB5: =Tijd!CB$5 -> Uitlooptijd | CC5: =Tijd!CC$5 -> Uitlooptijd | CD5: =Tijd!CD$5 -> Uitlooptijd | CE5: =Tijd!CE$5 -> Uitlooptijd | CF5: =Tijd!CF$5 -> Uitlooptijd | CG5: =Tijd!CG$5 -> Uitlooptijd | CH5: =Tijd!CH$5 -> Uitlooptijd | CI5: =Tijd!CI$5 -> Uitlooptijd | CJ5: =Tijd!CJ$5 -> Uitlooptijd | CK5: =Tijd!CK$5 -> Uitlooptijd | CL5: =Tijd!CL$5 -> Uitlooptijd | CM5: =Tijd!CM$5 -> Uitlooptijd | CN5: =Tijd!CN$5 -> Uitlooptijd | CO5: =Tijd!CO$5 -> Uitlooptijd | CP5: =Tijd!CP$5 -> Uitlooptijd | CQ5: =Tijd!CQ$5 -> Uitlooptijd | CR5: =Tijd!CR$5 -> Uitlooptijd | CS5: =Tijd!CS$5 -> Uitlooptijd | CT5: =Tijd!CT$5 -> Uitlooptijd | CU5: =Tijd!CU$5 -> Uitlooptijd | CV5: =Tijd!CV$5 -> Uitlooptijd | CW5: =Tijd!CW$5 -> Uitlooptijd | CX5: =Tijd!CX$5 -> Uitlooptijd | CY5: =Tijd!CY$5 -> Uitlooptijd | CZ5: =Tijd!CZ$5 -> Uitlooptijd | DA5: =Tijd!DA$5 -> Uitlooptijd | DB5: =Tijd!DB$5 -> Uitlooptijd | DC5: =Tijd!DC$5 -> Uitlooptijd | DD5: =Tijd!DD$5 -> Uitlooptijd | DE5: =Tijd!DE$5 -> Uitlooptijd | DF5: =Tijd!DF$5 -> Uitlooptijd
E6: =Tijd!E$10 -> Model kolom teller | F6: Bron | G6: Constante | H6: Eenheid | I6: Totaal | K6: =Tijd!K$10 -> 1 | L6: =Tijd!L$10 -> 2 | M6: =Tijd!M$10 -> 3 | N6: =Tijd!N$10 -> 4 | O6: =Tijd!O$10 -> 5 | P6: =Tijd!P$10 -> 6 | Q6: =Tijd!Q$10 -> 7 | R6: =Tijd!R$10 -> 8 | S6: =Tijd!S$10 -> 9 | T6: =Tijd!T$10 -> 10 | U6: =Tijd!U$10 -> 11 | V6: =Tijd!V$10 -> 12 | W6: =Tijd!W$10 -> 13 | X6: =Tijd!X$10 -> 14 | Y6: =Tijd!Y$10 -> 15 | Z6: =Tijd!Z$10 -> 16 | AA6: =Tijd!AA$10 -> 17 | AB6: =Tijd!AB$10 -> 18 | AC6: =Tijd!AC$10 -> 19 | AD6: =Tijd!AD$10 -> 20 | AE6: =Tijd!AE$10 -> 21 | AF6: =Tijd!AF$10 -> 22 | AG6: =Tijd!AG$10 -> 23 | AH6: =Tijd!AH$10 -> 24 | AI6: =Tijd!AI$10 -> 25 | AJ6: =Tijd!AJ$10 -> 26 | AK6: =Tijd!AK$10 -> 27 | AL6: =Tijd!AL$10 -> 28 | AM6: =Tijd!AM$10 -> 29 | AN6: =Tijd!AN$10 -> 30 | AO6: =Tijd!AO$10 -> 31 | AP6: =Tijd!AP$10 -> 32 | AQ6: =Tijd!AQ$10 -> 33 | AR6: =Tijd!AR$10 -> 34 | AS6: =Tijd!AS$10 -> 35 | AT6: =Tijd!AT$10 -> 36 | AU6: =Tijd!AU$10 -> 37 | AV6: =Tijd!AV$10 -> 38 | AW6: =Tijd!AW$10 -> 39 | AX6: =Tijd!AX$10 -> 40 | AY6: =Tijd!AY$10 -> 41 | AZ6: =Tijd!AZ$10 -> 42 | BA6: =Tijd!BA$10 -> 43 | BB6: =Tijd!BB$10 -> 44 | BC6: =Tijd!BC$10 -> 45 | BD6: =Tijd!BD$10 -> 46 | BE6: =Tijd!BE$10 -> 47 | BF6: =Tijd!BF$10 -> 48 | BG6: =Tijd!BG$10 -> 49 | BH6: =Tijd!BH$10 -> 50 | BI6: =Tijd!BI$10 -> 51 | BJ6: =Tijd!BJ$10 -> 52 | BK6: =Tijd!BK$10 -> 53 | BL6: =Tijd!BL$10 -> 54 | BM6: =Tijd!BM$10 -> 55 | BN6: =Tijd!BN$10 -> 56 | BO6: =Tijd!BO$10 -> 57 | BP6: =Tijd!BP$10 -> 58 | BQ6: =Tijd!BQ$10 -> 59 | BR6: =Tijd!BR$10 -> 60 | BS6: =Tijd!BS$10 -> 61 | BT6: =Tijd!BT$10 -> 62 | BU6: =Tijd!BU$10 -> 63 | BV6: =Tijd!BV$10 -> 64 | BW6: =Tijd!BW$10 -> 65 | BX6: =Tijd!BX$10 -> 66 | BY6: =Tijd!BY$10 -> 67 | BZ6: =Tijd!BZ$10 -> 68 | CA6: =Tijd!CA$10 -> 69 | CB6: =Tijd!CB$10 -> 70 | CC6: =Tijd!CC$10 -> 71 | CD6: =Tijd!CD$10 -> 72 | CE6: =Tijd!CE$10 -> 73 | CF6: =Tijd!CF$10 -> 74 | CG6: =Tijd!CG$10 -> 75 | CH6: =Tijd!CH$10 -> 76 | CI6: =Tijd!CI$10 -> 77 | CJ6: =Tijd!CJ$10 -> 78 | CK6: =Tijd!CK$10 -> 79 | CL6: =Tijd!CL$10 -> 80 | CM6: =Tijd!CM$10 -> 81 | CN6: =Tijd!CN$10 -> 82 | CO6: =Tijd!CO$10 -> 83 | CP6: =Tijd!CP$10 -> 84 | CQ6: =Tijd!CQ$10 -> 85 | CR6: =Tijd!CR$10 -> 86 | CS6: =Tijd!CS$10 -> 87 | CT6: =Tijd!CT$10 -> 88 | CU6: =Tijd!CU$10 -> 89 | CV6: =Tijd!CV$10 -> 90 | CW6: =Tijd!CW$10 -> 91 | CX6: =Tijd!CX$10 -> 92 | CY6: =Tijd!CY$10 -> 93 | CZ6: =Tijd!CZ$10 -> 94 | DA6: =Tijd!DA$10 -> 95 | DB6: =Tijd!DB$10 -> 96 | DC6: =Tijd!DC$10 -> 97 | DD6: =Tijd!DD$10 -> 98 | DE6: =Tijd!DE$10 -> 99 | DF6: =Tijd!DF$10 -> 100
A9: NETTEN
A11: INVESTERINGSJAAR 2004 - START GAW
E12: Startwaarde GAW incl. afgekochte precario (01-01-2004) | G12: 97044336 | H12: €
E13: Afschrijvingen Start GAW | G13: 3120396.656 | H13: €
E14: Afgekochte precario in Start GAW (01-01-2004) | G14: 4957900 | H14: €
E15: Afschrijvingsbedrag afgekochte precario | G15: 708271.4286 | H15: €
A17: INVESTERINGSJAAR 2004
B19: Investeringen 2004
E20: Aanschafwaarde investeringen 2004 met afschrijvingstermijn 55 | G20: 237680.81 | H20: € | I20: =SUM(K20:DF20) -> 0
E21: Aanschafwaarde investeringen 2004 met afschrijvingstermijn 45 | G21: 707528.16 | H21: € | I21: 0
E22: Aanschafwaarde investeringen 2004 met afschrijvingstermijn 30 | G22: 439387.51 | H22: € | I22: 0
E23: Aanschafwaarde investeringen 2004 met afschrijvingstermijn 25 | H23: € | I23: 0
E24: Aanschafwaarde investeringen 2004 met afschrijvingstermijn 10 | H24: € | I24: 0
E25: Aanschafwaarde investeringen 2004 met afschrijvingstermijn 5 | H25: € | I25: 0
E26: Aanschafwaarde investeringen 2004 zonder afschrijvingstermijn | H26: € | I26: 0
B28: Desinvesteringen 2004
E29: Desinvesteringen 2004 met afschrijvingstermijn 55 | H29: € | I29: =SUM(K29:DF29) -> 0
E30: Desinvesteringen 2004 met afschrijvingstermijn 45 | H30: € | I30: 0
E31: Desinvesteringen 2004 met afschrijvingstermijn 30 | H31: € | I31: 0
E32: Desinvesteringen 2004 met afschrijvingstermijn 25 | H32: € | I32: 0
E33: Desinvesteringen 2004 met afschrijvingstermijn 10 | H33: € | I33: 0
E34: Desinvesteringen 2004 met afschrijvingstermijn 5 | H34: € | I34: 0
E35: Desinvesteringen 2004 zonder afschrijvingstermijn | H35: € | I35: 0
B37: Opgegeven Afschrijvingen 2004
E38: Opgegeven afschrijvingen 2004 met afschrijvingstermijn 55 | H38: € | I38: =SUM(K38:DF38) -> 10157.39 | K38: 2157.39 | L38: 4000 | M38: 4000
E39: Opgegeven afschrijvingen 2004 met afschrijvingstermijn 45 | H39: € | I39: 39861.43 | K39: 7861.43 | L39: 16000 | M39: 16000
E40: Opgegeven afschrijvingen 2004 met afschrijvingstermijn 30 | H40: € | I40: 36367.41 | K40: 6367.41 | L40: 15000 | M40: 15000
E41: Opgegeven afschrijvingen 2004 met afschrijvingstermijn 25 | H41: € | I41: 0
E42: Opgegeven afschrijvingen 2004 met afschrijvingstermijn 10 | H42: € | I42: 0
E43: Opgegeven afschrijvingen 2004 met afschrijvingstermijn 5 | H43: € | I43: 0
B45: Opgegeven Cumulatieve Afschrijvingen Bij Desinvesteringen 2004
E46: Opgegeven c.a.d. 2004 met afschrijvingstermijn 55 | H46: € | I46: =SUM(K46:DF46) -> 0
E47: Opgegeven c.a.d. 2004 met afschrijvingstermijn 45 | H47: € | I47: 0
E48: Opgegeven c.a.d. 2004 met afschrijvingstermijn 30 | H48: € | I48: 0
E49: Opgegeven c.a.d. 2004 met afschrijvingstermijn 25 | H49: € | I49: 0
E50: Opgegeven c.a.d. 2004 met afschrijvingstermijn 10 | H50: € | I50: 0
E51: Opgegeven c.a.d. 2004 met afschrijvingstermijn 5 | H51: € | I51: 0
B53: Bijzondere Waardeverminderingen Op Activa 2004
E54: Bijzondere waardeverminderingen op activa 2004 met afschrijvingstermijn 55 | H54: € | I54: =SUM(K54:DF54) -> 0
E55: Bijzondere waardeverminderingen op activa 2004 met afschrijvingstermijn 45 | H55: € | I55: 0
E56: Bijzondere waardeverminderingen op activa 2004 met afschrijvingstermijn 30 | H56: € | I56: 0
E57: Bijzondere waardeverminderingen op activa 2004 met afschrijvingstermijn 25 | H57: € | I57: 0
E58: Bijzondere waardeverminderingen op activa 2004 met afschrijvingstermijn 10 | H58: € | I58: 0
E59: Bijzondere waardeverminderingen op activa 2004 met afschrijvingstermijn 5 | H59: € | I59: 0
B61: Input Alert
E62: Dummy Beginjaar investeringen
E63: Dummy Modelperiode
E64: Dummy Aantal cellen met onterechte input 2004
E65: Dummy Waarschuwing onterecht ingevulde cellen 2004
A67: INVESTERINGSJAAR 2005
B69: Investeringen 2005
E70: Aanschafwaarde investeringen 2005 met afschrijvingstermijn 55 | G70: -17000 | H70: € | I70: =SUM(K70:DF70) -> 0
E71: Aanschafwaarde investeringen 2005 met afschrijvingstermijn 45 | G71: 381000 | H71: € | I71: 0
E72: Aanschafwaarde investeringen 2005 met afschrijvingstermijn 30 | G72: 111000 | H72: € | I72: 0
E73: Aanschafwaarde investeringen 2005 met afschrijvingstermijn 25 | H73: € | I73: 0
E74: Aanschafwaarde investeringen 2005 met afschrijvingstermijn 10 | H74: € | I74: 0
E75: Aanschafwaarde investeringen 2005 met afschrijvingstermijn 5 | H75: € | I75: 0
E76: Aanschafwaarde investeringen 2005 zonder afschrijvingstermijn | H76: € | I76: 0
B78: Desinvesteringen 2005
E79: Desinvesteringen 2005 met afschrijvingstermijn 55 | H79: € | I79: =SUM(K79:DF79) -> 0
E80: Desinvesteringen 2005 met afschrijvingstermijn 45 | H80: € | I80: 0
E81: Desinvesteringen 2005 met afschrijvingstermijn 30 | H81: € | I81: 0
E82: Desinvesteringen 2005 met afschrijvingstermijn 25 | H82: € | I82: 0
E83: Desinvesteringen 2005 met afschrijvingstermijn 10 | H83: € | I83: 0
E84: Desinvesteringen 2005 met afschrijvingstermijn 5 | H84: € | I84: 0
E85: Desinvesteringen 2005 zonder afschrijvingstermijn | H85: € | I85: 0
B87: Opgegeven Afschrijvingen 2005
E88: Opgegeven afschrijvingen 2005 met afschrijvingstermijn 55 | H88: € | I88: =SUM(L88:DF88) -> 0
E89: Opgegeven afschrijvingen 2005 met afschrijvingstermijn 45 | H89: € | I89: 12000 | L89: 4000 | M89: 8000
E90: Opgegeven afschrijvingen 2005 met afschrijvingstermijn 30 | H90: € | I90: 6000 | L90: 2000 | M90: 4000
E91: Opgegeven afschrijvingen 2005 met afschrijvingstermijn 25 | H91: € | I91: 0
E92: Opgegeven afschrijvingen 2005 met afschrijvingstermijn 10 | H92: € | I92: 0
E93: Opgegeven afschrijvingen 2005 met afschrijvingstermijn 5 | H93: € | I93: 0
B95: Opgegeven Cumulatieve Afschrijvingen Bij Desinvesteringen 2005
E96: Opgegeven c.a.d. 2005 met afschrijvingstermijn 55 | H96: € | I96: =SUM(K96:DF96) -> 0
E97: Opgegeven c.a.d. 2005 met afschrijvingstermijn 45 | H97: € | I97: 0
E98: Opgegeven c.a.d. 2005 met afschrijvingstermijn 30 | H98: € | I98: 0
E99: Opgegeven c.a.d. 2005 met afschrijvingstermijn 25 | H99: € | I99: 0
E100: Opgegeven c.a.d. 2005 met afschrijvingstermijn 10 | H100: € | I100: 0
E101: Opgegeven c.a.d. 2005 met afschrijvingstermijn 5 | H101: € | I101: 0
B103: Bijzondere Waardeverminderingen Op Activa 2005
E104: Bijzondere waardeverminderingen op activa 2005 met afschrijvingstermijn 55 | H104: € | I104: =SUM(K104:DF104) -> 0
E105: Bijzondere waardeverminderingen op activa 2005 met afschrijvingstermijn 45 | H105: € | I105: 0
E106: Bijzondere waardeverminderingen op activa 2005 met afschrijvingstermijn 30 | H106: € | I106: 0
E107: Bijzondere waardeverminderingen op activa 2005 met afschrijvingstermijn 25 | H107: € | I107: 0
E108: Bijzondere waardeverminderingen op activa 2005 met afschrijvingstermijn 10 | H108: € | I108: 0
E109: Bijzondere waardeverminderingen op activa 2005 met afschrijvingstermijn 5 | H109: € | I109: 0
B111: Input Alert
E112: Dummy Beginjaar investeringen
E113: Dummy Modelperiode
E114: Dummy Aantal cellen met onterechte input 2005
E115: Dummy Waarschuwing onterecht ingevulde cellen 2005
A117: INVESTERINGSJAAR 2006 - START GAW voor EHD
E118: Startwaarde GAW voor EHD (01-01-2006) | H118: €
E119: Afschrijvingen Start GAW voor EHD | H119: €
A121: INVESTERINGSJAAR 2006
B123: Investeringen 2006
E124: Aanschafwaarde investeringen 2006 met afschrijvingstermijn 55 | G124: -118000 | H124: € | I124: =SUM(K124:DF124) -> 0
E125: Aanschafwaarde investeringen 2006 met afschrijvingstermijn 45 | G125: 383000 | H125: € | I125: 0
E126: Aanschafwaarde investeringen 2006 met afschrijvingstermijn 30 | G126: 123000 | H126: € | I126: 0
E127: Aanschafwaarde investeringen 2006 met afschrijvingstermijn 25 | H127: € | I127: 0
E128: Aanschafwaarde investeringen 2006 met afschrijvingstermijn 10 | H128: € | I128: 0
E129: Aanschafwaarde investeringen 2006 met afschrijvingstermijn 5 | H129: € | I129: 0
E130: Aanschafwaarde investeringen 2006 zonder afschrijvingstermijn | H130: € | I130: 0
B132: Desinvesteringen 2006
E133: Desinvesteringen 2006 met afschrijvingstermijn 55 | H133: € | I133: =SUM(K133:DF133) -> 0
E134: Desinvesteringen 2006 met afschrijvingstermijn 45 | H134: € | I134: 0
E135: Desinvesteringen 2006 met afschrijvingstermijn 30 | H135: € | I135: 0
E136: Desinvesteringen 2006 met afschrijvingstermijn 25 | H136: € | I136: 0
E137: Desinvesteringen 2006 met afschrijvingstermijn 10 | H137: € | I137: 0
E138: Desinvesteringen 2006 met afschrijvingstermijn 5 | H138: € | I138: 0
E139: Desinvesteringen 2006 zonder afschrijvingstermijn | H139: € | I139: 0
B141: Opgegeven Afschrijvingen 2006
E142: Opgegeven afschrijvingen 2006 met afschrijvingstermijn 55 | H142: € | I142: =SUM(K142:DF142) -> -1000 | M142: -1000
E143: Opgegeven afschrijvingen 2006 met afschrijvingstermijn 45 | H143: € | I143: 4000 | M143: 4000
E144: Opgegeven afschrijvingen 2006 met afschrijvingstermijn 30 | H144: € | I144: 2000 | M144: 2000
E145: Opgegeven afschrijvingen 2006 met afschrijvingstermijn 25 | H145: € | I145: 0
E146: Opgegeven afschrijvingen 2006 met afschrijvingstermijn 10 | H146: € | I146: 0
E147: Opgegeven afschrijvingen 2006 met afschrijvingstermijn 5 | H147: € | I147: 0
B149: Opgegeven Cumulatieve Afschrijvingen Bij Desinvesteringen 2006
E150: Opgegeven c.a.d. 2006 met afschrijvingstermijn 55 | H150: € | I150: =SUM(K150:DF150) -> 0
E151: Opgegeven c.a.d. 2006 met afschrijvingstermijn 45 | H151: € | I151: 0
E152: Opgegeven c.a.d. 2006 met afschrijvingstermijn 30 | H152: € | I152: 0
E153: Opgegeven c.a.d. 2006 met afschrijvingstermijn 25 | H153: € | I153: 0
E154: Opgegeven c.a.d. 2006 met afschrijvingstermijn 10 | H154: € | I154: 0
E155: Opgegeven c.a.d. 2006 met afschrijvingstermijn 5 | H155: € | I155: 0
B157: Bijzondere Waardeverminderingen Op Activa 2006
E158: Bijzondere waardeverminderingen op activa 2006 met afschrijvingstermijn 55 | H158: € | I158: =SUM(K158:DF158) -> 0
E159: Bijzondere waardeverminderingen op activa 2006 met afschrijvingstermijn 45 | H159: € | I159: 0
E160: Bijzondere waardeverminderingen op activa 2006 met afschrijvingstermijn 30 | H160: € | I160: 0
E161: Bijzondere waardeverminderingen op activa 2006 met afschrijvingstermijn 25 | H161: € | I161: 0
E162: Bijzondere waardeverminderingen op activa 2006 met afschrijvingstermijn 10 | H162: € | I162: 0
E163: Bijzondere waardeverminderingen op activa 2006 met afschrijvingstermijn 5 | H163: € | I163: 0
B165: Input Alert
E166: Dummy Beginjaar investeringen
E167: Dummy Modelperiode
E168: Dummy Aantal cellen met onterechte input 2006
E169: Dummy Waarschuwing onterecht ingevulde cellen 2006
A171: INVESTERINGSJAAR 2007
B173: Investeringen 2007
E174: Aanschafwaarde investeringen 2007 met afschrijvingstermijn 55 | G174: 661000 | H174: € | I174: =SUM(K174:DF174) -> 0
E175: Aanschafwaarde investeringen 2007 met afschrijvingstermijn 45 | G175: 529000 | H175: € | I175: 0
E176: Aanschafwaarde investeringen 2007 met afschrijvingstermijn 30 | G176: 148000 | H176: € | I176: 0
E177: Aanschafwaarde investeringen 2007 met afschrijvingstermijn 25 | H177: € | I177: 0
E178: Aanschafwaarde investeringen 2007 met afschrijvingstermijn 10 | H178: € | I178: 0
E179: Aanschafwaarde investeringen 2007 met afschrijvingstermijn 5 | H179: € | I179: 0
E180: Aanschafwaarde investeringen 2007 zonder afschrijvingstermijn | H180: € | I180: 0
B182: Desinvesteringen 2007
E183: Desinvesteringen 2007 met afschrijvingstermijn 55 | H183: € | I183: =SUM(K183:DF183) -> 0
E184: Desinvesteringen 2007 met afschrijvingstermijn 45 | H184: € | I184: 0
E185: Desinvesteringen 2007 met afschrijvingstermijn 30 | H185: € | I185: 0
E186: Desinvesteringen 2007 met afschrijvingstermijn 25 | H186: € | I186: 0
E187: Desinvesteringen 2007 met afschrijvingstermijn 10 | H187: € | I187: 0
E188: Desinvesteringen 2007 met afschrijvingstermijn 5 | H188: € | I188: 0
E189: Desinvesteringen 2007 zonder afschrijvingstermijn | H189: € | I189: 0
B191: Opgegeven Afschrijvingen 2007
E192: Opgegeven afschrijvingen 2007 met afschrijvingstermijn 55 | H192: € | I192: =SUM(K192:DF192) -> 0
E193: Opgegeven afschrijvingen 2007 met afschrijvingstermijn 45 | H193: € | I193: 0
E194: Opgegeven afschrijvingen 2007 met afschrijvingstermijn 30 | H194: € | I194: 0
E195: Opgegeven afschrijvingen 2007 met afschrijvingstermijn 25 | H195: € | I195: 0
E196: Opgegeven afschrijvingen 2007 met afschrijvingstermijn 10 | H196: € | I196: 0
E197: Opgegeven afschrijvingen 2007 met afschrijvingstermijn 5 | H197: € | I197: 0
B199: Opgegeven Cumulatieve Afschrijvingen Bij Desinvesteringen 2007
E200: Opgegeven c.a.d. 2007 met afschrijvingstermijn 55 | H200: € | I200: =SUM(K200:DF200) -> 0
E201: Opgegeven c.a.d. 2007 met afschrijvingstermijn 45 | H201: € | I201: 0
E202: Opgegeven c.a.d. 2007 met afschrijvingstermijn 30 | H202: € | I202: 0
E203: Opgegeven c.a.d. 2007 met afschrijvingstermijn 25 | H203: € | I203: 0
E204: Opgegeven c.a.d. 2007 met afschrijvingstermijn 10 | H204: € | I204: 0
E205: Opgegeven c.a.d. 2007 met afschrijvingstermijn 5 | H205: € | I205: 0
B207: Bijzondere Waardeverminderingen Op Activa 2007
E208: Bijzondere waardeverminderingen op activa 2007 met afschrijvingstermijn 55 | H208: € | I208: =SUM(K208:DF208) -> 0
E209: Bijzondere waardeverminderingen op activa 2007 met afschrijvingstermijn 45 | H209: € | I209: 0
E210: Bijzondere waardeverminderingen op activa 2007 met afschrijvingstermijn 30 | H210: € | I210: 0
E211: Bijzondere waardeverminderingen op activa 2007 met afschrijvingstermijn 25 | H211: € | I211: 0
E212: Bijzondere waardeverminderingen op activa 2007 met afschrijvingstermijn 10 | H212: € | I212: 0
E213: Bijzondere waardeverminderingen op activa 2007 met afschrijvingstermijn 5 | H213: € | I213: 0
B215: Input Alert
E216: Dummy Beginjaar investeringen
E217: Dummy Modelperiode
E218: Dummy Aantal cellen met onterechte input 2007
E219: Dummy Waarschuwing onterecht ingevulde cellen 2007
A221: INVESTERINGSJAAR 2008
B223: Investeringen 2008
E224: Aanschafwaarde investeringen 2008 met afschrijvingstermijn 55 | G224: 614000 | H224: € | I224: =SUM(K224:DF224) -> 0
E225: Aanschafwaarde investeringen 2008 met afschrijvingstermijn 45 | G225: 1118000 | H225: € | I225: 0
E226: Aanschafwaarde investeringen 2008 met afschrijvingstermijn 30 | G226: 458000 | H226: € | I226: 0
E227: Aanschafwaarde investeringen 2008 met afschrijvingstermijn 25 | H227: € | I227: 0
E228: Aanschafwaarde investeringen 2008 met afschrijvingstermijn 10 | H228: € | I228: 0
E229: Aanschafwaarde investeringen 2008 met afschrijvingstermijn 5 | H229: € | I229: 0
E230: Aanschafwaarde investeringen 2008 zonder afschrijvingstermijn | H230: € | I230: 0
B232: Desinvesteringen 2008
E233: Desinvesteringen 2008 met afschrijvingstermijn 55 | H233: € | I233: =SUM(K233:DF233) -> 0
E234: Desinvesteringen 2008 met afschrijvingstermijn 45 | H234: € | I234: 0
E235: Desinvesteringen 2008 met afschrijvingstermijn 30 | H235: € | I235: 0
... 468 more rows

Sheet InpDelta
A1: =RIGHT(CELL("filename", A1), LEN(CELL("filename", A1)) - SEARCH("]", CELL("filename", A1))) -> InpDelta
E2: =Tijd!E$2 -> Actieve netbeheerder | G2: =Tijd!G$2 -> Zebra EHD
E3: =Tijd!E$3 -> Actieve inputsheet | G3: =Tijd!G$3 -> InpZebra EHD
E4: =Tijd!E$4 -> Modelperiode | G4: =Check!G4 -> 0 | H4: =Check!H4 -> errors | K4: =Tijd!K$4 -> 2004 | L4: =Tijd!L$4 -> 2005 | M4: =Tijd!M$4 -> 2006 | N4: =Tijd!N$4 -> 2007 | O4: =Tijd!O$4 -> 2008 | P4: =Tijd!P$4 -> 2009 | Q4: =Tijd!Q$4 -> 2010 | R4: =Tijd!R$4 -> 2011 | S4: =Tijd!S$4 -> 2012 | T4: =Tijd!T$4 -> 2013 | U4: =Tijd!U$4 -> 2014 | V4: =Tijd!V$4 -> 2015 | W4: =Tijd!W$4 -> 2016 | X4: =Tijd!X$4 -> 2017 | Y4: =Tijd!Y$4 -> 2018 | Z4: =Tijd!Z$4 -> 2019 | AA4: =Tijd!AA$4 -> 2020 | AB4: =Tijd!AB$4 -> 2021 | AC4: =Tijd!AC$4 -> 2022 | AD4: =Tijd!AD$4 -> 2023 | AE4: =Tijd!AE$4 -> 2024 | AF4: =Tijd!AF$4 -> 2025 | AG4: =Tijd!AG$4 -> 2026 | AH4: =Tijd!AH$4 -> 2027 | AI4: =Tijd!AI$4 -> 2028 | AJ4: =Tijd!AJ$4 -> 2029 | AK4: =Tijd!AK$4 -> 2030 | AL4: =Tijd!AL$4 -> 2031 | AM4: =Tijd!AM$4 -> 2032 | AN4: =Tijd!AN$4 -> 2033 | AO4: =Tijd!AO$4 -> 2034 | AP4: =Tijd!AP$4 -> 2035 | AQ4: =Tijd!AQ$4 -> 2036 | AR4: =Tijd!AR$4 -> 2037 | AS4: =Tijd!AS$4 -> 2038 | AT4: =Tijd!AT$4 -> 2039 | AU4: =Tijd!AU$4 -> 2040 | AV4: =Tijd!AV$4 -> 2041 | AW4: =Tijd!AW$4 -> 2042 | AX4: =Tijd!AX$4 -> 2043 | AY4: =Tijd!AY$4 -> 2044 | AZ4: =Tijd!AZ$4 -> 2045 | BA4: =Tijd!BA$4 -> 2046 | BB4: =Tijd!BB$4 -> 2047 | BC4: =Tijd!BC$4 -> 2048 | BD4: =Tijd!BD$4 -> 2049 | BE4: =Tijd!BE$4 -> 2050 | BF4: =Tijd!BF$4 -> 2051 | BG4: =Tijd!BG$4 -> 2052 | BH4: =Tijd!BH$4 -> 2053 | BI4: =Tijd!BI$4 -> 2054 | BJ4: =Tijd!BJ$4 -> 2055 | BK4: =Tijd!BK$4 -> 2056 | BL4: =Tijd!BL$4 -> 2057 | BM4: =Tijd!BM$4 -> 2058 | BN4: =Tijd!BN$4 -> 2059 | BO4: =Tijd!BO$4 -> 2060 | BP4: =Tijd!BP$4 -> 2061 | BQ4: =Tijd!BQ$4 -> 2062 | BR4: =Tijd!BR$4 -> 2063 | BS4: =Tijd!BS$4 -> 2064 | BT4: =Tijd!BT$4 -> 2065 | BU4: =Tijd!BU$4 -> 2066 | BV4: =Tijd!BV$4 -> 2067 | BW4: =Tijd!BW$4 -> 2068 | BX4: =Tijd!BX$4 -> 2069 | BY4: =Tijd!BY$4 -> 2070 | BZ4: =Tijd!BZ$4 -> 2071 | CA4: =Tijd!CA$4 -> 2072 | CB4: =Tijd!CB$4 -> 2073 | CC4: =Tijd!CC$4 -> 2074 | CD4: =Tijd!CD$4 -> 2075 | CE4: =Tijd!CE$4 -> 2076 | CF4: =Tijd!CF$4 -> 2077 | CG4: =Tijd!CG$4 -> 2078 | CH4: =Tijd!CH$4 -> 2079 | CI4: =Tijd!CI$4 -> 2080 | CJ4: =Tijd!CJ$4 -> 2081 | CK4: =Tijd!CK$4 -> 2082 | CL4: =Tijd!CL$4 -> 2083 | CM4: =Tijd!CM$4 -> 2084 | CN4: =Tijd!CN$4 -> 2085 | CO4: =Tijd!CO$4 -> 2086 | CP4: =Tijd!CP$4 -> 2087 | CQ4: =Tijd!CQ$4 -> 2088 | CR4: =Tijd!CR$4 -> 2089 | CS4: =Tijd!CS$4 -> 2090 | CT4: =Tijd!CT$4 -> 2091 | CU4: =Tijd!CU$4 -> 2092 | CV4: =Tijd!CV$4 -> 2093 | CW4: =Tijd!CW$4 -> 2094 | CX4: =Tijd!CX$4 -> 2095 | CY4: =Tijd!CY$4 -> 2096 | CZ4: =Tijd!CZ$4 -> 2097 | DA4: =Tijd!DA$4 -> 2098 | DB4: =Tijd!DB$4 -> 2099 | DC4: =Tijd!DC$4 -> 2100 | DD4: =Tijd!DD$4 -> 2101 | DE4: =Tijd!DE$4 -> 2102 | DF4: =Tijd!DF$4 -> 2103
E5: =Tijd!E$5 -> Looptijd vs Uitlooptijd | G5: =Check!G5 -> 0 | H5: =Check!H5 -> waarschuwingen | K5: =Tijd!K$5 -> Looptijd | L5: =Tijd!L$5 -> Looptijd | M5: =Tijd!M$5 -> Looptijd | N5: =Tijd!N$5 -> Looptijd | O5: =Tijd!O$5 -> Looptijd | P5: =Tijd!P$5 -> Looptijd | Q5: =Tijd!Q$5 -> Looptijd | R5: =Tijd!R$5 -> Looptijd | S5: =Tijd!S$5 -> Looptijd | T5: =Tijd!T$5 -> Looptijd | U5: =Tijd!U$5 -> Looptijd | V5: =Tijd!V$5 -> Looptijd | W5: =Tijd!W$5 -> Looptijd | X5: =Tijd!X$5 -> Looptijd | Y5: =Tijd!Y$5 -> Looptijd | Z5: =Tijd!Z$5 -> Looptijd | AA5: =Tijd!AA$5 -> Looptijd | AB5: =Tijd!AB$5 -> Looptijd | AC5: =Tijd!AC$5 -> Looptijd | AD5: =Tijd!AD$5 -> Looptijd | AE5: =Tijd!AE$5 -> Looptijd | AF5: =Tijd!AF$5 -> Looptijd | AG5: =Tijd!AG$5 -> Looptijd | AH5: =Tijd!AH$5 -> Looptijd | AI5: =Tijd!AI$5 -> Looptijd | AJ5: =Tijd!AJ$5 -> Looptijd | AK5: =Tijd!AK$5 -> Looptijd | AL5: =Tijd!AL$5 -> Looptijd | AM5: =Tijd!AM$5 -> Looptijd | AN5: =Tijd!AN$5 -> Looptijd | AO5: =Tijd!AO$5 -> Looptijd | AP5: =Tijd!AP$5 -> Looptijd | AQ5: =Tijd!AQ$5 -> Looptijd | AR5: =Tijd!AR$5 -> Looptijd | AS5: =Tijd!AS$5 -> Looptijd | AT5: =Tijd!AT$5 -> Looptijd | AU5: =Tijd!AU$5 -> Looptijd | AV5: =Tijd!AV$5 -> Looptijd | AW5: =Tijd!AW$5 -> Looptijd | AX5: =Tijd!AX$5 -> Looptijd | AY5: =Tijd!AY$5 -> Looptijd | AZ5: =Tijd!AZ$5 -> Looptijd | BA5: =Tijd!BA$5 -> Looptijd | BB5: =Tijd!BB$5 -> Looptijd | BC5: =Tijd!BC$5 -> Looptijd | BD5: =Tijd!BD$5 -> Looptijd | BE5: =Tijd!BE$5 -> Looptijd | BF5: =Tijd!BF$5 -> Looptijd | BG5: =Tijd!BG$5 -> Looptijd | BH5: =Tijd!BH$5 -> Looptijd | BI5: =Tijd!BI$5 -> Looptijd | BJ5: =Tijd!BJ$5 -> Uitlooptijd | BK5: =Tijd!BK$5 -> Uitlooptijd | BL5: =Tijd!BL$5 -> Uitlooptijd | BM5: =Tijd!BM$5 -> Uitlooptijd | BN5: =Tijd!BN$5 -> Uitlooptijd | BO5: =Tijd!BO$5 -> Uitlooptijd | BP5: =Tijd!BP$5 -> Uitlooptijd | BQ5: =Tijd!BQ$5 -> Uitlooptijd | BR5: =Tijd!BR$5 -> Uitlooptijd | BS5: =Tijd!BS$5 -> Uitlooptijd | BT5: =Tijd!BT$5 -> Uitlooptijd | BU5: =Tijd!BU$5 -> Uitlooptijd | BV5: =Tijd!BV$5 -> Uitlooptijd | BW5: =Tijd!BW$5 -> Uitlooptijd | BX5: =Tijd!BX$5 -> Uitlooptijd | BY5: =Tijd!BY$5 -> Uitlooptijd | BZ5: =Tijd!BZ$5 -> Uitlooptijd | CA5: =Tijd!CA$5 -> Uitlooptijd | CB5: =Tijd!CB$5 -> Uitlooptijd | CC5: =Tijd!CC$5 -> Uitlooptijd | CD5: =Tijd!CD$5 -> Uitlooptijd | CE5: =Tijd!CE$5 -> Uitlooptijd | CF5: =Tijd!CF$5 -> Uitlooptijd | CG5: =Tijd!CG$5 -> Uitlooptijd | CH5: =Tijd!CH$5 -> Uitlooptijd | CI5: =Tijd!CI$5 -> Uitlooptijd | CJ5: =Tijd!CJ$5 -> Uitlooptijd | CK5: =Tijd!CK$5 -> Uitlooptijd | CL5: =Tijd!CL$5 -> Uitlooptijd | CM5: =Tijd!CM$5 -> Uitlooptijd | CN5: =Tijd!CN$5 -> Uitlooptijd | CO5: =Tijd!CO$5 -> Uitlooptijd | CP5: =Tijd!CP$5 -> Uitlooptijd | CQ5: =Tijd!CQ$5 -> Uitlooptijd | CR5: =Tijd!CR$5 -> Uitlooptijd | CS5: =Tijd!CS$5 -> Uitlooptijd | CT5: =Tijd!CT$5 -> Uitlooptijd | CU5: =Tijd!CU$5 -> Uitlooptijd | CV5: =Tijd!CV$5 -> Uitlooptijd | CW5: =Tijd!CW$5 -> Uitlooptijd | CX5: =Tijd!CX$5 -> Uitlooptijd | CY5: =Tijd!CY$5 -> Uitlooptijd | CZ5: =Tijd!CZ$5 -> Uitlooptijd | DA5: =Tijd!DA$5 -> Uitlooptijd | DB5: =Tijd!DB$5 -> Uitlooptijd | DC5: =Tijd!DC$5 -> Uitlooptijd | DD5: =Tijd!DD$5 -> Uitlooptijd | DE5: =Tijd!DE$5 -> Uitlooptijd | DF5: =Tijd!DF$5 -> Uitlooptijd
E6: =Tijd!E$10 -> Model kolom teller | F6: Bron | G6: Constante | H6: Eenheid | I6: Totaal | K6: =Tijd!K$10 -> 1 | L6: =Tijd!L$10 -> 2 | M6: =Tijd!M$10 -> 3 | N6: =Tijd!N$10 -> 4 | O6: =Tijd!O$10 -> 5 | P6: =Tijd!P$10 -> 6 | Q6: =Tijd!Q$10 -> 7 | R6: =Tijd!R$10 -> 8 | S6: =Tijd!S$10 -> 9 | T6: =Tijd!T$10 -> 10 | U6: =Tijd!U$10 -> 11 | V6: =Tijd!V$10 -> 12 | W6: =Tijd!W$10 -> 13 | X6: =Tijd!X$10 -> 14 | Y6: =Tijd!Y$10 -> 15 | Z6: =Tijd!Z$10 -> 16 | AA6: =Tijd!AA$10 -> 17 | AB6: =Tijd!AB$10 -> 18 | AC6: =Tijd!AC$10 -> 19 | AD6: =Tijd!AD$10 -> 20 | AE6: =Tijd!AE$10 -> 21 | AF6: =Tijd!AF$10 -> 22 | AG6: =Tijd!AG$10 -> 23 | AH6: =Tijd!AH$10 -> 24 | AI6: =Tijd!AI$10 -> 25 | AJ6: =Tijd!AJ$10 -> 26 | AK6: =Tijd!AK$10 -> 27 | AL6: =Tijd!AL$10 -> 28 | AM6: =Tijd!AM$10 -> 29 | AN6: =Tijd!AN$10 -> 30 | AO6: =Tijd!AO$10 -> 31 | AP6: =Tijd!AP$10 -> 32 | AQ6: =Tijd!AQ$10 -> 33 | AR6: =Tijd!AR$10 -> 34 | AS6: =Tijd!AS$10 -> 35 | AT6: =Tijd!AT$10 -> 36 | AU6: =Tijd!AU$10 -> 37 | AV6: =Tijd!AV$10 -> 38 | AW6: =Tijd!AW$10 -> 39 | AX6: =Tijd!AX$10 -> 40 | AY6: =Tijd!AY$10 -> 41 | AZ6: =Tijd!AZ$10 -> 42 | BA6: =Tijd!BA$10 -> 43 | BB6: =Tijd!BB$10 -> 44 | BC6: =Tijd!BC$10 -> 45 | BD6: =Tijd!BD$10 -> 46 | BE6: =Tijd!BE$10 -> 47 | BF6: =Tijd!BF$10 -> 48 | BG6: =Tijd!BG$10 -> 49 | BH6: =Tijd!BH$10 -> 50 | BI6: =Tijd!BI$10 -> 51 | BJ6: =Tijd!BJ$10 -> 52 | BK6: =Tijd!BK$10 -> 53 | BL6: =Tijd!BL$10 -> 54 | BM6: =Tijd!BM$10 -> 55 | BN6: =Tijd!BN$10 -> 56 | BO6: =Tijd!BO$10 -> 57 | BP6: =Tijd!BP$10 -> 58 | BQ6: =Tijd!BQ$10 -> 59 | BR6: =Tijd!BR$10 -> 60 | BS6: =Tijd!BS$10 -> 61 | BT6: =Tijd!BT$10 -> 62 | BU6: =Tijd!BU$10 -> 63 | BV6: =Tijd!BV$10 -> 64 | BW6: =Tijd!BW$10 -> 65 | BX6: =Tijd!BX$10 -> 66 | BY6: =Tijd!BY$10 -> 67 | BZ6: =Tijd!BZ$10 -> 68 | CA6: =Tijd!CA$10 -> 69 | CB6: =Tijd!CB$10 -> 70 | CC6: =Tijd!CC$10 -> 71 | CD6: =Tijd!CD$10 -> 72 | CE6: =Tijd!CE$10 -> 73 | CF6: =Tijd!CF$10 -> 74 | CG6: =Tijd!CG$10 -> 75 | CH6: =Tijd!CH$10 -> 76 | CI6: =Tijd!CI$10 -> 77 | CJ6: =Tijd!CJ$10 -> 78 | CK6: =Tijd!CK$10 -> 79 | CL6: =Tijd!CL$10 -> 80 | CM6: =Tijd!CM$10 -> 81 | CN6: =Tijd!CN$10 -> 82 | CO6: =Tijd!CO$10 -> 83 | CP6: =Tijd!CP$10 -> 84 | CQ6: =Tijd!CQ$10 -> 85 | CR6: =Tijd!CR$10 -> 86 | CS6: =Tijd!CS$10 -> 87 | CT6: =Tijd!CT$10 -> 88 | CU6: =Tijd!CU$10 -> 89 | CV6: =Tijd!CV$10 -> 90 | CW6: =Tijd!CW$10 -> 91 | CX6: =Tijd!CX$10 -> 92 | CY6: =Tijd!CY$10 -> 93 | CZ6: =Tijd!CZ$10 -> 94 | DA6: =Tijd!DA$10 -> 95 | DB6: =Tijd!DB$10 -> 96 | DC6: =Tijd!DC$10 -> 97 | DD6: =Tijd!DD$10 -> 98 | DE6: =Tijd!DE$10 -> 99 | DF6: =Tijd!DF$10 -> 100
A9: NETTEN
A11: INVESTERINGSJAAR 2004 - START GAW
E12: Startwaarde GAW incl. afgekochte precario (01-01-2004) | G12: 106731371 | H12: €
E13: Afschrijvingen Start GAW | G13: 3167102.997 | H13: €
E14: Afgekochte precario in Start GAW (01-01-2004) | H14: €
E15: Afschrijvingsbedrag afgekochte precario | H15: €
A17: INVESTERINGSJAAR 2004
B19: Investeringen 2004
E20: Aanschafwaarde investeringen 2004 met afschrijvingstermijn 55 | G20: 389000 | H20: € | I20: =SUM(K20:DF20) -> 0
E21: Aanschafwaarde investeringen 2004 met afschrijvingstermijn 45 | G21: 2159000 | H21: € | I21: 0
E22: Aanschafwaarde investeringen 2004 met afschrijvingstermijn 30 | G22: 1088000 | H22: € | I22: 0
E23: Aanschafwaarde investeringen 2004 met afschrijvingstermijn 25 | H23: € | I23: 0
E24: Aanschafwaarde investeringen 2004 met afschrijvingstermijn 10 | H24: € | I24: 0
E25: Aanschafwaarde investeringen 2004 met afschrijvingstermijn 5 | H25: € | I25: 0
E26: Aanschafwaarde investeringen 2004 zonder afschrijvingstermijn | H26: € | I26: 0
B28: Desinvesteringen 2004
E29: Desinvesteringen 2004 met afschrijvingstermijn 55 | H29: € | I29: =SUM(K29:DF29) -> 0
E30: Desinvesteringen 2004 met afschrijvingstermijn 45 | H30: € | I30: 0
E31: Desinvesteringen 2004 met afschrijvingstermijn 30 | H31: € | I31: 0
E32: Desinvesteringen 2004 met afschrijvingstermijn 25 | H32: € | I32: 0
E33: Desinvesteringen 2004 met afschrijvingstermijn 10 | H33: € | I33: 0
E34: Desinvesteringen 2004 met afschrijvingstermijn 5 | H34: € | I34: 0
E35: Desinvesteringen 2004 zonder afschrijvingstermijn | H35: € | I35: 0
B37: Opgegeven Afschrijvingen 2004
E38: Opgegeven afschrijvingen 2004 met afschrijvingstermijn 55 | H38: € | I38: =SUM(K38:DF38) -> 18000 | K38: 4000 | L38: 7000 | M38: 7000
E39: Opgegeven afschrijvingen 2004 met afschrijvingstermijn 45 | H39: € | I39: 120000 | K39: 24000 | L39: 48000 | M39: 48000
E40: Opgegeven afschrijvingen 2004 met afschrijvingstermijn 30 | H40: € | I40: 90000 | K40: 18000 | L40: 36000 | M40: 36000
E41: Opgegeven afschrijvingen 2004 met afschrijvingstermijn 25 | H41: € | I41: 0
E42: Opgegeven afschrijvingen 2004 met afschrijvingstermijn 10 | H42: € | I42: 0
E43: Opgegeven afschrijvingen 2004 met afschrijvingstermijn 5 | H43: € | I43: 0
B45: Opgegeven Cumulatieve Afschrijvingen Bij Desinvesteringen 2004
E46: Opgegeven c.a.d. 2004 met afschrijvingstermijn 55 | H46: € | I46: =SUM(K46:DF46) -> 0
E47: Opgegeven c.a.d. 2004 met afschrijvingstermijn 45 | H47: € | I47: 0
E48: Opgegeven c.a.d. 2004 met afschrijvingstermijn 30 | H48: € | I48: 0
E49: Opgegeven c.a.d. 2004 met afschrijvingstermijn 25 | H49: € | I49: 0
E50: Opgegeven c.a.d. 2004 met afschrijvingstermijn 10 | H50: € | I50: 0
E51: Opgegeven c.a.d. 2004 met afschrijvingstermijn 5 | H51: € | I51: 0
B53: Bijzondere Waardeverminderingen Op Activa 2004
E54: Bijzondere waardeverminderingen op activa 2004 met afschrijvingstermijn 55 | H54: € | I54: =SUM(K54:DF54) -> 0
E55: Bijzondere waardeverminderingen op activa 2004 met afschrijvingstermijn 45 | H55: € | I55: 0
E56: Bijzondere waardeverminderingen op activa 2004 met afschrijvingstermijn 30 | H56: € | I56: 0
E57: Bijzondere waardeverminderingen op activa 2004 met afschrijvingstermijn 25 | H57: € | I57: 0
E58: Bijzondere waardeverminderingen op activa 2004 met afschrijvingstermijn 10 | H58: € | I58: 0
E59: Bijzondere waardeverminderingen op activa 2004 met afschrijvingstermijn 5 | H59: € | I59: 0
B61: Input Alert
E62: Dummy Beginjaar investeringen
E63: Dummy Modelperiode
E64: Dummy Aantal cellen met onterechte input 2004
E65: Dummy Waarschuwing onterecht ingevulde cellen 2004
A67: INVESTERINGSJAAR 2005
B69: Investeringen 2005
E70: Aanschafwaarde investeringen 2005 met afschrijvingstermijn 55 | G70: 373000 | H70: € | I70: =SUM(K70:DF70) -> 0
E71: Aanschafwaarde investeringen 2005 met afschrijvingstermijn 45 | G71: 1782000 | H71: € | I71: 0
E72: Aanschafwaarde investeringen 2005 met afschrijvingstermijn 30 | G72: 265000 | H72: € | I72: 0
E73: Aanschafwaarde investeringen 2005 met afschrijvingstermijn 25 | H73: € | I73: 0
E74: Aanschafwaarde investeringen 2005 met afschrijvingstermijn 10 | H74: € | I74: 0
E75: Aanschafwaarde investeringen 2005 met afschrijvingstermijn 5 | H75: € | I75: 0
E76: Aanschafwaarde investeringen 2005 zonder afschrijvingstermijn | H76: € | I76: 0
B78: Desinvesteringen 2005
E79: Desinvesteringen 2005 met afschrijvingstermijn 55 | H79: € | I79: =SUM(K79:DF79) -> 0
E80: Desinvesteringen 2005 met afschrijvingstermijn 45 | H80: € | I80: 0
E81: Desinvesteringen 2005 met afschrijvingstermijn 30 | H81: € | I81: 0
E82: Desinvesteringen 2005 met afschrijvingstermijn 25 | H82: € | I82: 0
E83: Desinvesteringen 2005 met afschrijvingstermijn 10 | H83: € | I83: 0
E84: Desinvesteringen 2005 met afschrijvingstermijn 5 | H84: € | I84: 0
E85: Desinvesteringen 2005 zonder afschrijvingstermijn | H85: € | I85: 0
B87: Opgegeven Afschrijvingen 2005
E88: Opgegeven afschrijvingen 2005 met afschrijvingstermijn 55 | H88: € | I88: =SUM(L88:DF88) -> 10000 | L88: 3000 | M88: 7000
E89: Opgegeven afschrijvingen 2005 met afschrijvingstermijn 45 | H89: € | I89: 59000 | L89: 20000 | M89: 39000
E90: Opgegeven afschrijvingen 2005 met afschrijvingstermijn 30 | H90: € | I90: 12000 | L90: 4000 | M90: 8000
E91: Opgegeven afschrijvingen 2005 met afschrijvingstermijn 25 | H91: € | I91: 0
E92: Opgegeven afschrijvingen 2005 met afschrijvingstermijn 10 | H92: € | I92: 0
E93: Opgegeven afschrijvingen 2005 met afschrijvingstermijn 5 | H93: € | I93: 0
B95: Opgegeven Cumulatieve Afschrijvingen Bij Desinvesteringen 2005
E96: Opgegeven c.a.d. 2005 met afschrijvingstermijn 55 | H96: € | I96: =SUM(K96:DF96) -> 0
E97: Opgegeven c.a.d. 2005 met afschrijvingstermijn 45 | H97: € | I97: 0
E98: Opgegeven c.a.d. 2005 met afschrijvingstermijn 30 | H98: € | I98: 0
E99: Opgegeven c.a.d. 2005 met afschrijvingstermijn 25 | H99: € | I99: 0
E100: Opgegeven c.a.d. 2005 met afschrijvingstermijn 10 | H100: € | I100: 0
E101: Opgegeven c.a.d. 2005 met afschrijvingstermijn 5 | H101: € | I101: 0
B103: Bijzondere Waardeverminderingen Op Activa 2005
E104: Bijzondere waardeverminderingen op activa 2005 met afschrijvingstermijn 55 | H104: € | I104: =SUM(K104:DF104) -> 0
E105: Bijzondere waardeverminderingen op activa 2005 met afschrijvingstermijn 45 | H105: € | I105: 0
E106: Bijzondere waardeverminderingen op activa 2005 met afschrijvingstermijn 30 | H106: € | I106: 0
E107: Bijzondere waardeverminderingen op activa 2005 met afschrijvingstermijn 25 | H107: € | I107: 0
E108: Bijzondere waardeverminderingen op activa 2005 met afschrijvingstermijn 10 | H108: € | I108: 0
E109: Bijzondere waardeverminderingen op activa 2005 met afschrijvingstermijn 5 | H109: € | I109: 0
B111: Input Alert
E112: Dummy Beginjaar investeringen
E113: Dummy Modelperiode
E114: Dummy Aantal cellen met onterechte input 2005
E115: Dummy Waarschuwing onterecht ingevulde cellen 2005
A117: INVESTERINGSJAAR 2006 - START GAW voor EHD
E118: Startwaarde GAW voor EHD (01-01-2006) | H118: €
E119: Afschrijvingen Start GAW voor EHD | H119: €
A121: INVESTERINGSJAAR 2006
B123: Investeringen 2006
E124: Aanschafwaarde investeringen 2006 met afschrijvingstermijn 55 | G124: 45000 | H124: € | I124: =SUM(K124:DF124) -> 0
E125: Aanschafwaarde investeringen 2006 met afschrijvingstermijn 45 | G125: 396000 | H125: € | I125: 0
E126: Aanschafwaarde investeringen 2006 met afschrijvingstermijn 30 | G126: 78000 | H126: € | I126: 0
E127: Aanschafwaarde investeringen 2006 met afschrijvingstermijn 25 | H127: € | I127: 0
E128: Aanschafwaarde investeringen 2006 met afschrijvingstermijn 10 | H128: € | I128: 0
E129: Aanschafwaarde investeringen 2006 met afschrijvingstermijn 5 | H129: € | I129: 0
E130: Aanschafwaarde investeringen 2006 zonder afschrijvingstermijn | H130: € | I130: 0
B132: Desinvesteringen 2006
E133: Desinvesteringen 2006 met afschrijvingstermijn 55 | H133: € | I133: =SUM(K133:DF133) -> 0
E134: Desinvesteringen 2006 met afschrijvingstermijn 45 | H134: € | I134: 0
E135: Desinvesteringen 2006 met afschrijvingstermijn 30 | H135: € | I135: 0
E136: Desinvesteringen 2006 met afschrijvingstermijn 25 | H136: € | I136: 0
E137: Desinvesteringen 2006 met afschrijvingstermijn 10 | H137: € | I137: 0
E138: Desinvesteringen 2006 met afschrijvingstermijn 5 | H138: € | I138: 0
E139: Desinvesteringen 2006 zonder afschrijvingstermijn | H139: € | I139: 0
B141: Opgegeven Afschrijvingen 2006
E142: Opgegeven afschrijvingen 2006 met afschrijvingstermijn 55 | H142: € | I142: =SUM(K142:DF142) -> 0
E143: Opgegeven afschrijvingen 2006 met afschrijvingstermijn 45 | H143: € | I143: 4000 | M143: 4000
E144: Opgegeven afschrijvingen 2006 met afschrijvingstermijn 30 | H144: € | I144: 1000 | M144: 1000
E145: Opgegeven afschrijvingen 2006 met afschrijvingstermijn 25 | H145: € | I145: 0
E146: Opgegeven afschrijvingen 2006 met afschrijvingstermijn 10 | H146: € | I146: 0
E147: Opgegeven afschrijvingen 2006 met afschrijvingstermijn 5 | H147: € | I147: 0
B149: Opgegeven Cumulatieve Afschrijvingen Bij Desinvesteringen 2006
E150: Opgegeven c.a.d. 2006 met afschrijvingstermijn 55 | H150: € | I150: =SUM(K150:DF150) -> 0
E151: Opgegeven c.a.d. 2006 met afschrijvingstermijn 45 | H151: € | I151: 0
E152: Opgegeven c.a.d. 2006 met afschrijvingstermijn 30 | H152: € | I152: 0
E153: Opgegeven c.a.d. 2006 met afschrijvingstermijn 25 | H153: € | I153: 0
E154: Opgegeven c.a.d. 2006 met afschrijvingstermijn 10 | H154: € | I154: 0
E155: Opgegeven c.a.d. 2006 met afschrijvingstermijn 5 | H155: € | I155: 0
B157: Bijzondere Waardeverminderingen Op Activa 2006
E158: Bijzondere waardeverminderingen op activa 2006 met afschrijvingstermijn 55 | H158: € | I158: =SUM(K158:DF158) -> 0
E159: Bijzondere waardeverminderingen op activa 2006 met afschrijvingstermijn 45 | H159: € | I159: 0
E160: Bijzondere waardeverminderingen op activa 2006 met afschrijvingstermijn 30 | H160: € | I160: 0
E161: Bijzondere waardeverminderingen op activa 2006 met afschrijvingstermijn 25 | H161: € | I161: 0
E162: Bijzondere waardeverminderingen op activa 2006 met afschrijvingstermijn 10 | H162: € | I162: 0
E163: Bijzondere waardeverminderingen op activa 2006 met afschrijvingstermijn 5 | H163: € | I163: 0
B165: Input Alert
E166: Dummy Beginjaar investeringen
E167: Dummy Modelperiode
E168: Dummy Aantal cellen met onterechte input 2006
E169: Dummy Waarschuwing onterecht ingevulde cellen 2006
A171: INVESTERINGSJAAR 2007
B173: Investeringen 2007
E174: Aanschafwaarde investeringen 2007 met afschrijvingstermijn 55 | G174: 753000 | H174: € | I174: =SUM(K174:DF174) -> 0
E175: Aanschafwaarde investeringen 2007 met afschrijvingstermijn 45 | G175: 926000 | H175: € | I175: 0
E176: Aanschafwaarde investeringen 2007 met afschrijvingstermijn 30 | G176: 141000 | H176: € | I176: 0
E177: Aanschafwaarde investeringen 2007 met afschrijvingstermijn 25 | H177: € | I177: 0
E178: Aanschafwaarde investeringen 2007 met afschrijvingstermijn 10 | H178: € | I178: 0
E179: Aanschafwaarde investeringen 2007 met afschrijvingstermijn 5 | H179: € | I179: 0
E180: Aanschafwaarde investeringen 2007 zonder afschrijvingstermijn | H180: € | I180: 0
B182: Desinvesteringen 2007
E183: Desinvesteringen 2007 met afschrijvingstermijn 55 | H183: € | I183: =SUM(K183:DF183) -> 0
E184: Desinvesteringen 2007 met afschrijvingstermijn 45 | H184: € | I184: 0
E185: Desinvesteringen 2007 met afschrijvingstermijn 30 | H185: € | I185: 0
E186: Desinvesteringen 2007 met afschrijvingstermijn 25 | H186: € | I186: 0
E187: Desinvesteringen 2007 met afschrijvingstermijn 10 | H187: € | I187: 0
E188: Desinvesteringen 2007 met afschrijvingstermijn 5 | H188: € | I188: 0
E189: Desinvesteringen 2007 zonder afschrijvingstermijn | H189: € | I189: 0
B191: Opgegeven Afschrijvingen 2007
E192: Opgegeven afschrijvingen 2007 met afschrijvingstermijn 55 | H192: € | I192: =SUM(K192:DF192) -> 0
E193: Opgegeven afschrijvingen 2007 met afschrijvingstermijn 45 | H193: € | I193: 0
E194: Opgegeven afschrijvingen 2007 met afschrijvingstermijn 30 | H194: € | I194: 0
E195: Opgegeven afschrijvingen 2007 met afschrijvingstermijn 25 | H195: € | I195: 0
E196: Opgegeven afschrijvingen 2007 met afschrijvingstermijn 10 | H196: € | I196: 0
E197: Opgegeven afschrijvingen 2007 met afschrijvingstermijn 5 | H197: € | I197: 0
B199: Opgegeven Cumulatieve Afschrijvingen Bij Desinvesteringen 2007
E200: Opgegeven c.a.d. 2007 met afschrijvingstermijn 55 | H200: € | I200: =SUM(K200:DF200) -> 0
E201: Opgegeven c.a.d. 2007 met afschrijvingstermijn 45 | H201: € | I201: 0
E202: Opgegeven c.a.d. 2007 met afschrijvingstermijn 30 | H202: € | I202: 0
E203: Opgegeven c.a.d. 2007 met afschrijvingstermijn 25 | H203: € | I203: 0
E204: Opgegeven c.a.d. 2007 met afschrijvingstermijn 10 | H204: € | I204: 0
E205: Opgegeven c.a.d. 2007 met afschrijvingstermijn 5 | H205: € | I205: 0
B207: Bijzondere Waardeverminderingen Op Activa 2007
E208: Bijzondere waardeverminderingen op activa 2007 met afschrijvingstermijn 55 | H208: € | I208: =SUM(K208:DF208) -> 0
E209: Bijzondere waardeverminderingen op activa 2007 met afschrijvingstermijn 45 | H209: € | I209: 0
E210: Bijzondere waardeverminderingen op activa 2007 met afschrijvingstermijn 30 | H210: € | I210: 0
E211: Bijzondere waardeverminderingen op activa 2007 met afschrijvingstermijn 25 | H211: € | I211: 0
E212: Bijzondere waardeverminderingen op activa 2007 met afschrijvingstermijn 10 | H212: € | I212: 0
E213: Bijzondere waardeverminderingen op activa 2007 met afschrijvingstermijn 5 | H213: € | I213: 0
B215: Input Alert
E216: Dummy Beginjaar investeringen
E217: Dummy Modelperiode
E218: Dummy Aantal cellen met onterechte input 2007
E219: Dummy Waarschuwing onterecht ingevulde cellen 2007
A221: INVESTERINGSJAAR 2008
B223: Investeringen 2008
E224: Aanschafwaarde investeringen 2008 met afschrijvingstermijn 55 | G224: 65000 | H224: € | I224: =SUM(K224:DF224) -> 0
E225: Aanschafwaarde investeringen 2008 met afschrijvingstermijn 45 | G225: 651000 | H225: € | I225: 0
E226: Aanschafwaarde investeringen 2008 met afschrijvingstermijn 30 | G226: 126000 | H226: € | I226: 0
E227: Aanschafwaarde investeringen 2008 met afschrijvingstermijn 25 | H227: € | I227: 0
E228: Aanschafwaarde investeringen 2008 met afschrijvingstermijn 10 | H228: € | I228: 0
E229: Aanschafwaarde investeringen 2008 met afschrijvingstermijn 5 | H229: € | I229: 0
E230: Aanschafwaarde investeringen 2008 zonder afschrijvingstermijn | H230: € | I230: 0
B232: Desinvesteringen 2008
E233: Desinvesteringen 2008 met afschrijvingstermijn 55 | H233: € | I233: =SUM(K233:DF233) -> 0
E234: Desinvesteringen 2008 met afschrijvingstermijn 45 | H234: € | I234: 0
E235: Desinvesteringen 2008 met afschrijvingstermijn 30 | H235: € | I235: 0
... 468 more rows

Sheet InpDelta EHD
A1: =RIGHT(CELL("filename", A1), LEN(CELL("filename", A1)) - SEARCH("]", CELL("filename", A1))) -> InpDelta EHD
E2: =Tijd!E$2 -> Actieve netbeheerder | G2: =Tijd!G$2 -> Zebra EHD
E3: =Tijd!E$3 -> Actieve inputsheet | G3: =Tijd!G$3 -> InpZebra EHD
E4: =Tijd!E$4 -> Modelperiode | G4: =Check!G4 -> 0 | H4: =Check!H4 -> errors | K4: =Tijd!K$4 -> 2004 | L4: =Tijd!L$4 -> 2005 | M4: =Tijd!M$4 -> 2006 | N4: =Tijd!N$4 -> 2007 | O4: =Tijd!O$4 -> 2008 | P4: =Tijd!P$4 -> 2009 | Q4: =Tijd!Q$4 -> 2010 | R4: =Tijd!R$4 -> 2011 | S4: =Tijd!S$4 -> 2012 | T4: =Tijd!T$4 -> 2013 | U4: =Tijd!U$4 -> 2014 | V4: =Tijd!V$4 -> 2015 | W4: =Tijd!W$4 -> 2016 | X4: =Tijd!X$4 -> 2017 | Y4: =Tijd!Y$4 -> 2018 | Z4: =Tijd!Z$4 -> 2019 | AA4: =Tijd!AA$4 -> 2020 | AB4: =Tijd!AB$4 -> 2021 | AC4: =Tijd!AC$4 -> 2022 | AD4: =Tijd!AD$4 -> 2023 | AE4: =Tijd!AE$4 -> 2024 | AF4: =Tijd!AF$4 -> 2025 | AG4: =Tijd!AG$4 -> 2026 | AH4: =Tijd!AH$4 -> 2027 | AI4: =Tijd!AI$4 -> 2028 | AJ4: =Tijd!AJ$4 -> 2029 | AK4: =Tijd!AK$4 -> 2030 | AL4: =Tijd!AL$4 -> 2031 | AM4: =Tijd!AM$4 -> 2032 | AN4: =Tijd!AN$4 -> 2033 | AO4: =Tijd!AO$4 -> 2034 | AP4: =Tijd!AP$4 -> 2035 | AQ4: =Tijd!AQ$4 -> 2036 | AR4: =Tijd!AR$4 -> 2037 | AS4: =Tijd!AS$4 -> 2038 | AT4: =Tijd!AT$4 -> 2039 | AU4: =Tijd!AU$4 -> 2040 | AV4: =Tijd!AV$4 -> 2041 | AW4: =Tijd!AW$4 -> 2042 | AX4: =Tijd!AX$4 -> 2043 | AY4: =Tijd!AY$4 -> 2044 | AZ4: =Tijd!AZ$4 -> 2045 | BA4: =Tijd!BA$4 -> 2046 | BB4: =Tijd!BB$4 -> 2047 | BC4: =Tijd!BC$4 -> 2048 | BD4: =Tijd!BD$4 -> 2049 | BE4: =Tijd!BE$4 -> 2050 | BF4: =Tijd!BF$4 -> 2051 | BG4: =Tijd!BG$4 -> 2052 | BH4: =Tijd!BH$4 -> 2053 | BI4: =Tijd!BI$4 -> 2054 | BJ4: =Tijd!BJ$4 -> 2055 | BK4: =Tijd!BK$4 -> 2056 | BL4: =Tijd!BL$4 -> 2057 | BM4: =Tijd!BM$4 -> 2058 | BN4: =Tijd!BN$4 -> 2059 | BO4: =Tijd!BO$4 -> 2060 | BP4: =Tijd!BP$4 -> 2061 | BQ4: =Tijd!BQ$4 -> 2062 | BR4: =Tijd!BR$4 -> 2063 | BS4: =Tijd!BS$4 -> 2064 | BT4: =Tijd!BT$4 -> 2065 | BU4: =Tijd!BU$4 -> 2066 | BV4: =Tijd!BV$4 -> 2067 | BW4: =Tijd!BW$4 -> 2068 | BX4: =Tijd!BX$4 -> 2069 | BY4: =Tijd!BY$4 -> 2070 | BZ4: =Tijd!BZ$4 -> 2071 | CA4: =Tijd!CA$4 -> 2072 | CB4: =Tijd!CB$4 -> 2073 | CC4: =Tijd!CC$4 -> 2074 | CD4: =Tijd!CD$4 -> 2075 | CE4: =Tijd!CE$4 -> 2076 | CF4: =Tijd!CF$4 -> 2077 | CG4: =Tijd!CG$4 -> 2078 | CH4: =Tijd!CH$4 -> 2079 | CI4: =Tijd!CI$4 -> 2080 | CJ4: =Tijd!CJ$4 -> 2081 | CK4: =Tijd!CK$4 -> 2082 | CL4: =Tijd!CL$4 -> 2083 | CM4: =Tijd!CM$4 -> 2084 | CN4: =Tijd!CN$4 -> 2085 | CO4: =Tijd!CO$4 -> 2086 | CP4: =Tijd!CP$4 -> 2087 | CQ4: =Tijd!CQ$4 -> 2088 | CR4: =Tijd!CR$4 -> 2089 | CS4: =Tijd!CS$4 -> 2090 | CT4: =Tijd!CT$4 -> 2091 | CU4: =Tijd!CU$4 -> 2092 | CV4: =Tijd!CV$4 -> 2093 | CW4: =Tijd!CW$4 -> 2094 | CX4: =Tijd!CX$4 -> 2095 | CY4: =Tijd!CY$4 -> 2096 | CZ4: =Tijd!CZ$4 -> 2097 | DA4: =Tijd!DA$4 -> 2098 | DB4: =Tijd!DB$4 -> 2099 | DC4: =Tijd!DC$4 -> 2100 | DD4: =Tijd!DD$4 -> 2101 | DE4: =Tijd!DE$4 -> 2102 | DF4: =Tijd!DF$4 -> 2103
E5: =Tijd!E$5 -> Looptijd vs Uitlooptijd | G5: =Check!G5 -> 0 | H5: =Check!H5 -> waarschuwingen | K5: =Tijd!K$5 -> Looptijd | L5: =Tijd!L$5 -> Looptijd | M5: =Tijd!M$5 -> Looptijd | N5: =Tijd!N$5 -> Looptijd | O5: =Tijd!O$5 -> Looptijd | P5: =Tijd!P$5 -> Looptijd | Q5: =Tijd!Q$5 -> Looptijd | R5: =Tijd!R$5 -> Looptijd | S5: =Tijd!S$5 -> Looptijd | T5: =Tijd!T$5 -> Looptijd | U5: =Tijd!U$5 -> Looptijd | V5: =Tijd!V$5 -> Looptijd | W5: =Tijd!W$5 -> Looptijd | X5: =Tijd!X$5 -> Looptijd | Y5: =Tijd!Y$5 -> Looptijd | Z5: =Tijd!Z$5 -> Looptijd | AA5: =Tijd!AA$5 -> Looptijd | AB5: =Tijd!AB$5 -> Looptijd | AC5: =Tijd!AC$5 -> Looptijd | AD5: =Tijd!AD$5 -> Looptijd | AE5: =Tijd!AE$5 -> Looptijd | AF5: =Tijd!AF$5 -> Looptijd | AG5: =Tijd!AG$5 -> Looptijd | AH5: =Tijd!AH$5 -> Looptijd | AI5: =Tijd!AI$5 -> Looptijd | AJ5: =Tijd!AJ$5 -> Looptijd | AK5: =Tijd!AK$5 -> Looptijd | AL5: =Tijd!AL$5 -> Looptijd | AM5: =Tijd!AM$5 -> Looptijd | AN5: =Tijd!AN$5 -> Looptijd | AO5: =Tijd!AO$5 -> Looptijd | AP5: =Tijd!AP$5 -> Looptijd | AQ5: =Tijd!AQ$5 -> Looptijd | AR5: =Tijd!AR$5 -> Looptijd | AS5: =Tijd!AS$5 -> Looptijd | AT5: =Tijd!AT$5 -> Looptijd | AU5: =Tijd!AU$5 -> Looptijd | AV5: =Tijd!AV$5 -> Looptijd | AW5: =Tijd!AW$5 -> Looptijd | AX5: =Tijd!AX$5 -> Looptijd | AY5: =Tijd!AY$5 -> Looptijd | AZ5: =Tijd!AZ$5 -> Looptijd | BA5: =Tijd!BA$5 -> Looptijd | BB5: =Tijd!BB$5 -> Looptijd | BC5: =Tijd!BC$5 -> Looptijd | BD5: =Tijd!BD$5 -> Looptijd | BE5: =Tijd!BE$5 -> Looptijd | BF5: =Tijd!BF$5 -> Looptijd | BG5: =Tijd!BG$5 -> Looptijd | BH5: =Tijd!BH$5 -> Looptijd | BI5: =Tijd!BI$5 -> Looptijd | BJ5: =Tijd!BJ$5 -> Uitlooptijd | BK5: =Tijd!BK$5 -> Uitlooptijd | BL5: =Tijd!BL$5 -> Uitlooptijd | BM5: =Tijd!BM$5 -> Uitlooptijd | BN5: =Tijd!BN$5 -> Uitlooptijd | BO5: =Tijd!BO$5 -> Uitlooptijd | BP5: =Tijd!BP$5 -> Uitlooptijd | BQ5: =Tijd!BQ$5 -> Uitlooptijd | BR5: =Tijd!BR$5 -> Uitlooptijd | BS5: =Tijd!BS$5 -> Uitlooptijd | BT5: =Tijd!BT$5 -> Uitlooptijd | BU5: =Tijd!BU$5 -> Uitlooptijd | BV5: =Tijd!BV$5 -> Uitlooptijd | BW5: =Tijd!BW$5 -> Uitlooptijd | BX5: =Tijd!BX$5 -> Uitlooptijd | BY5: =Tijd!BY$5 -> Uitlooptijd | BZ5: =Tijd!BZ$5 -> Uitlooptijd | CA5: =Tijd!CA$5 -> Uitlooptijd | CB5: =Tijd!CB$5 -> Uitlooptijd | CC5: =Tijd!CC$5 -> Uitlooptijd | CD5: =Tijd!CD$5 -> Uitlooptijd | CE5: =Tijd!CE$5 -> Uitlooptijd | CF5: =Tijd!CF$5 -> Uitlooptijd | CG5: =Tijd!CG$5 -> Uitlooptijd | CH5: =Tijd!CH$5 -> Uitlooptijd | CI5: =Tijd!CI$5 -> Uitlooptijd | CJ5: =Tijd!CJ$5 -> Uitlooptijd | CK5: =Tijd!CK$5 -> Uitlooptijd | CL5: =Tijd!CL$5 -> Uitlooptijd | CM5: =Tijd!CM$5 -> Uitlooptijd | CN5: =Tijd!CN$5 -> Uitlooptijd | CO5: =Tijd!CO$5 -> Uitlooptijd | CP5: =Tijd!CP$5 -> Uitlooptijd | CQ5: =Tijd!CQ$5 -> Uitlooptijd | CR5: =Tijd!CR$5 -> Uitlooptijd | CS5: =Tijd!CS$5 -> Uitlooptijd | CT5: =Tijd!CT$5 -> Uitlooptijd | CU5: =Tijd!CU$5 -> Uitlooptijd | CV5: =Tijd!CV$5 -> Uitlooptijd | CW5: =Tijd!CW$5 -> Uitlooptijd | CX5: =Tijd!CX$5 -> Uitlooptijd | CY5: =Tijd!CY$5 -> Uitlooptijd | CZ5: =Tijd!CZ$5 -> Uitlooptijd | DA5: =Tijd!DA$5 -> Uitlooptijd | DB5: =Tijd!DB$5 -> Uitlooptijd | DC5: =Tijd!DC$5 -> Uitlooptijd | DD5: =Tijd!DD$5 -> Uitlooptijd | DE5: =Tijd!DE$5 -> Uitlooptijd | DF5: =Tijd!DF$5 -> Uitlooptijd
E6: =Tijd!E$10 -> Model kolom teller | F6: Bron | G6: Constante | H6: Eenheid | I6: Totaal | K6: =Tijd!K$10 -> 1 | L6: =Tijd!L$10 -> 2 | M6: =Tijd!M$10 -> 3 | N6: =Tijd!N$10 -> 4 | O6: =Tijd!O$10 -> 5 | P6: =Tijd!P$10 -> 6 | Q6: =Tijd!Q$10 -> 7 | R6: =Tijd!R$10 -> 8 | S6: =Tijd!S$10 -> 9 | T6: =Tijd!T$10 -> 10 | U6: =Tijd!U$10 -> 11 | V6: =Tijd!V$10 -> 12 | W6: =Tijd!W$10 -> 13 | X6: =Tijd!X$10 -> 14 | Y6: =Tijd!Y$10 -> 15 | Z6: =Tijd!Z$10 -> 16 | AA6: =Tijd!AA$10 -> 17 | AB6: =Tijd!AB$10 -> 18 | AC6: =Tijd!AC$10 -> 19 | AD6: =Tijd!AD$10 -> 20 | AE6: =Tijd!AE$10 -> 21 | AF6: =Tijd!AF$10 -> 22 | AG6: =Tijd!AG$10 -> 23 | AH6: =Tijd!AH$10 -> 24 | AI6: =Tijd!AI$10 -> 25 | AJ6: =Tijd!AJ$10 -> 26 | AK6: =Tijd!AK$10 -> 27 | AL6: =Tijd!AL$10 -> 28 | AM6: =Tijd!AM$10 -> 29 | AN6: =Tijd!AN$10 -> 30 | AO6: =Tijd!AO$10 -> 31 | AP6: =Tijd!AP$10 -> 32 | AQ6: =Tijd!AQ$10 -> 33 | AR6: =Tijd!AR$10 -> 34 | AS6: =Tijd!AS$10 -> 35 | AT6: =Tijd!AT$10 -> 36 | AU6: =Tijd!AU$10 -> 37 | AV6: =Tijd!AV$10 -> 38 | AW6: =Tijd!AW$10 -> 39 | AX6: =Tijd!AX$10 -> 40 | AY6: =Tijd!AY$10 -> 41 | AZ6: =Tijd!AZ$10 -> 42 | BA6: =Tijd!BA$10 -> 43 | BB6: =Tijd!BB$10 -> 44 | BC6: =Tijd!BC$10 -> 45 | BD6: =Tijd!BD$10 -> 46 | BE6: =Tijd!BE$10 -> 47 | BF6: =Tijd!BF$10 -> 48 | BG6: =Tijd!BG$10 -> 49 | BH6: =Tijd!BH$10 -> 50 | BI6: =Tijd!BI$10 -> 51 | BJ6: =Tijd!BJ$10 -> 52 | BK6: =Tijd!BK$10 -> 53 | BL6: =Tijd!BL$10 -> 54 | BM6: =Tijd!BM$10 -> 55 | BN6: =Tijd!BN$10 -> 56 | BO6: =Tijd!BO$10 -> 57 | BP6: =Tijd!BP$10 -> 58 | BQ6: =Tijd!BQ$10 -> 59 | BR6: =Tijd!BR$10 -> 60 | BS6: =Tijd!BS$10 -> 61 | BT6: =Tijd!BT$10 -> 62 | BU6: =Tijd!BU$10 -> 63 | BV6: =Tijd!BV$10 -> 64 | BW6: =Tijd!BW$10 -> 65 | BX6: =Tijd!BX$10 -> 66 | BY6: =Tijd!BY$10 -> 67 | BZ6: =Tijd!BZ$10 -> 68 | CA6: =Tijd!CA$10 -> 69 | CB6: =Tijd!CB$10 -> 70 | CC6: =Tijd!CC$10 -> 71 | CD6: =Tijd!CD$10 -> 72 | CE6: =Tijd!CE$10 -> 73 | CF6: =Tijd!CF$10 -> 74 | CG6: =Tijd!CG$10 -> 75 | CH6: =Tijd!CH$10 -> 76 | CI6: =Tijd!CI$10 -> 77 | CJ6: =Tijd!CJ$10 -> 78 | CK6: =Tijd!CK$10 -> 79 | CL6: =Tijd!CL$10 -> 80 | CM6: =Tijd!CM$10 -> 81 | CN6: =Tijd!CN$10 -> 82 | CO6: =Tijd!CO$10 -> 83 | CP6: =Tijd!CP$10 -> 84 | CQ6: =Tijd!CQ$10 -> 85 | CR6: =Tijd!CR$10 -> 86 | CS6: =Tijd!CS$10 -> 87 | CT6: =Tijd!CT$10 -> 88 | CU6: =Tijd!CU$10 -> 89 | CV6: =Tijd!CV$10 -> 90 | CW6: =Tijd!CW$10 -> 91 | CX6: =Tijd!CX$10 -> 92 | CY6: =Tijd!CY$10 -> 93 | CZ6: =Tijd!CZ$10 -> 94 | DA6: =Tijd!DA$10 -> 95 | DB6: =Tijd!DB$10 -> 96 | DC6: =Tijd!DC$10 -> 97 | DD6: =Tijd!DD$10 -> 98 | DE6: =Tijd!DE$10 -> 99 | DF6: =Tijd!DF$10 -> 100
A9: NETTEN
A11: INVESTERINGSJAAR 2004 - START GAW
E12: Startwaarde GAW incl. afgekochte precario (01-01-2004) | H12: €
E13: Afschrijvingen Start GAW | H13: €
E14: Afgekochte precario in Start GAW (01-01-2004) | H14: €
E15: Afschrijvingsbedrag afgekochte precario | H15: €
A17: INVESTERINGSJAAR 2004
B19: Investeringen 2004
E20: Aanschafwaarde investeringen 2004 met afschrijvingstermijn 55 | H20: € | I20: =SUM(K20:DF20) -> 0
E21: Aanschafwaarde investeringen 2004 met afschrijvingstermijn 45 | H21: € | I21: 0
E22: Aanschafwaarde investeringen 2004 met afschrijvingstermijn 30 | H22: € | I22: 0
E23: Aanschafwaarde investeringen 2004 met afschrijvingstermijn 25 | H23: € | I23: 0
E24: Aanschafwaarde investeringen 2004 met afschrijvingstermijn 10 | H24: € | I24: 0
E25: Aanschafwaarde investeringen 2004 met afschrijvingstermijn 5 | H25: € | I25: 0
E26: Aanschafwaarde investeringen 2004 zonder afschrijvingstermijn | H26: € | I26: 0
B28: Desinvesteringen 2004
E29: Desinvesteringen 2004 met afschrijvingstermijn 55 | H29: € | I29: =SUM(K29:DF29) -> 0
E30: Desinvesteringen 2004 met afschrijvingstermijn 45 | H30: € | I30: 0
E31: Desinvesteringen 2004 met afschrijvingstermijn 30 | H31: € | I31: 0
E32: Desinvesteringen 2004 met afschrijvingstermijn 25 | H32: € | I32: 0
E33: Desinvesteringen 2004 met afschrijvingstermijn 10 | H33: € | I33: 0
E34: Desinvesteringen 2004 met afschrijvingstermijn 5 | H34: € | I34: 0
E35: Desinvesteringen 2004 zonder afschrijvingstermijn | H35: € | I35: 0
B37: Opgegeven Afschrijvingen 2004
E38: Opgegeven afschrijvingen 2004 met afschrijvingstermijn 55 | H38: € | I38: =SUM(K38:DF38) -> 0
E39: Opgegeven afschrijvingen 2004 met afschrijvingstermijn 45 | H39: € | I39: 0
E40: Opgegeven afschrijvingen 2004 met afschrijvingstermijn 30 | H40: € | I40: 0
E41: Opgegeven afschrijvingen 2004 met afschrijvingstermijn 25 | H41: € | I41: 0
E42: Opgegeven afschrijvingen 2004 met afschrijvingstermijn 10 | H42: € | I42: 0
E43: Opgegeven afschrijvingen 2004 met afschrijvingstermijn 5 | H43: € | I43: 0
B45: Opgegeven Cumulatieve Afschrijvingen Bij Desinvesteringen 2004
E46: Opgegeven c.a.d. 2004 met afschrijvingstermijn 55 | H46: € | I46: =SUM(K46:DF46) -> 0
E47: Opgegeven c.a.d. 2004 met afschrijvingstermijn 45 | H47: € | I47: 0
E48: Opgegeven c.a.d. 2004 met afschrijvingstermijn 30 | H48: € | I48: 0
E49: Opgegeven c.a.d. 2004 met afschrijvingstermijn 25 | H49: € | I49: 0
E50: Opgegeven c.a.d. 2004 met afschrijvingstermijn 10 | H50: € | I50: 0
E51: Opgegeven c.a.d. 2004 met afschrijvingstermijn 5 | H51: € | I51: 0
B53: Bijzondere Waardeverminderingen Op Activa 2004
E54: Bijzondere waardeverminderingen op activa 2004 met afschrijvingstermijn 55 | H54: € | I54: =SUM(K54:DF54) -> 0
E55: Bijzondere waardeverminderingen op activa 2004 met afschrijvingstermijn 45 | H55: € | I55: 0
E56: Bijzondere waardeverminderingen op activa 2004 met afschrijvingstermijn 30 | H56: € | I56: 0
E57: Bijzondere waardeverminderingen op activa 2004 met afschrijvingstermijn 25 | H57: € | I57: 0
E58: Bijzondere waardeverminderingen op activa 2004 met afschrijvingstermijn 10 | H58: € | I58: 0
E59: Bijzondere waardeverminderingen op activa 2004 met afschrijvingstermijn 5 | H59: € | I59: 0
B61: Input Alert
E62: Dummy Beginjaar investeringen
E63: Dummy Modelperiode
E64: Dummy Aantal cellen met onterechte input 2004
E65: Dummy Waarschuwing onterecht ingevulde cellen 2004
A67: INVESTERINGSJAAR 2005
B69: Investeringen 2005
E70: Aanschafwaarde investeringen 2005 met afschrijvingstermijn 55 | H70: € | I70: =SUM(K70:DF70) -> 0
E71: Aanschafwaarde investeringen 2005 met afschrijvingstermijn 45 | H71: € | I71: 0
E72: Aanschafwaarde investeringen 2005 met afschrijvingstermijn 30 | H72: € | I72: 0
E73: Aanschafwaarde investeringen 2005 met afschrijvingstermijn 25 | H73: € | I73: 0
E74: Aanschafwaarde investeringen 2005 met afschrijvingstermijn 10 | H74: € | I74: 0
E75: Aanschafwaarde investeringen 2005 met afschrijvingstermijn 5 | H75: € | I75: 0
E76: Aanschafwaarde investeringen 2005 zonder afschrijvingstermijn | H76: € | I76: 0
B78: Desinvesteringen 2005
E79: Desinvesteringen 2005 met afschrijvingstermijn 55 | H79: € | I79: =SUM(K79:DF79) -> 0
E80: Desinvesteringen 2005 met afschrijvingstermijn 45 | H80: € | I80: 0
E81: Desinvesteringen 2005 met afschrijvingstermijn 30 | H81: € | I81: 0
E82: Desinvesteringen 2005 met afschrijvingstermijn 25 | H82: € | I82: 0
E83: Desinvesteringen 2005 met afschrijvingstermijn 10 | H83: € | I83: 0
E84: Desinvesteringen 2005 met afschrijvingstermijn 5 | H84: € | I84: 0
E85: Desinvesteringen 2005 zonder afschrijvingstermijn | H85: € | I85: 0
B87: Opgegeven Afschrijvingen 2005
E88: Opgegeven afschrijvingen 2005 met afschrijvingstermijn 55 | H88: € | I88: =SUM(L88:DF88) -> 0
E89: Opgegeven afschrijvingen 2005 met afschrijvingstermijn 45 | H89: € | I89: 0
E90: Opgegeven afschrijvingen 2005 met afschrijvingstermijn 30 | H90: € | I90: 0
E91: Opgegeven afschrijvingen 2005 met afschrijvingstermijn 25 | H91: € | I91: 0
E92: Opgegeven afschrijvingen 2005 met afschrijvingstermijn 10 | H92: € | I92: 0
E93: Opgegeven afschrijvingen 2005 met afschrijvingstermijn 5 | H93: € | I93: 0
B95: Opgegeven Cumulatieve Afschrijvingen Bij Desinvesteringen 2005
E96: Opgegeven c.a.d. 2005 met afschrijvingstermijn 55 | H96: € | I96: =SUM(K96:DF96) -> 0
E97: Opgegeven c.a.d. 2005 met afschrijvingstermijn 45 | H97: € | I97: 0
E98: Opgegeven c.a.d. 2005 met afschrijvingstermijn 30 | H98: € | I98: 0
E99: Opgegeven c.a.d. 2005 met afschrijvingstermijn 25 | H99: € | I99: 0
E100: Opgegeven c.a.d. 2005 met afschrijvingstermijn 10 | H100: € | I100: 0
E101: Opgegeven c.a.d. 2005 met afschrijvingstermijn 5 | H101: € | I101: 0
B103: Bijzondere Waardeverminderingen Op Activa 2005
E104: Bijzondere waardeverminderingen op activa 2005 met afschrijvingstermijn 55 | H104: € | I104: =SUM(K104:DF104) -> 0
E105: Bijzondere waardeverminderingen op activa 2005 met afschrijvingstermijn 45 | H105: € | I105: 0
E106: Bijzondere waardeverminderingen op activa 2005 met afschrijvingstermijn 30 | H106: € | I106: 0
E107: Bijzondere waardeverminderingen op activa 2005 met afschrijvingstermijn 25 | H107: € | I107: 0
E108: Bijzondere waardeverminderingen op activa 2005 met afschrijvingstermijn 10 | H108: € | I108: 0
E109: Bijzondere waardeverminderingen op activa 2005 met afschrijvingstermijn 5 | H109: € | I109: 0
B111: Input Alert
E112: Dummy Beginjaar investeringen
E113: Dummy Modelperiode
E114: Dummy Aantal cellen met onterechte input 2005
E115: Dummy Waarschuwing onterecht ingevulde cellen 2005
A117: INVESTERINGSJAAR 2006 - START GAW voor EHD
E118: Startwaarde GAW voor EHD (01-01-2006) | G118: 11304802.72 | H118: €
E119: Afschrijvingen Start GAW voor EHD | G119: 244216.0196 | H119: €
A121: INVESTERINGSJAAR 2006
B123: Investeringen 2006
E124: Aanschafwaarde investeringen 2006 met afschrijvingstermijn 55 | H124: € | I124: =SUM(K124:DF124) -> 0
E125: Aanschafwaarde investeringen 2006 met afschrijvingstermijn 45 | H125: € | I125: 0
E126: Aanschafwaarde investeringen 2006 met afschrijvingstermijn 30 | H126: € | I126: 0
E127: Aanschafwaarde investeringen 2006 met afschrijvingstermijn 25 | H127: € | I127: 0
E128: Aanschafwaarde investeringen 2006 met afschrijvingstermijn 10 | H128: € | I128: 0
E129: Aanschafwaarde investeringen 2006 met afschrijvingstermijn 5 | H129: € | I129: 0
E130: Aanschafwaarde investeringen 2006 zonder afschrijvingstermijn | H130: € | I130: 0
B132: Desinvesteringen 2006
E133: Desinvesteringen 2006 met afschrijvingstermijn 55 | H133: € | I133: =SUM(K133:DF133) -> 0
E134: Desinvesteringen 2006 met afschrijvingstermijn 45 | H134: € | I134: 0
E135: Desinvesteringen 2006 met afschrijvingstermijn 30 | H135: € | I135: 0
E136: Desinvesteringen 2006 met afschrijvingstermijn 25 | H136: € | I136: 0
E137: Desinvesteringen 2006 met afschrijvingstermijn 10 | H137: € | I137: 0
E138: Desinvesteringen 2006 met afschrijvingstermijn 5 | H138: € | I138: 0
E139: Desinvesteringen 2006 zonder afschrijvingstermijn | H139: € | I139: 0
B141: Opgegeven Afschrijvingen 2006
E142: Opgegeven afschrijvingen 2006 met afschrijvingstermijn 55 | H142: € | I142: =SUM(K142:DF142) -> 0
E143: Opgegeven afschrijvingen 2006 met afschrijvingstermijn 45 | H143: € | I143: 0
E144: Opgegeven afschrijvingen 2006 met afschrijvingstermijn 30 | H144: € | I144: 0
E145: Opgegeven afschrijvingen 2006 met afschrijvingstermijn 25 | H145: € | I145: 0
E146: Opgegeven afschrijvingen 2006 met afschrijvingstermijn 10 | H146: € | I146: 0
E147: Opgegeven afschrijvingen 2006 met afschrijvingstermijn 5 | H147: € | I147: 0
B149: Opgegeven Cumulatieve Afschrijvingen Bij Desinvesteringen 2006
E150: Opgegeven c.a.d. 2006 met afschrijvingstermijn 55 | H150: € | I150: =SUM(K150:DF150) -> 0
E151: Opgegeven c.a.d. 2006 met afschrijvingstermijn 45 | H151: € | I151: 0
E152: Opgegeven c.a.d. 2006 met afschrijvingstermijn 30 | H152: € | I152: 0
E153: Opgegeven c.a.d. 2006 met afschrijvingstermijn 25 | H153: € | I153: 0
E154: Opgegeven c.a.d. 2006 met afschrijvingstermijn 10 | H154: € | I154: 0
E155: Opgegeven c.a.d. 2006 met afschrijvingstermijn 5 | H155: € | I155: 0
B157: Bijzondere Waardeverminderingen Op Activa 2006
E158: Bijzondere waardeverminderingen op activa 2006 met afschrijvingstermijn 55 | H158: € | I158: =SUM(K158:DF158) -> 0
E159: Bijzondere waardeverminderingen op activa 2006 met afschrijvingstermijn 45 | H159: € | I159: 0
E160: Bijzondere waardeverminderingen op activa 2006 met afschrijvingstermijn 30 | H160: € | I160: 0
E161: Bijzondere waardeverminderingen op activa 2006 met afschrijvingstermijn 25 | H161: € | I161: 0
E162: Bijzondere waardeverminderingen op activa 2006 met afschrijvingstermijn 10 | H162: € | I162: 0
E163: Bijzondere waardeverminderingen op activa 2006 met afschrijvingstermijn 5 | H163: € | I163: 0
B165: Input Alert
E166: Dummy Beginjaar investeringen
E167: Dummy Modelperiode
E168: Dummy Aantal cellen met onterechte input 2006
E169: Dummy Waarschuwing onterecht ingevulde cellen 2006
A171: INVESTERINGSJAAR 2007
B173: Investeringen 2007
E174: Aanschafwaarde investeringen 2007 met afschrijvingstermijn 55 | H174: € | I174: =SUM(K174:DF174) -> 0
E175: Aanschafwaarde investeringen 2007 met afschrijvingstermijn 45 | H175: € | I175: 0
E176: Aanschafwaarde investeringen 2007 met afschrijvingstermijn 30 | H176: € | I176: 0
E177: Aanschafwaarde investeringen 2007 met afschrijvingstermijn 25 | H177: € | I177: 0
E178: Aanschafwaarde investeringen 2007 met afschrijvingstermijn 10 | H178: € | I178: 0
E179: Aanschafwaarde investeringen 2007 met afschrijvingstermijn 5 | H179: € | I179: 0
E180: Aanschafwaarde investeringen 2007 zonder afschrijvingstermijn | H180: € | I180: 0
B182: Desinvesteringen 2007
E183: Desinvesteringen 2007 met afschrijvingstermijn 55 | H183: € | I183: =SUM(K183:DF183) -> 0
E184: Desinvesteringen 2007 met afschrijvingstermijn 45 | H184: € | I184: 0
E185: Desinvesteringen 2007 met afschrijvingstermijn 30 | H185: € | I185: 0
E186: Desinvesteringen 2007 met afschrijvingstermijn 25 | H186: € | I186: 0
E187: Desinvesteringen 2007 met afschrijvingstermijn 10 | H187: € | I187: 0
E188: Desinvesteringen 2007 met afschrijvingstermijn 5 | H188: € | I188: 0
E189: Desinvesteringen 2007 zonder afschrijvingstermijn | H189: € | I189: 0
B191: Opgegeven Afschrijvingen 2007
E192: Opgegeven afschrijvingen 2007 met afschrijvingstermijn 55 | H192: € | I192: =SUM(K192:DF192) -> 0
E193: Opgegeven afschrijvingen 2007 met afschrijvingstermijn 45 | H193: € | I193: 0
E194: Opgegeven afschrijvingen 2007 met afschrijvingstermijn 30 | H194: € | I194: 0
E195: Opgegeven afschrijvingen 2007 met afschrijvingstermijn 25 | H195: € | I195: 0
E196: Opgegeven afschrijvingen 2007 met afschrijvingstermijn 10 | H196: € | I196: 0
E197: Opgegeven afschrijvingen 2007 met afschrijvingstermijn 5 | H197: € | I197: 0
B199: Opgegeven Cumulatieve Afschrijvingen Bij Desinvesteringen 2007
E200: Opgegeven c.a.d. 2007 met afschrijvingstermijn 55 | H200: € | I200: =SUM(K200:DF200) -> 0
E201: Opgegeven c.a.d. 2007 met afschrijvingstermijn 45 | H201: € | I201: 0
E202: Opgegeven c.a.d. 2007 met afschrijvingstermijn 30 | H202: € | I202: 0
E203: Opgegeven c.a.d. 2007 met afschrijvingstermijn 25 | H203: € | I203: 0
E204: Opgegeven c.a.d. 2007 met afschrijvingstermijn 10 | H204: € | I204: 0
E205: Opgegeven c.a.d. 2007 met afschrijvingstermijn 5 | H205: € | I205: 0
B207: Bijzondere Waardeverminderingen Op Activa 2007
E208: Bijzondere waardeverminderingen op activa 2007 met afschrijvingstermijn 55 | H208: € | I208: =SUM(K208:DF208) -> 0
E209: Bijzondere waardeverminderingen op activa 2007 met afschrijvingstermijn 45 | H209: € | I209: 0
E210: Bijzondere waardeverminderingen op activa 2007 met afschrijvingstermijn 30 | H210: € | I210: 0
E211: Bijzondere waardeverminderingen op activa 2007 met afschrijvingstermijn 25 | H211: € | I211: 0
E212: Bijzondere waardeverminderingen op activa 2007 met afschrijvingstermijn 10 | H212: € | I212: 0
E213: Bijzondere waardeverminderingen op activa 2007 met afschrijvingstermijn 5 | H213: € | I213: 0
B215: Input Alert
E216: Dummy Beginjaar investeringen
E217: Dummy Modelperiode
E218: Dummy Aantal cellen met onterechte input 2007
E219: Dummy Waarschuwing onterecht ingevulde cellen 2007
A221: INVESTERINGSJAAR 2008
B223: Investeringen 2008
E224: Aanschafwaarde investeringen 2008 met afschrijvingstermijn 55 | H224: € | I224: =SUM(K224:DF224) -> 0
E225: Aanschafwaarde investeringen 2008 met afschrijvingstermijn 45 | H225: € | I225: 0
E226: Aanschafwaarde investeringen 2008 met afschrijvingstermijn 30 | H226: € | I226: 0
E227: Aanschafwaarde investeringen 2008 met afschrijvingstermijn 25 | H227: € | I227: 0
E228: Aanschafwaarde investeringen 2008 met afschrijvingstermijn 10 | H228: € | I228: 0
E229: Aanschafwaarde investeringen 2008 met afschrijvingstermijn 5 | H229: € | I229: 0
E230: Aanschafwaarde investeringen 2008 zonder afschrijvingstermijn | H230: € | I230: 0
B232: Desinvesteringen 2008
E233: Desinvesteringen 2008 met afschrijvingstermijn 55 | H233: € | I233: =SUM(K233:DF233) -> 0
E234: Desinvesteringen 2008 met afschrijvingstermijn 45 | H234: € | I234: 0
E235: Desinvesteringen 2008 met afschrijvingstermijn 30 | H235: € | I235: 0
... 468 more rows

Sheet InpEndinet
A1: =RIGHT(CELL("filename", A1), LEN(CELL("filename", A1)) - SEARCH("]", CELL("filename", A1))) -> InpEndinet
E2: =Tijd!E$2 -> Actieve netbeheerder | G2: =Tijd!G$2 -> Zebra EHD
E3: =Tijd!E$3 -> Actieve inputsheet | G3: =Tijd!G$3 -> InpZebra EHD
E4: =Tijd!E$4 -> Modelperiode | G4: =Check!G4 -> 0 | H4: =Check!H4 -> errors | K4: =Tijd!K$4 -> 2004 | L4: =Tijd!L$4 -> 2005 | M4: =Tijd!M$4 -> 2006 | N4: =Tijd!N$4 -> 2007 | O4: =Tijd!O$4 -> 2008 | P4: =Tijd!P$4 -> 2009 | Q4: =Tijd!Q$4 -> 2010 | R4: =Tijd!R$4 -> 2011 | S4: =Tijd!S$4 -> 2012 | T4: =Tijd!T$4 -> 2013 | U4: =Tijd!U$4 -> 2014 | V4: =Tijd!V$4 -> 2015 | W4: =Tijd!W$4 -> 2016 | X4: =Tijd!X$4 -> 2017 | Y4: =Tijd!Y$4 -> 2018 | Z4: =Tijd!Z$4 -> 2019 | AA4: =Tijd!AA$4 -> 2020 | AB4: =Tijd!AB$4 -> 2021 | AC4: =Tijd!AC$4 -> 2022 | AD4: =Tijd!AD$4 -> 2023 | AE4: =Tijd!AE$4 -> 2024 | AF4: =Tijd!AF$4 -> 2025 | AG4: =Tijd!AG$4 -> 2026 | AH4: =Tijd!AH$4 -> 2027 | AI4: =Tijd!AI$4 -> 2028 | AJ4: =Tijd!AJ$4 -> 2029 | AK4: =Tijd!AK$4 -> 2030 | AL4: =Tijd!AL$4 -> 2031 | AM4: =Tijd!AM$4 -> 2032 | AN4: =Tijd!AN$4 -> 2033 | AO4: =Tijd!AO$4 -> 2034 | AP4: =Tijd!AP$4 -> 2035 | AQ4: =Tijd!AQ$4 -> 2036 | AR4: =Tijd!AR$4 -> 2037 | AS4: =Tijd!AS$4 -> 2038 | AT4: =Tijd!AT$4 -> 2039 | AU4: =Tijd!AU$4 -> 2040 | AV4: =Tijd!AV$4 -> 2041 | AW4: =Tijd!AW$4 -> 2042 | AX4: =Tijd!AX$4 -> 2043 | AY4: =Tijd!AY$4 -> 2044 | AZ4: =Tijd!AZ$4 -> 2045 | BA4: =Tijd!BA$4 -> 2046 | BB4: =Tijd!BB$4 -> 2047 | BC4: =Tijd!BC$4 -> 2048 | BD4: =Tijd!BD$4 -> 2049 | BE4: =Tijd!BE$4 -> 2050 | BF4: =Tijd!BF$4 -> 2051 | BG4: =Tijd!BG$4 -> 2052 | BH4: =Tijd!BH$4 -> 2053 | BI4: =Tijd!BI$4 -> 2054 | BJ4: =Tijd!BJ$4 -> 2055 | BK4: =Tijd!BK$4 -> 2056 | BL4: =Tijd!BL$4 -> 2057 | BM4: =Tijd!BM$4 -> 2058 | BN4: =Tijd!BN$4 -> 2059 | BO4: =Tijd!BO$4 -> 2060 | BP4: =Tijd!BP$4 -> 2061 | BQ4: =Tijd!BQ$4 -> 2062 | BR4: =Tijd!BR$4 -> 2063 | BS4: =Tijd!BS$4 -> 2064 | BT4: =Tijd!BT$4 -> 2065 | BU4: =Tijd!BU$4 -> 2066 | BV4: =Tijd!BV$4 -> 2067 | BW4: =Tijd!BW$4 -> 2068 | BX4: =Tijd!BX$4 -> 2069 | BY4: =Tijd!BY$4 -> 2070 | BZ4: =Tijd!BZ$4 -> 2071 | CA4: =Tijd!CA$4 -> 2072 | CB4: =Tijd!CB$4 -> 2073 | CC4: =Tijd!CC$4 -> 2074 | CD4: =Tijd!CD$4 -> 2075 | CE4: =Tijd!CE$4 -> 2076 | CF4: =Tijd!CF$4 -> 2077 | CG4: =Tijd!CG$4 -> 2078 | CH4: =Tijd!CH$4 -> 2079 | CI4: =Tijd!CI$4 -> 2080 | CJ4: =Tijd!CJ$4 -> 2081 | CK4: =Tijd!CK$4 -> 2082 | CL4: =Tijd!CL$4 -> 2083 | CM4: =Tijd!CM$4 -> 2084 | CN4: =Tijd!CN$4 -> 2085 | CO4: =Tijd!CO$4 -> 2086 | CP4: =Tijd!CP$4 -> 2087 | CQ4: =Tijd!CQ$4 -> 2088 | CR4: =Tijd!CR$4 -> 2089 | CS4: =Tijd!CS$4 -> 2090 | CT4: =Tijd!CT$4 -> 2091 | CU4: =Tijd!CU$4 -> 2092 | CV4: =Tijd!CV$4 -> 2093 | CW4: =Tijd!CW$4 -> 2094 | CX4: =Tijd!CX$4 -> 2095 | CY4: =Tijd!CY$4 -> 2096 | CZ4: =Tijd!CZ$4 -> 2097 | DA4: =Tijd!DA$4 -> 2098 | DB4: =Tijd!DB$4 -> 2099 | DC4: =Tijd!DC$4 -> 2100 | DD4: =Tijd!DD$4 -> 2101 | DE4: =Tijd!DE$4 -> 2102 | DF4: =Tijd!DF$4 -> 2103
E5: =Tijd!E$5 -> Looptijd vs Uitlooptijd | G5: =Check!G5 -> 0 | H5: =Check!H5 -> waarschuwingen | K5: =Tijd!K$5 -> Looptijd | L5: =Tijd!L$5 -> Looptijd | M5: =Tijd!M$5 -> Looptijd | N5: =Tijd!N$5 -> Looptijd | O5: =Tijd!O$5 -> Looptijd | P5: =Tijd!P$5 -> Looptijd | Q5: =Tijd!Q$5 -> Looptijd | R5: =Tijd!R$5 -> Looptijd | S5: =Tijd!S$5 -> Looptijd | T5: =Tijd!T$5 -> Looptijd | U5: =Tijd!U$5 -> Looptijd | V5: =Tijd!V$5 -> Looptijd | W5: =Tijd!W$5 -> Looptijd | X5: =Tijd!X$5 -> Looptijd | Y5: =Tijd!Y$5 -> Looptijd | Z5: =Tijd!Z$5 -> Looptijd | AA5: =Tijd!AA$5 -> Looptijd | AB5: =Tijd!AB$5 -> Looptijd | AC5: =Tijd!AC$5 -> Looptijd | AD5: =Tijd!AD$5 -> Looptijd | AE5: =Tijd!AE$5 -> Looptijd | AF5: =Tijd!AF$5 -> Looptijd | AG5: =Tijd!AG$5 -> Looptijd | AH5: =Tijd!AH$5 -> Looptijd | AI5: =Tijd!AI$5 -> Looptijd | AJ5: =Tijd!AJ$5 -> Looptijd | AK5: =Tijd!AK$5 -> Looptijd | AL5: =Tijd!AL$5 -> Looptijd | AM5: =Tijd!AM$5 -> Looptijd | AN5: =Tijd!AN$5 -> Looptijd | AO5: =Tijd!AO$5 -> Looptijd | AP5: =Tijd!AP$5 -> Looptijd | AQ5: =Tijd!AQ$5 -> Looptijd | AR5: =Tijd!AR$5 -> Looptijd | AS5: =Tijd!AS$5 -> Looptijd | AT5: =Tijd!AT$5 -> Looptijd | AU5: =Tijd!AU$5 -> Looptijd | AV5: =Tijd!AV$5 -> Looptijd | AW5: =Tijd!AW$5 -> Looptijd | AX5: =Tijd!AX$5 -> Looptijd | AY5: =Tijd!AY$5 -> Looptijd | AZ5: =Tijd!AZ$5 -> Looptijd | BA5: =Tijd!BA$5 -> Looptijd | BB5: =Tijd!BB$5 -> Looptijd | BC5: =Tijd!BC$5 -> Looptijd | BD5: =Tijd!BD$5 -> Looptijd | BE5: =Tijd!BE$5 -> Looptijd | BF5: =Tijd!BF$5 -> Looptijd | BG5: =Tijd!BG$5 -> Looptijd | BH5: =Tijd!BH$5 -> Looptijd | BI5: =Tijd!BI$5 -> Looptijd | BJ5: =Tijd!BJ$5 -> Uitlooptijd | BK5: =Tijd!BK$5 -> Uitlooptijd | BL5: =Tijd!BL$5 -> Uitlooptijd | BM5: =Tijd!BM$5 -> Uitlooptijd | BN5: =Tijd!BN$5 -> Uitlooptijd | BO5: =Tijd!BO$5 -> Uitlooptijd | BP5: =Tijd!BP$5 -> Uitlooptijd | BQ5: =Tijd!BQ$5 -> Uitlooptijd | BR5: =Tijd!BR$5 -> Uitlooptijd | BS5: =Tijd!BS$5 -> Uitlooptijd | BT5: =Tijd!BT$5 -> Uitlooptijd | BU5: =Tijd!BU$5 -> Uitlooptijd | BV5: =Tijd!BV$5 -> Uitlooptijd | BW5: =Tijd!BW$5 -> Uitlooptijd | BX5: =Tijd!BX$5 -> Uitlooptijd | BY5: =Tijd!BY$5 -> Uitlooptijd | BZ5: =Tijd!BZ$5 -> Uitlooptijd | CA5: =Tijd!CA$5 -> Uitlooptijd | CB5: =Tijd!CB$5 -> Uitlooptijd | CC5: =Tijd!CC$5 -> Uitlooptijd | CD5: =Tijd!CD$5 -> Uitlooptijd | CE5: =Tijd!CE$5 -> Uitlooptijd | CF5: =Tijd!CF$5 -> Uitlooptijd | CG5: =Tijd!CG$5 -> Uitlooptijd | CH5: =Tijd!CH$5 -> Uitlooptijd | CI5: =Tijd!CI$5 -> Uitlooptijd | CJ5: =Tijd!CJ$5 -> Uitlooptijd | CK5: =Tijd!CK$5 -> Uitlooptijd | CL5: =Tijd!CL$5 -> Uitlooptijd | CM5: =Tijd!CM$5 -> Uitlooptijd | CN5: =Tijd!CN$5 -> Uitlooptijd | CO5: =Tijd!CO$5 -> Uitlooptijd | CP5: =Tijd!CP$5 -> Uitlooptijd | CQ5: =Tijd!CQ$5 -> Uitlooptijd | CR5: =Tijd!CR$5 -> Uitlooptijd | CS5: =Tijd!CS$5 -> Uitlooptijd | CT5: =Tijd!CT$5 -> Uitlooptijd | CU5: =Tijd!CU$5 -> Uitlooptijd | CV5: =Tijd!CV$5 -> Uitlooptijd | CW5: =Tijd!CW$5 -> Uitlooptijd | CX5: =Tijd!CX$5 -> Uitlooptijd | CY5: =Tijd!CY$5 -> Uitlooptijd | CZ5: =Tijd!CZ$5 -> Uitlooptijd | DA5: =Tijd!DA$5 -> Uitlooptijd | DB5: =Tijd!DB$5 -> Uitlooptijd | DC5: =Tijd!DC$5 -> Uitlooptijd | DD5: =Tijd!DD$5 -> Uitlooptijd | DE5: =Tijd!DE$5 -> Uitlooptijd | DF5: =Tijd!DF$5 -> Uitlooptijd
E6: =Tijd!E$10 -> Model kolom teller | F6: Bron | G6: Constante | H6: Eenheid | I6: Totaal | K6: =Tijd!K$10 -> 1 | L6: =Tijd!L$10 -> 2 | M6: =Tijd!M$10 -> 3 | N6: =Tijd!N$10 -> 4 | O6: =Tijd!O$10 -> 5 | P6: =Tijd!P$10 -> 6 | Q6: =Tijd!Q$10 -> 7 | R6: =Tijd!R$10 -> 8 | S6: =Tijd!S$10 -> 9 | T6: =Tijd!T$10 -> 10 | U6: =Tijd!U$10 -> 11 | V6: =Tijd!V$10 -> 12 | W6: =Tijd!W$10 -> 13 | X6: =Tijd!X$10 -> 14 | Y6: =Tijd!Y$10 -> 15 | Z6: =Tijd!Z$10 -> 16 | AA6: =Tijd!AA$10 -> 17 | AB6: =Tijd!AB$10 -> 18 | AC6: =Tijd!AC$10 -> 19 | AD6: =Tijd!AD$10 -> 20 | AE6: =Tijd!AE$10 -> 21 | AF6: =Tijd!AF$10 -> 22 | AG6: =Tijd!AG$10 -> 23 | AH6: =Tijd!AH$10 -> 24 | AI6: =Tijd!AI$10 -> 25 | AJ6: =Tijd!AJ$10 -> 26 | AK6: =Tijd!AK$10 -> 27 | AL6: =Tijd!AL$10 -> 28 | AM6: =Tijd!AM$10 -> 29 | AN6: =Tijd!AN$10 -> 30 | AO6: =Tijd!AO$10 -> 31 | AP6: =Tijd!AP$10 -> 32 | AQ6: =Tijd!AQ$10 -> 33 | AR6: =Tijd!AR$10 -> 34 | AS6: =Tijd!AS$10 -> 35 | AT6: =Tijd!AT$10 -> 36 | AU6: =Tijd!AU$10 -> 37 | AV6: =Tijd!AV$10 -> 38 | AW6: =Tijd!AW$10 -> 39 | AX6: =Tijd!AX$10 -> 40 | AY6: =Tijd!AY$10 -> 41 | AZ6: =Tijd!AZ$10 -> 42 | BA6: =Tijd!BA$10 -> 43 | BB6: =Tijd!BB$10 -> 44 | BC6: =Tijd!BC$10 -> 45 | BD6: =Tijd!BD$10 -> 46 | BE6: =Tijd!BE$10 -> 47 | BF6: =Tijd!BF$10 -> 48 | BG6: =Tijd!BG$10 -> 49 | BH6: =Tijd!BH$10 -> 50 | BI6: =Tijd!BI$10 -> 51 | BJ6: =Tijd!BJ$10 -> 52 | BK6: =Tijd!BK$10 -> 53 | BL6: =Tijd!BL$10 -> 54 | BM6: =Tijd!BM$10 -> 55 | BN6: =Tijd!BN$10 -> 56 | BO6: =Tijd!BO$10 -> 57 | BP6: =Tijd!BP$10 -> 58 | BQ6: =Tijd!BQ$10 -> 59 | BR6: =Tijd!BR$10 -> 60 | BS6: =Tijd!BS$10 -> 61 | BT6: =Tijd!BT$10 -> 62 | BU6: =Tijd!BU$10 -> 63 | BV6: =Tijd!BV$10 -> 64 | BW6: =Tijd!BW$10 -> 65 | BX6: =Tijd!BX$10 -> 66 | BY6: =Tijd!BY$10 -> 67 | BZ6: =Tijd!BZ$10 -> 68 | CA6: =Tijd!CA$10 -> 69 | CB6: =Tijd!CB$10 -> 70 | CC6: =Tijd!CC$10 -> 71 | CD6: =Tijd!CD$10 -> 72 | CE6: =Tijd!CE$10 -> 73 | CF6: =Tijd!CF$10 -> 74 | CG6: =Tijd!CG$10 -> 75 | CH6: =Tijd!CH$10 -> 76 | CI6: =Tijd!CI$10 -> 77 | CJ6: =Tijd!CJ$10 -> 78 | CK6: =Tijd!CK$10 -> 79 | CL6: =Tijd!CL$10 -> 80 | CM6: =Tijd!CM$10 -> 81 | CN6: =Tijd!CN$10 -> 82 | CO6: =Tijd!CO$10 -> 83 | CP6: =Tijd!CP$10 -> 84 | CQ6: =Tijd!CQ$10 -> 85 | CR6: =Tijd!CR$10 -> 86 | CS6: =Tijd!CS$10 -> 87 | CT6: =Tijd!CT$10 -> 88 | CU6: =Tijd!CU$10 -> 89 | CV6: =Tijd!CV$10 -> 90 | CW6: =Tijd!CW$10 -> 91 | CX6: =Tijd!CX$10 -> 92 | CY6: =Tijd!CY$10 -> 93 | CZ6: =Tijd!CZ$10 -> 94 | DA6: =Tijd!DA$10 -> 95 | DB6: =Tijd!DB$10 -> 96 | DC6: =Tijd!DC$10 -> 97 | DD6: =Tijd!DD$10 -> 98 | DE6: =Tijd!DE$10 -> 99 | DF6: =Tijd!DF$10 -> 100
A9: NETTEN
A11: INVESTERINGSJAAR 2004 - START GAW
E12: Startwaarde GAW incl. afgekochte precario (01-01-2004) | G12: 191483453 | H12: €
E13: Afschrijvingen Start GAW | G13: 5665190.917 | H13: €
E14: Afgekochte precario in Start GAW (01-01-2004) | H14: €
E15: Afschrijvingsbedrag afgekochte precario | H15: €
A17: INVESTERINGSJAAR 2004
B19: Investeringen 2004
E20: Aanschafwaarde investeringen 2004 met afschrijvingstermijn 55 | G20: 558920.6 | H20: € | I20: =SUM(K20:DF20) -> 0
E21: Aanschafwaarde investeringen 2004 met afschrijvingstermijn 45 | G21: 636599.75 | H21: € | I21: 0
E22: Aanschafwaarde investeringen 2004 met afschrijvingstermijn 30 | G22: 127872.17 | H22: € | I22: 0
E23: Aanschafwaarde investeringen 2004 met afschrijvingstermijn 25 | G23: 4443.73 | H23: € | I23: 0
E24: Aanschafwaarde investeringen 2004 met afschrijvingstermijn 10 | H24: € | I24: 0
E25: Aanschafwaarde investeringen 2004 met afschrijvingstermijn 5 | H25: € | I25: 0
E26: Aanschafwaarde investeringen 2004 zonder afschrijvingstermijn | H26: € | I26: 0
B28: Desinvesteringen 2004
E29: Desinvesteringen 2004 met afschrijvingstermijn 55 | H29: € | I29: =SUM(K29:DF29) -> 0
E30: Desinvesteringen 2004 met afschrijvingstermijn 45 | H30: € | I30: 2490.778995 | R30: 2490.778995
E31: Desinvesteringen 2004 met afschrijvingstermijn 30 | H31: € | I31: 0
E32: Desinvesteringen 2004 met afschrijvingstermijn 25 | H32: € | I32: 0
E33: Desinvesteringen 2004 met afschrijvingstermijn 10 | H33: € | I33: 0
E34: Desinvesteringen 2004 met afschrijvingstermijn 5 | H34: € | I34: 0
E35: Desinvesteringen 2004 zonder afschrijvingstermijn | H35: € | I35: 0
B37: Opgegeven Afschrijvingen 2004
E38: Opgegeven afschrijvingen 2004 met afschrijvingstermijn 55 | H38: € | I38: =SUM(K38:DF38) -> 25405.48182 | K38: 5081.096364 | L38: 10162.19273 | M38: 10162.19273
E39: Opgegeven afschrijvingen 2004 met afschrijvingstermijn 45 | H39: € | I39: 35366.65278 | K39: 7073.330556 | L39: 14146.66111 | M39: 14146.66111
E40: Opgegeven afschrijvingen 2004 met afschrijvingstermijn 30 | H40: € | I40: 10361.8475 | K40: 2131.202833 | L40: 4262.405667 | M40: 3968.239
E41: Opgegeven afschrijvingen 2004 met afschrijvingstermijn 25 | H41: € | I41: 560.7904667 | K41: 88.8746 | L41: 177.7492 | M41: 294.1666667
E42: Opgegeven afschrijvingen 2004 met afschrijvingstermijn 10 | H42: € | I42: 0
E43: Opgegeven afschrijvingen 2004 met afschrijvingstermijn 5 | H43: € | I43: 177.7492 | M43: 177.7492
B45: Opgegeven Cumulatieve Afschrijvingen Bij Desinvesteringen 2004
E46: Opgegeven c.a.d. 2004 met afschrijvingstermijn 55 | H46: € | I46: =SUM(K46:DF46) -> 0
E47: Opgegeven c.a.d. 2004 met afschrijvingstermijn 45 | H47: € | I47: 0
E48: Opgegeven c.a.d. 2004 met afschrijvingstermijn 30 | H48: € | I48: 0
E49: Opgegeven c.a.d. 2004 met afschrijvingstermijn 25 | H49: € | I49: 0
E50: Opgegeven c.a.d. 2004 met afschrijvingstermijn 10 | H50: € | I50: 0
E51: Opgegeven c.a.d. 2004 met afschrijvingstermijn 5 | H51: € | I51: 0
B53: Bijzondere Waardeverminderingen Op Activa 2004
E54: Bijzondere waardeverminderingen op activa 2004 met afschrijvingstermijn 55 | H54: € | I54: =SUM(K54:DF54) -> 0
E55: Bijzondere waardeverminderingen op activa 2004 met afschrijvingstermijn 45 | H55: € | I55: 0
E56: Bijzondere waardeverminderingen op activa 2004 met afschrijvingstermijn 30 | H56: € | I56: 0
E57: Bijzondere waardeverminderingen op activa 2004 met afschrijvingstermijn 25 | H57: € | I57: 0
E58: Bijzondere waardeverminderingen op activa 2004 met afschrijvingstermijn 10 | H58: € | I58: 0
E59: Bijzondere waardeverminderingen op activa 2004 met afschrijvingstermijn 5 | H59: € | I59: 0
B61: Input Alert
E62: Dummy Beginjaar investeringen
E63: Dummy Modelperiode
E64: Dummy Aantal cellen met onterechte input 2004
E65: Dummy Waarschuwing onterecht ingevulde cellen 2004
A67: INVESTERINGSJAAR 2005
B69: Investeringen 2005
E70: Aanschafwaarde investeringen 2005 met afschrijvingstermijn 55 | G70: 784813.71 | H70: € | I70: =SUM(K70:DF70) -> 0
E71: Aanschafwaarde investeringen 2005 met afschrijvingstermijn 45 | G71: 733452.4 | H71: € | I71: 0
E72: Aanschafwaarde investeringen 2005 met afschrijvingstermijn 30 | G72: 105252.09 | H72: € | I72: 0
E73: Aanschafwaarde investeringen 2005 met afschrijvingstermijn 25 | G73: 57913.245 | H73: € | I73: 0
E74: Aanschafwaarde investeringen 2005 met afschrijvingstermijn 10 | G74: 36526.425 | H74: € | I74: 0
E75: Aanschafwaarde investeringen 2005 met afschrijvingstermijn 5 | G75: 23034 | H75: € | I75: 0
E76: Aanschafwaarde investeringen 2005 zonder afschrijvingstermijn | H76: € | I76: 0
B78: Desinvesteringen 2005
E79: Desinvesteringen 2005 met afschrijvingstermijn 55 | H79: € | I79: =SUM(K79:DF79) -> 0
E80: Desinvesteringen 2005 met afschrijvingstermijn 45 | H80: € | I80: 612.0198829 | R80: 612.0198829
E81: Desinvesteringen 2005 met afschrijvingstermijn 30 | H81: € | I81: 0
E82: Desinvesteringen 2005 met afschrijvingstermijn 25 | H82: € | I82: 0
E83: Desinvesteringen 2005 met afschrijvingstermijn 10 | H83: € | I83: 0
E84: Desinvesteringen 2005 met afschrijvingstermijn 5 | H84: € | I84: 0
E85: Desinvesteringen 2005 zonder afschrijvingstermijn | H85: € | I85: 0
B87: Opgegeven Afschrijvingen 2005
E88: Opgegeven afschrijvingen 2005 met afschrijvingstermijn 55 | H88: € | I88: =SUM(L88:DF88) -> 21404.01027 | L88: 7134.670091 | M88: 14269.34018
E89: Opgegeven afschrijvingen 2005 met afschrijvingstermijn 45 | H89: € | I89: 24448.41333 | L89: 8149.471111 | M89: 16298.94222
E90: Opgegeven afschrijvingen 2005 met afschrijvingstermijn 30 | H90: € | I90: 5262.6045 | L90: 1754.2015 | M90: 3508.403
E91: Opgegeven afschrijvingen 2005 met afschrijvingstermijn 25 | H91: € | I91: 3474.7947 | L91: 1158.2649 | M91: 2316.5298
E92: Opgegeven afschrijvingen 2005 met afschrijvingstermijn 10 | H92: € | I92: 5478.96375 | L92: 1826.32125 | M92: 3652.6425
E93: Opgegeven afschrijvingen 2005 met afschrijvingstermijn 5 | H93: € | I93: 6910.2 | L93: 2303.4 | M93: 4606.8
B95: Opgegeven Cumulatieve Afschrijvingen Bij Desinvesteringen 2005
E96: Opgegeven c.a.d. 2005 met afschrijvingstermijn 55 | H96: € | I96: =SUM(K96:DF96) -> 0
E97: Opgegeven c.a.d. 2005 met afschrijvingstermijn 45 | H97: € | I97: 0
E98: Opgegeven c.a.d. 2005 met afschrijvingstermijn 30 | H98: € | I98: 0
E99: Opgegeven c.a.d. 2005 met afschrijvingstermijn 25 | H99: € | I99: 0
E100: Opgegeven c.a.d. 2005 met afschrijvingstermijn 10 | H100: € | I100: 0
E101: Opgegeven c.a.d. 2005 met afschrijvingstermijn 5 | H101: € | I101: 0
B103: Bijzondere Waardeverminderingen Op Activa 2005
E104: Bijzondere waardeverminderingen op activa 2005 met afschrijvingstermijn 55 | H104: € | I104: =SUM(K104:DF104) -> 0
E105: Bijzondere waardeverminderingen op activa 2005 met afschrijvingstermijn 45 | H105: € | I105: 0
E106: Bijzondere waardeverminderingen op activa 2005 met afschrijvingstermijn 30 | H106: € | I106: 0
E107: Bijzondere waardeverminderingen op activa 2005 met afschrijvingstermijn 25 | H107: € | I107: 0
E108: Bijzondere waardeverminderingen op activa 2005 met afschrijvingstermijn 10 | H108: € | I108: 0
E109: Bijzondere waardeverminderingen op activa 2005 met afschrijvingstermijn 5 | H109: € | I109: 0
B111: Input Alert
E112: Dummy Beginjaar investeringen
E113: Dummy Modelperiode
E114: Dummy Aantal cellen met onterechte input 2005
E115: Dummy Waarschuwing onterecht ingevulde cellen 2005
A117: INVESTERINGSJAAR 2006 - START GAW voor EHD
E118: Startwaarde GAW voor EHD (01-01-2006) | H118: €
E119: Afschrijvingen Start GAW voor EHD | H119: €
A121: INVESTERINGSJAAR 2006
B123: Investeringen 2006
E124: Aanschafwaarde investeringen 2006 met afschrijvingstermijn 55 | G124: 609103.62 | H124: € | I124: =SUM(K124:DF124) -> 0
E125: Aanschafwaarde investeringen 2006 met afschrijvingstermijn 45 | G125: 662536.71 | H125: € | I125: 0
E126: Aanschafwaarde investeringen 2006 met afschrijvingstermijn 30 | G126: 97646.15 | H126: € | I126: 0
E127: Aanschafwaarde investeringen 2006 met afschrijvingstermijn 25 | G127: 78359.71 | H127: € | I127: 0
E128: Aanschafwaarde investeringen 2006 met afschrijvingstermijn 10 | G128: 0 | H128: € | I128: 0
E129: Aanschafwaarde investeringen 2006 met afschrijvingstermijn 5 | G129: 25497.5 | H129: € | I129: 0
E130: Aanschafwaarde investeringen 2006 zonder afschrijvingstermijn | H130: € | I130: 0
B132: Desinvesteringen 2006
E133: Desinvesteringen 2006 met afschrijvingstermijn 55 | H133: € | I133: =SUM(K133:DF133) -> 0
E134: Desinvesteringen 2006 met afschrijvingstermijn 45 | H134: € | I134: 1768.012098 | R134: 1768.012098
E135: Desinvesteringen 2006 met afschrijvingstermijn 30 | H135: € | I135: 0
E136: Desinvesteringen 2006 met afschrijvingstermijn 25 | H136: € | I136: 0
E137: Desinvesteringen 2006 met afschrijvingstermijn 10 | H137: € | I137: 0
E138: Desinvesteringen 2006 met afschrijvingstermijn 5 | H138: € | I138: 24197.5 | Q138: 24197.5
E139: Desinvesteringen 2006 zonder afschrijvingstermijn | H139: € | I139: 0
B141: Opgegeven Afschrijvingen 2006
E142: Opgegeven afschrijvingen 2006 met afschrijvingstermijn 55 | H142: € | I142: =SUM(K142:DF142) -> 5537.305636 | M142: 5537.305636
E143: Opgegeven afschrijvingen 2006 met afschrijvingstermijn 45 | H143: € | I143: 7361.519 | M143: 7361.519
E144: Opgegeven afschrijvingen 2006 met afschrijvingstermijn 30 | H144: € | I144: 1627.435833 | M144: 1627.435833
E145: Opgegeven afschrijvingen 2006 met afschrijvingstermijn 25 | H145: € | I145: 1567.1942 | M145: 1567.1942
E146: Opgegeven afschrijvingen 2006 met afschrijvingstermijn 10 | H146: € | I146: 0 | M146: 0
E147: Opgegeven afschrijvingen 2006 met afschrijvingstermijn 5 | H147: € | I147: 2549.75 | M147: 2549.75
B149: Opgegeven Cumulatieve Afschrijvingen Bij Desinvesteringen 2006
E150: Opgegeven c.a.d. 2006 met afschrijvingstermijn 55 | H150: € | I150: =SUM(K150:DF150) -> 0
E151: Opgegeven c.a.d. 2006 met afschrijvingstermijn 45 | H151: € | I151: 0
E152: Opgegeven c.a.d. 2006 met afschrijvingstermijn 30 | H152: € | I152: 0
E153: Opgegeven c.a.d. 2006 met afschrijvingstermijn 25 | H153: € | I153: 0
E154: Opgegeven c.a.d. 2006 met afschrijvingstermijn 10 | H154: € | I154: 0
E155: Opgegeven c.a.d. 2006 met afschrijvingstermijn 5 | H155: € | I155: 0
B157: Bijzondere Waardeverminderingen Op Activa 2006
E158: Bijzondere waardeverminderingen op activa 2006 met afschrijvingstermijn 55 | H158: € | I158: =SUM(K158:DF158) -> 0
E159: Bijzondere waardeverminderingen op activa 2006 met afschrijvingstermijn 45 | H159: € | I159: 0
E160: Bijzondere waardeverminderingen op activa 2006 met afschrijvingstermijn 30 | H160: € | I160: 0
E161: Bijzondere waardeverminderingen op activa 2006 met afschrijvingstermijn 25 | H161: € | I161: 0
E162: Bijzondere waardeverminderingen op activa 2006 met afschrijvingstermijn 10 | H162: € | I162: 0
E163: Bijzondere waardeverminderingen op activa 2006 met afschrijvingstermijn 5 | H163: € | I163: 4839.5 | Q163: 4839.5
B165: Input Alert
E166: Dummy Beginjaar investeringen
E167: Dummy Modelperiode
E168: Dummy Aantal cellen met onterechte input 2006
E169: Dummy Waarschuwing onterecht ingevulde cellen 2006
A171: INVESTERINGSJAAR 2007
B173: Investeringen 2007
E174: Aanschafwaarde investeringen 2007 met afschrijvingstermijn 55 | G174: 374729.91 | H174: € | I174: =SUM(K174:DF174) -> 0
E175: Aanschafwaarde investeringen 2007 met afschrijvingstermijn 45 | G175: 1283395.68 | H175: € | I175: 0
E176: Aanschafwaarde investeringen 2007 met afschrijvingstermijn 30 | G176: 169278.42 | H176: € | I176: 0
E177: Aanschafwaarde investeringen 2007 met afschrijvingstermijn 25 | G177: 76626.24 | H177: € | I177: 0
E178: Aanschafwaarde investeringen 2007 met afschrijvingstermijn 10 | G178: 0 | H178: € | I178: 0
E179: Aanschafwaarde investeringen 2007 met afschrijvingstermijn 5 | G179: 56158.25 | H179: € | I179: 0
E180: Aanschafwaarde investeringen 2007 zonder afschrijvingstermijn | H180: € | I180: 0
B182: Desinvesteringen 2007
E183: Desinvesteringen 2007 met afschrijvingstermijn 55 | H183: € | I183: =SUM(K183:DF183) -> 0
E184: Desinvesteringen 2007 met afschrijvingstermijn 45 | H184: € | I184: 911.6544746 | R184: 911.6544746
E185: Desinvesteringen 2007 met afschrijvingstermijn 30 | H185: € | I185: 0
E186: Desinvesteringen 2007 met afschrijvingstermijn 25 | H186: € | I186: 0
E187: Desinvesteringen 2007 met afschrijvingstermijn 10 | H187: € | I187: 0
E188: Desinvesteringen 2007 met afschrijvingstermijn 5 | H188: € | I188: 0
E189: Desinvesteringen 2007 zonder afschrijvingstermijn | H189: € | I189: 0
B191: Opgegeven Afschrijvingen 2007
E192: Opgegeven afschrijvingen 2007 met afschrijvingstermijn 55 | H192: € | I192: =SUM(K192:DF192) -> 0
E193: Opgegeven afschrijvingen 2007 met afschrijvingstermijn 45 | H193: € | I193: 0
E194: Opgegeven afschrijvingen 2007 met afschrijvingstermijn 30 | H194: € | I194: 0
E195: Opgegeven afschrijvingen 2007 met afschrijvingstermijn 25 | H195: € | I195: 0
E196: Opgegeven afschrijvingen 2007 met afschrijvingstermijn 10 | H196: € | I196: 0
E197: Opgegeven afschrijvingen 2007 met afschrijvingstermijn 5 | H197: € | I197: 0
B199: Opgegeven Cumulatieve Afschrijvingen Bij Desinvesteringen 2007
E200: Opgegeven c.a.d. 2007 met afschrijvingstermijn 55 | H200: € | I200: =SUM(K200:DF200) -> 0
E201: Opgegeven c.a.d. 2007 met afschrijvingstermijn 45 | H201: € | I201: 0
E202: Opgegeven c.a.d. 2007 met afschrijvingstermijn 30 | H202: € | I202: 0
E203: Opgegeven c.a.d. 2007 met afschrijvingstermijn 25 | H203: € | I203: 0
E204: Opgegeven c.a.d. 2007 met afschrijvingstermijn 10 | H204: € | I204: 0
E205: Opgegeven c.a.d. 2007 met afschrijvingstermijn 5 | H205: € | I205: 0
B207: Bijzondere Waardeverminderingen Op Activa 2007
E208: Bijzondere waardeverminderingen op activa 2007 met afschrijvingstermijn 55 | H208: € | I208: =SUM(K208:DF208) -> 0
E209: Bijzondere waardeverminderingen op activa 2007 met afschrijvingstermijn 45 | H209: € | I209: 0
E210: Bijzondere waardeverminderingen op activa 2007 met afschrijvingstermijn 30 | H210: € | I210: 0
E211: Bijzondere waardeverminderingen op activa 2007 met afschrijvingstermijn 25 | H211: € | I211: 0
E212: Bijzondere waardeverminderingen op activa 2007 met afschrijvingstermijn 10 | H212: € | I212: 0
E213: Bijzondere waardeverminderingen op activa 2007 met afschrijvingstermijn 5 | H213: € | I213: 0
B215: Input Alert
E216: Dummy Beginjaar investeringen
E217: Dummy Modelperiode
E218: Dummy Aantal cellen met onterechte input 2007
E219: Dummy Waarschuwing onterecht ingevulde cellen 2007
A221: INVESTERINGSJAAR 2008
B223: Investeringen 2008
E224: Aanschafwaarde investeringen 2008 met afschrijvingstermijn 55 | G224: 536514.32 | H224: € | I224: =SUM(K224:DF224) -> 0
E225: Aanschafwaarde investeringen 2008 met afschrijvingstermijn 45 | G225: 1253477.76 | H225: € | I225: 0
E226: Aanschafwaarde investeringen 2008 met afschrijvingstermijn 30 | G226: 97612.35 | H226: € | I226: 0
E227: Aanschafwaarde investeringen 2008 met afschrijvingstermijn 25 | G227: 170546.2 | H227: € | I227: 0
E228: Aanschafwaarde investeringen 2008 met afschrijvingstermijn 10 | G228: 0 | H228: € | I228: 0
E229: Aanschafwaarde investeringen 2008 met afschrijvingstermijn 5 | G229: 348024.265 | H229: € | I229: 0
E230: Aanschafwaarde investeringen 2008 zonder afschrijvingstermijn | H230: € | I230: 0
B232: Desinvesteringen 2008
E233: Desinvesteringen 2008 met afschrijvingstermijn 55 | H233: € | I233: =SUM(K233:DF233) -> 0
E234: Desinvesteringen 2008 met afschrijvingstermijn 45 | H234: € | I234: 5504.060822 | R234: 5504.060822
E235: Desinvesteringen 2008 met afschrijvingstermijn 30 | H235: € | I235: 0
... 468 more rows

Sheet InpObragas
A1: =RIGHT(CELL("filename", A1), LEN(CELL("filename", A1)) - SEARCH("]", CELL("filename", A1))) -> InpObragas
E2: =Tijd!E$2 -> Actieve netbeheerder | G2: =Tijd!G$2 -> Zebra EHD
E3: =Tijd!E$3 -> Actieve inputsheet | G3: =Tijd!G$3 -> InpZebra EHD
E4: =Tijd!E$4 -> Modelperiode | G4: =Check!G4 -> 0 | H4: =Check!H4 -> errors | K4: =Tijd!K$4 -> 2004 | L4: =Tijd!L$4 -> 2005 | M4: =Tijd!M$4 -> 2006 | N4: =Tijd!N$4 -> 2007 | O4: =Tijd!O$4 -> 2008 | P4: =Tijd!P$4 -> 2009 | Q4: =Tijd!Q$4 -> 2010 | R4: =Tijd!R$4 -> 2011 | S4: =Tijd!S$4 -> 2012 | T4: =Tijd!T$4 -> 2013 | U4: =Tijd!U$4 -> 2014 | V4: =Tijd!V$4 -> 2015 | W4: =Tijd!W$4 -> 2016 | X4: =Tijd!X$4 -> 2017 | Y4: =Tijd!Y$4 -> 2018 | Z4: =Tijd!Z$4 -> 2019 | AA4: =Tijd!AA$4 -> 2020 | AB4: =Tijd!AB$4 -> 2021 | AC4: =Tijd!AC$4 -> 2022 | AD4: =Tijd!AD$4 -> 2023 | AE4: =Tijd!AE$4 -> 2024 | AF4: =Tijd!AF$4 -> 2025 | AG4: =Tijd!AG$4 -> 2026 | AH4: =Tijd!AH$4 -> 2027 | AI4: =Tijd!AI$4 -> 2028 | AJ4: =Tijd!AJ$4 -> 2029 | AK4: =Tijd!AK$4 -> 2030 | AL4: =Tijd!AL$4 -> 2031 | AM4: =Tijd!AM$4 -> 2032 | AN4: =Tijd!AN$4 -> 2033 | AO4: =Tijd!AO$4 -> 2034 | AP4: =Tijd!AP$4 -> 2035 | AQ4: =Tijd!AQ$4 -> 2036 | AR4: =Tijd!AR$4 -> 2037 | AS4: =Tijd!AS$4 -> 2038 | AT4: =Tijd!AT$4 -> 2039 | AU4: =Tijd!AU$4 -> 2040 | AV4: =Tijd!AV$4 -> 2041 | AW4: =Tijd!AW$4 -> 2042 | AX4: =Tijd!AX$4 -> 2043 | AY4: =Tijd!AY$4 -> 2044 | AZ4: =Tijd!AZ$4 -> 2045 | BA4: =Tijd!BA$4 -> 2046 | BB4: =Tijd!BB$4 -> 2047 | BC4: =Tijd!BC$4 -> 2048 | BD4: =Tijd!BD$4 -> 2049 | BE4: =Tijd!BE$4 -> 2050 | BF4: =Tijd!BF$4 -> 2051 | BG4: =Tijd!BG$4 -> 2052 | BH4: =Tijd!BH$4 -> 2053 | BI4: =Tijd!BI$4 -> 2054 | BJ4: =Tijd!BJ$4 -> 2055 | BK4: =Tijd!BK$4 -> 2056 | BL4: =Tijd!BL$4 -> 2057 | BM4: =Tijd!BM$4 -> 2058 | BN4: =Tijd!BN$4 -> 2059 | BO4: =Tijd!BO$4 -> 2060 | BP4: =Tijd!BP$4 -> 2061 | BQ4: =Tijd!BQ$4 -> 2062 | BR4: =Tijd!BR$4 -> 2063 | BS4: =Tijd!BS$4 -> 2064 | BT4: =Tijd!BT$4 -> 2065 | BU4: =Tijd!BU$4 -> 2066 | BV4: =Tijd!BV$4 -> 2067 | BW4: =Tijd!BW$4 -> 2068 | BX4: =Tijd!BX$4 -> 2069 | BY4: =Tijd!BY$4 -> 2070 | BZ4: =Tijd!BZ$4 -> 2071 | CA4: =Tijd!CA$4 -> 2072 | CB4: =Tijd!CB$4 -> 2073 | CC4: =Tijd!CC$4 -> 2074 | CD4: =Tijd!CD$4 -> 2075 | CE4: =Tijd!CE$4 -> 2076 | CF4: =Tijd!CF$4 -> 2077 | CG4: =Tijd!CG$4 -> 2078 | CH4: =Tijd!CH$4 -> 2079 | CI4: =Tijd!CI$4 -> 2080 | CJ4: =Tijd!CJ$4 -> 2081 | CK4: =Tijd!CK$4 -> 2082 | CL4: =Tijd!CL$4 -> 2083 | CM4: =Tijd!CM$4 -> 2084 | CN4: =Tijd!CN$4 -> 2085 | CO4: =Tijd!CO$4 -> 2086 | CP4: =Tijd!CP$4 -> 2087 | CQ4: =Tijd!CQ$4 -> 2088 | CR4: =Tijd!CR$4 -> 2089 | CS4: =Tijd!CS$4 -> 2090 | CT4: =Tijd!CT$4 -> 2091 | CU4: =Tijd!CU$4 -> 2092 | CV4: =Tijd!CV$4 -> 2093 | CW4: =Tijd!CW$4 -> 2094 | CX4: =Tijd!CX$4 -> 2095 | CY4: =Tijd!CY$4 -> 2096 | CZ4: =Tijd!CZ$4 -> 2097 | DA4: =Tijd!DA$4 -> 2098 | DB4: =Tijd!DB$4 -> 2099 | DC4: =Tijd!DC$4 -> 2100 | DD4: =Tijd!DD$4 -> 2101 | DE4: =Tijd!DE$4 -> 2102 | DF4: =Tijd!DF$4 -> 2103
E5: =Tijd!E$5 -> Looptijd vs Uitlooptijd | G5: =Check!G5 -> 0 | H5: =Check!H5 -> waarschuwingen | K5: =Tijd!K$5 -> Looptijd | L5: =Tijd!L$5 -> Looptijd | M5: =Tijd!M$5 -> Looptijd | N5: =Tijd!N$5 -> Looptijd | O5: =Tijd!O$5 -> Looptijd | P5: =Tijd!P$5 -> Looptijd | Q5: =Tijd!Q$5 -> Looptijd | R5: =Tijd!R$5 -> Looptijd | S5: =Tijd!S$5 -> Looptijd | T5: =Tijd!T$5 -> Looptijd | U5: =Tijd!U$5 -> Looptijd | V5: =Tijd!V$5 -> Looptijd | W5: =Tijd!W$5 -> Looptijd | X5: =Tijd!X$5 -> Looptijd | Y5: =Tijd!Y$5 -> Looptijd | Z5: =Tijd!Z$5 -> Looptijd | AA5: =Tijd!AA$5 -> Looptijd | AB5: =Tijd!AB$5 -> Looptijd | AC5: =Tijd!AC$5 -> Looptijd | AD5: =Tijd!AD$5 -> Looptijd | AE5: =Tijd!AE$5 -> Looptijd | AF5: =Tijd!AF$5 -> Looptijd | AG5: =Tijd!AG$5 -> Looptijd | AH5: =Tijd!AH$5 -> Looptijd | AI5: =Tijd!AI$5 -> Looptijd | AJ5: =Tijd!AJ$5 -> Looptijd | AK5: =Tijd!AK$5 -> Looptijd | AL5: =Tijd!AL$5 -> Looptijd | AM5: =Tijd!AM$5 -> Looptijd | AN5: =Tijd!AN$5 -> Looptijd | AO5: =Tijd!AO$5 -> Looptijd | AP5: =Tijd!AP$5 -> Looptijd | AQ5: =Tijd!AQ$5 -> Looptijd | AR5: =Tijd!AR$5 -> Looptijd | AS5: =Tijd!AS$5 -> Looptijd | AT5: =Tijd!AT$5 -> Looptijd | AU5: =Tijd!AU$5 -> Looptijd | AV5: =Tijd!AV$5 -> Looptijd | AW5: =Tijd!AW$5 -> Looptijd | AX5: =Tijd!AX$5 -> Looptijd | AY5: =Tijd!AY$5 -> Looptijd | AZ5: =Tijd!AZ$5 -> Looptijd | BA5: =Tijd!BA$5 -> Looptijd | BB5: =Tijd!BB$5 -> Looptijd | BC5: =Tijd!BC$5 -> Looptijd | BD5: =Tijd!BD$5 -> Looptijd | BE5: =Tijd!BE$5 -> Looptijd | BF5: =Tijd!BF$5 -> Looptijd | BG5: =Tijd!BG$5 -> Looptijd | BH5: =Tijd!BH$5 -> Looptijd | BI5: =Tijd!BI$5 -> Looptijd | BJ5: =Tijd!BJ$5 -> Uitlooptijd | BK5: =Tijd!BK$5 -> Uitlooptijd | BL5: =Tijd!BL$5 -> Uitlooptijd | BM5: =Tijd!BM$5 -> Uitlooptijd | BN5: =Tijd!BN$5 -> Uitlooptijd | BO5: =Tijd!BO$5 -> Uitlooptijd | BP5: =Tijd!BP$5 -> Uitlooptijd | BQ5: =Tijd!BQ$5 -> Uitlooptijd | BR5: =Tijd!BR$5 -> Uitlooptijd | BS5: =Tijd!BS$5 -> Uitlooptijd | BT5: =Tijd!BT$5 -> Uitlooptijd | BU5: =Tijd!BU$5 -> Uitlooptijd | BV5: =Tijd!BV$5 -> Uitlooptijd | BW5: =Tijd!BW$5 -> Uitlooptijd | BX5: =Tijd!BX$5 -> Uitlooptijd | BY5: =Tijd!BY$5 -> Uitlooptijd | BZ5: =Tijd!BZ$5 -> Uitlooptijd | CA5: =Tijd!CA$5 -> Uitlooptijd | CB5: =Tijd!CB$5 -> Uitlooptijd | CC5: =Tijd!CC$5 -> Uitlooptijd | CD5: =Tijd!CD$5 -> Uitlooptijd | CE5: =Tijd!CE$5 -> Uitlooptijd | CF5: =Tijd!CF$5 -> Uitlooptijd | CG5: =Tijd!CG$5 -> Uitlooptijd | CH5: =Tijd!CH$5 -> Uitlooptijd | CI5: =Tijd!CI$5 -> Uitlooptijd | CJ5: =Tijd!CJ$5 -> Uitlooptijd | CK5: =Tijd!CK$5 -> Uitlooptijd | CL5: =Tijd!CL$5 -> Uitlooptijd | CM5: =Tijd!CM$5 -> Uitlooptijd | CN5: =Tijd!CN$5 -> Uitlooptijd | CO5: =Tijd!CO$5 -> Uitlooptijd | CP5: =Tijd!CP$5 -> Uitlooptijd | CQ5: =Tijd!CQ$5 -> Uitlooptijd | CR5: =Tijd!CR$5 -> Uitlooptijd | CS5: =Tijd!CS$5 -> Uitlooptijd | CT5: =Tijd!CT$5 -> Uitlooptijd | CU5: =Tijd!CU$5 -> Uitlooptijd | CV5: =Tijd!CV$5 -> Uitlooptijd | CW5: =Tijd!CW$5 -> Uitlooptijd | CX5: =Tijd!CX$5 -> Uitlooptijd | CY5: =Tijd!CY$5 -> Uitlooptijd | CZ5: =Tijd!CZ$5 -> Uitlooptijd | DA5: =Tijd!DA$5 -> Uitlooptijd | DB5: =Tijd!DB$5 -> Uitlooptijd | DC5: =Tijd!DC$5 -> Uitlooptijd | DD5: =Tijd!DD$5 -> Uitlooptijd | DE5: =Tijd!DE$5 -> Uitlooptijd | DF5: =Tijd!DF$5 -> Uitlooptijd
E6: =Tijd!E$10 -> Model kolom teller | F6: Bron | G6: Constante | H6: Eenheid | I6: Totaal | K6: =Tijd!K$10 -> 1 | L6: =Tijd!L$10 -> 2 | M6: =Tijd!M$10 -> 3 | N6: =Tijd!N$10 -> 4 | O6: =Tijd!O$10 -> 5 | P6: =Tijd!P$10 -> 6 | Q6: =Tijd!Q$10 -> 7 | R6: =Tijd!R$10 -> 8 | S6: =Tijd!S$10 -> 9 | T6: =Tijd!T$10 -> 10 | U6: =Tijd!U$10 -> 11 | V6: =Tijd!V$10 -> 12 | W6: =Tijd!W$10 -> 13 | X6: =Tijd!X$10 -> 14 | Y6: =Tijd!Y$10 -> 15 | Z6: =Tijd!Z$10 -> 16 | AA6: =Tijd!AA$10 -> 17 | AB6: =Tijd!AB$10 -> 18 | AC6: =Tijd!AC$10 -> 19 | AD6: =Tijd!AD$10 -> 20 | AE6: =Tijd!AE$10 -> 21 | AF6: =Tijd!AF$10 -> 22 | AG6: =Tijd!AG$10 -> 23 | AH6: =Tijd!AH$10 -> 24 | AI6: =Tijd!AI$10 -> 25 | AJ6: =Tijd!AJ$10 -> 26 | AK6: =Tijd!AK$10 -> 27 | AL6: =Tijd!AL$10 -> 28 | AM6: =Tijd!AM$10 -> 29 | AN6: =Tijd!AN$10 -> 30 | AO6: =Tijd!AO$10 -> 31 | AP6: =Tijd!AP$10 -> 32 | AQ6: =Tijd!AQ$10 -> 33 | AR6: =Tijd!AR$10 -> 34 | AS6: =Tijd!AS$10 -> 35 | AT6: =Tijd!AT$10 -> 36 | AU6: =Tijd!AU$10 -> 37 | AV6: =Tijd!AV$10 -> 38 | AW6: =Tijd!AW$10 -> 39 | AX6: =Tijd!AX$10 -> 40 | AY6: =Tijd!AY$10 -> 41 | AZ6: =Tijd!AZ$10 -> 42 | BA6: =Tijd!BA$10 -> 43 | BB6: =Tijd!BB$10 -> 44 | BC6: =Tijd!BC$10 -> 45 | BD6: =Tijd!BD$10 -> 46 | BE6: =Tijd!BE$10 -> 47 | BF6: =Tijd!BF$10 -> 48 | BG6: =Tijd!BG$10 -> 49 | BH6: =Tijd!BH$10 -> 50 | BI6: =Tijd!BI$10 -> 51 | BJ6: =Tijd!BJ$10 -> 52 | BK6: =Tijd!BK$10 -> 53 | BL6: =Tijd!BL$10 -> 54 | BM6: =Tijd!BM$10 -> 55 | BN6: =Tijd!BN$10 -> 56 | BO6: =Tijd!BO$10 -> 57 | BP6: =Tijd!BP$10 -> 58 | BQ6: =Tijd!BQ$10 -> 59 | BR6: =Tijd!BR$10 -> 60 | BS6: =Tijd!BS$10 -> 61 | BT6: =Tijd!BT$10 -> 62 | BU6: =Tijd!BU$10 -> 63 | BV6: =Tijd!BV$10 -> 64 | BW6: =Tijd!BW$10 -> 65 | BX6: =Tijd!BX$10 -> 66 | BY6: =Tijd!BY$10 -> 67 | BZ6: =Tijd!BZ$10 -> 68 | CA6: =Tijd!CA$10 -> 69 | CB6: =Tijd!CB$10 -> 70 | CC6: =Tijd!CC$10 -> 71 | CD6: =Tijd!CD$10 -> 72 | CE6: =Tijd!CE$10 -> 73 | CF6: =Tijd!CF$10 -> 74 | CG6: =Tijd!CG$10 -> 75 | CH6: =Tijd!CH$10 -> 76 | CI6: =Tijd!CI$10 -> 77 | CJ6: =Tijd!CJ$10 -> 78 | CK6: =Tijd!CK$10 -> 79 | CL6: =Tijd!CL$10 -> 80 | CM6: =Tijd!CM$10 -> 81 | CN6: =Tijd!CN$10 -> 82 | CO6: =Tijd!CO$10 -> 83 | CP6: =Tijd!CP$10 -> 84 | CQ6: =Tijd!CQ$10 -> 85 | CR6: =Tijd!CR$10 -> 86 | CS6: =Tijd!CS$10 -> 87 | CT6: =Tijd!CT$10 -> 88 | CU6: =Tijd!CU$10 -> 89 | CV6: =Tijd!CV$10 -> 90 | CW6: =Tijd!CW$10 -> 91 | CX6: =Tijd!CX$10 -> 92 | CY6: =Tijd!CY$10 -> 93 | CZ6: =Tijd!CZ$10 -> 94 | DA6: =Tijd!DA$10 -> 95 | DB6: =Tijd!DB$10 -> 96 | DC6: =Tijd!DC$10 -> 97 | DD6: =Tijd!DD$10 -> 98 | DE6: =Tijd!DE$10 -> 99 | DF6: =Tijd!DF$10 -> 100
A9: NETTEN
A11: INVESTERINGSJAAR 2004 - START GAW
E12: Startwaarde GAW incl. afgekochte precario (01-01-2004) | G12: 180271972 | H12: €
E13: Afschrijvingen Start GAW | G13: 5381252.896 | H13: €
E14: Afgekochte precario in Start GAW (01-01-2004) | H14: €
E15: Afschrijvingsbedrag afgekochte precario | H15: €
A17: INVESTERINGSJAAR 2004
B19: Investeringen 2004
E20: Aanschafwaarde investeringen 2004 met afschrijvingstermijn 55 | G20: 77117.1 | H20: € | I20: =SUM(K20:DF20) -> 0
E21: Aanschafwaarde investeringen 2004 met afschrijvingstermijn 45 | G21: 273126.68 | H21: € | I21: 0
E22: Aanschafwaarde investeringen 2004 met afschrijvingstermijn 30 | G22: 270191.38 | H22: € | I22: 0
E23: Aanschafwaarde investeringen 2004 met afschrijvingstermijn 25 | H23: € | I23: 0
E24: Aanschafwaarde investeringen 2004 met afschrijvingstermijn 10 | H24: € | I24: 0
E25: Aanschafwaarde investeringen 2004 met afschrijvingstermijn 5 | H25: € | I25: 0
E26: Aanschafwaarde investeringen 2004 zonder afschrijvingstermijn | H26: € | I26: 0
B28: Desinvesteringen 2004
E29: Desinvesteringen 2004 met afschrijvingstermijn 55 | H29: € | I29: =SUM(K29:DF29) -> 0
E30: Desinvesteringen 2004 met afschrijvingstermijn 45 | H30: € | I30: 0
E31: Desinvesteringen 2004 met afschrijvingstermijn 30 | H31: € | I31: 0
E32: Desinvesteringen 2004 met afschrijvingstermijn 25 | H32: € | I32: 0
E33: Desinvesteringen 2004 met afschrijvingstermijn 10 | H33: € | I33: 0
E34: Desinvesteringen 2004 met afschrijvingstermijn 5 | H34: € | I34: 0
E35: Desinvesteringen 2004 zonder afschrijvingstermijn | H35: € | I35: 0
B37: Opgegeven Afschrijvingen 2004
E38: Opgegeven afschrijvingen 2004 met afschrijvingstermijn 55 | H38: € | I38: =SUM(K38:DF38) -> 3505.322727 | K38: 701.0645455 | L38: 1402.129091 | M38: 1402.129091
E39: Opgegeven afschrijvingen 2004 met afschrijvingstermijn 45 | H39: € | I39: 15173.70444 | K39: 3034.740889 | L39: 6069.481778 | M39: 6069.481778
E40: Opgegeven afschrijvingen 2004 met afschrijvingstermijn 30 | H40: € | I40: 22515.94833 | K40: 4503.189667 | L40: 9006.379333 | M40: 9006.379333
E41: Opgegeven afschrijvingen 2004 met afschrijvingstermijn 25 | H41: € | I41: 0
E42: Opgegeven afschrijvingen 2004 met afschrijvingstermijn 10 | H42: € | I42: 0
E43: Opgegeven afschrijvingen 2004 met afschrijvingstermijn 5 | H43: € | I43: 0
B45: Opgegeven Cumulatieve Afschrijvingen Bij Desinvesteringen 2004
E46: Opgegeven c.a.d. 2004 met afschrijvingstermijn 55 | H46: € | I46: =SUM(K46:DF46) -> 0
E47: Opgegeven c.a.d. 2004 met afschrijvingstermijn 45 | H47: € | I47: 0
E48: Opgegeven c.a.d. 2004 met afschrijvingstermijn 30 | H48: € | I48: 0
E49: Opgegeven c.a.d. 2004 met afschrijvingstermijn 25 | H49: € | I49: 0
E50: Opgegeven c.a.d. 2004 met afschrijvingstermijn 10 | H50: € | I50: 0
E51: Opgegeven c.a.d. 2004 met afschrijvingstermijn 5 | H51: € | I51: 0
B53: Bijzondere Waardeverminderingen Op Activa 2004
E54: Bijzondere waardeverminderingen op activa 2004 met afschrijvingstermijn 55 | H54: € | I54: =SUM(K54:DF54) -> 0
E55: Bijzondere waardeverminderingen op activa 2004 met afschrijvingstermijn 45 | H55: € | I55: 0
E56: Bijzondere waardeverminderingen op activa 2004 met afschrijvingstermijn 30 | H56: € | I56: 0
E57: Bijzondere waardeverminderingen op activa 2004 met afschrijvingstermijn 25 | H57: € | I57: 0
E58: Bijzondere waardeverminderingen op activa 2004 met afschrijvingstermijn 10 | H58: € | I58: 0
E59: Bijzondere waardeverminderingen op activa 2004 met afschrijvingstermijn 5 | H59: € | I59: 0
B61: Input Alert
E62: Dummy Beginjaar investeringen
E63: Dummy Modelperiode
E64: Dummy Aantal cellen met onterechte input 2004
E65: Dummy Waarschuwing onterecht ingevulde cellen 2004
A67: INVESTERINGSJAAR 2005
B69: Investeringen 2005
E70: Aanschafwaarde investeringen 2005 met afschrijvingstermijn 55 | H70: € | I70: =SUM(K70:DF70) -> 0
E71: Aanschafwaarde investeringen 2005 met afschrijvingstermijn 45 | G71: 724809.13 | H71: € | I71: 0
E72: Aanschafwaarde investeringen 2005 met afschrijvingstermijn 30 | G72: 70401.74 | H72: € | I72: 0
E73: Aanschafwaarde investeringen 2005 met afschrijvingstermijn 25 | H73: € | I73: 0
E74: Aanschafwaarde investeringen 2005 met afschrijvingstermijn 10 | H74: € | I74: 0
E75: Aanschafwaarde investeringen 2005 met afschrijvingstermijn 5 | H75: € | I75: 0
E76: Aanschafwaarde investeringen 2005 zonder afschrijvingstermijn | H76: € | I76: 0
B78: Desinvesteringen 2005
E79: Desinvesteringen 2005 met afschrijvingstermijn 55 | H79: € | I79: =SUM(K79:DF79) -> 0
E80: Desinvesteringen 2005 met afschrijvingstermijn 45 | H80: € | I80: 0
E81: Desinvesteringen 2005 met afschrijvingstermijn 30 | H81: € | I81: 0
E82: Desinvesteringen 2005 met afschrijvingstermijn 25 | H82: € | I82: 0
E83: Desinvesteringen 2005 met afschrijvingstermijn 10 | H83: € | I83: 0
E84: Desinvesteringen 2005 met afschrijvingstermijn 5 | H84: € | I84: 0
E85: Desinvesteringen 2005 zonder afschrijvingstermijn | H85: € | I85: 0
B87: Opgegeven Afschrijvingen 2005
E88: Opgegeven afschrijvingen 2005 met afschrijvingstermijn 55 | H88: € | I88: =SUM(L88:DF88) -> 0 | L88: 0
E89: Opgegeven afschrijvingen 2005 met afschrijvingstermijn 45 | H89: € | I89: 24160.30433 | L89: 8053.434778 | M89: 16106.86956
E90: Opgegeven afschrijvingen 2005 met afschrijvingstermijn 30 | H90: € | I90: 3520.087 | L90: 1173.362333 | M90: 2346.724667
E91: Opgegeven afschrijvingen 2005 met afschrijvingstermijn 25 | H91: € | I91: 0
E92: Opgegeven afschrijvingen 2005 met afschrijvingstermijn 10 | H92: € | I92: 0
E93: Opgegeven afschrijvingen 2005 met afschrijvingstermijn 5 | H93: € | I93: 0
B95: Opgegeven Cumulatieve Afschrijvingen Bij Desinvesteringen 2005
E96: Opgegeven c.a.d. 2005 met afschrijvingstermijn 55 | H96: € | I96: =SUM(K96:DF96) -> 0
E97: Opgegeven c.a.d. 2005 met afschrijvingstermijn 45 | H97: € | I97: 0
E98: Opgegeven c.a.d. 2005 met afschrijvingstermijn 30 | H98: € | I98: 0
E99: Opgegeven c.a.d. 2005 met afschrijvingstermijn 25 | H99: € | I99: 0
E100: Opgegeven c.a.d. 2005 met afschrijvingstermijn 10 | H100: € | I100: 0
E101: Opgegeven c.a.d. 2005 met afschrijvingstermijn 5 | H101: € | I101: 0
B103: Bijzondere Waardeverminderingen Op Activa 2005
E104: Bijzondere waardeverminderingen op activa 2005 met afschrijvingstermijn 55 | H104: € | I104: =SUM(K104:DF104) -> 0
E105: Bijzondere waardeverminderingen op activa 2005 met afschrijvingstermijn 45 | H105: € | I105: 0
E106: Bijzondere waardeverminderingen op activa 2005 met afschrijvingstermijn 30 | H106: € | I106: 0
E107: Bijzondere waardeverminderingen op activa 2005 met afschrijvingstermijn 25 | H107: € | I107: 0
E108: Bijzondere waardeverminderingen op activa 2005 met afschrijvingstermijn 10 | H108: € | I108: 0
E109: Bijzondere waardeverminderingen op activa 2005 met afschrijvingstermijn 5 | H109: € | I109: 0
B111: Input Alert
E112: Dummy Beginjaar investeringen
E113: Dummy Modelperiode
E114: Dummy Aantal cellen met onterechte input 2005
E115: Dummy Waarschuwing onterecht ingevulde cellen 2005
A117: INVESTERINGSJAAR 2006 - START GAW voor EHD
E118: Startwaarde GAW voor EHD (01-01-2006) | H118: €
E119: Afschrijvingen Start GAW voor EHD | H119: €
A121: INVESTERINGSJAAR 2006
B123: Investeringen 2006
E124: Aanschafwaarde investeringen 2006 met afschrijvingstermijn 55 | H124: € | I124: =SUM(K124:DF124) -> 0
E125: Aanschafwaarde investeringen 2006 met afschrijvingstermijn 45 | G125: 862339.85 | H125: € | I125: 0
E126: Aanschafwaarde investeringen 2006 met afschrijvingstermijn 30 | G126: 79237 | H126: € | I126: 0
E127: Aanschafwaarde investeringen 2006 met afschrijvingstermijn 25 | H127: € | I127: 0
E128: Aanschafwaarde investeringen 2006 met afschrijvingstermijn 10 | H128: € | I128: 0
E129: Aanschafwaarde investeringen 2006 met afschrijvingstermijn 5 | H129: € | I129: 0
E130: Aanschafwaarde investeringen 2006 zonder afschrijvingstermijn | H130: € | I130: 0
B132: Desinvesteringen 2006
E133: Desinvesteringen 2006 met afschrijvingstermijn 55 | H133: € | I133: =SUM(K133:DF133) -> 0
E134: Desinvesteringen 2006 met afschrijvingstermijn 45 | H134: € | I134: 0
E135: Desinvesteringen 2006 met afschrijvingstermijn 30 | H135: € | I135: 0
E136: Desinvesteringen 2006 met afschrijvingstermijn 25 | H136: € | I136: 0
E137: Desinvesteringen 2006 met afschrijvingstermijn 10 | H137: € | I137: 0
E138: Desinvesteringen 2006 met afschrijvingstermijn 5 | H138: € | I138: 0
E139: Desinvesteringen 2006 zonder afschrijvingstermijn | H139: € | I139: 0
B141: Opgegeven Afschrijvingen 2006
E142: Opgegeven afschrijvingen 2006 met afschrijvingstermijn 55 | H142: € | I142: =SUM(K142:DF142) -> 0
E143: Opgegeven afschrijvingen 2006 met afschrijvingstermijn 45 | H143: € | I143: 9581.553889 | M143: 9581.553889
E144: Opgegeven afschrijvingen 2006 met afschrijvingstermijn 30 | H144: € | I144: 1320.616667 | M144: 1320.616667
E145: Opgegeven afschrijvingen 2006 met afschrijvingstermijn 25 | H145: € | I145: 0
E146: Opgegeven afschrijvingen 2006 met afschrijvingstermijn 10 | H146: € | I146: 0
E147: Opgegeven afschrijvingen 2006 met afschrijvingstermijn 5 | H147: € | I147: 0
B149: Opgegeven Cumulatieve Afschrijvingen Bij Desinvesteringen 2006
E150: Opgegeven c.a.d. 2006 met afschrijvingstermijn 55 | H150: € | I150: =SUM(K150:DF150) -> 0
E151: Opgegeven c.a.d. 2006 met afschrijvingstermijn 45 | H151: € | I151: 0
E152: Opgegeven c.a.d. 2006 met afschrijvingstermijn 30 | H152: € | I152: 0
E153: Opgegeven c.a.d. 2006 met afschrijvingstermijn 25 | H153: € | I153: 0
E154: Opgegeven c.a.d. 2006 met afschrijvingstermijn 10 | H154: € | I154: 0
E155: Opgegeven c.a.d. 2006 met afschrijvingstermijn 5 | H155: € | I155: 0
B157: Bijzondere Waardeverminderingen Op Activa 2006
E158: Bijzondere waardeverminderingen op activa 2006 met afschrijvingstermijn 55 | H158: € | I158: =SUM(K158:DF158) -> 0
E159: Bijzondere waardeverminderingen op activa 2006 met afschrijvingstermijn 45 | H159: € | I159: 0
E160: Bijzondere waardeverminderingen op activa 2006 met afschrijvingstermijn 30 | H160: € | I160: 0
E161: Bijzondere waardeverminderingen op activa 2006 met afschrijvingstermijn 25 | H161: € | I161: 0
E162: Bijzondere waardeverminderingen op activa 2006 met afschrijvingstermijn 10 | H162: € | I162: 0
E163: Bijzondere waardeverminderingen op activa 2006 met afschrijvingstermijn 5 | H163: € | I163: 0
B165: Input Alert
E166: Dummy Beginjaar investeringen
E167: Dummy Modelperiode
E168: Dummy Aantal cellen met onterechte input 2006
E169: Dummy Waarschuwing onterecht ingevulde cellen 2006
A171: INVESTERINGSJAAR 2007
B173: Investeringen 2007
E174: Aanschafwaarde investeringen 2007 met afschrijvingstermijn 55 | G174: 182936.63 | H174: € | I174: =SUM(K174:DF174) -> 0
E175: Aanschafwaarde investeringen 2007 met afschrijvingstermijn 45 | G175: 505646.1 | H175: € | I175: 0
E176: Aanschafwaarde investeringen 2007 met afschrijvingstermijn 30 | G176: 119991.84 | H176: € | I176: 0
E177: Aanschafwaarde investeringen 2007 met afschrijvingstermijn 25 | G177: 0 | H177: € | I177: 0
E178: Aanschafwaarde investeringen 2007 met afschrijvingstermijn 10 | G178: 0 | H178: € | I178: 0
E179: Aanschafwaarde investeringen 2007 met afschrijvingstermijn 5 | G179: 2229466.7 | H179: € | I179: 0
E180: Aanschafwaarde investeringen 2007 zonder afschrijvingstermijn | H180: € | I180: 0
B182: Desinvesteringen 2007
E183: Desinvesteringen 2007 met afschrijvingstermijn 55 | H183: € | I183: =SUM(K183:DF183) -> 0
E184: Desinvesteringen 2007 met afschrijvingstermijn 45 | H184: € | I184: 0
E185: Desinvesteringen 2007 met afschrijvingstermijn 30 | H185: € | I185: 0
E186: Desinvesteringen 2007 met afschrijvingstermijn 25 | H186: € | I186: 0
E187: Desinvesteringen 2007 met afschrijvingstermijn 10 | H187: € | I187: 0
E188: Desinvesteringen 2007 met afschrijvingstermijn 5 | H188: € | I188: 0
E189: Desinvesteringen 2007 zonder afschrijvingstermijn | H189: € | I189: 0
B191: Opgegeven Afschrijvingen 2007
E192: Opgegeven afschrijvingen 2007 met afschrijvingstermijn 55 | H192: € | I192: =SUM(K192:DF192) -> 0
E193: Opgegeven afschrijvingen 2007 met afschrijvingstermijn 45 | H193: € | I193: 0
E194: Opgegeven afschrijvingen 2007 met afschrijvingstermijn 30 | H194: € | I194: 0
E195: Opgegeven afschrijvingen 2007 met afschrijvingstermijn 25 | H195: € | I195: 0
E196: Opgegeven afschrijvingen 2007 met afschrijvingstermijn 10 | H196: € | I196: 0
E197: Opgegeven afschrijvingen 2007 met afschrijvingstermijn 5 | H197: € | I197: 0
B199: Opgegeven Cumulatieve Afschrijvingen Bij Desinvesteringen 2007
E200: Opgegeven c.a.d. 2007 met afschrijvingstermijn 55 | H200: € | I200: =SUM(K200:DF200) -> 0
E201: Opgegeven c.a.d. 2007 met afschrijvingstermijn 45 | H201: € | I201: 0
E202: Opgegeven c.a.d. 2007 met afschrijvingstermijn 30 | H202: € | I202: 0
E203: Opgegeven c.a.d. 2007 met afschrijvingstermijn 25 | H203: € | I203: 0
E204: Opgegeven c.a.d. 2007 met afschrijvingstermijn 10 | H204: € | I204: 0
E205: Opgegeven c.a.d. 2007 met afschrijvingstermijn 5 | H205: € | I205: 0
B207: Bijzondere Waardeverminderingen Op Activa 2007
E208: Bijzondere waardeverminderingen op activa 2007 met afschrijvingstermijn 55 | H208: € | I208: =SUM(K208:DF208) -> 0
E209: Bijzondere waardeverminderingen op activa 2007 met afschrijvingstermijn 45 | H209: € | I209: 0
E210: Bijzondere waardeverminderingen op activa 2007 met afschrijvingstermijn 30 | H210: € | I210: 0
E211: Bijzondere waardeverminderingen op activa 2007 met afschrijvingstermijn 25 | H211: € | I211: 0
E212: Bijzondere waardeverminderingen op activa 2007 met afschrijvingstermijn 10 | H212: € | I212: 0
E213: Bijzondere waardeverminderingen op activa 2007 met afschrijvingstermijn 5 | H213: € | I213: 0
B215: Input Alert
E216: Dummy Beginjaar investeringen
E217: Dummy Modelperiode
E218: Dummy Aantal cellen met onterechte input 2007
E219: Dummy Waarschuwing onterecht ingevulde cellen 2007
A221: INVESTERINGSJAAR 2008
B223: Investeringen 2008
E224: Aanschafwaarde investeringen 2008 met afschrijvingstermijn 55 | G224: 51975.91 | H224: € | I224: =SUM(K224:DF224) -> 0
E225: Aanschafwaarde investeringen 2008 met afschrijvingstermijn 45 | G225: 850678.1 | H225: € | I225: 0
E226: Aanschafwaarde investeringen 2008 met afschrijvingstermijn 30 | G226: 21979.07 | H226: € | I226: 0
E227: Aanschafwaarde investeringen 2008 met afschrijvingstermijn 25 | G227: 0 | H227: € | I227: 0
E228: Aanschafwaarde investeringen 2008 met afschrijvingstermijn 10 | G228: 0 | H228: € | I228: 0
E229: Aanschafwaarde investeringen 2008 met afschrijvingstermijn 5 | G229: 1108712.12 | H229: € | I229: 0
E230: Aanschafwaarde investeringen 2008 zonder afschrijvingstermijn | H230: € | I230: 0
B232: Desinvesteringen 2008
E233: Desinvesteringen 2008 met afschrijvingstermijn 55 | H233: € | I233: =SUM(K233:DF233) -> 0
E234: Desinvesteringen 2008 met afschrijvingstermijn 45 | H234: € | I234: 0
E235: Desinvesteringen 2008 met afschrijvingstermijn 30 | H235: € | I235: 0
... 468 more rows

Sheet InpIntergas
A1: =RIGHT(CELL("filename", A1), LEN(CELL("filename", A1)) - SEARCH("]", CELL("filename", A1))) -> InpIntergas
E2: =Tijd!E$2 -> Actieve netbeheerder | G2: =Tijd!G$2 -> Zebra EHD
E3: =Tijd!E$3 -> Actieve inputsheet | G3: =Tijd!G$3 -> InpZebra EHD
E4: =Tijd!E$4 -> Modelperiode | G4: =Check!G4 -> 0 | H4: =Check!H4 -> errors | K4: =Tijd!K$4 -> 2004 | L4: =Tijd!L$4 -> 2005 | M4: =Tijd!M$4 -> 2006 | N4: =Tijd!N$4 -> 2007 | O4: =Tijd!O$4 -> 2008 | P4: =Tijd!P$4 -> 2009 | Q4: =Tijd!Q$4 -> 2010 | R4: =Tijd!R$4 -> 2011 | S4: =Tijd!S$4 -> 2012 | T4: =Tijd!T$4 -> 2013 | U4: =Tijd!U$4 -> 2014 | V4: =Tijd!V$4 -> 2015 | W4: =Tijd!W$4 -> 2016 | X4: =Tijd!X$4 -> 2017 | Y4: =Tijd!Y$4 -> 2018 | Z4: =Tijd!Z$4 -> 2019 | AA4: =Tijd!AA$4 -> 2020 | AB4: =Tijd!AB$4 -> 2021 | AC4: =Tijd!AC$4 -> 2022 | AD4: =Tijd!AD$4 -> 2023 | AE4: =Tijd!AE$4 -> 2024 | AF4: =Tijd!AF$4 -> 2025 | AG4: =Tijd!AG$4 -> 2026 | AH4: =Tijd!AH$4 -> 2027 | AI4: =Tijd!AI$4 -> 2028 | AJ4: =Tijd!AJ$4 -> 2029 | AK4: =Tijd!AK$4 -> 2030 | AL4: =Tijd!AL$4 -> 2031 | AM4: =Tijd!AM$4 -> 2032 | AN4: =Tijd!AN$4 -> 2033 | AO4: =Tijd!AO$4 -> 2034 | AP4: =Tijd!AP$4 -> 2035 | AQ4: =Tijd!AQ$4 -> 2036 | AR4: =Tijd!AR$4 -> 2037 | AS4: =Tijd!AS$4 -> 2038 | AT4: =Tijd!AT$4 -> 2039 | AU4: =Tijd!AU$4 -> 2040 | AV4: =Tijd!AV$4 -> 2041 | AW4: =Tijd!AW$4 -> 2042 | AX4: =Tijd!AX$4 -> 2043 | AY4: =Tijd!AY$4 -> 2044 | AZ4: =Tijd!AZ$4 -> 2045 | BA4: =Tijd!BA$4 -> 2046 | BB4: =Tijd!BB$4 -> 2047 | BC4: =Tijd!BC$4 -> 2048 | BD4: =Tijd!BD$4 -> 2049 | BE4: =Tijd!BE$4 -> 2050 | BF4: =Tijd!BF$4 -> 2051 | BG4: =Tijd!BG$4 -> 2052 | BH4: =Tijd!BH$4 -> 2053 | BI4: =Tijd!BI$4 -> 2054 | BJ4: =Tijd!BJ$4 -> 2055 | BK4: =Tijd!BK$4 -> 2056 | BL4: =Tijd!BL$4 -> 2057 | BM4: =Tijd!BM$4 -> 2058 | BN4: =Tijd!BN$4 -> 2059 | BO4: =Tijd!BO$4 -> 2060 | BP4: =Tijd!BP$4 -> 2061 | BQ4: =Tijd!BQ$4 -> 2062 | BR4: =Tijd!BR$4 -> 2063 | BS4: =Tijd!BS$4 -> 2064 | BT4: =Tijd!BT$4 -> 2065 | BU4: =Tijd!BU$4 -> 2066 | BV4: =Tijd!BV$4 -> 2067 | BW4: =Tijd!BW$4 -> 2068 | BX4: =Tijd!BX$4 -> 2069 | BY4: =Tijd!BY$4 -> 2070 | BZ4: =Tijd!BZ$4 -> 2071 | CA4: =Tijd!CA$4 -> 2072 | CB4: =Tijd!CB$4 -> 2073 | CC4: =Tijd!CC$4 -> 2074 | CD4: =Tijd!CD$4 -> 2075 | CE4: =Tijd!CE$4 -> 2076 | CF4: =Tijd!CF$4 -> 2077 | CG4: =Tijd!CG$4 -> 2078 | CH4: =Tijd!CH$4 -> 2079 | CI4: =Tijd!CI$4 -> 2080 | CJ4: =Tijd!CJ$4 -> 2081 | CK4: =Tijd!CK$4 -> 2082 | CL4: =Tijd!CL$4 -> 2083 | CM4: =Tijd!CM$4 -> 2084 | CN4: =Tijd!CN$4 -> 2085 | CO4: =Tijd!CO$4 -> 2086 | CP4: =Tijd!CP$4 -> 2087 | CQ4: =Tijd!CQ$4 -> 2088 | CR4: =Tijd!CR$4 -> 2089 | CS4: =Tijd!CS$4 -> 2090 | CT4: =Tijd!CT$4 -> 2091 | CU4: =Tijd!CU$4 -> 2092 | CV4: =Tijd!CV$4 -> 2093 | CW4: =Tijd!CW$4 -> 2094 | CX4: =Tijd!CX$4 -> 2095 | CY4: =Tijd!CY$4 -> 2096 | CZ4: =Tijd!CZ$4 -> 2097 | DA4: =Tijd!DA$4 -> 2098 | DB4: =Tijd!DB$4 -> 2099 | DC4: =Tijd!DC$4 -> 2100 | DD4: =Tijd!DD$4 -> 2101 | DE4: =Tijd!DE$4 -> 2102 | DF4: =Tijd!DF$4 -> 2103
E5: =Tijd!E$5 -> Looptijd vs Uitlooptijd | G5: =Check!G5 -> 0 | H5: =Check!H5 -> waarschuwingen | K5: =Tijd!K$5 -> Looptijd | L5: =Tijd!L$5 -> Looptijd | M5: =Tijd!M$5 -> Looptijd | N5: =Tijd!N$5 -> Looptijd | O5: =Tijd!O$5 -> Looptijd | P5: =Tijd!P$5 -> Looptijd | Q5: =Tijd!Q$5 -> Looptijd | R5: =Tijd!R$5 -> Looptijd | S5: =Tijd!S$5 -> Looptijd | T5: =Tijd!T$5 -> Looptijd | U5: =Tijd!U$5 -> Looptijd | V5: =Tijd!V$5 -> Looptijd | W5: =Tijd!W$5 -> Looptijd | X5: =Tijd!X$5 -> Looptijd | Y5: =Tijd!Y$5 -> Looptijd | Z5: =Tijd!Z$5 -> Looptijd | AA5: =Tijd!AA$5 -> Looptijd | AB5: =Tijd!AB$5 -> Looptijd | AC5: =Tijd!AC$5 -> Looptijd | AD5: =Tijd!AD$5 -> Looptijd | AE5: =Tijd!AE$5 -> Looptijd | AF5: =Tijd!AF$5 -> Looptijd | AG5: =Tijd!AG$5 -> Looptijd | AH5: =Tijd!AH$5 -> Looptijd | AI5: =Tijd!AI$5 -> Looptijd | AJ5: =Tijd!AJ$5 -> Looptijd | AK5: =Tijd!AK$5 -> Looptijd | AL5: =Tijd!AL$5 -> Looptijd | AM5: =Tijd!AM$5 -> Looptijd | AN5: =Tijd!AN$5 -> Looptijd | AO5: =Tijd!AO$5 -> Looptijd | AP5: =Tijd!AP$5 -> Looptijd | AQ5: =Tijd!AQ$5 -> Looptijd | AR5: =Tijd!AR$5 -> Looptijd | AS5: =Tijd!AS$5 -> Looptijd | AT5: =Tijd!AT$5 -> Looptijd | AU5: =Tijd!AU$5 -> Looptijd | AV5: =Tijd!AV$5 -> Looptijd | AW5: =Tijd!AW$5 -> Looptijd | AX5: =Tijd!AX$5 -> Looptijd | AY5: =Tijd!AY$5 -> Looptijd | AZ5: =Tijd!AZ$5 -> Looptijd | BA5: =Tijd!BA$5 -> Looptijd | BB5: =Tijd!BB$5 -> Looptijd | BC5: =Tijd!BC$5 -> Looptijd | BD5: =Tijd!BD$5 -> Looptijd | BE5: =Tijd!BE$5 -> Looptijd | BF5: =Tijd!BF$5 -> Looptijd | BG5: =Tijd!BG$5 -> Looptijd | BH5: =Tijd!BH$5 -> Looptijd | BI5: =Tijd!BI$5 -> Looptijd | BJ5: =Tijd!BJ$5 -> Uitlooptijd | BK5: =Tijd!BK$5 -> Uitlooptijd | BL5: =Tijd!BL$5 -> Uitlooptijd | BM5: =Tijd!BM$5 -> Uitlooptijd | BN5: =Tijd!BN$5 -> Uitlooptijd | BO5: =Tijd!BO$5 -> Uitlooptijd | BP5: =Tijd!BP$5 -> Uitlooptijd | BQ5: =Tijd!BQ$5 -> Uitlooptijd | BR5: =Tijd!BR$5 -> Uitlooptijd | BS5: =Tijd!BS$5 -> Uitlooptijd | BT5: =Tijd!BT$5 -> Uitlooptijd | BU5: =Tijd!BU$5 -> Uitlooptijd | BV5: =Tijd!BV$5 -> Uitlooptijd | BW5: =Tijd!BW$5 -> Uitlooptijd | BX5: =Tijd!BX$5 -> Uitlooptijd | BY5: =Tijd!BY$5 -> Uitlooptijd | BZ5: =Tijd!BZ$5 -> Uitlooptijd | CA5: =Tijd!CA$5 -> Uitlooptijd | CB5: =Tijd!CB$5 -> Uitlooptijd | CC5: =Tijd!CC$5 -> Uitlooptijd | CD5: =Tijd!CD$5 -> Uitlooptijd | CE5: =Tijd!CE$5 -> Uitlooptijd | CF5: =Tijd!CF$5 -> Uitlooptijd | CG5: =Tijd!CG$5 -> Uitlooptijd | CH5: =Tijd!CH$5 -> Uitlooptijd | CI5: =Tijd!CI$5 -> Uitlooptijd | CJ5: =Tijd!CJ$5 -> Uitlooptijd | CK5: =Tijd!CK$5 -> Uitlooptijd | CL5: =Tijd!CL$5 -> Uitlooptijd | CM5: =Tijd!CM$5 -> Uitlooptijd | CN5: =Tijd!CN$5 -> Uitlooptijd | CO5: =Tijd!CO$5 -> Uitlooptijd | CP5: =Tijd!CP$5 -> Uitlooptijd | CQ5: =Tijd!CQ$5 -> Uitlooptijd | CR5: =Tijd!CR$5 -> Uitlooptijd | CS5: =Tijd!CS$5 -> Uitlooptijd | CT5: =Tijd!CT$5 -> Uitlooptijd | CU5: =Tijd!CU$5 -> Uitlooptijd | CV5: =Tijd!CV$5 -> Uitlooptijd | CW5: =Tijd!CW$5 -> Uitlooptijd | CX5: =Tijd!CX$5 -> Uitlooptijd | CY5: =Tijd!CY$5 -> Uitlooptijd | CZ5: =Tijd!CZ$5 -> Uitlooptijd | DA5: =Tijd!DA$5 -> Uitlooptijd | DB5: =Tijd!DB$5 -> Uitlooptijd | DC5: =Tijd!DC$5 -> Uitlooptijd | DD5: =Tijd!DD$5 -> Uitlooptijd | DE5: =Tijd!DE$5 -> Uitlooptijd | DF5: =Tijd!DF$5 -> Uitlooptijd
E6: =Tijd!E$10 -> Model kolom teller | F6: Bron | G6: Constante | H6: Eenheid | I6: Totaal | K6: =Tijd!K$10 -> 1 | L6: =Tijd!L$10 -> 2 | M6: =Tijd!M$10 -> 3 | N6: =Tijd!N$10 -> 4 | O6: =Tijd!O$10 -> 5 | P6: =Tijd!P$10 -> 6 | Q6: =Tijd!Q$10 -> 7 | R6: =Tijd!R$10 -> 8 | S6: =Tijd!S$10 -> 9 | T6: =Tijd!T$10 -> 10 | U6: =Tijd!U$10 -> 11 | V6: =Tijd!V$10 -> 12 | W6: =Tijd!W$10 -> 13 | X6: =Tijd!X$10 -> 14 | Y6: =Tijd!Y$10 -> 15 | Z6: =Tijd!Z$10 -> 16 | AA6: =Tijd!AA$10 -> 17 | AB6: =Tijd!AB$10 -> 18 | AC6: =Tijd!AC$10 -> 19 | AD6: =Tijd!AD$10 -> 20 | AE6: =Tijd!AE$10 -> 21 | AF6: =Tijd!AF$10 -> 22 | AG6: =Tijd!AG$10 -> 23 | AH6: =Tijd!AH$10 -> 24 | AI6: =Tijd!AI$10 -> 25 | AJ6: =Tijd!AJ$10 -> 26 | AK6: =Tijd!AK$10 -> 27 | AL6: =Tijd!AL$10 -> 28 | AM6: =Tijd!AM$10 -> 29 | AN6: =Tijd!AN$10 -> 30 | AO6: =Tijd!AO$10 -> 31 | AP6: =Tijd!AP$10 -> 32 | AQ6: =Tijd!AQ$10 -> 33 | AR6: =Tijd!AR$10 -> 34 | AS6: =Tijd!AS$10 -> 35 | AT6: =Tijd!AT$10 -> 36 | AU6: =Tijd!AU$10 -> 37 | AV6: =Tijd!AV$10 -> 38 | AW6: =Tijd!AW$10 -> 39 | AX6: =Tijd!AX$10 -> 40 | AY6: =Tijd!AY$10 -> 41 | AZ6: =Tijd!AZ$10 -> 42 | BA6: =Tijd!BA$10 -> 43 | BB6: =Tijd!BB$10 -> 44 | BC6: =Tijd!BC$10 -> 45 | BD6: =Tijd!BD$10 -> 46 | BE6: =Tijd!BE$10 -> 47 | BF6: =Tijd!BF$10 -> 48 | BG6: =Tijd!BG$10 -> 49 | BH6: =Tijd!BH$10 -> 50 | BI6: =Tijd!BI$10 -> 51 | BJ6: =Tijd!BJ$10 -> 52 | BK6: =Tijd!BK$10 -> 53 | BL6: =Tijd!BL$10 -> 54 | BM6: =Tijd!BM$10 -> 55 | BN6: =Tijd!BN$10 -> 56 | BO6: =Tijd!BO$10 -> 57 | BP6: =Tijd!BP$10 -> 58 | BQ6: =Tijd!BQ$10 -> 59 | BR6: =Tijd!BR$10 -> 60 | BS6: =Tijd!BS$10 -> 61 | BT6: =Tijd!BT$10 -> 62 | BU6: =Tijd!BU$10 -> 63 | BV6: =Tijd!BV$10 -> 64 | BW6: =Tijd!BW$10 -> 65 | BX6: =Tijd!BX$10 -> 66 | BY6: =Tijd!BY$10 -> 67 | BZ6: =Tijd!BZ$10 -> 68 | CA6: =Tijd!CA$10 -> 69 | CB6: =Tijd!CB$10 -> 70 | CC6: =Tijd!CC$10 -> 71 | CD6: =Tijd!CD$10 -> 72 | CE6: =Tijd!CE$10 -> 73 | CF6: =Tijd!CF$10 -> 74 | CG6: =Tijd!CG$10 -> 75 | CH6: =Tijd!CH$10 -> 76 | CI6: =Tijd!CI$10 -> 77 | CJ6: =Tijd!CJ$10 -> 78 | CK6: =Tijd!CK$10 -> 79 | CL6: =Tijd!CL$10 -> 80 | CM6: =Tijd!CM$10 -> 81 | CN6: =Tijd!CN$10 -> 82 | CO6: =Tijd!CO$10 -> 83 | CP6: =Tijd!CP$10 -> 84 | CQ6: =Tijd!CQ$10 -> 85 | CR6: =Tijd!CR$10 -> 86 | CS6: =Tijd!CS$10 -> 87 | CT6: =Tijd!CT$10 -> 88 | CU6: =Tijd!CU$10 -> 89 | CV6: =Tijd!CV$10 -> 90 | CW6: =Tijd!CW$10 -> 91 | CX6: =Tijd!CX$10 -> 92 | CY6: =Tijd!CY$10 -> 93 | CZ6: =Tijd!CZ$10 -> 94 | DA6: =Tijd!DA$10 -> 95 | DB6: =Tijd!DB$10 -> 96 | DC6: =Tijd!DC$10 -> 97 | DD6: =Tijd!DD$10 -> 98 | DE6: =Tijd!DE$10 -> 99 | DF6: =Tijd!DF$10 -> 100
A9: NETTEN
A11: INVESTERINGSJAAR 2004 - START GAW
E12: Startwaarde GAW incl. afgekochte precario (01-01-2004) | G12: 234080044 | H12: €
E13: Afschrijvingen Start GAW | G13: 6209019.735 | H13: €
E14: Afgekochte precario in Start GAW (01-01-2004) | G14: 13895000 | H14: €
E15: Afschrijvingsbedrag afgekochte precario | G15: 731315.7895 | H15: €
A17: INVESTERINGSJAAR 2004
B19: Investeringen 2004
E20: Aanschafwaarde investeringen 2004 met afschrijvingstermijn 55 | G20: 248418.46 | H20: € | I20: =SUM(K20:DF20) -> 0
E21: Aanschafwaarde investeringen 2004 met afschrijvingstermijn 45 | G21: 498261.59 | H21: € | I21: 0
E22: Aanschafwaarde investeringen 2004 met afschrijvingstermijn 30 | G22: 109529.89 | H22: € | I22: 0
E23: Aanschafwaarde investeringen 2004 met afschrijvingstermijn 25 | H23: € | I23: 0
E24: Aanschafwaarde investeringen 2004 met afschrijvingstermijn 10 | H24: € | I24: 0
E25: Aanschafwaarde investeringen 2004 met afschrijvingstermijn 5 | H25: € | I25: 0
E26: Aanschafwaarde investeringen 2004 zonder afschrijvingstermijn | H26: € | I26: 0
B28: Desinvesteringen 2004
E29: Desinvesteringen 2004 met afschrijvingstermijn 55 | H29: € | I29: =SUM(K29:DF29) -> 0
E30: Desinvesteringen 2004 met afschrijvingstermijn 45 | H30: € | I30: 0
E31: Desinvesteringen 2004 met afschrijvingstermijn 30 | H31: € | I31: 0
E32: Desinvesteringen 2004 met afschrijvingstermijn 25 | H32: € | I32: 0
E33: Desinvesteringen 2004 met afschrijvingstermijn 10 | H33: € | I33: 0
E34: Desinvesteringen 2004 met afschrijvingstermijn 5 | H34: € | I34: 0
E35: Desinvesteringen 2004 zonder afschrijvingstermijn | H35: € | I35: 0
B37: Opgegeven Afschrijvingen 2004
E38: Opgegeven afschrijvingen 2004 met afschrijvingstermijn 55 | H38: € | I38: =SUM(K38:DF38) -> 11291.74818 | K38: 2258.349636 | L38: 4516.699273 | M38: 4516.699273
E39: Opgegeven afschrijvingen 2004 met afschrijvingstermijn 45 | H39: € | I39: 27681.19944 | K39: 5536.239889 | L39: 11072.47978 | M39: 11072.47978
E40: Opgegeven afschrijvingen 2004 met afschrijvingstermijn 30 | H40: € | I40: 9127.490833 | K40: 1825.498167 | L40: 3650.996333 | M40: 3650.996333
E41: Opgegeven afschrijvingen 2004 met afschrijvingstermijn 25 | H41: € | I41: 0
E42: Opgegeven afschrijvingen 2004 met afschrijvingstermijn 10 | H42: € | I42: 0
E43: Opgegeven afschrijvingen 2004 met afschrijvingstermijn 5 | H43: € | I43: 0
B45: Opgegeven Cumulatieve Afschrijvingen Bij Desinvesteringen 2004
E46: Opgegeven c.a.d. 2004 met afschrijvingstermijn 55 | H46: € | I46: =SUM(K46:DF46) -> 0
E47: Opgegeven c.a.d. 2004 met afschrijvingstermijn 45 | H47: € | I47: 0
E48: Opgegeven c.a.d. 2004 met afschrijvingstermijn 30 | H48: € | I48: 0
E49: Opgegeven c.a.d. 2004 met afschrijvingstermijn 25 | H49: € | I49: 0
E50: Opgegeven c.a.d. 2004 met afschrijvingstermijn 10 | H50: € | I50: 0
E51: Opgegeven c.a.d. 2004 met afschrijvingstermijn 5 | H51: € | I51: 0
B53: Bijzondere Waardeverminderingen Op Activa 2004
E54: Bijzondere waardeverminderingen op activa 2004 met afschrijvingstermijn 55 | H54: € | I54: =SUM(K54:DF54) -> 0
E55: Bijzondere waardeverminderingen op activa 2004 met afschrijvingstermijn 45 | H55: € | I55: 0
E56: Bijzondere waardeverminderingen op activa 2004 met afschrijvingstermijn 30 | H56: € | I56: 0
E57: Bijzondere waardeverminderingen op activa 2004 met afschrijvingstermijn 25 | H57: € | I57: 0
E58: Bijzondere waardeverminderingen op activa 2004 met afschrijvingstermijn 10 | H58: € | I58: 0
E59: Bijzondere waardeverminderingen op activa 2004 met afschrijvingstermijn 5 | H59: € | I59: 0
B61: Input Alert
E62: Dummy Beginjaar investeringen
E63: Dummy Modelperiode
E64: Dummy Aantal cellen met onterechte input 2004
E65: Dummy Waarschuwing onterecht ingevulde cellen 2004
A67: INVESTERINGSJAAR 2005
B69: Investeringen 2005
E70: Aanschafwaarde investeringen 2005 met afschrijvingstermijn 55 | G70: 24198.22 | H70: € | I70: =SUM(K70:DF70) -> 0
E71: Aanschafwaarde investeringen 2005 met afschrijvingstermijn 45 | G71: 335893.3944 | H71: € | I71: 0
E72: Aanschafwaarde investeringen 2005 met afschrijvingstermijn 30 | G72: 70370.27 | H72: € | I72: 0
E73: Aanschafwaarde investeringen 2005 met afschrijvingstermijn 25 | G73: 0 | H73: € | I73: 0
E74: Aanschafwaarde investeringen 2005 met afschrijvingstermijn 10 | G74: 0 | H74: € | I74: 0
E75: Aanschafwaarde investeringen 2005 met afschrijvingstermijn 5 | G75: 1446081.31 | H75: € | I75: 0
E76: Aanschafwaarde investeringen 2005 zonder afschrijvingstermijn | H76: € | I76: 0
B78: Desinvesteringen 2005
E79: Desinvesteringen 2005 met afschrijvingstermijn 55 | H79: € | I79: =SUM(K79:DF79) -> 0
E80: Desinvesteringen 2005 met afschrijvingstermijn 45 | H80: € | I80: 0
E81: Desinvesteringen 2005 met afschrijvingstermijn 30 | H81: € | I81: 0
E82: Desinvesteringen 2005 met afschrijvingstermijn 25 | H82: € | I82: 0
E83: Desinvesteringen 2005 met afschrijvingstermijn 10 | H83: € | I83: 0
E84: Desinvesteringen 2005 met afschrijvingstermijn 5 | H84: € | I84: 1446000 | R84: 1446000
E85: Desinvesteringen 2005 zonder afschrijvingstermijn | H85: € | I85: 0
B87: Opgegeven Afschrijvingen 2005
E88: Opgegeven afschrijvingen 2005 met afschrijvingstermijn 55 | H88: € | I88: =SUM(L88:DF88) -> 659.9514545 | L88: 219.9838182 | M88: 439.9676364
E89: Opgegeven afschrijvingen 2005 met afschrijvingstermijn 45 | H89: € | I89: 11196.44648 | L89: 3732.148827 | M89: 7464.297653
E90: Opgegeven afschrijvingen 2005 met afschrijvingstermijn 30 | H90: € | I90: 3518.5135 | L90: 1172.837833 | M90: 2345.675667
E91: Opgegeven afschrijvingen 2005 met afschrijvingstermijn 25 | H91: € | I91: 0 | L91: 0 | M91: 0
E92: Opgegeven afschrijvingen 2005 met afschrijvingstermijn 10 | H92: € | I92: 0 | L92: 0 | M92: 0
E93: Opgegeven afschrijvingen 2005 met afschrijvingstermijn 5 | H93: € | I93: 433824.393 | L93: 144608.131 | M93: 289216.262
B95: Opgegeven Cumulatieve Afschrijvingen Bij Desinvesteringen 2005
E96: Opgegeven c.a.d. 2005 met afschrijvingstermijn 55 | H96: € | I96: =SUM(K96:DF96) -> 0
E97: Opgegeven c.a.d. 2005 met afschrijvingstermijn 45 | H97: € | I97: 0
E98: Opgegeven c.a.d. 2005 met afschrijvingstermijn 30 | H98: € | I98: 0
E99: Opgegeven c.a.d. 2005 met afschrijvingstermijn 25 | H99: € | I99: 0
E100: Opgegeven c.a.d. 2005 met afschrijvingstermijn 10 | H100: € | I100: 0
E101: Opgegeven c.a.d. 2005 met afschrijvingstermijn 5 | H101: € | I101: 0
B103: Bijzondere Waardeverminderingen Op Activa 2005
E104: Bijzondere waardeverminderingen op activa 2005 met afschrijvingstermijn 55 | H104: € | I104: =SUM(K104:DF104) -> 0
E105: Bijzondere waardeverminderingen op activa 2005 met afschrijvingstermijn 45 | H105: € | I105: 0
E106: Bijzondere waardeverminderingen op activa 2005 met afschrijvingstermijn 30 | H106: € | I106: 0
E107: Bijzondere waardeverminderingen op activa 2005 met afschrijvingstermijn 25 | H107: € | I107: 0
E108: Bijzondere waardeverminderingen op activa 2005 met afschrijvingstermijn 10 | H108: € | I108: 0
E109: Bijzondere waardeverminderingen op activa 2005 met afschrijvingstermijn 5 | H109: € | I109: 0
B111: Input Alert
E112: Dummy Beginjaar investeringen
E113: Dummy Modelperiode
E114: Dummy Aantal cellen met onterechte input 2005
E115: Dummy Waarschuwing onterecht ingevulde cellen 2005
A117: INVESTERINGSJAAR 2006 - START GAW voor EHD
E118: Startwaarde GAW voor EHD (01-01-2006) | H118: €
E119: Afschrijvingen Start GAW voor EHD | H119: €
A121: INVESTERINGSJAAR 2006
B123: Investeringen 2006
E124: Aanschafwaarde investeringen 2006 met afschrijvingstermijn 55 | G124: -1930.34 | H124: € | I124: =SUM(K124:DF124) -> 0
E125: Aanschafwaarde investeringen 2006 met afschrijvingstermijn 45 | G125: 39896.44 | H125: € | I125: 0
E126: Aanschafwaarde investeringen 2006 met afschrijvingstermijn 30 | G126: 105673.81 | H126: € | I126: 0
E127: Aanschafwaarde investeringen 2006 met afschrijvingstermijn 25 | G127: 0 | H127: € | I127: 0
E128: Aanschafwaarde investeringen 2006 met afschrijvingstermijn 10 | G128: 570 | H128: € | I128: 0
E129: Aanschafwaarde investeringen 2006 met afschrijvingstermijn 5 | G129: 1270602.37 | H129: € | I129: 0
E130: Aanschafwaarde investeringen 2006 zonder afschrijvingstermijn | H130: € | I130: 0
B132: Desinvesteringen 2006
E133: Desinvesteringen 2006 met afschrijvingstermijn 55 | H133: € | I133: =SUM(K133:DF133) -> 0
E134: Desinvesteringen 2006 met afschrijvingstermijn 45 | H134: € | I134: 0
E135: Desinvesteringen 2006 met afschrijvingstermijn 30 | H135: € | I135: 0
E136: Desinvesteringen 2006 met afschrijvingstermijn 25 | H136: € | I136: 0
E137: Desinvesteringen 2006 met afschrijvingstermijn 10 | H137: € | I137: 1000 | R137: 1000
E138: Desinvesteringen 2006 met afschrijvingstermijn 5 | H138: € | I138: 1271000 | R138: 1271000
E139: Desinvesteringen 2006 zonder afschrijvingstermijn | H139: € | I139: 0
B141: Opgegeven Afschrijvingen 2006
E142: Opgegeven afschrijvingen 2006 met afschrijvingstermijn 55 | H142: € | I142: =SUM(K142:DF142) -> -17.54854545 | M142: -17.54854545
E143: Opgegeven afschrijvingen 2006 met afschrijvingstermijn 45 | H143: € | I143: 443.2937778 | M143: 443.2937778
E144: Opgegeven afschrijvingen 2006 met afschrijvingstermijn 30 | H144: € | I144: 1761.230167 | M144: 1761.230167
E145: Opgegeven afschrijvingen 2006 met afschrijvingstermijn 25 | H145: € | I145: 0 | M145: 0
E146: Opgegeven afschrijvingen 2006 met afschrijvingstermijn 10 | H146: € | I146: 28.5 | M146: 28.5
E147: Opgegeven afschrijvingen 2006 met afschrijvingstermijn 5 | H147: € | I147: 127060.237 | M147: 127060.237
B149: Opgegeven Cumulatieve Afschrijvingen Bij Desinvesteringen 2006
E150: Opgegeven c.a.d. 2006 met afschrijvingstermijn 55 | H150: € | I150: =SUM(K150:DF150) -> 0
E151: Opgegeven c.a.d. 2006 met afschrijvingstermijn 45 | H151: € | I151: 0
E152: Opgegeven c.a.d. 2006 met afschrijvingstermijn 30 | H152: € | I152: 0
E153: Opgegeven c.a.d. 2006 met afschrijvingstermijn 25 | H153: € | I153: 0
E154: Opgegeven c.a.d. 2006 met afschrijvingstermijn 10 | H154: € | I154: 0
E155: Opgegeven c.a.d. 2006 met afschrijvingstermijn 5 | H155: € | I155: 0
B157: Bijzondere Waardeverminderingen Op Activa 2006
E158: Bijzondere waardeverminderingen op activa 2006 met afschrijvingstermijn 55 | H158: € | I158: =SUM(K158:DF158) -> 0
E159: Bijzondere waardeverminderingen op activa 2006 met afschrijvingstermijn 45 | H159: € | I159: 0
E160: Bijzondere waardeverminderingen op activa 2006 met afschrijvingstermijn 30 | H160: € | I160: 0
E161: Bijzondere waardeverminderingen op activa 2006 met afschrijvingstermijn 25 | H161: € | I161: 0
E162: Bijzondere waardeverminderingen op activa 2006 met afschrijvingstermijn 10 | H162: € | I162: 0
E163: Bijzondere waardeverminderingen op activa 2006 met afschrijvingstermijn 5 | H163: € | I163: 0
B165: Input Alert
E166: Dummy Beginjaar investeringen
E167: Dummy Modelperiode
E168: Dummy Aantal cellen met onterechte input 2006
E169: Dummy Waarschuwing onterecht ingevulde cellen 2006
A171: INVESTERINGSJAAR 2007
B173: Investeringen 2007
E174: Aanschafwaarde investeringen 2007 met afschrijvingstermijn 55 | G174: 132879 | H174: € | I174: =SUM(K174:DF174) -> 0
E175: Aanschafwaarde investeringen 2007 met afschrijvingstermijn 45 | G175: 440564 | H175: € | I175: 0
E176: Aanschafwaarde investeringen 2007 met afschrijvingstermijn 30 | G176: 95668 | H176: € | I176: 0
E177: Aanschafwaarde investeringen 2007 met afschrijvingstermijn 25 | G177: 0 | H177: € | I177: 0
E178: Aanschafwaarde investeringen 2007 met afschrijvingstermijn 10 | G178: 0 | H178: € | I178: 0
E179: Aanschafwaarde investeringen 2007 met afschrijvingstermijn 5 | G179: 103111 | H179: € | I179: 0
E180: Aanschafwaarde investeringen 2007 zonder afschrijvingstermijn | H180: € | I180: 0
B182: Desinvesteringen 2007
E183: Desinvesteringen 2007 met afschrijvingstermijn 55 | H183: € | I183: =SUM(K183:DF183) -> 0
E184: Desinvesteringen 2007 met afschrijvingstermijn 45 | H184: € | I184: 0
E185: Desinvesteringen 2007 met afschrijvingstermijn 30 | H185: € | I185: 0
E186: Desinvesteringen 2007 met afschrijvingstermijn 25 | H186: € | I186: 0
E187: Desinvesteringen 2007 met afschrijvingstermijn 10 | H187: € | I187: 0
E188: Desinvesteringen 2007 met afschrijvingstermijn 5 | H188: € | I188: 103000 | R188: 103000
E189: Desinvesteringen 2007 zonder afschrijvingstermijn | H189: € | I189: 0
B191: Opgegeven Afschrijvingen 2007
E192: Opgegeven afschrijvingen 2007 met afschrijvingstermijn 55 | H192: € | I192: =SUM(K192:DF192) -> 0
E193: Opgegeven afschrijvingen 2007 met afschrijvingstermijn 45 | H193: € | I193: 0
E194: Opgegeven afschrijvingen 2007 met afschrijvingstermijn 30 | H194: € | I194: 0
E195: Opgegeven afschrijvingen 2007 met afschrijvingstermijn 25 | H195: € | I195: 0
E196: Opgegeven afschrijvingen 2007 met afschrijvingstermijn 10 | H196: € | I196: 0
E197: Opgegeven afschrijvingen 2007 met afschrijvingstermijn 5 | H197: € | I197: 0
B199: Opgegeven Cumulatieve Afschrijvingen Bij Desinvesteringen 2007
E200: Opgegeven c.a.d. 2007 met afschrijvingstermijn 55 | H200: € | I200: =SUM(K200:DF200) -> 0
E201: Opgegeven c.a.d. 2007 met afschrijvingstermijn 45 | H201: € | I201: 0
E202: Opgegeven c.a.d. 2007 met afschrijvingstermijn 30 | H202: € | I202: 0
E203: Opgegeven c.a.d. 2007 met afschrijvingstermijn 25 | H203: € | I203: 0
E204: Opgegeven c.a.d. 2007 met afschrijvingstermijn 10 | H204: € | I204: 0
E205: Opgegeven c.a.d. 2007 met afschrijvingstermijn 5 | H205: € | I205: 0
B207: Bijzondere Waardeverminderingen Op Activa 2007
E208: Bijzondere waardeverminderingen op activa 2007 met afschrijvingstermijn 55 | H208: € | I208: =SUM(K208:DF208) -> 0
E209: Bijzondere waardeverminderingen op activa 2007 met afschrijvingstermijn 45 | H209: € | I209: 0
E210: Bijzondere waardeverminderingen op activa 2007 met afschrijvingstermijn 30 | H210: € | I210: 0
E211: Bijzondere waardeverminderingen op activa 2007 met afschrijvingstermijn 25 | H211: € | I211: 0
E212: Bijzondere waardeverminderingen op activa 2007 met afschrijvingstermijn 10 | H212: € | I212: 0
E213: Bijzondere waardeverminderingen op activa 2007 met afschrijvingstermijn 5 | H213: € | I213: 0
B215: Input Alert
E216: Dummy Beginjaar investeringen
E217: Dummy Modelperiode
E218: Dummy Aantal cellen met onterechte input 2007
E219: Dummy Waarschuwing onterecht ingevulde cellen 2007
A221: INVESTERINGSJAAR 2008
B223: Investeringen 2008
E224: Aanschafwaarde investeringen 2008 met afschrijvingstermijn 55 | G224: -13000 | H224: € | I224: =SUM(K224:DF224) -> 0
E225: Aanschafwaarde investeringen 2008 met afschrijvingstermijn 45 | G225: 286000 | H225: € | I225: 0
E226: Aanschafwaarde investeringen 2008 met afschrijvingstermijn 30 | G226: 29000 | H226: € | I226: 0
E227: Aanschafwaarde investeringen 2008 met afschrijvingstermijn 25 | G227: 0 | H227: € | I227: 0
E228: Aanschafwaarde investeringen 2008 met afschrijvingstermijn 10 | G228: 12000 | H228: € | I228: 0
E229: Aanschafwaarde investeringen 2008 met afschrijvingstermijn 5 | G229: 114000 | H229: € | I229: 0
E230: Aanschafwaarde investeringen 2008 zonder afschrijvingstermijn | H230: € | I230: 0
B232: Desinvesteringen 2008
E233: Desinvesteringen 2008 met afschrijvingstermijn 55 | H233: € | I233: =SUM(K233:DF233) -> 0
E234: Desinvesteringen 2008 met afschrijvingstermijn 45 | H234: € | I234: 0
E235: Desinvesteringen 2008 met afschrijvingstermijn 30 | H235: € | I235: 0
... 468 more rows

Sheet InpEnexis
A1: =RIGHT(CELL("filename", A1), LEN(CELL("filename", A1)) - SEARCH("]", CELL("filename", A1))) -> InpEnexis
E2: =Tijd!E$2 -> Actieve netbeheerder | G2: =Tijd!G$2 -> Zebra EHD
E3: =Tijd!E$3 -> Actieve inputsheet | G3: =Tijd!G$3 -> InpZebra EHD
E4: =Tijd!E$4 -> Modelperiode | G4: =Check!G4 -> 0 | H4: =Check!H4 -> errors | K4: =Tijd!K$4 -> 2004 | L4: =Tijd!L$4 -> 2005 | M4: =Tijd!M$4 -> 2006 | N4: =Tijd!N$4 -> 2007 | O4: =Tijd!O$4 -> 2008 | P4: =Tijd!P$4 -> 2009 | Q4: =Tijd!Q$4 -> 2010 | R4: =Tijd!R$4 -> 2011 | S4: =Tijd!S$4 -> 2012 | T4: =Tijd!T$4 -> 2013 | U4: =Tijd!U$4 -> 2014 | V4: =Tijd!V$4 -> 2015 | W4: =Tijd!W$4 -> 2016 | X4: =Tijd!X$4 -> 2017 | Y4: =Tijd!Y$4 -> 2018 | Z4: =Tijd!Z$4 -> 2019 | AA4: =Tijd!AA$4 -> 2020 | AB4: =Tijd!AB$4 -> 2021 | AC4: =Tijd!AC$4 -> 2022 | AD4: =Tijd!AD$4 -> 2023 | AE4: =Tijd!AE$4 -> 2024 | AF4: =Tijd!AF$4 -> 2025 | AG4: =Tijd!AG$4 -> 2026 | AH4: =Tijd!AH$4 -> 2027 | AI4: =Tijd!AI$4 -> 2028 | AJ4: =Tijd!AJ$4 -> 2029 | AK4: =Tijd!AK$4 -> 2030 | AL4: =Tijd!AL$4 -> 2031 | AM4: =Tijd!AM$4 -> 2032 | AN4: =Tijd!AN$4 -> 2033 | AO4: =Tijd!AO$4 -> 2034 | AP4: =Tijd!AP$4 -> 2035 | AQ4: =Tijd!AQ$4 -> 2036 | AR4: =Tijd!AR$4 -> 2037 | AS4: =Tijd!AS$4 -> 2038 | AT4: =Tijd!AT$4 -> 2039 | AU4: =Tijd!AU$4 -> 2040 | AV4: =Tijd!AV$4 -> 2041 | AW4: =Tijd!AW$4 -> 2042 | AX4: =Tijd!AX$4 -> 2043 | AY4: =Tijd!AY$4 -> 2044 | AZ4: =Tijd!AZ$4 -> 2045 | BA4: =Tijd!BA$4 -> 2046 | BB4: =Tijd!BB$4 -> 2047 | BC4: =Tijd!BC$4 -> 2048 | BD4: =Tijd!BD$4 -> 2049 | BE4: =Tijd!BE$4 -> 2050 | BF4: =Tijd!BF$4 -> 2051 | BG4: =Tijd!BG$4 -> 2052 | BH4: =Tijd!BH$4 -> 2053 | BI4: =Tijd!BI$4 -> 2054 | BJ4: =Tijd!BJ$4 -> 2055 | BK4: =Tijd!BK$4 -> 2056 | BL4: =Tijd!BL$4 -> 2057 | BM4: =Tijd!BM$4 -> 2058 | BN4: =Tijd!BN$4 -> 2059 | BO4: =Tijd!BO$4 -> 2060 | BP4: =Tijd!BP$4 -> 2061 | BQ4: =Tijd!BQ$4 -> 2062 | BR4: =Tijd!BR$4 -> 2063 | BS4: =Tijd!BS$4 -> 2064 | BT4: =Tijd!BT$4 -> 2065 | BU4: =Tijd!BU$4 -> 2066 | BV4: =Tijd!BV$4 -> 2067 | BW4: =Tijd!BW$4 -> 2068 | BX4: =Tijd!BX$4 -> 2069 | BY4: =Tijd!BY$4 -> 2070 | BZ4: =Tijd!BZ$4 -> 2071 | CA4: =Tijd!CA$4 -> 2072 | CB4: =Tijd!CB$4 -> 2073 | CC4: =Tijd!CC$4 -> 2074 | CD4: =Tijd!CD$4 -> 2075 | CE4: =Tijd!CE$4 -> 2076 | CF4: =Tijd!CF$4 -> 2077 | CG4: =Tijd!CG$4 -> 2078 | CH4: =Tijd!CH$4 -> 2079 | CI4: =Tijd!CI$4 -> 2080 | CJ4: =Tijd!CJ$4 -> 2081 | CK4: =Tijd!CK$4 -> 2082 | CL4: =Tijd!CL$4 -> 2083 | CM4: =Tijd!CM$4 -> 2084 | CN4: =Tijd!CN$4 -> 2085 | CO4: =Tijd!CO$4 -> 2086 | CP4: =Tijd!CP$4 -> 2087 | CQ4: =Tijd!CQ$4 -> 2088 | CR4: =Tijd!CR$4 -> 2089 | CS4: =Tijd!CS$4 -> 2090 | CT4: =Tijd!CT$4 -> 2091 | CU4: =Tijd!CU$4 -> 2092 | CV4: =Tijd!CV$4 -> 2093 | CW4: =Tijd!CW$4 -> 2094 | CX4: =Tijd!CX$4 -> 2095 | CY4: =Tijd!CY$4 -> 2096 | CZ4: =Tijd!CZ$4 -> 2097 | DA4: =Tijd!DA$4 -> 2098 | DB4: =Tijd!DB$4 -> 2099 | DC4: =Tijd!DC$4 -> 2100 | DD4: =Tijd!DD$4 -> 2101 | DE4: =Tijd!DE$4 -> 2102 | DF4: =Tijd!DF$4 -> 2103
E5: =Tijd!E$5 -> Looptijd vs Uitlooptijd | G5: =Check!G5 -> 0 | H5: =Check!H5 -> waarschuwingen | K5: =Tijd!K$5 -> Looptijd | L5: =Tijd!L$5 -> Looptijd | M5: =Tijd!M$5 -> Looptijd | N5: =Tijd!N$5 -> Looptijd | O5: =Tijd!O$5 -> Looptijd | P5: =Tijd!P$5 -> Looptijd | Q5: =Tijd!Q$5 -> Looptijd | R5: =Tijd!R$5 -> Looptijd | S5: =Tijd!S$5 -> Looptijd | T5: =Tijd!T$5 -> Looptijd | U5: =Tijd!U$5 -> Looptijd | V5: =Tijd!V$5 -> Looptijd | W5: =Tijd!W$5 -> Looptijd | X5: =Tijd!X$5 -> Looptijd | Y5: =Tijd!Y$5 -> Looptijd | Z5: =Tijd!Z$5 -> Looptijd | AA5: =Tijd!AA$5 -> Looptijd | AB5: =Tijd!AB$5 -> Looptijd | AC5: =Tijd!AC$5 -> Looptijd | AD5: =Tijd!AD$5 -> Looptijd | AE5: =Tijd!AE$5 -> Looptijd | AF5: =Tijd!AF$5 -> Looptijd | AG5: =Tijd!AG$5 -> Looptijd | AH5: =Tijd!AH$5 -> Looptijd | AI5: =Tijd!AI$5 -> Looptijd | AJ5: =Tijd!AJ$5 -> Looptijd | AK5: =Tijd!AK$5 -> Looptijd | AL5: =Tijd!AL$5 -> Looptijd | AM5: =Tijd!AM$5 -> Looptijd | AN5: =Tijd!AN$5 -> Looptijd | AO5: =Tijd!AO$5 -> Looptijd | AP5: =Tijd!AP$5 -> Looptijd | AQ5: =Tijd!AQ$5 -> Looptijd | AR5: =Tijd!AR$5 -> Looptijd | AS5: =Tijd!AS$5 -> Looptijd | AT5: =Tijd!AT$5 -> Looptijd | AU5: =Tijd!AU$5 -> Looptijd | AV5: =Tijd!AV$5 -> Looptijd | AW5: =Tijd!AW$5 -> Looptijd | AX5: =Tijd!AX$5 -> Looptijd | AY5: =Tijd!AY$5 -> Looptijd | AZ5: =Tijd!AZ$5 -> Looptijd | BA5: =Tijd!BA$5 -> Looptijd | BB5: =Tijd!BB$5 -> Looptijd | BC5: =Tijd!BC$5 -> Looptijd | BD5: =Tijd!BD$5 -> Looptijd | BE5: =Tijd!BE$5 -> Looptijd | BF5: =Tijd!BF$5 -> Looptijd | BG5: =Tijd!BG$5 -> Looptijd | BH5: =Tijd!BH$5 -> Looptijd | BI5: =Tijd!BI$5 -> Looptijd | BJ5: =Tijd!BJ$5 -> Uitlooptijd | BK5: =Tijd!BK$5 -> Uitlooptijd | BL5: =Tijd!BL$5 -> Uitlooptijd | BM5: =Tijd!BM$5 -> Uitlooptijd | BN5: =Tijd!BN$5 -> Uitlooptijd | BO5: =Tijd!BO$5 -> Uitlooptijd | BP5: =Tijd!BP$5 -> Uitlooptijd | BQ5: =Tijd!BQ$5 -> Uitlooptijd | BR5: =Tijd!BR$5 -> Uitlooptijd | BS5: =Tijd!BS$5 -> Uitlooptijd | BT5: =Tijd!BT$5 -> Uitlooptijd | BU5: =Tijd!BU$5 -> Uitlooptijd | BV5: =Tijd!BV$5 -> Uitlooptijd | BW5: =Tijd!BW$5 -> Uitlooptijd | BX5: =Tijd!BX$5 -> Uitlooptijd | BY5: =Tijd!BY$5 -> Uitlooptijd | BZ5: =Tijd!BZ$5 -> Uitlooptijd | CA5: =Tijd!CA$5 -> Uitlooptijd | CB5: =Tijd!CB$5 -> Uitlooptijd | CC5: =Tijd!CC$5 -> Uitlooptijd | CD5: =Tijd!CD$5 -> Uitlooptijd | CE5: =Tijd!CE$5 -> Uitlooptijd | CF5: =Tijd!CF$5 -> Uitlooptijd | CG5: =Tijd!CG$5 -> Uitlooptijd | CH5: =Tijd!CH$5 -> Uitlooptijd | CI5: =Tijd!CI$5 -> Uitlooptijd | CJ5: =Tijd!CJ$5 -> Uitlooptijd | CK5: =Tijd!CK$5 -> Uitlooptijd | CL5: =Tijd!CL$5 -> Uitlooptijd | CM5: =Tijd!CM$5 -> Uitlooptijd | CN5: =Tijd!CN$5 -> Uitlooptijd | CO5: =Tijd!CO$5 -> Uitlooptijd | CP5: =Tijd!CP$5 -> Uitlooptijd | CQ5: =Tijd!CQ$5 -> Uitlooptijd | CR5: =Tijd!CR$5 -> Uitlooptijd | CS5: =Tijd!CS$5 -> Uitlooptijd | CT5: =Tijd!CT$5 -> Uitlooptijd | CU5: =Tijd!CU$5 -> Uitlooptijd | CV5: =Tijd!CV$5 -> Uitlooptijd | CW5: =Tijd!CW$5 -> Uitlooptijd | CX5: =Tijd!CX$5 -> Uitlooptijd | CY5: =Tijd!CY$5 -> Uitlooptijd | CZ5: =Tijd!CZ$5 -> Uitlooptijd | DA5: =Tijd!DA$5 -> Uitlooptijd | DB5: =Tijd!DB$5 -> Uitlooptijd | DC5: =Tijd!DC$5 -> Uitlooptijd | DD5: =Tijd!DD$5 -> Uitlooptijd | DE5: =Tijd!DE$5 -> Uitlooptijd | DF5: =Tijd!DF$5 -> Uitlooptijd
E6: =Tijd!E$10 -> Model kolom teller | F6: Bron | G6: Constante | H6: Eenheid | I6: Totaal | K6: =Tijd!K$10 -> 1 | L6: =Tijd!L$10 -> 2 | M6: =Tijd!M$10 -> 3 | N6: =Tijd!N$10 -> 4 | O6: =Tijd!O$10 -> 5 | P6: =Tijd!P$10 -> 6 | Q6: =Tijd!Q$10 -> 7 | R6: =Tijd!R$10 -> 8 | S6: =Tijd!S$10 -> 9 | T6: =Tijd!T$10 -> 10 | U6: =Tijd!U$10 -> 11 | V6: =Tijd!V$10 -> 12 | W6: =Tijd!W$10 -> 13 | X6: =Tijd!X$10 -> 14 | Y6: =Tijd!Y$10 -> 15 | Z6: =Tijd!Z$10 -> 16 | AA6: =Tijd!AA$10 -> 17 | AB6: =Tijd!AB$10 -> 18 | AC6: =Tijd!AC$10 -> 19 | AD6: =Tijd!AD$10 -> 20 | AE6: =Tijd!AE$10 -> 21 | AF6: =Tijd!AF$10 -> 22 | AG6: =Tijd!AG$10 -> 23 | AH6: =Tijd!AH$10 -> 24 | AI6: =Tijd!AI$10 -> 25 | AJ6: =Tijd!AJ$10 -> 26 | AK6: =Tijd!AK$10 -> 27 | AL6: =Tijd!AL$10 -> 28 | AM6: =Tijd!AM$10 -> 29 | AN6: =Tijd!AN$10 -> 30 | AO6: =Tijd!AO$10 -> 31 | AP6: =Tijd!AP$10 -> 32 | AQ6: =Tijd!AQ$10 -> 33 | AR6: =Tijd!AR$10 -> 34 | AS6: =Tijd!AS$10 -> 35 | AT6: =Tijd!AT$10 -> 36 | AU6: =Tijd!AU$10 -> 37 | AV6: =Tijd!AV$10 -> 38 | AW6: =Tijd!AW$10 -> 39 | AX6: =Tijd!AX$10 -> 40 | AY6: =Tijd!AY$10 -> 41 | AZ6: =Tijd!AZ$10 -> 42 | BA6: =Tijd!BA$10 -> 43 | BB6: =Tijd!BB$10 -> 44 | BC6: =Tijd!BC$10 -> 45 | BD6: =Tijd!BD$10 -> 46 | BE6: =Tijd!BE$10 -> 47 | BF6: =Tijd!BF$10 -> 48 | BG6: =Tijd!BG$10 -> 49 | BH6: =Tijd!BH$10 -> 50 | BI6: =Tijd!BI$10 -> 51 | BJ6: =Tijd!BJ$10 -> 52 | BK6: =Tijd!BK$10 -> 53 | BL6: =Tijd!BL$10 -> 54 | BM6: =Tijd!BM$10 -> 55 | BN6: =Tijd!BN$10 -> 56 | BO6: =Tijd!BO$10 -> 57 | BP6: =Tijd!BP$10 -> 58 | BQ6: =Tijd!BQ$10 -> 59 | BR6: =Tijd!BR$10 -> 60 | BS6: =Tijd!BS$10 -> 61 | BT6: =Tijd!BT$10 -> 62 | BU6: =Tijd!BU$10 -> 63 | BV6: =Tijd!BV$10 -> 64 | BW6: =Tijd!BW$10 -> 65 | BX6: =Tijd!BX$10 -> 66 | BY6: =Tijd!BY$10 -> 67 | BZ6: =Tijd!BZ$10 -> 68 | CA6: =Tijd!CA$10 -> 69 | CB6: =Tijd!CB$10 -> 70 | CC6: =Tijd!CC$10 -> 71 | CD6: =Tijd!CD$10 -> 72 | CE6: =Tijd!CE$10 -> 73 | CF6: =Tijd!CF$10 -> 74 | CG6: =Tijd!CG$10 -> 75 | CH6: =Tijd!CH$10 -> 76 | CI6: =Tijd!CI$10 -> 77 | CJ6: =Tijd!CJ$10 -> 78 | CK6: =Tijd!CK$10 -> 79 | CL6: =Tijd!CL$10 -> 80 | CM6: =Tijd!CM$10 -> 81 | CN6: =Tijd!CN$10 -> 82 | CO6: =Tijd!CO$10 -> 83 | CP6: =Tijd!CP$10 -> 84 | CQ6: =Tijd!CQ$10 -> 85 | CR6: =Tijd!CR$10 -> 86 | CS6: =Tijd!CS$10 -> 87 | CT6: =Tijd!CT$10 -> 88 | CU6: =Tijd!CU$10 -> 89 | CV6: =Tijd!CV$10 -> 90 | CW6: =Tijd!CW$10 -> 91 | CX6: =Tijd!CX$10 -> 92 | CY6: =Tijd!CY$10 -> 93 | CZ6: =Tijd!CZ$10 -> 94 | DA6: =Tijd!DA$10 -> 95 | DB6: =Tijd!DB$10 -> 96 | DC6: =Tijd!DC$10 -> 97 | DD6: =Tijd!DD$10 -> 98 | DE6: =Tijd!DE$10 -> 99 | DF6: =Tijd!DF$10 -> 100
A9: NETTEN
A11: INVESTERINGSJAAR 2004 - START GAW
E12: Startwaarde GAW incl. afgekochte precario (01-01-2004) | G12: 1054368615 | H12: €
E13: Afschrijvingen Start GAW | G13: 31102319.03 | H13: €
E14: Afgekochte precario in Start GAW (01-01-2004) | H14: €
E15: Afschrijvingsbedrag afgekochte precario | H15: €
A17: INVESTERINGSJAAR 2004
B19: Investeringen 2004
E20: Aanschafwaarde investeringen 2004 met afschrijvingstermijn 55 | G20: 5913328.12 | H20: € | I20: =SUM(K20:DF20) -> 0
E21: Aanschafwaarde investeringen 2004 met afschrijvingstermijn 45 | G21: 7840494.026 | H21: € | I21: 0
E22: Aanschafwaarde investeringen 2004 met afschrijvingstermijn 30 | G22: 3053611.62 | H22: € | I22: 0
E23: Aanschafwaarde investeringen 2004 met afschrijvingstermijn 25 | G23: 227999 | H23: € | I23: 0
E24: Aanschafwaarde investeringen 2004 met afschrijvingstermijn 10 | G24: 508680 | H24: € | I24: 0
E25: Aanschafwaarde investeringen 2004 met afschrijvingstermijn 5 | G25: 7385982 | H25: € | I25: 0
E26: Aanschafwaarde investeringen 2004 zonder afschrijvingstermijn | G26: 71000 | H26: € | I26: 0
B28: Desinvesteringen 2004
E29: Desinvesteringen 2004 met afschrijvingstermijn 55 | H29: € | I29: =SUM(K29:DF29) -> 16325.63 | L29: 0 | P29: 3000 | Q29: 11000 | R29: 2325.63
E30: Desinvesteringen 2004 met afschrijvingstermijn 45 | H30: € | I30: 113429.24 | L30: 0 | P30: 4000 | Q30: 65000 | R30: 44429.24
E31: Desinvesteringen 2004 met afschrijvingstermijn 30 | H31: € | I31: 0 | L31: 0 | Q31: 0
E32: Desinvesteringen 2004 met afschrijvingstermijn 25 | H32: € | I32: 0 | L32: 0
E33: Desinvesteringen 2004 met afschrijvingstermijn 10 | H33: € | I33: 183134.26 | L33: 55000 | P33: 57000 | Q33: 12000 | R33: 59134.26
E34: Desinvesteringen 2004 met afschrijvingstermijn 5 | H34: € | I34: 241000 | L34: 234000 | N34: 7000
E35: Desinvesteringen 2004 zonder afschrijvingstermijn | H35: € | I35: 0 | L35: 0
B37: Opgegeven Afschrijvingen 2004
E38: Opgegeven afschrijvingen 2004 met afschrijvingstermijn 55 | H38: € | I38: =SUM(K38:DF38) -> 270252.9829 | K38: 54252.98291 | L38: 109000 | M38: 107000
E39: Opgegeven afschrijvingen 2004 met afschrijvingstermijn 45 | H39: € | I39: 436140.9336 | K39: 87140.93362 | L39: 174000 | M39: 175000
E40: Opgegeven afschrijvingen 2004 met afschrijvingstermijn 30 | H40: € | I40: 254457.027 | K40: 50457.027 | L40: 102000 | M40: 102000
E41: Opgegeven afschrijvingen 2004 met afschrijvingstermijn 25 | H41: € | I41: 22559.98 | K41: 4559.98 | L41: 9000 | M41: 9000
E42: Opgegeven afschrijvingen 2004 met afschrijvingstermijn 10 | H42: € | I42: 117850 | K42: 25850 | L42: 52000 | M42: 40000
E43: Opgegeven afschrijvingen 2004 met afschrijvingstermijn 5 | H43: € | I43: 3599066.2 | K43: 739066.2 | L43: 1477000 | M43: 1383000
B45: Opgegeven Cumulatieve Afschrijvingen Bij Desinvesteringen 2004
E46: Opgegeven c.a.d. 2004 met afschrijvingstermijn 55 | H46: € | I46: =SUM(K46:DF46) -> 0
E47: Opgegeven c.a.d. 2004 met afschrijvingstermijn 45 | H47: € | I47: 0
E48: Opgegeven c.a.d. 2004 met afschrijvingstermijn 30 | H48: € | I48: 0
E49: Opgegeven c.a.d. 2004 met afschrijvingstermijn 25 | H49: € | I49: 0
E50: Opgegeven c.a.d. 2004 met afschrijvingstermijn 10 | H50: € | I50: 8000 | L50: 8000
E51: Opgegeven c.a.d. 2004 met afschrijvingstermijn 5 | H51: € | I51: 70000 | L51: 70000
B53: Bijzondere Waardeverminderingen Op Activa 2004
E54: Bijzondere waardeverminderingen op activa 2004 met afschrijvingstermijn 55 | H54: € | I54: =SUM(K54:DF54) -> 0
E55: Bijzondere waardeverminderingen op activa 2004 met afschrijvingstermijn 45 | H55: € | I55: 0
E56: Bijzondere waardeverminderingen op activa 2004 met afschrijvingstermijn 30 | H56: € | I56: 0
E57: Bijzondere waardeverminderingen op activa 2004 met afschrijvingstermijn 25 | H57: € | I57: 0
E58: Bijzondere waardeverminderingen op activa 2004 met afschrijvingstermijn 10 | H58: € | I58: 0
E59: Bijzondere waardeverminderingen op activa 2004 met afschrijvingstermijn 5 | H59: € | I59: 0
B61: Input Alert
E62: Dummy Beginjaar investeringen
E63: Dummy Modelperiode
E64: Dummy Aantal cellen met onterechte input 2004
E65: Dummy Waarschuwing onterecht ingevulde cellen 2004
A67: INVESTERINGSJAAR 2005
B69: Investeringen 2005
E70: Aanschafwaarde investeringen 2005 met afschrijvingstermijn 55 | G70: 2248000 | H70: € | I70: =SUM(K70:DF70) -> 0
E71: Aanschafwaarde investeringen 2005 met afschrijvingstermijn 45 | G71: 6408000 | H71: € | I71: 0
E72: Aanschafwaarde investeringen 2005 met afschrijvingstermijn 30 | G72: 1562000 | H72: € | I72: 0
E73: Aanschafwaarde investeringen 2005 met afschrijvingstermijn 25 | G73: 0 | H73: € | I73: 0
E74: Aanschafwaarde investeringen 2005 met afschrijvingstermijn 10 | G74: 442000 | H74: € | I74: 0
E75: Aanschafwaarde investeringen 2005 met afschrijvingstermijn 5 | G75: 2202000 | H75: € | I75: 0
E76: Aanschafwaarde investeringen 2005 zonder afschrijvingstermijn | G76: 10000 | H76: € | I76: 0
B78: Desinvesteringen 2005
E79: Desinvesteringen 2005 met afschrijvingstermijn 55 | H79: € | I79: =SUM(K79:DF79) -> 41982.65 | Q79: 18000 | R79: 23982.65
E80: Desinvesteringen 2005 met afschrijvingstermijn 45 | H80: € | I80: 130996.28 | P80: 6000 | Q80: 50000 | R80: 74996.28
E81: Desinvesteringen 2005 met afschrijvingstermijn 30 | H81: € | I81: 0
E82: Desinvesteringen 2005 met afschrijvingstermijn 25 | H82: € | I82: 0
E83: Desinvesteringen 2005 met afschrijvingstermijn 10 | H83: € | I83: 125224.26 | P83: 115000 | R83: 10224.26
E84: Desinvesteringen 2005 met afschrijvingstermijn 5 | H84: € | I84: 9000 | N84: 9000
E85: Desinvesteringen 2005 zonder afschrijvingstermijn | H85: € | I85: 0
B87: Opgegeven Afschrijvingen 2005
E88: Opgegeven afschrijvingen 2005 met afschrijvingstermijn 55 | H88: € | I88: =SUM(L88:DF88) -> 61000 | L88: 20000 | M88: 41000
E89: Opgegeven afschrijvingen 2005 met afschrijvingstermijn 45 | H89: € | I89: 213000 | L89: 71000 | M89: 142000
E90: Opgegeven afschrijvingen 2005 met afschrijvingstermijn 30 | H90: € | I90: 79000 | L90: 27000 | M90: 52000
E91: Opgegeven afschrijvingen 2005 met afschrijvingstermijn 25 | H91: € | I91: 0 | L91: 0 | M91: 0
E92: Opgegeven afschrijvingen 2005 met afschrijvingstermijn 10 | H92: € | I92: 66000 | L92: 22000 | M92: 44000
E93: Opgegeven afschrijvingen 2005 met afschrijvingstermijn 5 | H93: € | I93: 661000 | L93: 220000 | M93: 441000
B95: Opgegeven Cumulatieve Afschrijvingen Bij Desinvesteringen 2005
E96: Opgegeven c.a.d. 2005 met afschrijvingstermijn 55 | H96: € | I96: =SUM(K96:DF96) -> 0
E97: Opgegeven c.a.d. 2005 met afschrijvingstermijn 45 | H97: € | I97: 0
E98: Opgegeven c.a.d. 2005 met afschrijvingstermijn 30 | H98: € | I98: 0
E99: Opgegeven c.a.d. 2005 met afschrijvingstermijn 25 | H99: € | I99: 0
E100: Opgegeven c.a.d. 2005 met afschrijvingstermijn 10 | H100: € | I100: 0
E101: Opgegeven c.a.d. 2005 met afschrijvingstermijn 5 | H101: € | I101: 0
B103: Bijzondere Waardeverminderingen Op Activa 2005
E104: Bijzondere waardeverminderingen op activa 2005 met afschrijvingstermijn 55 | H104: € | I104: =SUM(K104:DF104) -> 0
E105: Bijzondere waardeverminderingen op activa 2005 met afschrijvingstermijn 45 | H105: € | I105: 0
E106: Bijzondere waardeverminderingen op activa 2005 met afschrijvingstermijn 30 | H106: € | I106: 0
E107: Bijzondere waardeverminderingen op activa 2005 met afschrijvingstermijn 25 | H107: € | I107: 0
E108: Bijzondere waardeverminderingen op activa 2005 met afschrijvingstermijn 10 | H108: € | I108: 0
E109: Bijzondere waardeverminderingen op activa 2005 met afschrijvingstermijn 5 | H109: € | I109: 0
B111: Input Alert
E112: Dummy Beginjaar investeringen
E113: Dummy Modelperiode
E114: Dummy Aantal cellen met onterechte input 2005
E115: Dummy Waarschuwing onterecht ingevulde cellen 2005
A117: INVESTERINGSJAAR 2006 - START GAW voor EHD
E118: Startwaarde GAW voor EHD (01-01-2006) | H118: €
E119: Afschrijvingen Start GAW voor EHD | H119: €
A121: INVESTERINGSJAAR 2006
B123: Investeringen 2006
E124: Aanschafwaarde investeringen 2006 met afschrijvingstermijn 55 | G124: 3287000 | H124: € | I124: =SUM(K124:DF124) -> 0
E125: Aanschafwaarde investeringen 2006 met afschrijvingstermijn 45 | G125: 15918000 | H125: € | I125: 0
E126: Aanschafwaarde investeringen 2006 met afschrijvingstermijn 30 | G126: 3466000 | H126: € | I126: 0
E127: Aanschafwaarde investeringen 2006 met afschrijvingstermijn 25 | G127: 0 | H127: € | I127: 0
E128: Aanschafwaarde investeringen 2006 met afschrijvingstermijn 10 | G128: =488000+1252434 -> 1740434 | H128: € | I128: 0
E129: Aanschafwaarde investeringen 2006 met afschrijvingstermijn 5 | G129: 3109000 | H129: € | I129: 0
E130: Aanschafwaarde investeringen 2006 zonder afschrijvingstermijn | G130: 15000 | H130: € | I130: 0
B132: Desinvesteringen 2006
E133: Desinvesteringen 2006 met afschrijvingstermijn 55 | H133: € | I133: =SUM(K133:DF133) -> 80322.57 | Q133: 37000 | R133: 43322.57
E134: Desinvesteringen 2006 met afschrijvingstermijn 45 | H134: € | I134: 152438.25 | P134: 7000 | Q134: 95000 | R134: 50438.25
E135: Desinvesteringen 2006 met afschrijvingstermijn 30 | H135: € | I135: 0
E136: Desinvesteringen 2006 met afschrijvingstermijn 25 | H136: € | I136: 0
E137: Desinvesteringen 2006 met afschrijvingstermijn 10 | H137: € | I137: 24099.87 | P137: 1000 | Q137: 1000 | R137: 22099.87
E138: Desinvesteringen 2006 met afschrijvingstermijn 5 | H138: € | I138: 0
E139: Desinvesteringen 2006 zonder afschrijvingstermijn | H139: € | I139: 0
B141: Opgegeven Afschrijvingen 2006
E142: Opgegeven afschrijvingen 2006 met afschrijvingstermijn 55 | H142: € | I142: =SUM(K142:DF142) -> 30000 | M142: 30000
E143: Opgegeven afschrijvingen 2006 met afschrijvingstermijn 45 | H143: € | I143: 177000 | M143: 177000
E144: Opgegeven afschrijvingen 2006 met afschrijvingstermijn 30 | H144: € | I144: 58000 | M144: 58000
E145: Opgegeven afschrijvingen 2006 met afschrijvingstermijn 25 | H145: € | I145: 0 | M145: 0
E146: Opgegeven afschrijvingen 2006 met afschrijvingstermijn 10 | H146: € | I146: 24000 | M146: 24000
E147: Opgegeven afschrijvingen 2006 met afschrijvingstermijn 5 | H147: € | I147: 311000 | M147: 311000
B149: Opgegeven Cumulatieve Afschrijvingen Bij Desinvesteringen 2006
E150: Opgegeven c.a.d. 2006 met afschrijvingstermijn 55 | H150: € | I150: =SUM(K150:DF150) -> 0
E151: Opgegeven c.a.d. 2006 met afschrijvingstermijn 45 | H151: € | I151: 0
E152: Opgegeven c.a.d. 2006 met afschrijvingstermijn 30 | H152: € | I152: 0
E153: Opgegeven c.a.d. 2006 met afschrijvingstermijn 25 | H153: € | I153: 0
E154: Opgegeven c.a.d. 2006 met afschrijvingstermijn 10 | H154: € | I154: 0
E155: Opgegeven c.a.d. 2006 met afschrijvingstermijn 5 | H155: € | I155: 0
B157: Bijzondere Waardeverminderingen Op Activa 2006
E158: Bijzondere waardeverminderingen op activa 2006 met afschrijvingstermijn 55 | H158: € | I158: =SUM(K158:DF158) -> 0
E159: Bijzondere waardeverminderingen op activa 2006 met afschrijvingstermijn 45 | H159: € | I159: 0
E160: Bijzondere waardeverminderingen op activa 2006 met afschrijvingstermijn 30 | H160: € | I160: 0
E161: Bijzondere waardeverminderingen op activa 2006 met afschrijvingstermijn 25 | H161: € | I161: 0
E162: Bijzondere waardeverminderingen op activa 2006 met afschrijvingstermijn 10 | H162: € | I162: 0
E163: Bijzondere waardeverminderingen op activa 2006 met afschrijvingstermijn 5 | H163: € | I163: 0
B165: Input Alert
E166: Dummy Beginjaar investeringen
E167: Dummy Modelperiode
E168: Dummy Aantal cellen met onterechte input 2006
E169: Dummy Waarschuwing onterecht ingevulde cellen 2006
A171: INVESTERINGSJAAR 2007
B173: Investeringen 2007
E174: Aanschafwaarde investeringen 2007 met afschrijvingstermijn 55 | G174: 5868000 | H174: € | I174: =SUM(K174:DF174) -> 0
E175: Aanschafwaarde investeringen 2007 met afschrijvingstermijn 45 | G175: 20415000 | H175: € | I175: 0
E176: Aanschafwaarde investeringen 2007 met afschrijvingstermijn 30 | G176: 5232000 | H176: € | I176: 0
E177: Aanschafwaarde investeringen 2007 met afschrijvingstermijn 25 | G177: 0 | H177: € | I177: 0
E178: Aanschafwaarde investeringen 2007 met afschrijvingstermijn 10 | G178: =823000+1574602 -> 2397602 | H178: € | I178: 0
E179: Aanschafwaarde investeringen 2007 met afschrijvingstermijn 5 | G179: =5984000-663007.36 -> 5320992.64 | H179: € | I179: 0
E180: Aanschafwaarde investeringen 2007 zonder afschrijvingstermijn | G180: 4000 | H180: € | I180: 0
B182: Desinvesteringen 2007
E183: Desinvesteringen 2007 met afschrijvingstermijn 55 | H183: € | I183: =SUM(K183:DF183) -> 167734.83 | P183: 1000 | Q183: 134000 | R183: 32734.83
E184: Desinvesteringen 2007 met afschrijvingstermijn 45 | H184: € | I184: 168106.27 | P184: 14000 | Q184: 132000 | R184: 22106.27
E185: Desinvesteringen 2007 met afschrijvingstermijn 30 | H185: € | I185: 0
E186: Desinvesteringen 2007 met afschrijvingstermijn 25 | H186: € | I186: 0
E187: Desinvesteringen 2007 met afschrijvingstermijn 10 | H187: € | I187: 370312.4 | P187: 361000 | R187: 9312.4
E188: Desinvesteringen 2007 met afschrijvingstermijn 5 | H188: € | I188: 1317982 | R188: 1317982
E189: Desinvesteringen 2007 zonder afschrijvingstermijn | H189: € | I189: 0
B191: Opgegeven Afschrijvingen 2007
E192: Opgegeven afschrijvingen 2007 met afschrijvingstermijn 55 | H192: € | I192: =SUM(K192:DF192) -> 0
E193: Opgegeven afschrijvingen 2007 met afschrijvingstermijn 45 | H193: € | I193: 0
E194: Opgegeven afschrijvingen 2007 met afschrijvingstermijn 30 | H194: € | I194: 0
E195: Opgegeven afschrijvingen 2007 met afschrijvingstermijn 25 | H195: € | I195: 0
E196: Opgegeven afschrijvingen 2007 met afschrijvingstermijn 10 | H196: € | I196: 0
E197: Opgegeven afschrijvingen 2007 met afschrijvingstermijn 5 | H197: € | I197: 0
B199: Opgegeven Cumulatieve Afschrijvingen Bij Desinvesteringen 2007
E200: Opgegeven c.a.d. 2007 met afschrijvingstermijn 55 | H200: € | I200: =SUM(K200:DF200) -> 0
E201: Opgegeven c.a.d. 2007 met afschrijvingstermijn 45 | H201: € | I201: 0
E202: Opgegeven c.a.d. 2007 met afschrijvingstermijn 30 | H202: € | I202: 0
E203: Opgegeven c.a.d. 2007 met afschrijvingstermijn 25 | H203: € | I203: 0
E204: Opgegeven c.a.d. 2007 met afschrijvingstermijn 10 | H204: € | I204: 0
E205: Opgegeven c.a.d. 2007 met afschrijvingstermijn 5 | H205: € | I205: 0
B207: Bijzondere Waardeverminderingen Op Activa 2007
E208: Bijzondere waardeverminderingen op activa 2007 met afschrijvingstermijn 55 | H208: € | I208: =SUM(K208:DF208) -> 0
E209: Bijzondere waardeverminderingen op activa 2007 met afschrijvingstermijn 45 | H209: € | I209: 0
E210: Bijzondere waardeverminderingen op activa 2007 met afschrijvingstermijn 30 | H210: € | I210: 0
E211: Bijzondere waardeverminderingen op activa 2007 met afschrijvingstermijn 25 | H211: € | I211: 0
E212: Bijzondere waardeverminderingen op activa 2007 met afschrijvingstermijn 10 | H212: € | I212: 0
E213: Bijzondere waardeverminderingen op activa 2007 met afschrijvingstermijn 5 | H213: € | I213: 0
B215: Input Alert
E216: Dummy Beginjaar investeringen
E217: Dummy Modelperiode
E218: Dummy Aantal cellen met onterechte input 2007
E219: Dummy Waarschuwing onterecht ingevulde cellen 2007
A221: INVESTERINGSJAAR 2008
B223: Investeringen 2008
E224: Aanschafwaarde investeringen 2008 met afschrijvingstermijn 55 | G224: 820000 | H224: € | I224: =SUM(K224:DF224) -> 0
E225: Aanschafwaarde investeringen 2008 met afschrijvingstermijn 45 | G225: 42585000 | H225: € | I225: 0
E226: Aanschafwaarde investeringen 2008 met afschrijvingstermijn 30 | G226: 5232000 | H226: € | I226: 0
E227: Aanschafwaarde investeringen 2008 met afschrijvingstermijn 25 | G227: 0 | H227: € | I227: 0
E228: Aanschafwaarde investeringen 2008 met afschrijvingstermijn 10 | G228: =1006000+1502229 -> 2508229 | H228: € | I228: 0
E229: Aanschafwaarde investeringen 2008 met afschrijvingstermijn 5 | G229: =1210000-(-1155922.29) -> 2365922.29 | H229: € | I229: 0
E230: Aanschafwaarde investeringen 2008 zonder afschrijvingstermijn | G230: 13000 | H230: € | I230: 0
B232: Desinvesteringen 2008
E233: Desinvesteringen 2008 met afschrijvingstermijn 55 | H233: € | I233: =SUM(K233:DF233) -> 18433.82 | P233: 1000 | Q233: 14000 | R233: 3433.82
E234: Desinvesteringen 2008 met afschrijvingstermijn 45 | H234: € | I234: 61955.9 | P234: 1000 | Q234: 25000 | R234: 35955.9
E235: Desinvesteringen 2008 met afschrijvingstermijn 30 | H235: € | I235: 0
... 468 more rows

Sheet InpEnexis EHD
A1: =RIGHT(CELL("filename", A1), LEN(CELL("filename", A1)) - SEARCH("]", CELL("filename", A1))) -> InpEnexis EHD
E2: =Tijd!E$2 -> Actieve netbeheerder | G2: =Tijd!G$2 -> Zebra EHD
E3: =Tijd!E$3 -> Actieve inputsheet | G3: =Tijd!G$3 -> InpZebra EHD
